Workbook

Sheet WP1 (hidden)
B2: =Sprache!B9 -> Projet: | G2: =Sprache!B8 -> WPesti / V 8.3.33 / 27.09.2024 valable jusqu'à 31.12.2025 | K2: Auswahl Klima | L2: =IF(JAZcalc,34,IF(H6=0,1,MATCH(H6,B72:B104,0))) -> 1 | M2: =IF(AND(L2>1,L2<=34),TRUE,FALSE) -> FALSE | N2: Neu: | O2: TRUE
B3: =IF(JAZcalc,IF(JAZcalc!C4="","",JAZcalc!C4&" "&JAZcalc!C5&" "&JAZcalc!C6),IF(WP!B3<>"",WP!B3,"")) ->  | K3: Kategorie: | L3: =IF(JAZcalc,JAZcalc!O3,IF(H7=0,1,MATCH(H7,K5:K17,0))) -> 1 | M3: =H7 -> 0 | O3: muss leer sein, wenn keine extern Eingabe! | P3: W/m² | Q3: Auswahl WP - Art: | R3: =J20 -> 1 | T3: =WP_Daten!E2 -> 2024-09-27 | W3: Methode SIA 384/3: | X3: TRUE
B4: =IF(Spez!$L$47,"Weitere Angaben auf Zusatzblatt 'Spez'","") ->  | J4: 5 | K4: Grenzwerte | L4: Hg0 | M4: DHg | N4: Qww | O4: Qww | P4: Fg, ev | Q4: WPArt | R4: =INDEX(S133:S167,R3,1) -> 1 | S4: 1 | T4: Text für Eingabe der Anlagen - Kennwerte | X4: JAZh: | Y4: =IF(WPArt>1,INDEX(V29:AJ29,1,1+2*(WPArt-2)),) -> 0 | Z4: JAZww: | AA4: =IF(WPArt>1,INDEX(V37:AJ37,1,1+2*(WPArt-2)),) -> 0 | AJ4: =INDEX(AJ5:AJ13,WPArt,1) -> 0
B5: =Sprache!B10 -> Données concernant le bâtiment | K5: ="" ->  | P5: 0 | AJ5: 0
B6: =Sprache!B11 -> Station climatique: | G6: =IF(JAZcalc,"",IF(Klima=1,Sprache!B24,"")) -> choisir -> | H6: =IF(JAZcalc,JAZcalc!H9,WP!H6) -> 0 | K6: =Sprache!B100 -> Habitat collectif | L6: 55 | M6: 65 | N6: =IF(O6>0,O6,75)*(1+EtaWW) -> 75 | O6: =IF(JAZcalc,JAZcalc!O6,0) -> 0 | P6: 3.1 | Q6: =Sprache!B61 -> Pompe à chaleur air/eau | T6: =IF(WW,Sprache!B65,"") ->  | U6: =IF(WW,"-","") ->  | V6: =IF(OR(Heizung,WW),Sprache!B71,"") ->  | W6: =IF(Heizung,"-","") ->  | X6: =IF(OR(Heizung,WW),Sprache!B76,"") ->  | Y6: =IF(Heizung,"kW","") ->  | Z6: =IF(OR(Heizung,WW),Sprache!B81,"") ->  | AA6: =IF(Heizung,"-","") ->  | AB6: =IF(OR(Heizung,WW),Sprache!B86,"") ->  | AC6: =IF(Heizung,"kW","") ->  | AD6: =IF(OR(Heizung,WW),Sprache!B90,"") ->  | AE6: =IF(Heizung,"-","") ->  | AF6: =IF(OR(Heizung,WW),Sprache!B94,"") ->  | AG6: =IF(Heizung,"kW","") ->  | AH6: =IF(Heizung,IF(Heizspeicher,Sprache!B98,""),"") ->  | AI6: =IF(Heizung,IF(Heizspeicher,Sprache!B99,""),"") ->  | AJ6: =IF(Heizung,7,IF(WW,7,0))+IF(AND(Heizung,Heizspeicher),1,0) -> 0
B7: =Sprache!B13 -> Catégorie d'ouvrage | G7: =IF(Kategorie=1,Sprache!B24,"") -> choisir -> | H7: =IF(JAZcalc,JAZcalc!H10,WP!H7) -> 0 | K7: =Sprache!B101 -> Habitat individuel | L7: 65 | M7: 65 | N7: =IF(O7>0,O7,50)*(1+EtaWW) -> 50 | O7: =IF(JAZcalc,JAZcalc!O7,0) -> 0 | P7: 2.4 | Q7: =Sprache!B62 -> Pompe à chaleur sol/eau | T7: =Sprache!B67 -> Puissance électrique soutirée par pompe de sonde: | U7: W | V7: =Sprache!B72 -> Nombre: | W7: - | X7: =Sprache!B77 -> Longueur: | Y7: m | Z7: =Sprache!B82 -> Température de dimensionnement des sondes (optionnel, calcul externe) | AA7: °C | AB7: =IF(WW,Sprache!B87,"") ->  | AC7: =IF(WW,"-","") ->  | AD7: =IF(OR(Heizung,WW),Sprache!B91,"") ->  | AE7: =IF(Heizung,"-","") ->  | AF7: =IF(OR(Heizung,WW),Sprache!B95,"") ->  | AG7: =IF(Heizung,"kW","") ->  | AH7: =IF(Heizung,IF(Heizspeicher,Sprache!B98,""),"") ->  | AI7: =IF(Heizung,IF(Heizspeicher,Sprache!B99,""),"") ->  | AJ7: =7+IF(AND(Heizung,Heizspeicher),1,0) -> 7
B8: =Sprache!B12 -> Surface de référence énergétique SRE | E8: =IF(OR(EBF="",EBF=0),Sprache!B75,"") -> choisir -> | F8: AE | G8: m2 | H8: =IF(JAZcalc,JAZcalc!I11,WP!H8) -> 0 | K8: =Sprache!B102 -> Administration | L8: 65 | M8: 85 | N8: =IF(O8>0,O8,25)*(1+EtaWW) -> 25 | O8: =IF(JAZcalc,JAZcalc!O8,0) -> 0 | P8: 3.3 | Q8: =Sprache!B63 -> Pompe à chaleur eau/eau | T8: =IF(WW,Sprache!B68,"") ->  | U8: =IF(WW,"-","") ->  | V8: =IF(OR(Heizung,WW),Sprache!B73,"") ->  | W8: =IF(Heizung,"-","") ->  | X8: =IF(OR(Heizung,WW),Sprache!B78,"") ->  | Y8: =IF(Heizung,"kW","") ->  | Z8: =Sprache!B83 -> Température source de chaleur (si pas 10°C) | AA8: °C | AB8: =Sprache!B88 -> Puissance électrique soutirée par pompe de circulation: | AC8: W | AD8: =Sprache!B92 -> Type de pompe (données nécessaires si puissance < valeur proposée) | AE8: ="" ->  | AF8: =IF(Heizung,IF(Heizspeicher,Sprache!B96,""),"") ->  | AG8: =IF(Heizung,IF(Heizspeicher,Sprache!B99,""),"") ->  | AJ8: =6+IF(AND(Heizung,Heizspeicher),1,0) -> 6
B9: =Sprache!B14 -> Besoins de chaleur pour le chauffage selon SIA 380/1 | E9: =IF(OR(H9="",H9=0),Sprache!B75,"") -> choisir -> | F9: Qh,eff | G9: MJ/m2a | H9: =IF(JAZcalc,JAZcalc!I12*3.6,WP!H9*Einheitenfaktor) -> 0 | K9: =Sprache!B103 -> Ecole | L9: 70 | M9: 70 | N9: =IF(O9>0,O9,25)*(1+EtaWW) -> 25 | O9: =IF(JAZcalc,JAZcalc!O9,0) -> 0 | P9: 2.3 | Q9: =Sprache!B64 -> PAC avec collecteur terrestre | T9: =Sprache!B70 -> Puissance électrique soutirée par pompe saumure: | U9: W | V9: =Sprache!B74 -> Surface de collecteurs | W9: m2 | X9: =Sprache!B80 -> Puissance spécifique soutirée | Y9: W/m2 | Z9: =Sprache!B84 -> Température de dimensionnement des sondes (optionnel, calcul externe) | AA9: °C | AB9: =Sprache!B89 -> COP aux conditions normalisées (B0 / W50) | AC9: =IF(WW,"-","") ->  | AD9: =IF(OR(Heizung,WW),Sprache!B93,"") ->  | AE9: =IF(Heizung,"-","") ->  | AF9: =IF(OR(Heizung,WW),Sprache!B97,"") ->  | AG9: =IF(Heizung,"kW","") ->  | AH9: =IF(Heizung,IF(Heizspeicher,Sprache!B98,""),"") ->  | AI9: =IF(Heizung,IF(Heizspeicher,Sprache!B99,""),"") ->  | AJ9: =7+IF(AND(Heizung,Heizspeicher),1,0) -> 7
B10: =Sprache!B15 -> Déperditions par transmission selon SIA 380/1 | E10: =IF(OR(QT="",QT=0),Sprache!B75,IF(H10,IF(H10<=0.5*$H$9,Sprache!B131,""),"")) -> choisir -> | F10: QT | G10: MJ/m2a | H10: =IF(JAZcalc,JAZcalc!I13*3.6,WP!H10*Einheitenfaktor) -> 0 | K10: =Sprache!B104 -> Commerce | L10: 50 | M10: 65 | N10: =IF(O10>0,O10,25)*(1+EtaWW) -> 25 | O10: =IF(JAZcalc,JAZcalc!O10,0) -> 0 | P10: 2.3 | Q10: Abluft-Wärmepumpe ohne WRG | AH10: =IF(Heizung,IF(Heizspeicher,Sprache!B98,""),"") ->  | AI10: =IF(Heizung,IF(Heizspeicher,Sprache!B99,""),"") -> 
B11: =Sprache!B16 -> Déperditions par renouvellement d'air selon SIA 380/1 | E11: =IF(OR(QV="",QV=0),Sprache!B75,IF(H11,IF((H11+QT)<$H$9,Sprache!B131,""),"")) -> choisir -> | F11: QV | G11: MJ/m2a | H11: =IF(JAZcalc,JAZcalc!I14*3.6,WP!H11*Einheitenfaktor) -> 0 | K11: =Sprache!B105 -> Restauration | L11: 95 | M11: 75 | N11: =IF(O11>0,O11,200)*(1+EtaWW) -> 200 | O11: =IF(JAZcalc,JAZcalc!O11,0) -> 0 | P11: 2.3
B12: =Sprache!B17 -> Chauffage: pertes supplémentaires de distribution de chaleur | G12: % | H12: =IF(JAZcalc,JAZcalc!I15,WP!H12) -> 0 | K12: =Sprache!B106 -> Lieu de rassemblement | L12: 95 | M12: 75 | N12: =IF(O12>0,O12,50)*(1+EtaWW) -> 50 | O12: =IF(JAZcalc,JAZcalc!O12,0) -> 0 | P12: 2.3
B13: =Sprache!B18 -> Durée de coupure d'alimentation de la PAC | G13: h/d | H13: =IF(JAZcalc,JAZcalc!I16,WP!H13) -> 0 | K13: =Sprache!B107 -> Hôpitaux | L13: 80 | M13: 80 | N13: =IF(O13>0,O13,100)*(1+EtaWW) -> 100 | O13: =IF(JAZcalc,JAZcalc!O13,0) -> 0 | P13: 4
B14: =Sprache!B19 -> Puissance de chauffage nécessaire sans ECS à °C | E14: =IF(Kategorie>1,IF(Leistung<>"",IF(Methode_384_3,Sprache!B140,IF(Leistung<M28,Sprache!B139,Sprache!B140)),Sprache!B140),"") ->  | F14: =IF(AND(EBF>0,H9>0,L2>1),IF(Leistung>M31,M31,IF(Neu,IF(AND(Leistung<Berechnungen!B36*0.9,Leistung>0),Berechnungen!B36*0.9,MAX(Berechnungen!B36,Leistung)),IF(Kategorie>1,IF(Leistung<(M32/28*(20-TaMin)),(M32/28*(20-TaMin)),IF(Qtot>0,Qtot*(1+Verteilverluste)*EBF/3.6/(HGT*1.065)/24*(20-TaMin)-INDEX(P5:P17,Kategorie,1)*EBF/1000,IF(Qh,Qh*EBF/3.6/HGT/15*(20-TaMin)-INDEX(P5:P17,Kategorie,1)*EBF/1000,""))),""))),"") ->  | G14: kW | H14: =IF(Methode_384_3,"",IF(JAZcalc,IF(JAZcalc!L17>0,JAZcalc!L17,""),IF(WP!H14>0,WP!H14,""))) ->  | J14: =IF(Leistung<(M32/28*(20-TaMin)),(M32/28*(20-TaMin)),IF(Qtot>0,Qtot*(1+Verteilverluste)*EBF/3.6/(HGT*1.065)/24*(20-TaMin),IF(Qh,Qh*EBF/3.6/HGT/15*(20-TaMin),"")))-INDEX(P5:P17,Kategorie,1)*EBF/1000 ->  | K14: =Sprache!B108 -> Industrie | L14: 60 | M14: 70 | N14: =IF(O14>0,O14,25)*(1+EtaWW) -> 25 | O14: =IF(JAZcalc,JAZcalc!O14,0) -> 0 | P14: 2.3 | Q14: =INDEX(Q5:Q13,WPArt,1) -> 
B15: =Sprache!B20 -> Besoins de chaleur pour l'ECS selon SIA 380/1 | F15: Qww | G15: MJ/m2a | H15: =IF(R31<>"",R31,IF(J21=1,INDEX(N5:N17,Kategorie,1),IF(Kategorie>1,IF(WW,IF(M37>0,M37,IF(AND(EBF>0,Kategorie>1),IF(SUM(H8:H8)=0,"",INDEX($N$5:$N$17,$L$3,)),"")),0),0))) ->  | J15: =INDEX(N5:N17,Kategorie,1) ->  | K15: =Sprache!B109 -> Dépôt | L15: 60 | M15: 70 | N15: =IF(O15>0,O15,5)*(1+EtaWW) -> 5 | O15: =IF(JAZcalc,JAZcalc!O15,0) -> 0 | P15: 2.3 | Q15: =INDEX(T5:T13,WPArt,1) ->  | S15: =INDEX(U5:U13,WPArt,1) ->  | U15: Luft - Wasser - WP | W15: Sole - Wasser - WP | Y15: Wasser - Wasser - WP: | AA15: Erdkollektor - WP | AC15: Abluft-WP | AE15: Luft - Wasser - WP | AG15: Sole - Wasser - WP | AI15: Wasser - Wasser - WP:
B16: =Sprache!B21 -> Eau chaude sanitaire: pertes supplémentaires d'accumulation et de distribution | G16: % | H16: =IF(JAZcalc,JAZcalc!I19,WP!H16) -> 0 | J16: =IF(H16<0,H16,MAX(IF(H16>0,H16,0),IF(J43=3,0.2,0))) -> 0 | K16: =Sprache!B110 -> Installation sportive | L16: 75 | M16: 70 | N16: =IF(O16>0,O16,300)*(1+EtaWW) -> 300 | O16: =IF(JAZcalc,JAZcalc!O16,0) -> 0 | P16: 2.3 | Q16: =INDEX(V5:V13,WPArt,1) ->  | S16: =INDEX(W5:W13,WPArt,1) ->  | U16: Heizung | W16: Heizung | Y16: Heizung | AA16: Heizung | AC16: Heizung | AE16: Heizung | AG16: Heizung | AI16: Heizung | AL16: WP2
B17: =IF(AND(Qh>0,$BH$57<>3),IF(AND(bivalent=FALSE,elZusatz=FALSE,F57>0.01),Sprache!B146,""),"") ->  | H17: =IF(OR(G19=0,G19="",G19=" ",F20=0,F20="",F20=" "),"",IF(OR(AND(WP_Daten!AJ28=2,WPArt<>2),AND(OR(WP_Daten!AJ28=3,WP_Daten!AJ28=4),WPArt=2)),"Wärmepumpentyp und Wärmequelle stimmen nicht überein","")) ->  | K17: =Sprache!B111 -> Piscine | L17: 70 | M17: 90 | N17: =IF(O17>0,O17,300)*(1+EtaWW) -> 300 | O17: =IF(JAZcalc,JAZcalc!O17,0) -> 0 | P17: 2.3 | Q17: =INDEX(X5:X13,WPArt,1) ->  | S17: =INDEX(Y5:Y13,WPArt,1) ->  | U17: ="COP -7/"&IF(M20,M20,35)&":" -> COP -7/33: | V17: =E28*(35+7)/(IF(_TVL1,(_TVL1+7-DT__7),(35+7))/(_TVL1+273.15)*(35+273.15))*(1-(DeltaT_ref-DeltaT_eff)/2/(IF(_TVL1,_TVL1,35)-DeltaT_ref/2+4+7+15)) -> 0 | W17: ="Q 0/35:" -> Q 0/35: | X17: =IF(OR(WPArt=3,WPArt=5,WPArt=6),W52,) -> 0 | Y17: ="Q 10/35:" -> Q 10/35: | Z17: =IF(WPArt=4,W52,) -> 0 | AA17: ="Q 0/35:" -> Q 0/35: | AB17: =IF(OR(WPArt=3,WPArt=5),W52,) -> 0 | AC17: ="Q 20/35:" -> Q 20/35: | AD17: =X17 -> 0 | AG17: ="Q 0/50:" -> Q 0/50: | AH17: =IF(WPArt2=3,AN18,) -> 0 | AI17: ="Q 10/50:" -> Q 10/50: | AJ17: =IF(WPArt2=4,AN19) -> FALSE | AL17: Leistung bei -7°C
B18: =Sprache!B22 -> Installation de pompe à chaleur | C18: =IF(JAZcalc,JAZcalc!D21,WP!C18) -> 0 | E18: =IF(JAZcalc,JAZcalc!F21,WP!E18) -> WP-Liste | F18: =IF(SpezWP,IF(Spez!E5<>"",Spez!E5,""),"Hersteller: ") -> Hersteller: | G18: =IF(JAZcalc,JAZcalc!H21,WP!G18) -> 0 | J18: =IF(OR(E18=0,E18="",E18=P50,E18=P52),FALSE,TRUE) -> TRUE | K18: Nachtabsenk / Nachtladung WP | M18: 0 | N18: °C | Q18: =INDEX(Z5:Z13,WPArt,1) ->  | S18: =INDEX(AA5:AA13,WPArt,1) ->  | U18: ="COP 2/"&IF(M20,M20,35)&":" -> COP 2/33: | V18: =F28*(35-2)/(IF(_TVL1,(_TVL1-2-DT_2),(35-2))/(_TVL1+273.15)*(35+273.15))*(1-(DeltaT_ref-DeltaT_eff)/2/(IF(_TVL1,_TVL1,35)-DeltaT_ref/2+4-2+15)) -> 0 | W18: ="COP B0/W35:" -> COP B0/W35: | X18: =W50 -> 0 | Y18: ="COP 10/35:" -> COP 10/35: | Z18: =W50 -> 0 | AA18: ="COP B0/W35:" -> COP B0/W35: | AB18: =W50 -> 0 | AC18: ="COP 20/W35:" -> COP 20/W35: | AD18: =W50 -> 0 | AG18: ="COP B0/W50:" -> COP B0/W50: | AH18: =AN20 -> 0 | AI18: ="COP 10/50:" -> COP 10/50: | AJ18: =AN20 -> 0 | AL18: Leistung bei -2°C
B19: =Sprache!B23 -> Nom et type de PAC | F19: =IF(SpezWP,IF(Spez!E5<>"",Spez!E5,""),"Typ: ") -> Typ: | G19: =IF(JAZcalc,JAZcalc!H22,WP!G19) -> 0 | J19: =IF(OR(G18=WP_Daten!D10,G18="",G18=0),FALSE,TRUE) -> FALSE | K19: Bivalenzpunkt (alternativ) | M19: =IF(H39="",-30,H39) -> -30 | N19: °C | Q19: =INDEX(AB5:AB13,WPArt,1) ->  | S19: =INDEX(AC5:AC13,WPArt,1) ->  | U19: ="COP 7/"&IF(M20,M20,35)&":" -> COP 7/33: | V19: =G28*(35-7)/(IF(_TVL1,(_TVL1-7-DT_7),(35-7))/(_TVL1+273.15)*(35+273.15))*(1-(DeltaT_ref-DeltaT_eff)/2/(IF(_TVL1,_TVL1,35)-DeltaT_ref/2+4-7+15)) -> 0 | W19: Pel B0/W35: | X19: =IF(X18>0,X17/X18,0) -> 0 | Y19: Pel 10/35: | Z19: =IF(Z18>0,Z17/Z18,0) -> 0 | AA19: Pel B0/W35: | AB19: =IF(AB18>0,AB17/AB18,0) -> 0 | AC19: Pel 20/W35: | AD19: =IF(AD18>0,AD17/AD18,0) -> 0 | AG19: Pel B0/W35: | AH19: =IF(AH18>0,AH17/AH18,0) -> 0 | AI19: Pel 10/50: | AJ19: =IF(AJ18>0,AJ17/AJ18,0) -> 0 | AL19: Leistung bei 7°C
B20: =Sprache!B26 -> Source de chaleur: | E20: =IF(WPArt=1,Sprache!B24,"") -> choisir -> | F20: =IF(JAZcalc,JAZcalc!G23,WP!F20) -> 0 | J20: =IF(OR(F20="",F20=0),1,MATCH(F20,$T$133:$T$153,0)) -> 1 | K20: eff. Vorlauftemperatur WP : | M20: =MAX(TRL,H35+dTNutzer)+MAX(TVL-TRL,5)+H38+DTKombispeicher -> 33 | N20: °C | Q20: =INDEX(AD5:AD13,WPArt,1) ->  | S20: =INDEX(AE5:AE13,WPArt,1) ->  | U20: ="Q -7/35:" -> Q -7/35: | V20: =IF(WPArt=2,E27,) -> 0 | W20: PPumpe [W] | X20: =MAX(W49-0.04*X19*1000,0) -> 0 | Y20: PPumpe [W] | Z20: =IF(W49,MAX(W49-0.04*Z19*1000,0),Z19*1000*0.06) -> 0 | AA20: PPumpe [W] | AB20: =MAX(W49-0.04*AB19*1000,0) -> 0 | AG20: PPumpe [W] | AH20: =MAX(AN26-0.04*AH19*1000,AH19*1000*0.04) -> 0 | AI20: PPumpe [W] | AJ20: =IF(AN26,MAX(AN26-0.04*AJ19*1000,AJ19*1000*0.04),AJ19*1000*0.06) -> 0 | AL20: COP bei 7°C / 50°C
B21: =Sprache!B27 -> Utilisation (chauffage ou eau chaude sanitaire) | E21: =IF(BH58=1,Sprache!B24,"") -> choisir -> | F21: =IF(JAZcalc,JAZcalc!G24,WP!F21) -> 0 | J21: =IF(OR(F21="",F21=0),1,MATCH(F21,$BG$59:$BG$63,0)) -> 1 | K21: Differenz Speicher-Vorlauf | M21: =H38 -> 0 | N21: K | Q21: =INDEX(AF5:AF13,WPArt,1) ->  | S21: =INDEX(AG5:AG13,WPArt,1) ->  | U21: ="Q 2/35:" -> Q 2/35: | V21: =IF(WPArt=2,F27,) -> 0 | W21: Vollbetrieb-h | X21: =IF(X17=0,0,IF(AND(H33>0,H33<>""),IF(Kategorie>1,AI128*(24-Sperrzeit)/24,),MIN((Qh+Qww)*EBF/3.6/(W52+W53)*2,4600/24*(24-Sperrzeit)+IF(WW,Qww*0.4*(1-Z51)*EBF/3.6/W53,0),8760/24*(24-Sperrzeit)))) -> 0 | AA21: Vollbetrieb-h | AB21: =IF(H33<>"",IF(Kategorie>1,AI128*(24-Sperrzeit)/24,),X21) -> 0 | AC21: Vollbetrieb-h | AD21: =X21 -> 0 | AG21: Vollbetrieb-h | AH21: Bezug WP2 | AL21: WW-Temperatur
B22: =IF(Heizung=FALSE,"",Sprache!B29) ->  | E22: =IF(AND(HeizungSolar,$AI$132=3),Sprache!B25,IF(AND(AI132=1,Heizung),Sprache!B24,"")) ->  | F22: =IF(JAZcalc,JAZcalc!G25,WP!F22) ->  | J22: =IF(OR(F22="",F22=0),1,IF(OR($J$21=3,$J$21=1,$J$20=18),1,MATCH(F22,$AH$133:$AH$139,0))) -> 1 | K22: eff. Rüclauftemperatur WP : | M22: =MAX(TRL,MAX(20,H35)+dTNutzer)+M21 -> 28 | N22: °C | Q22: =INDEX(AH5:AH13,WPArt,1) ->  | S22: =INDEX(AI5:AI13,WPArt,1) ->  | U22: ="Q 7/35:" -> Q 7/35: | V22: =IF(WPArt=2,G27,) -> 0 | W22: Sondenanzahl | X22: =E32 -> 0 | AA22: Kollektorfläche | AB22: =H32 -> 0 | AG22: Sondenanzahl | AH22: =AN24 -> 0 | AL22: WW-Temperatur Zusatz
B23: =Sprache!B28 -> Mode de fonctionnement de la PAC | E23: =IF(AD139=1,Sprache!B24,"") -> choisir -> | F23: =IF(JAZcalc,JAZcalc!G26,WP!F23) -> 0 | J23: =IF(OR(F23="",F23=0),1,IF(MATCH(F23,$AD$133:$AD$137,0)=5,4,MATCH(F23,$AD$133:$AD$137,0))) -> 1 | K23: DTSpr,Ref = dT Nutzer : | M23: =IF(dTNutzer>0,MIN(MAX(dTNutzer,DeltaT_eff),20),10) -> 5 | N23: °C | Q23: =IF(AND(H33<>0,H33<>""),IF(OR(WPArt=3,WPArt=5),K41&" "&TEXT(M41,"0.0")&" kW",""),"") ->  | U23: Gew. -7°C | V23: =IF($AK$128>0,SUM(AK60:AK82)/$AK$128,0) ->  | W23: Sondenlänge | X23: =H32 -> 0 | AA23: spez. Entzugsleistung | AB23: =E32 -> 0 | AG23: Sondenlänge | AH23: =AN25 -> 0 | AL23: Quellentemp WW-WP
B24: =IF(elZusatz,Sprache!B30,"") ->  | E24: =IF(AND(elZusatz,BH67=1),Sprache!B24,"") ->  | F24: =IF(JAZcalc,IF(JAZcalc!G27<>0,JAZcalc!G27,""),IF(WP!F24<>0,WP!F24,"")) ->  | J24: =IF(OR(F24="",F24=0,J23<>3),1,MATCH(F24,$BG$68:$BG$72,0)) -> 1 | K24: DTSpr,eff = T VL - T RL : | M24: =_TVL1-_TRL1 -> 5 | N24: °C | U24: COP mittel | V24: =IF(Neu,BB128,IF(OR(V17=0,V18=0,V19=0),0,IF(Neu,BB128,1/(V23/V17+V25/V18+(1-V23-V25)/V19)))) ->  | W24: ="COP B"&FIXED(X25,0)&"/W"&IF(M20,M20,35)&":" -> COP B2/W33: | X24: =IF(X18=0,0,IF(X19,X18*1/(X20/1000/X19+1)*((IF(M20,M20,35)+273)*(35-0)/((35+273)*(IF(M20,M20,35)-X25))),)*(1-(DeltaT_ref-DeltaT_eff)/2/(IF(_TVL1,_TVL1,35)-DeltaT_ref/2+4-TQuelle+15))) -> 0 | Y24: ="COP "&IF(TQuelleH1<>"",TQuelleH1,10)&"/"&IF(M20,M20,35)&":" -> COP 10/33: | Z24: =IF(Z18=0,0,Z18*1/IF(Z19>0,(Z20/1000/Z19+1),1)*(IF(M20<>"",M20,35)+273)*(35-10)/((35+273)*(IF(M20<>"",M20,35)-(IF(TQuelleH1<>"",TQuelleH1,10))))*(1-(DeltaT_ref-DeltaT_eff)/2/(IF(_TVL1<>"",_TVL1,35)-DeltaT_ref/2+4-IF(TQuelleH1<>"",TQuelleH1,10)+15))) -> 0 | AA24: ="COP B"&FIXED(AB25,0)&"/W"&IF(M20,M20,35)&":" -> COP B2/W33: | AB24: =IF(AB19,AB18*1/(AB20/1000/AB19+1)*((IF(M20,M20,35)+273)*(35-0)/((35+273)*(IF(M20,M20,35)-AB25))),)*(1-(DeltaT_ref-DeltaT_eff)/2/(IF(_TVL1,_TVL1,35)-DeltaT_ref/2+4-TQuelle+15)) -> 0 | AC24: ="COP 20/W"&IF(M20,M20,35)&":" -> COP 20/W33: | AD24: =IF(AD19,AD18*1/(AD20/1000/AD19+1)*((IF(M20,M20,35)+273)*(35-20)/((35+273)*(IF(M20,M20,35)-AD25))),) -> 0 | AG24: ="COP B"&FIXED(AH25,0)&"/W"&IF(AN21,AN21,50)&":" -> COP B2/W50: | AH24: =IF(AH19,AH18*1/(AH20/1000/AH19+1)*((IF(AN21,AN21,50)+273)*(50-0)/((50+273)*(IF(AN21,AN21,50)-AH25))),)*(1-(DeltaT_ref-DeltaT_eff)/2/(IF(AN21,AN21,50)-DeltaT_ref/2+4-AH25+15)) -> 0 | AL24: Sondenzahl
B25: =Sprache!B69 -> Température de la source (entrée PAC) | C25: °C | D25: -15 | E25: -7 | F25: 2 | G25: 7 | H25: =IF(WPArt=2,20,IF(WPArt=3,0,IF(WPArt=4,10,IF(WPArt=5,0,IF(WPArt=6,20,20))))) -> 20 | J25: =IF(OR(F23="",F23=0),1,MATCH(F23,$AD$133:$AD$137,0)) -> 1 | K25: Rücklauftempf bei Ta = -8°C | M25: =MAX(TRL,MAX(20,H35)+dTNutzer)+M21 -> 28 | N25: °C | P25: WP1: Sondentemp. Heizung | R25: =IF(H33<>"",MIN(H33,20),"") ->  | S25: °C | U25: Gew. +2°C | V25: =IF($AK$128>0,MAX(MIN(SUM(AK83:AK89)/$AK$128,1-V23),0),) ->  | W25: Eff Tverd_ein: | X25: =IF(R25<>"",R25,IF(AND(X21>0,X19>0),MIN(6,-X22*0.1-IF(X22<6,0.25*X22,2)+(10-(0.055+MAX(2200,X21)*(0.4+0.6*2.5/lambda_Erde)/100*0.006)*(X19*1000*(X18-1)/(X22*X23)))),0))+Offset -> 2 | Y25: Eff Tverd_ein: | Z25: =IF(H33<>"",H33,10) -> 10 | AA25: Eff Tverd_ein: | AB25: =IF(R25<>"",R25,IF(AB17>0,MIN(-2-((AB17-AB19)*1000/(AB23*AB22)-1)*10,3),0))+Offset -> 2 | AC25: Eff Tverd_ein: | AD25: =20 -> 20 | AG25: Eff Tverd_ein: | AH25: =IF(R27<>"",R27,IF(AND(AH21>0,AH19>0),MIN(6,10-(0.055+AH21*(0.4+0.6*2.5/lambda_Erde)/100*0.006)*(AH19*1000*(AH18-1)/(AH22*AH23))),0))+Offset -> 2 | AL25: Sondenlänge
B26: =Sprache!B185&IF(SpezWP,Spez!C10,35)&"°C (Qh / COP):" -> Valeurs de calcul pour Tdép35°C (Qh / COP): | C26: °C | D26: =IF(WPArt=2,IF(SpezWP,FIXED(WP_BIN!AD81,1)&"kW / "&FIXED(WP_BIN!AD82,1),FIXED(WP_Daten!G5,1)&"kW / "&FIXED(WP_Daten!H5,1)),"") ->  | E26: =IF(WPArt=2,IF(SpezWP,FIXED(WP_BIN!AL81,1)&"kW / "&FIXED(WP_BIN!AL82,1),FIXED(WP_Daten!I5,1)&"kW / "&FIXED(WP_Daten!J5,1)),"") ->  | F26: =IF(WPArt=2,IF(SpezWP,FIXED(WP_BIN!AU81,1)&"kW / "&FIXED(WP_BIN!AU82,1),FIXED(WP_Daten!K5,1)&"kW / "&FIXED(WP_Daten!L5,1)),"") ->  | G26: =IF(WPArt=2,IF(SpezWP,FIXED(WP_BIN!AZ81,1)&"kW / "&FIXED(WP_BIN!AZ82,1),FIXED(WP_Daten!M5,1)&"kW / "&FIXED(WP_Daten!N5,1)),"") ->  | H26: =IF(SpezWP,IF(WPArt=2,FIXED(WP_BIN!BM81,1)&"kW / "&FIXED(WP_BIN!BM82,1),IF(OR(WPArt=3,WPArt=5,WPArt=4),FIXED(Spez!L21,1)&"kW / "&FIXED(Spez!L20,1),)),IF(OR(WPArt=2,WPArt=6),FIXED(WP_Daten!O5,1)&"kW / "&FIXED(WP_Daten!P5,1),IF(OR(WPArt=3,WPArt=5),FIXED(WP_Daten!W5,1)&"kW / "&FIXED(WP_Daten!X5,1),IF(WPArt=4,FIXED(WP_Daten!AA5,1)&"kW / "&FIXED(WP_Daten!AB5,1),FIXED(WP_Daten!AA5,1)&"kW / "&FIXED(WP_Daten!AB5,1))))) -> 0.0kW / 0.0 | J26: =IF(OR(WPArt=2,WPArt=6),IF(WP_Daten!O5>0,FIXED(WP_Daten!O5,1)&"kW / "&FIXED(WP_Daten!P5,1),""),IF(OR(WPArt=3,WPArt=5),FIXED(WP_Daten!W5,1)&"kW / "&FIXED(WP_Daten!X5,1),IF(WPArt=4,FIXED(WP_Daten!AA5,1)&"kW / "&FIXED(WP_Daten!AB5,1),FIXED(WP_Daten!AA5,1)&"kW / "&FIXED(WP_Daten!AB5,1)))) -> 0.0kW / 0.0 | K26: Min. DT (Kondensator-TRL) | M26: 4 | N26: K | P26: WP1: Sondentemp. WW | R26: =IF(H33<>"",MIN(H33,20),"") ->  | S26: °C | T26: =Max_Zusatzheizung ->  | U26: COP eff | V26: =IF(Neu,BB128,IF(OR(V17=0,V18=0,V19=0),0,1/(V23/V17+V25/V18+(1-V23-V25)/V19))) ->  | W26: COP eff | X26: =IF(X24>0,1/(X27/X24+X28),) -> 0 | Y26: COP eff | Z26: =IF(Z24>0,1/(Z27/Z24+Z28),) -> 0 | AA26: COP eff | AB26: =IF(AB24>0,1/(AB27/AB24+AB28),) -> 0 | AD26: =X26 -> 0 | AL26: Leistungsaufnahme Pumpe
B27: =Sprache!B197&" 35°C" -> Puissance de chauffe pour Tdép 35°C | C27: kW | D27: =IF(JAZcalc,JAZcalc!E30,WP!D27) -> 0 | E27: =IF(JAZcalc,JAZcalc!F30,WP!E27) -> 0 | F27: =IF(JAZcalc,JAZcalc!G30,WP!F27) -> 0 | G27: =IF(JAZcalc,JAZcalc!H30,WP!G27) -> 0 | H27: =IF(JAZcalc,JAZcalc!I30,WP!H27) -> 0 | J27: =IF(AND(WPArt=2,SpezWP=FALSE,WP_Daten!K5>0,WP_Daten!L5>0),TRUE,FALSE) -> FALSE | K27: Qh mit Verteilverlusten | M27: =(IF(H12<>"",H12,0)+1)*H9 -> 0 | N27: MJ/m2a | P27: WP2: Sondentemp. Heizung | S27: °C | T27: =Zusatzheizung_total ->  | U27: eWP : | V27: =IF(AND(EBF>0,Kategorie>1,(Bedarf-BedarfWW)>0),IF(ABS(AK128/(Bedarf-BedarfWW)+V28)>0.99,1-V28,AK128/(Bedarf-BedarfWW)),0) ->  | W27: eWP : | X27: =IF(AND(EBF>0,Kategorie>1,(Bedarf-BedarfWW)>0),IF(ABS(AK128/(Bedarf-BedarfWW)+V28)>0.99,1-V28,AK128/(Bedarf-BedarfWW)),0) ->  | Y27: eWP : | Z27: =IF(AND(EBF>0,Kategorie>1,(Bedarf-BedarfWW)>0),IF(ABS(AK128/(Bedarf-BedarfWW)+V28)>0.99,1-V28,AK128/(Bedarf-BedarfWW)),0) ->  | AA27: eWP : | AB27: =IF(AND(EBF>0,Kategorie>1,(Bedarf-BedarfWW)>0),IF(ABS(AK128/(Bedarf-BedarfWW)+V28)>0.99,1-V28,AK128/(Bedarf-BedarfWW)),0) ->  | AC27: eWP : | AD27: =X27 ->  | AE27: eWP : | AG27: eWP : | AI27: eWP : | AL27: QWW [MJ/m2a]
B28: =Sprache!B198&" 35°C" -> COP à la température de départ 35°C | C28: - | D28: =IF(JAZcalc,JAZcalc!E31,WP!D28) -> 0 | E28: =IF(JAZcalc,JAZcalc!F31,WP!E28) -> 0 | F28: =IF(JAZcalc,JAZcalc!G31,WP!F28) -> 0 | G28: =IF(JAZcalc,JAZcalc!H31,WP!G28) -> 0 | H28: =IF(JAZcalc,JAZcalc!I31,WP!H28) -> 0 | J28: =IF(AND(WPArt=2,SpezWP=TRUE,WP_BIN!AU81>0,WP_BIN!AU82>0),TRUE,FALSE) -> FALSE | K28: Leistung, Minimalwert | M28: =M31*0.9 -> 0 | N28: kW | P28: WP2: Sondentemp. WW | S28: °C | T28: =Bedarf ->  | U28: eEL : | V28: =IF(AND(EBF>0,Kategorie>1,(Bedarf-BedarfWW)>0),(Bedarf-BedarfWW-$AK$128-Zusatzheizung_total+Max_Zusatzheizung+$AO$128)/(Bedarf-BedarfWW),0) ->  | W28: eEL : | X28: =IF(AND(EBF>0,Kategorie>1,(Bedarf-BedarfWW)>0),(Bedarf-BedarfWW-$AK$128-Zusatzheizung_total+Max_Zusatzheizung+$AO$128)/(Bedarf-BedarfWW),0) ->  | Y28: eEL : | Z28: =IF(AND(EBF>0,Kategorie>1,(Bedarf-BedarfWW)>0),(Bedarf-BedarfWW-$AK$128-Zusatzheizung_total+Max_Zusatzheizung+$AO$128)/(Bedarf-BedarfWW),0) ->  | AA28: eEL : | AB28: =IF(AND(EBF>0,Kategorie>1,(Bedarf-BedarfWW)>0),(Bedarf-BedarfWW-$AK$128-Zusatzheizung_total+Max_Zusatzheizung+$AO$128)/(Bedarf-BedarfWW),0) ->  | AC28: eEL : | AD28: =X28 ->  | AE28: eEL : | AG28: eEL : | AI28: eEL : | AL28: Bedarf WW [kWh]
B29: =Sprache!B197&" 55°C" -> Puissance de chauffe pour Tdép 55°C | C29: kW | E29: =IF(JAZcalc,JAZcalc!F32,WP!E29) -> 0 | G29: =IF(JAZcalc,JAZcalc!H32,WP!G29) -> 0 | H29: =IF(JAZcalc,JAZcalc!I32,WP!H29) -> 0 | J29: =IF(OR(J27,J28,WPArt<>2),TRUE,FALSE) -> TRUE | K29: Wärmeverluste Qtot | M29: =(QT+QV)*(1+IF(Verteilverluste>0,Verteilverluste,0)) -> 0 | N29: MJ/m2a | P29: im mittel über Auslegung | R29: 2 | S29: °C | T29: =BedarfWW ->  | U29: JAZh: | V29: =V24*Etah ->  | W29: JAZh: | X29: =X24*Etah -> 0 | Y29: JAZh: | Z29: =Z24*Etah -> 0 | AA29: JAZh: | AB29: =AB24*Etah -> 0 | AC29: JAZh: | AD29: =AD24*Etah -> 0 | AE29: JAZh: | AG29: JAZh: | AI29: JAZh: | AL29: JAZ | AN29: =IF(WPArt2=1,"",IF(WPArt2=2,AF37,IF(WPArt2=3,AH37,IF(WPArt2=4,AJ37,)))) -> 
B30: =Sprache!B198&" 55°C" -> COP à la température de départ 55°C | C30: - | E30: =IF(JAZcalc,JAZcalc!F33,WP!E30) -> 0 | G30: =IF(JAZcalc,JAZcalc!H33,WP!G30) -> 0 | H30: =IF(JAZcalc,JAZcalc!I33,WP!H30) -> 0 | K30: Schätzung Wärmeverluste Qtot | M30: =IF(Qh,IF(Qtot>0,Qtot,H9/15*(20-TaMin)*(1+IF(Verteilverluste>0,Verteilverluste,0))),"") ->  | N30: MJ/m2a | U30: Warmwasser | W30: Warmwasser | Y30: Warmwasser | AA30: Warmwasser | AC30: Warmwasser | AE30: Warmwasser | AG30: Warmwasser | AI30: Warmwasser | AL30: EtaW2 | AN30: =1-Z141-Z148 -> 0.94
B31: =IF(WPArt=4,Sprache!B88,Sprache!B70) -> Puissance électrique soutirée par pompe saumure: | G31: W | H31: =IF(JAZcalc,JAZcalc!I34,WP!H31) -> 0 | J31: =IF(OR(Spez!L38,Spez!L46),TRUE,FALSE) -> FALSE | K31: Leistung, Vorschlagswert TaMin | M31: =IF(EBF>0,Berechnungen!B36,0) -> 0 | N31: kW | P31: Externe Eingabe WW | S31: MJ/m2a | U31: ="COP A7/W"&IF(M48,M48,50)&":" -> COP A7/W60: | V31: =WP_BIN!H23*((IF($M$48,$M$48,55)+273)*(55-7)/((55+273)*(IF($M$48,$M$48,55)-7-DT_7_50))) -> 0 | W31: ="COP B0/W55:" -> COP B0/W55: | X31: =W51 -> 0 | Y31: ="COP 10/55:" -> COP 10/55: | Z31: =W51 -> 0 | AA31: ="COP B0/W55:" -> COP B0/W55: | AB31: =W51 -> 0 | AC31: ="COP 20/55:" -> COP 20/55: | AD31: =X31 -> 0 | AE31: ="COP A7/W"&IF(AN21,AN21,50)&":" -> COP A7/W50: | AF31: =AN20*((IF(AN21,AN21,50)+273)*(50-7)/((50+273)*(IF(AN21,AN21,50)-7))) -> 0 | AG31: ="COP B0/W50:" -> COP B0/W50: | AH31: =AN20 -> 0 | AI31: ="COP 10/50:" -> COP 10/50: | AJ31: =AN20 -> 0
B32: =IF(WPArt=3,Sprache!B79,IF(WPArt=5,Sprache!B80,"")) ->  | D32: =IF(WPArt=3,Sprache!B72,IF(WPArt=5,"W/m2","")) ->  | E32: =IF(JAZcalc,IF(WPArt=3,IF(JAZcalc!F35="",1,JAZcalc!F35),JAZcalc!F35),IF(WPArt=3,IF(WP!E32="",1,WP!E32),WP!E32)) -> 0 | F32: =IF(WPArt=3,Sprache!B77,IF(WPArt=5,Sprache!B188,"")) ->  | G32: =IF(WPArt=3,"m",IF(WPArt=5,"m2","")) ->  | H32: =IF(JAZcalc,JAZcalc!I35,WP!H32) -> 0 | K32: Leistung, Rechenwert -8° | M32: =MAX(Leistung,IF(AND(Leistung<>"",Leistung<M28),M28,IF(AND(Leistung<>"",Leistung>M28),Leistung,M31)))/(20-TaMin)*28 ->  | N32: kW | P32: muss leer sein, wenn keine extern Eingabe! | U32: ="COP 7/"&IF(MAX(M48,H42),MAX(M48,H42),50)&" eff" -> COP 7/60 eff | V32: =IF(V31>0,1/(V35/IF(V19>0,MIN(V31,V19),V31)+V36),) -> 0 | W32: Eff Tverd_ein: | X32: =IF(R26<>"",R26,IF(AND(X22>0,X23>0,X21>0,X19>0,X31>0),MIN(6,-X22*0.1-IF(X22<6,0.25*X22,2)+(10-(0.055+MAX(2200,X21)*(0.4+0.6*2.5/lambda_Erde)/100*0.006)*(X19*1000*(X31-1)/(X22*X23)))),0))+Offset -> 2 | Y32: Eff Tverd_ein: | Z32: =IF(H33<>"",H33,10) -> 10 | AA32: Eff Tverd_ein: | AB32: =IF(R26<>"",R26,IF(AB17>0,MIN(-2-((AB19*AB31*1000)/(AB23*AB22)-1)*10,3),0))+Offset -> 2 | AC32: Eff Tverd_ein: | AD32: 20 | AG32: Eff Tverd_ein: | AH32: =IF(R28<>"",R28,IF(AND(AH22>0,AH23>0,AH21>0,AH19>0,AH31>0),MIN(6,10-(0.055+AH21*(0.4+0.6*2.5/lambda_Erde)/100*0.006)*(AH19*1000*(AH31-1)/(AH22*AH23))),0))+Offset -> 2 | AI32: Eff Tverd_ein: | AJ32: Bezug WP2
B33: =IF(EBF>0,IF(WPArt=5,Sprache!B82,IF(WPArt=4,Sprache!B83,Sprache!B82)),"") ->  | F33: =IF(WPArt=5,ROUND(TQuelle_Koll-Offset,1),IF(WPArt=3,IF(R25<>"",R25,IF(H32>0,ROUND(TQuelle-Offset,1),"")),IF(WPArt=4,IF(AND(H33<4,H33<>""),Sprache!B132,""),""))) ->  | G33: =IF(Heizung=FALSE,"","°C") ->  | H33: =IF(JAZcalc,IF(JAZcalc!L35<>"",JAZcalc!L35,""),IF(WP!H33<>"",WP!H33,"")) ->  | K33: Heizstunden | M33: =Y129 ->  | N33: h/a | U33: COPmittel | V33: =IF(V31=0,0,BC130) -> 0 | W33: ="COP "&FIXED(X32,0)&"/W"&IF(M48,M48,55)&":" -> COP 2/W60: | X33: =IF(X38,X40,X31*1/IF(X19>0,(X20/1000/X19+1),1)*((IF(M48,M48,55)+273)*(55-0)/((55+273)*(IF(M48,M48,55)-X32)))) -> 0 | Y33: ="COP "&IF(TQuelleW1<>"",TQuelleW1,10)&"/"&IF(M48<>"",M48,50)&":" -> COP 10/60: | Z33: =IF(Z38,Z40,Z31*1/IF(Z19>0,(Z20/1000/Z19+1),1)*((IF(_Tww1<>0,_Tww1,55)+273)*(55-10)/((55+273)*(IF(_Tww1<>0,_Tww1,55)-IF(TQuelleW1<>"",TQuelleW1,10))))) -> 0 | AA33: ="COP "&FIXED(AB32,0)&"/W"&IF(M48,M48,50)&":" -> COP 2/W60: | AB33: =IF(AB38,AB40,AB31*1/IF(AB19>0,(AB20/1000/AB19+1),1)*((IF(M48,M48,55)+273)*(55-0)/((55+273)*(IF(M48,M48,55)-AB32)))) -> 0 | AC33: ="COP 20/W"&IF(M48,M48,55)&":" -> COP 20/W60: | AD33: =AD31*1/IF(AD19>0,(AD20/1000/AD19+1),1)*((IF(M48,M48,55)+273)*(55-20)/((55+273)*(IF(M48,M48,55)-AD32))) -> 0 | AG33: ="COP "&FIXED(AH32,0)&"/W"&IF(AN21,AN21,50)&":" -> COP 2/W50: | AH33: =AH31*1/IF(AH19>0,(AH20/1000/AH19+1),1)*((IF(AN21,AN21,50)+273)*(50-0)/((50+273)*(IF(AN21,AN21,50)-AH32))) -> 0 | AI33: ="COP "&IF(TQuelleW1<>"",TQuelleW1,10)&"/"&IF(AN21<>"",AN21,50)&":" -> COP 10/50: | AJ33: =AJ31*1/IF(AJ19>0,(AJ20/1000/AJ19+1),1)*((IF(AN21<>"",AN21,50)+273)*(50-10)/((50+273)*(IF(AN21<>"",AN21,50)-IF(AN23<>"",AN23,10)))) -> 0
B34: =Q22 ->  | G34: =S22 ->  | H34: =IF(JAZcalc,JAZcalc!I37,WP!H34) -> 0 | K34: Klimakorrektur | M34: =IF(TaMin<>"",TaMin+8,0) -> 0 | N34: °C | P34: Rücklauftempf Ta = 20°C | R34: =MAX(H35+2,20+2)+M21 -> 26 | S34: °C | W34: ="COP 0/"&IF(MAX(M48,H42),MAX(M48,H42),50)&" eff" -> COP 0/60 eff | X34: =IF(X33>0,1/(X35/IF(X24>0,MIN(X33,X24),X33)+X36),) -> 0 | Y34: ="COP "&IF(TQuelleW1<>"",TQuelleW1,10)&"/"&IF(MAX(M48,H42),MAX(M48,H42),50)&"eff:" -> COP 10/60eff: | Z34: =IF(Z33>0,1/(Z35/IF(Z24>0,MIN(Z33,Z24),Z33)+Z36),) -> 0 | AA34: ="COP 0/"&IF(MAX(M48,H42),MAX(M48,H42),50)&" eff" -> COP 0/60 eff | AB34: =IF(AB33>0,1/(AB35/IF(AB24>0,MIN(AB33,AB24),AB33)+AB36),) -> 0
B35: =IF(Heizung=FALSE,"",Sprache!B149) ->  | E35: =IF(AND(Heizung,H35=""),"ausfüllen ->","") ->  | F35: =IF(Heizung=FALSE,"","Ti,soll") ->  | G35: =IF(Heizung=FALSE,"","°C") ->  | H35: =IF(JAZcalc,IF(JAZcalc!I38="",24,JAZcalc!I38),IF(WP!H35="",24,WP!H35)) -> 24 | K35: Nutzungsgrad | M35: =IF(H44="",1,H44) -> 1 | P35: Erhöhung Lufttemperatur bei Luft-Wasser-WP | U35: eWP : | V35: =IF(EBF>0,IF(AND(OR(BG83=1,BG83=2),OR(AD139=1,AD139=2)),1-M50,MAX((1-ZusatzWW/BedarfWW)*MIN(($M$48-10)/(M49-10),1)*BH83*(1-M50),0)),0) -> 0 | W35: eWP : | X35: =IF(EBF>0,IF(AND(OR(BG83=1,BG83=2),OR(AD139=1,AD139=2)),1-M50,MAX((1-ZusatzWW/BedarfWW)*MIN(($M$48-10)/(M49-10),1)*BH83*(1-M50),0)),0) -> 0 | Y35: eWP : | Z35: =IF(EBF>0,IF(AND(OR(BG83=1,BG83=2),OR(AD139=1,AD139=2)),1-M50,MAX((1-ZusatzWW/BedarfWW)*MIN(($M$48-10)/(M49-10),1)*BH83*(1-M50),0)),0) -> 0 | AA35: eWP : | AB35: =IF(EBF>0,IF(AND(OR(BG83=1,BG83=2),OR(AD139=1,AD139=2)),1-M50,MAX((1-ZusatzWW/BedarfWW)*MIN(($M$48-10)/(M49-10),1)*BH83*(1-M50),0)),0) -> 0 | AC35: eWP : | AD35: =X35 -> 0 | AE35: eWP : | AG35: eWP : | AI35: eWP :
B36: =IF(Heizung=FALSE,"",Sprache!B47&" (Ta = -8°C)") ->  | E36: =IF(AND(Heizung,H36=""),"ausfüllen ->","") ->  | F36: =IF(Heizung=FALSE,"",Sprache!B134) ->  | G36: =IF(Heizung=FALSE,"","°C") ->  | H36: =IF(JAZcalc,JAZcalc!G39,WP!H36) -> 0 | K36: Qww Standard | M36: =Qww/(1+EtaWW) ->  | N36: MJ/m2a | O36: -7 | P36: DT bei -7°C (A-7/W35) | R36: =Spez!J56 -> 0 | S36: K | U36: eEL : | V36: =IF(AND(EBF>0,EBF<>""),1-V35-$AO$128/BedarfWW,0) -> 0 | W36: eEL : | X36: =IF(EBF>0,1-V35-$AO$128/BedarfWW,0) -> 0 | Y36: eEL : | Z36: =IF(EBF>0,1-V35-$AO$128/BedarfWW,0) -> 0 | AA36: eEL : | AB36: =IF(EBF>0,1-V35-$AO$128/BedarfWW,0) -> 0 | AC36: eEL : | AD36: =X36 -> 0 | AE36: eEL : | AG36: eEL : | AI36: eEL :
B37: =IF(Heizung=FALSE,"",Sprache!B48&" (Ta = -8°C)") ->  | E37: =IF(AND(Heizung,H37=""),"ausfüllen ->","") ->  | F37: =IF(Heizung=FALSE,"",Sprache!B135) ->  | G37: =IF(Heizung=FALSE,"","°C") ->  | H37: =IF(JAZcalc,JAZcalc!G40,WP!H37) -> 0 | K37: Qww effektiv | N37: MJ/m2a | O37: 2 | P37: DT bei 2°C (A2/W35) | R37: =Spez!J57 -> 0 | S37: K | U37: JAZww: | V37: =IF(AND(OR(V31=0,V35=0),SpezWP=FALSE),0,MAX(MIN(Etaw*IF(Neu,IF(V38,V40,BC130),V31),Max_JAZww),0.5)) -> 0 | W37: JAZww: | X37: =IF(X33=0,0,MAX(MIN(Etaw*X33,Max_JAZww),0.5)) -> 0 | Y37: JAZww: | Z37: =IF(Z33=0,0,MAX(MIN(Etaw*Z33,Max_JAZww),0.5)) -> 0 | AA37: JAZww: | AB37: =IF(AB33=0,0,MAX(MIN(Etaw*AB33,Max_JAZww),0.5)) -> 0 | AC37: JAZww: | AD37: =IF(AD33=0,0,MAX(MIN(Etaw*AD33,Max_JAZww),0.5)) -> 0 | AE37: JAZww: | AF37: =IF(AF31=0,0,MAX(MIN(EtaW2*AF31,Max_JAZww),0.5)) -> 0 | AG37: JAZww: | AH37: =IF(AH33=0,0,MAX(MIN(EtaW2*AH33,Max_JAZww),0.5)) -> 0 | AI37: JAZww: | AJ37: =IF(AJ33=0,0,MAX(MIN(EtaW2*AJ33,Max_JAZww),0.5)) -> 0
B38: =IF(Heizung=FALSE,"",IF(Heizspeicher,Sprache!B49,"")) ->  | F38: =IF(Heizung=FALSE,"",IF(Heizspeicher,Sprache!B136,"")) ->  | G38: =IF(Heizung=FALSE,"",IF(Heizspeicher,"°C","")) ->  | H38: =IF(JAZcalc,JAZcalc!I41,WP!H38) -> 0 | K38: Wärmeleitfähigkeit Erde | M38: 2.5 | N38: W/mK | O38: 7 | P38: DT bei 7°C (A7/W35) | R38: =Spez!J58 -> 0 | S38: K | U38: dez. WW-WP | V38: =IF(J21=5,TRUE,FALSE) -> FALSE | W38: dez. WW-WP | X38: =IF(J21=5,TRUE,FALSE) -> FALSE | Y38: dez. WW-WP | Z38: =IF(J21=5,TRUE,FALSE) -> FALSE | AA38: dez. WW-WP | AB38: =IF(J21=5,TRUE,FALSE) -> FALSE
B39: =IF(J25=5,Sprache!B50,"") ->  | G39: =IF(J25=5,"°C","") ->  | H39: =IF(J25=4,"",IF(J23=4,IF(JAZcalc,JAZcalc!I42,WP!H39),"")) ->  | K39: EBFo | M39: =EBF -> 0 | N39: m2 | O39: 7 | P39: DT bei 7°C (A7/W50) | R39: 0 | S39: K | U39: ="COP "&MIN(45,TVL)&"/W"&IF(M48,M48,55)&":" -> COP 0/W60: | V39: =WP_BIN!I23*((IF($M$48,$M$48,55)+273)*(55-20)/((55+273)*(IF($M$48,$M$48,55)-MIN(45,TVL)))) -> 0 | W39: ="COP "&MIN(45,TVL)&"/W"&IF(M48,M48,55)&":" -> COP 0/W60: | X39: =X31*1/IF(X19>0,(X20/1000/X19+1),1)*((IF(M48,M48,55)+273)*(55-0)/((55+273)*(IF(M48,M48,55)-MIN(45,TVL)))) -> 0 | Y39: ="COP "&MIN(45,TVL)&"/W"&IF(M48,M48,55)&":" -> COP 0/W60: | Z39: =Z31*1/IF(Z19>0,(Z20/1000/Z19+1),1)*((IF(_Tww1<>0,_Tww1,55)+273)*(55-10)/((55+273)*(IF(_Tww1<>0,_Tww1,55)-IF(MIN(45,TVL)<>"",MIN(45,TVL),10)))) -> 0 | AA39: ="COP "&MIN(45,TVL)&"/W"&IF(M48,M48,55)&":" -> COP 0/W60: | AB39: =AB31*1/IF(AB19>0,(AB20/1000/AB19+1),1)*((IF(M48,M48,55)+273)*(55-0)/((55+273)*(IF(M48,M48,55)-MIN(45,TVL)))) -> 0
B40: =IF(WW,Sprache!B51,"") ->  | E40: =IF(AND(WW,BG83=1),Sprache!B24,"") ->  | F40: =IF(JAZcalc,JAZcalc!G43,WP!F40) -> 0 | J40: =IF(BH57<3,1,IF(OR(F40="",F40=0),1,MATCH(F40,BG77:BG82,0))) -> 1 | K40: Leistungskorrektur WP Erdsonden / Erdkollektor: | U40: COPww | V40: =V24*V39/(V39+V26-1)*0.9 ->  | W40: COPww | X40: =X24*X39/(X39+X26-1)*0.9 -> 0 | Y40: COPww | Z40: =Z24*Z39/(Z39+Z26-1)*0.9 -> 0 | AA40: COPww | AB40: =AB24*AB39/(AB39+AB26-1)*0.9 -> 0
B41: =IF(WW,Sprache!B52,"") ->  | E41: =IF(AND(H41="",WW),Sprache!$B$24,"") ->  | G41: =IF(WW,"°C","") ->  | H41: =IF(JAZcalc,JAZcalc!I44,WP!H41) -> 0 | J41: =OR($BG$83=2,$BG$83>4) -> FALSE | K41: ="B"&FIXED(X25-Offset,0)&"/W"&35&":" -> B0/W35: | M41: =IF(W50>0,W52/W50*M42,W52) -> 0 | N41: kW | P41: Maximale JAZww | R41: 6
B42: =IF(WW,Sprache!B53,"") ->  | E42: =IF(AND(WW,OR($H$41<=$H$42,$H$42=""),H42=""),Sprache!$B$24,IF(AND(H42<H41,H42<>"",WW),Sprache!B131,"")) ->  | F42: =IF(WW,IF(AND(H42>_Tww1,BG83=2),Sprache!B131,""),"") ->  | G42: =IF(WW,"°C","") ->  | H42: =IF(JAZcalc,JAZcalc!I45,WP!H42) -> 0 | J42: =OR($BG$83=2,$BG$83>4,WW=FALSE) -> TRUE | K42: ="COP B"&FIXED(X25-Offset,0)&"/W"&35&":" -> COP B0/W35: | M42: =IF(X19,X18*((35+273)*35/((35+273)*(35-TQuelle+Offset))),) -> 0
B43: =IF(AND(WW),Sprache!B199,"") ->  | D43: =IF(AND(WW,J43=1),Sprache!B24,"") ->  | E43: =IF(JAZcalc,JAZcalc!F46,WP!E43) -> 0 | F43: Länge: | G43: m | H43: =IF(JAZcalc,JAZcalc!I46,WP!H43) -> 0 | J43: =IF(BH57<3,1,IF(OR(E43="",E43=0),1,MATCH(E43,R49:R52,0))) -> 1 | K43: Strombedarf el. Zusatzheizung:
B44: =IF(AD139=4,"Wirkungsgrad Zussatzheizung (Kesselwirkungsgrad)","") ->  | G44: =IF(AD139=4,"%","") -> 
B45: =IF(AD139=4,"Bereitschaftsverluste Zussatzheizung","") ->  | G45: =IF(AD139=4,"%","") -> 
B46: =IF(AD139=4,"Heizleistung Zussatzheizung","") ->  | G46: =IF(AD139=4,"kW","") ->  | H46: 2000 | I46: 1
B47: =IF(AD139=4,"Bereitschaftszeit Zusatzheizung","") ->  | G47: =IF(AD139=4,"h/a","") ->  | H47: 8760
B48: =Sprache!B31 -> Installation solaire | E48: =IF(AND(F48=""),Sprache!B24,"") ->  | F48: =IF(JAZcalc,JAZcalc!G47,WP!F44) -> 0 | J48: =IF(OR(F48="",F48=0),1,MATCH(F48,M58:M64,0)) -> 1 | K48: WW-Temperatur | M48: =MAX(IF(H41>0,H41,60),11) -> 60 | N48: °C | P48: WP Typ: | R48: Begleitheizband | U48: WP Typ: | W48: Umwälzpumpen | Z48: MINERGIE-Solarformeln:
B49: =Sprache!B55 -> Surface des absorbeurs | G49: m2 | H49: =IF(JAZcalc,IF(JAZcalc!I48>0,JAZcalc!I48,""),IF(WP!H45>0,WP!H45,"")) ->  | K49: WW-Temperatur inkl. Legionellenschaltung | M49: =IF(OR(AND(H42<>0,H42<>""),J40>4,J40=2),IF(J40=2,H41,IF(J40>4,(60-_Tww1)/IF(BG83=6,7,1)+_Tww1,MAX(H42,H41))),60) -> 60 | N49: °C | U49: =IF(J31,"Quellen-Pumpe auf Blatt Spez","Pumpe auf Blatt WP") -> Pumpe auf Blatt WP | W49: =IF($J$31,Spez!H32,H31) -> 0 | X49: W | Z49: =IF(KollFlaeche>0,490/((1/KollFlaeche)+610/(EBF*(Qww/3.6+Qh/3.6))),0) -> 0
B50: =Sprache!B56 -> orientation / inclinaison des collecteurs | E50: =IF(AND(OR(Azimut>90,Azimut<-90),Azimut<>""),Sprache!B131,Sprache!B128) -> Azimut [°]: | F50: =IF(JAZcalc,IF(JAZcalc!G49<>"",JAZcalc!G49,0),IF(WP!F46<>"",WP!F46,0)) -> 0 | G50: =IF(AND(OR(Neigung>90,Neigung<-90),Neigung<>""),Sprache!B131,Sprache!B129) -> Pente [°]: | H50: =IF(JAZcalc,IF(JAZcalc!I49<>"",JAZcalc!I49,0),IF(WP!H46<>"",WP!H46,0)) -> 0 | K50: Begleitheizband: | L50: Stromanteil: | M50: =IF(AND(Qww>0,EBF>0,J43=4),5*7*H43/(Qww*EBF/3.6+5*7*H43),0) -> 0 | P50: Angaben unten | R50: =Sprache!B274 -> Non disponibles | U50: =Spez!S20 -> COP B0/35 | W50: =IF(SpezWP,Spez!T20,IF(WPDatenbank,IF(WPArt=6,WP_Daten!P5,IF(WPArt=4,WP_Daten!AB5,WP_Daten!X5)),H28)) -> 0 | Z50: =Qww*EBF/3.6 -> 
B51: =Sprache!B57 -> Apport net par m2 d'absorbeur | E51: =IF(_SIA384,Sprache!B269,Sprache!B140) -> valeur proposée: | F51: =IF(H49<>"",IF(OR(MinSol,solarExtern),K66*WinkelKorr,Berechnungen!B188),) -> 0 | G51: kWh/m2a | H51: =IF(JAZcalc,IF(JAZcalc!I50<>"",JAZcalc!I50,""),IF(WP!H47<>"",WP!H47,"")) ->  | K51: Kombispeicherzuschlag | M51: =IF(J22=6,MAX((H41-(MAX(TRL,H35+dTNutzer)+MAX(TVL-TRL,6)+H38))*0.2),IF(J22=4,MAX((H41-(MAX(TRL,H35+dTNutzer)+MAX(TVL-TRL,6)+H38))*0.1),IF(J22=5,MAX((H41-(MAX(TRL,H35+dTNutzer)+MAX(TVL-TRL,6)+H38))/2,0),0))) -> 0 | N51: °C | P51: WP-Liste | R51: =Sprache!B208 -> Circulation d'ECS | U51: =Spez!S22 -> COP B0/55 | W51: =IF(SpezWP,Spez!T22,IF(WPDatenbank,IF(WPArt=6,WP_Daten!V5,IF(WPArt=4,WP_Daten!AD5,WP_Daten!Z5)),H30)) -> 0 | Z51: =Z49/Z50 -> 
B52: =IF(OR(MinSol,solarExtern),Sprache!B58,Sprache!B275) -> Spécifications du collecteur | C52: =IF(OR(MinSol,solarExtern),""," ho = ") -> ho = | D52: =IF(JAZcalc,JAZcalc!E51,WP!D48) -> 0 | E52: =IF(OR(MinSol,solarExtern),""," a1 = ") -> a1 = | F52: =IF(JAZcalc,JAZcalc!G51,WP!F48) -> 0 | G52: =IF(OR(MinSol,solarExtern),Sprache!B130," a2 = ") -> a2 = | H52: =IF(JAZcalc,JAZcalc!I51,WP!H48) -> 0 | J52: =IF(OR(H52="",H52=0),0.00001,H52) -> 1e-05 | K52: Wärmepumpentyp: | M52: =IF(OR($J$20=3,$J$20=7,$J$20=11,$J$20=15),2,IF(OR($J$20=4,$J$20=8,$J$20=12,$J$20=16),3,IF(OR($J$20=5,$J$20=9,$J$20=13,$J$20=17),4,1))) -> 1 | P52: Eingabe in "Spez" | R52: =Sprache!B209 -> Câble chauffant | U52: =Spez!S21 -> Qh B0/35 | W52: =IF(SpezWP,Spez!T21,IF(WPDatenbank,IF(WPArt=6,WP_Daten!O5,IF(WPArt=4,WP_Daten!AA5,WP_Daten!W5)),H27)) -> 0 | X52: kW
B53: =Sprache!B59 -> Taux de couverture solaire pour l'ECS | F53: e = | G53: % | H53: =IF(HeizungSolar,Q60,P60) -> 0 | K53: 1=einstufig / 2=2stufig / 3=mehrstufig / 4=stufenlos | U53: =Spez!S23 -> Qh B0/55 | W53: =IF(SpezWP,Spez!T23,IF(WPDatenbank,IF(WPArt=6,WP_Daten!U5,IF(WPArt=4,WP_Daten!AC5,WP_Daten!Y5)),H29)) -> 0 | X53: kW
B54: =Sprache!B60 -> Taux de couverture solaire pour le chauffage | F54: e = | G54: % | H54: =IF(H49<>"",MIN(IF(HeizungSolar,Q61,P61),Q65),) -> 0 | AW54: Neue BIN-Methode nach SIA 384/3:
M55: WW solar | N55: Heizung solar | Y55: TRUE
B56: =Sprache!B32 -> Résultats | K56: Berechnung für Solaranlagen: | M56: =IF(OR(N57=2,N57=4,N57=6),TRUE,FALSE) -> FALSE | N56: =IF(OR(N57=3,N57=5,N57=7),TRUE,FALSE) -> FALSE | P56: Solare Deckung | V56: max | W56: BIN | X56: Berechnung des Strombedarfs für einen Elektro-Heizstab: | AL56: inkl. Bereitschaftsverl. | AW56: Heizkurve WP | AZ56: WP | BA56: WP | BG56: Handauswahl: | BI56: <-muss leer sein, wenn keine extern Eingabe!
B57: =IF(OR(J29=FALSE,EBF=0),"",IF(bivalent,Sprache!B33,IF(AND(Heizung,elZusatz),Sprache!B34,IF(F57>0,Sprache!B35,"")))) ->  | E57: =IF(OR(J29=FALSE,EBF=0),"",IF(AND(Heizung,OR(bivalent,elZusatz,F57>0)),"e = ","")) ->  | F57: =IF(OR(J29=FALSE,EBF=0),"",IF(AND(Heizung,WPArt>1),INDEX(U28:AJ28,1,2*(WPArt-1))*(1-IF(HeizungSolar,H54,0)),"")) ->  | G57: =IF(AND(Heizung,OR(bivalent,elZusatz)),"kWh = ","") ->  | H57: =IF(Kategorie>1,IF(AND(Heizung,OR(bivalent,elZusatz)),Zusatzheizung/Etah,""),) -> 0 | J57: =IF(AND(J29=TRUE,bivalent=FALSE,F57>0.005,F57<>""),TRUE,FALSE) -> FALSE | K57: Rechenwert | M57: Pulldowns: | N57: =J48 -> 1 | P57: nur WW | Q57: Heiz+WW | U57: Bin-Verteilung | V57: mögliches | W57: Jahres- | X57: Aussen-Temperatur | Y57: Summen-häufigkeit | Z57: Heizleistung Gebäude | AA57: Heizleistung für WW | AB57: Heizleistung WP | AC57: Nötige Leistung Elektrostab | AD57: Zusatzenergie Heizung | AE57: Zusatzenergie WW | AF57: Bedarf | AG57: Bedarf | AH57: WP | AI57: WP | AJ57: max. mögli-cher Heizener-giebedarf | AK57: WP | AL57: benötigte Zu-satzenergie total | AM57: maximale Zu-satzheizung | AN57: Heizleistung WP | AO57: Ungedeckt WW | AP57: 0 | AQ57: Heizleistung WP 2 | AR57: Summen-häufigkeit ohne Kollektoren | AS57: WP Laufzeit | AT57: WP Laufzeit | AU57: WP Laufzeit | AV57: Heizleistung nach 384/3 | AW57: Ta | AX57: TRL | AY57: TVL | AZ57: Leistung | BA57: Leistung | BB57: COP | BC57: COP | BG57: Auswahl: | BH57: =J21 -> 1
B58: =IF(AND(WW,elWW),Sprache!B36,IF(bivalent,Sprache!B37,IF(J43=4,Sprache!B36,""))) ->  | E58: =IF(AND(WW,OR(bivalent,elWW,J43=4)),"e = ","") ->  | F58: =IF(AND(OR(bivalent,elWW,J43=4),WW,WPArt>1),INDEX(U36:AJ36,1,2*(WPArt-1))*(1-IF(N57>1,H53,0)),"") ->  | G58: =IF(AND(WW,OR(bivalent,elWW,J43=4)),"kWh = ","") ->  | H58: =IF(Kategorie>1,IF(AND(WW,OR(bivalent,elWW,J43=4)),Qww*EBF/3.6*F58/Etaw,""),) -> 0 | J58: =IF(AND(OR(BG83=1,BG83=2),OR(AD139=1,AD139=2)),1,MAX((1-ZusatzWW/BedarfWW)*MIN(($M$48-10)/(M49-10),1)*BH83*(1-M50),0)) -> 1 | K58: =IF(N57>1,H49,0)*WinkelKorr -> 0 | L58: korr. Fläche Koll. | M58: =Sprache!B270 -> pas d'installation solaire | P58: =IF(KollFlaeche>0,IF(Qww>0,IF(muM<800,(640/((1/KollFlaeche)+380/(EBF*Qww/3.6))/KollFlaeche),(700/((1/KollFlaeche)+380/(EBF*Qww/3.6))/KollFlaeche)),),) -> 0 | Q58: =IF(AND(Qww>0,KollFlaeche>0),IF(muM<800,(440/((1/KollFlaeche)+610/(EBF*(Qww/3.6+Qh/3.6)))/KollFlaeche),(490/((1/KollFlaeche)+610/(EBF*(Qww/3.6+Qh/3.6)))/KollFlaeche)),) -> 0 | R58: Solarertrag kWh/m2 | T58: QV+QL | U58: Heizperiode | V58: Qh | W58: Stunden | AF58: Heizenergie | AG58: Energie WW | AH58: Energie | AI58: Laufzeit | AK58: nur Heizung | AS58: nur Heizung | AT58: nur WW | AU58: nur WW | AX58: (geregelt) | AY58: (effektiv) | AZ58: Heizung | BA58: WW | BB58: Heizung | BC58: WW | BG58: Einsatz: | BH58: =IF(BH57=1,IF(BH56>0,BH56,BH57),BH57) -> 1
B59: =Sprache!B38 -> Pertes en mode chauffage (démarrage, accumulateur, etc.) | F59: =IF(Heizung,Z147+AJ146+BH74,0) -> 0 | G59: Etah = | H59: =1-F59 -> 1 | J59: =AND(OR(BG83=1,BG83=2),OR(AD139=1,AD139=2)) -> TRUE | K59: =IF(H51>0,IF(solarExtern,H51,K64),K64) ->  | L59: Nettoertrag, kWh/m2 | M59: =IF(O107,Sprache!B271&" (SIA 384/3)","") ->  | Q59: =IF(muM<800,(440-Q58)/610,(490-Q58)/610) -> 0.7213114754 | T59: kWh | V59: kWh | W59: h | X59: °C | Y59: Stunden | Z59: kW | AA59: kW | AB59: kW | AC59: kW | AD59: kWh | AE59: kWh | AF59: kWh | AG59: kWh | AH59: kWh | AI59: h | AJ59: kWh | AK59: kWh | AL59: kWh | AM59: kWh | AN59: kW | AO59: kWh | AQ59: kW | AR59: Stunden | AS59: h | AT59: h | AU59: h | AV59: kW | AW59: °C | AX59: °C | AY59: °C | AZ59: kW | BA59: kW
B60: =Sprache!B39 -> Pertes en mode préparation d'ECS (démarrage, accumulateur, etc.) | F60: =IF(WW,Z141+Z148,0) -> 0 | G60: Etaw = | H60: =1-F60 -> 1 | J60: =BG83 -> 1 | K60: =IF(OR(AND(OR(Azimut>90,Azimut<-90),Azimut<>""),AND(OR(Neigung>90,Neigung<-90),Neigung<>"")),0,IF(MinSol,IF(OR(AND(H51>0,solarExtern),_SIA384),1,IF(wwSolar,AD170,IF(HeizungSolar,AD152,1))),1)) -> 1 | L60: Winkelkorr WW | M60: =IF(O107,Sprache!B272&" (SIA 384/3)","") ->  | P60: =IF(AND(EBF>0,H49<>""),IF(_SIA384,P66,IF(KollFlaeche>0,IF(Qww>0,IF(AND(H51>0,solarExtern),MIN(1/Qww*3.6*K59*KollFlaeche/EBF,P64),MIN(IF(muM<800,((640-P58)/380),((700-P58)/380)),P64)),0),)*IF($BH$57>2,1,0)),) -> 0 | Q60: =IF(AND(Qww>0,H49<>""),IF(_SIA384,Q66,IF(EBF>0,IF((Qh+Qww)=0,,IF(AND(KollFlaeche>0,H51>0,solarExtern),MIN(1/Qww*3.6*K59*KollFlaeche/EBF,Q64),IF(KollFlaeche>0,MIN(Q64,Q59*(Qww/3.6+Qh/3.6)/Qww*3.6),))),)),0) -> 0 | R60: Deckung WW | S60: 1 | T60: =W60*Z60 -> 0 | V60: =Z60*W60 -> 0 | W60: =IF(BIN,INDEX(BIN!$B$3:$BO$364,4+(Klima-2)*11,S60),0) -> 0 | X60: -25 | Y60: =IF(BINkorr,INDEX(Berechnungen!$E$81:$BR$81,1,S60)*IF(OR(Methode_384_3,Z60=0),1,AV60/Z60)/Leistungskorr*(1-Kollektor),W60*$T$130*(1-Kollektor)) ->  | Z60: =IF(Heizung,IF(Methode_384_3,INDEX(Berechnungen!$E$79:$BR$79,1,S60),IF(X60<IF(JAZcalc,TaMinVorarlberg,TaMin),Z61,Z61+$Z$77/28)),0) -> 0 | AA60: =IF(AG60>1,$AA$77,0) ->  | AB60: =IF(Bivalenzpunkt<X60,AN60,0) -> 0 | AC60: =MAX(Z60+AA60-AB60,0)/Nutzungsgrad ->  | AD60: =MAX(IF(AE60>0,Z60*Y60/Etah/Nutzungsgrad,(Z60*Y60/Etah+AA60*Y60/Etaw-AB60*Y60)/Nutzungsgrad),0) ->  | AE60: =MAX(AA60-AB60,0)*W60/Nutzungsgrad/Etaw ->  | AF60: =Z60*Y60/Etah ->  | AG60: =IF($AA$77*Y60/Etaw*(1-KollektorWW)>0,$AA$77*Y60/Etaw*(1-KollektorWW),0.1) ->  | AH60: =MAX(AF60+AG60-AD60*Nutzungsgrad-AE60*Nutzungsgrad,0) ->  | AI60: =MIN(IF(AB60>0,AH60/AB60,0),W60) -> 0 | AJ60: =Z60*W60 -> 0 | AK60: =MAX(AF60-AD60*Nutzungsgrad,0) ->  | AL60: =AE60+AD60+IF(Laufzeit_Zusatzheizung>=SUM($Y60:$Y$77),Kesselleistung*$H$45*Y60,0) ->  | AM60: =MIN(AL60,W60*Kesselleistung) ->  | AN60: =IF(Neu,INDEX(WP_BIN!$T$80:$CG$80,1,S60),AZ60) -> 0 | AO60: =IF(AE60>AM60,AE60-AM60,0) ->  | AP60: =AL60-AM60-AO60 ->  | AQ60: =MAX(AQ61-(AQ$87-AQ$78)/9,0) -> 0 | AR60: =W60*$T$130 ->  | AS60: =MIN(IF(AB60>0,AK60/AB60,0),W60) -> 0 | AT60: =IF(WW=TRUE,AI60-AS60,0) -> 0 | AU60: =IF(WW=TRUE,W60*$AT$128/8760,0) -> 0 | AV60: =INDEX(Berechnungen!$E$79:$BR$79,1,S60) ->  | AW60: =X60 -> -25 | AX60: =INDEX(WP_BIN!$T$78:$CG$78,1,$S60) -> 29.21428571 | AY60: =INDEX(WP_BIN!$T$43:$CG$43,1,$S60) ->  | AZ60: =INDEX(WP_BIN!$T$79:$CG$79,1,$S60) -> 0 | BA60: =INDEX(WP_BIN!$T$86:$CG$86,1,$S60) -> 0 | BB60: =INDEX(WP_BIN!$T$47:$CG$47,1,$S60) ->  | BC60: =INDEX(WP_BIN!$T$54:$CG$54,1,$S60) -> 0 | BG60: =Sprache!B112 -> Chauffage
B61: =Sprache!B40 -> Durée de fonctionnement de la pompe à chaleur | G61: h / a | H61: =IF(J29=FALSE,"",IF(Kategorie>1,MAX(0,AI128)*(24-Sperrzeit)/24,)) -> 0 | J61: =AD139 -> 1 | M61: =Sprache!B271&IF(O107," (MINERGIE)","") -> Chauffage solaire de l'ECS | P61: 0 | Q61: =IF(EBF>0,IF(_SIA384,Q67,IF(AND(K58>0,H51>0,solarExtern),MIN(1/Qh*3.6*(K59*K58/EBF-KollektorWW*Qww/3.6),Q65),IF(H53<Q64,0,IF(AND(K58>0,H51>0,solarExtern),K58*K59/EBF,((Qww/3.6+Qh/3.6)*Q59-Qww/3.6*0.7)/(Qh/3.6))))),) -> 0 | R61: Deckung Heizung | S61: 2 | T61: 0 | V61: 0 | W61: =IF(BIN,INDEX(BIN!$B$3:$BO$364,4+(Klima-2)*11,S61),0) -> 0 | X61: -24 | Y61: =IF(BINkorr,INDEX(Berechnungen!$E$81:$BR$81,1,S61)*IF(OR(Methode_384_3,Z61=0),1,AV61/Z61)/Leistungskorr*(1-Kollektor),W61*$T$130*(1-Kollektor)) ->  | Z61: =IF(Heizung,IF(Methode_384_3,INDEX(Berechnungen!$E$79:$BR$79,1,S61),IF(X61<IF(JAZcalc,TaMinVorarlberg,TaMin),Z62,Z62+$Z$77/28)),0) -> 0 | AA61: =IF(AG61>0,$AA$77,0) ->  | AB61: 0 | AD61: =MAX(IF(AE61>0,Z61*Y61/Etah/Nutzungsgrad,(Z61*Y61/Etah+AA61*Y61/Etaw-AB61*Y61)/Nutzungsgrad),0) ->  | AE61: =MAX(AA61-AB61,0)*W61/Nutzungsgrad/Etaw ->  | AF61: =Z61*Y61/Etah ->  | AG61: =IF($AA$77*SUM($W60:$W$60)/Etaw=BedarfWW,0,MAX(MIN($AA$77*W61/Etaw,BedarfWW-$AA$77*SUM($W60:$W$60)/Etaw),0)) ->  | AI61: 0 | AJ61: 0 | AL61: =AE61+AD61+IF(Laufzeit_Zusatzheizung>=SUM($Y61:$Y$77),Kesselleistung*$H$45*Y61,0) ->  | AM61: =MIN(AL61,W61*Kesselleistung) ->  | AN61: =IF(Neu,INDEX(WP_BIN!$T$80:$CG$80,1,S61),AZ61) -> 0 | AQ61: 0 | AS61: =MIN(IF(AB61>0,AK61/AB61,0),W61) -> 0 | AT61: =IF(WW=TRUE,AI61-AS61,0) -> 0 | AU61: =IF(WW=TRUE,W61*$AT$128/8760,0) -> 0 | AV61: =INDEX(Berechnungen!$E$79:$BR$79,1,S61) ->  | AW61: =X61 -> -24 | AX61: =INDEX(WP_BIN!$T$78:$CG$78,1,$S61) -> 29.14285714 | AY61: =INDEX(WP_BIN!$T$43:$CG$43,1,$S61) ->  | AZ61: =INDEX(WP_BIN!$T$79:$CG$79,1,$S61) -> 0 | BA61: =INDEX(WP_BIN!$T$86:$CG$86,1,$S61) -> 0 | BB61: =INDEX(WP_BIN!$T$47:$CG$47,1,$S61) ->  | BC61: =INDEX(WP_BIN!$T$54:$CG$54,1,$S61) -> 0 | BG61: =Sprache!B113 -> ECS eau chaude sanitaire
B62: =Sprache!B41 -> Part et COP annuel de la pompe à chaleur pour le chauffage | E62: =IF(AND(Heizung),"e = ","") ->  | F62: =IF(J29=FALSE,"",IF(AND(Heizung,WPArt>1),INDEX(U27:AJ27,1,2*(WPArt-1))*(1-IF(HeizungSolar,H54,0)),"")) ->  | G62: JAZh = | H62: =IF(J29=FALSE,"",IF(Heizung,Y4,0)) -> 0 | K62: =IF(N57>1,H53,0) -> 0 | L62: Deckung WW | M62: =Sprache!B272&IF(O107," (MINERGIE)","") -> Eau chaude sanitaire ECS + chauffage | P62: =8760*KollektorWW -> 0 | Q62: h | R62: Stunden Solar WW | S62: 3 | T62: 0 | V62: 0 | W62: =IF(BIN,INDEX(BIN!$B$3:$BO$364,4+(Klima-2)*11,S62),0) -> 0 | X62: -23 | Y62: =IF(BINkorr,INDEX(Berechnungen!$E$81:$BR$81,1,S62)*IF(OR(Methode_384_3,Z62=0),1,AV62/Z62)/Leistungskorr*(1-Kollektor),W62*$T$130*(1-Kollektor)) ->  | Z62: =IF(Heizung,IF(Methode_384_3,INDEX(Berechnungen!$E$79:$BR$79,1,S62),IF(X62<IF(JAZcalc,TaMinVorarlberg,TaMin),Z63,Z63+$Z$77/28)),0) -> 0 | AB62: 0 | AG62: =IF($AA$77*SUM($W$60:$W61)/Etaw=BedarfWW,0,MAX(MIN($AA$77*W62/Etaw,BedarfWW-$AA$77*SUM($W$60:$W61)/Etaw),0)) ->  | AI62: 0 | AJ62: 0 | AL62: =AE62+AD62+IF(Laufzeit_Zusatzheizung>=SUM($Y62:$Y$77),Kesselleistung*$H$45*Y62,0) ->  | AN62: =IF(Neu,INDEX(WP_BIN!$T$80:$CG$80,1,S62),AZ62) -> 0 | AQ62: 0 | AS62: 0 | AT62: 0 | AU62: =IF(WW=TRUE,W62*$AT$128/8760,0) -> 0 | AV62: =INDEX(Berechnungen!$E$79:$BR$79,1,S62) ->  | AW62: -23 | AX62: =INDEX(WP_BIN!$T$78:$CG$78,1,$S62) -> 29.07142857 | AY62: =INDEX(WP_BIN!$T$43:$CG$43,1,$S62) ->  | AZ62: =INDEX(WP_BIN!$T$79:$CG$79,1,$S62) -> 0 | BA62: =INDEX(WP_BIN!$T$86:$CG$86,1,$S62) -> 0 | BB62: =INDEX(WP_BIN!$T$47:$CG$47,1,$S62) ->  | BC62: =INDEX(WP_BIN!$T$54:$CG$54,1,$S62) -> 0 | BG62: =Sprache!B114 -> Chauffage+ECS
B63: =Sprache!B42 -> Part et COP annuel de la pompe à chaleur pour l'ECS | E63: =IF(AND(WW),"e = ","") ->  | F63: =IF(AND(WW,WPArt>1),INDEX(U35:AJ35,1,2*(WPArt-1))*(1-IF(N57>1,H53,0)),"") ->  | G63: JAZww = | H63: =IF(WW,AA4,0) -> 0 | K63: =IF(HeizungSolar,H54,0) -> 0 | L63: Deckung Heizung | M63: =Sprache!B271&" "&Sprache!B273 -> Chauffage solaire de l'ECS (calcul externe) | P63: =8760-P62 -> 8760 | Q63: h | R63: Stunden WW ohne Solar | S63: 4 | T63: 0 | V63: 0 | W63: =IF(BIN,INDEX(BIN!$B$3:$BO$364,4+(Klima-2)*11,S63),0) -> 0 | X63: -22 | Y63: =IF(BINkorr,INDEX(Berechnungen!$E$81:$BR$81,1,S63)*IF(OR(Methode_384_3,Z63=0),1,AV63/Z63)/Leistungskorr*(1-Kollektor),W63*$T$130*(1-Kollektor)) ->  | Z63: =IF(Heizung,IF(Methode_384_3,INDEX(Berechnungen!$E$79:$BR$79,1,S63),IF(X63<IF(JAZcalc,TaMinVorarlberg,TaMin),Z64,Z64+$Z$77/28)),0) -> 0 | AB63: 0 | AG63: =IF($AA$77*SUM($W$60:$W62)/Etaw=BedarfWW,0,MAX(MIN($AA$77*W63/Etaw,BedarfWW-$AA$77*SUM($W$60:$W62)/Etaw),0)) ->  | AI63: 0 | AJ63: 0 | AL63: =AE63+AD63+IF(Laufzeit_Zusatzheizung>=SUM($Y63:$Y$77),Kesselleistung*$H$45*Y63,0) ->  | AN63: =IF(Neu,INDEX(WP_BIN!$T$80:$CG$80,1,S63),AZ63) -> 0 | AQ63: 0 | AS63: 0 | AT63: 0 | AU63: 0 | AV63: =INDEX(Berechnungen!$E$79:$BR$79,1,S63) ->  | AW63: -22 | AX63: =INDEX(WP_BIN!$T$78:$CG$78,1,$S63) -> 29 | AY63: =INDEX(WP_BIN!$T$43:$CG$43,1,$S63) ->  | AZ63: =INDEX(WP_BIN!$T$79:$CG$79,1,$S63) -> 0 | BA63: =INDEX(WP_BIN!$T$86:$CG$86,1,$S63) -> 0 | BB63: =INDEX(WP_BIN!$T$47:$CG$47,1,$S63) ->  | BC63: =INDEX(WP_BIN!$T$54:$CG$54,1,$S63) -> 0 | BG63: =Sprache!B141 -> Chauffage + production d'ECS décentralisée par PAC
B64: =Sprache!B43 -> Facteur de pondération pour le chauffage: | G64: - | H64: =IF(AND(WW,Heizung),IF((Qww+Qh)>0,Qh/(Qww+Qh),0),IF(Heizung,1,0)) -> 0 | K64: =IF(Qh+Qww=0,,IF(wwSolar,P58,IF(HeizungSolar,Q58,0))) ->  | L64: Solarertrag | M64: =Sprache!B272&" "&Sprache!B273 -> Eau chaude sanitaire ECS + chauffage (calcul externe) | P64: =IF(OR(MinSol,solarExtern),0.7,1) -> 1 | Q64: =IF(OR(MinSol,solarExtern),0.7,1) -> 1 | R64: Max. Deckung WW | S64: 5 | T64: 0 | V64: 0 | W64: =IF(BIN,INDEX(BIN!$B$3:$BO$364,4+(Klima-2)*11,S64),0) -> 0 | X64: -21 | Y64: =IF(BINkorr,INDEX(Berechnungen!$E$81:$BR$81,1,S64)*IF(OR(Methode_384_3,Z64=0),1,AV64/Z64)/Leistungskorr*(1-Kollektor),W64*$T$130*(1-Kollektor)) ->  | Z64: =IF(Heizung,IF(Methode_384_3,INDEX(Berechnungen!$E$79:$BR$79,1,S64),IF(X64<IF(JAZcalc,TaMinVorarlberg,TaMin),Z65,Z65+$Z$77/28)),0) -> 0 | AB64: 0 | AG64: =IF($AA$77*SUM($W$60:$W63)/Etaw=BedarfWW,0,MAX(MIN($AA$77*W64/Etaw,BedarfWW-$AA$77*SUM($W$60:$W63)/Etaw),0)) ->  | AI64: 0 | AJ64: 0 | AL64: =AE64+AD64+IF(Laufzeit_Zusatzheizung>=SUM($Y64:$Y$77),Kesselleistung*$H$45*Y64,0) ->  | AN64: =IF(Neu,INDEX(WP_BIN!$T$80:$CG$80,1,S64),AZ64) -> 0 | AQ64: 0 | AS64: 0 | AT64: 0 | AU64: 0 | AV64: =INDEX(Berechnungen!$E$79:$BR$79,1,S64) ->  | AW64: -21 | AX64: =INDEX(WP_BIN!$T$78:$CG$78,1,$S64) -> 28.92857143 | AY64: =INDEX(WP_BIN!$T$43:$CG$43,1,$S64) ->  | AZ64: =INDEX(WP_BIN!$T$79:$CG$79,1,$S64) -> 0 | BA64: =INDEX(WP_BIN!$T$86:$CG$86,1,$S64) -> 0 | BB64: =INDEX(WP_BIN!$T$47:$CG$47,1,$S64) ->  | BC64: =INDEX(WP_BIN!$T$54:$CG$54,1,$S64) -> 0 | BG64: Warmwasser? | BH64: =IF(OR(BH58>2),TRUE,FALSE) -> FALSE
B65: =Sprache!B44 -> Facteur de pondération pour l'ECS | G65: - | H65: =IF(AND(WW,Heizung),IF((Qww+Qh)>0,Qww/(Qww+Qh),0),IF(WW,1,0)) -> 0 | K65: Vorschlag Minergie: | M65: Berechnung nach MINERGIE | O65: =IF(OR(N57=4,N57=5),TRUE,FALSE) -> FALSE | P65: 0 | Q65: =IF(OR(MinSol,solarExtern),0.5,1) -> 1 | R65: Max. Deckung Heizung | S65: 6 | T65: 0 | V65: 0 | W65: =IF(BIN,INDEX(BIN!$B$3:$BO$364,4+(Klima-2)*11,S65),0) -> 0 | X65: -20 | Y65: =IF(BINkorr,INDEX(Berechnungen!$E$81:$BR$81,1,S65)*IF(OR(Methode_384_3,Z65=0),1,AV65/Z65)/Leistungskorr*(1-Kollektor),W65*$T$130*(1-Kollektor)) ->  | Z65: =IF(Heizung,IF(Methode_384_3,INDEX(Berechnungen!$E$79:$BR$79,1,S65),IF(X65<IF(JAZcalc,TaMinVorarlberg,TaMin),Z66,Z66+$Z$77/28)),0) -> 0 | AB65: 0 | AG65: =IF($AA$77*SUM($W$60:$W64)/Etaw=BedarfWW,0,MAX(MIN($AA$77*W65/Etaw,BedarfWW-$AA$77*SUM($W$60:$W64)/Etaw),0)) ->  | AI65: 0 | AJ65: 0 | AL65: =AE65+AD65+IF(Laufzeit_Zusatzheizung>=SUM($Y65:$Y$77),Kesselleistung*$H$45*Y65,0) ->  | AN65: =IF(Neu,INDEX(WP_BIN!$T$80:$CG$80,1,S65),AZ65) -> 0 | AQ65: 0 | AS65: 0 | AT65: 0 | AU65: 0 | AV65: =INDEX(Berechnungen!$E$79:$BR$79,1,S65) ->  | AW65: -20 | AX65: =INDEX(WP_BIN!$T$78:$CG$78,1,$S65) -> 28.85714286 | AY65: =INDEX(WP_BIN!$T$43:$CG$43,1,$S65) ->  | AZ65: =INDEX(WP_BIN!$T$79:$CG$79,1,$S65) -> 0 | BA65: =INDEX(WP_BIN!$T$86:$CG$86,1,$S65) -> 0 | BB65: =INDEX(WP_BIN!$T$47:$CG$47,1,$S65) ->  | BC65: =INDEX(WP_BIN!$T$54:$CG$54,1,$S65) -> 0 | BG65: Heizung? | BH65: =IF(OR(BH58=2,BH58>3),TRUE,FALSE) -> FALSE
B66: =IF(bivalent,"",Sprache!B45) -> COP annuel pour chauffage et ECS (COPa [ch+ECS]) | G66: =IF(bivalent,"","-") -> - | H66: =IF(bivalent,"",IF(AND(WW=FALSE,Heizung=FALSE),"",IF(Heizung=FALSE,jazh,IF(WW=FALSE,jazww,IF(OR(EBF="",AND(WPArt=3,H32="")),"",IF(AND(F62>0,F63>0),(wh/www*F62+F63)/(wh/www*F62/jazh+F63/jazww))))))) ->  | K66: =IF(Qh+Qww=0,,IF(wwSolar,P58,IF(HeizungSolar,Q58,0))) ->  | L66: Solarertrag | M66: Berechnung nach SIA 384/3 | O66: =IF(OR(N57=2,N57=3),TRUE,FALSE) -> FALSE | P66: =Berechnungen!B148 ->  | Q66: =Berechnungen!B190 ->  | R66: Deckung WW SIA 384/3 | S66: 7 | T66: 0 | V66: 0 | W66: =IF(BIN,INDEX(BIN!$B$3:$BO$364,4+(Klima-2)*11,S66),0) -> 0 | X66: -19 | Y66: =IF(BINkorr,INDEX(Berechnungen!$E$81:$BR$81,1,S66)*IF(OR(Methode_384_3,Z66=0),1,AV66/Z66)/Leistungskorr*(1-Kollektor),W66*$T$130*(1-Kollektor)) ->  | Z66: =IF(Heizung,IF(Methode_384_3,INDEX(Berechnungen!$E$79:$BR$79,1,S66),IF(X66<IF(JAZcalc,TaMinVorarlberg,TaMin),Z67,Z67+$Z$77/28)),0) -> 0 | AB66: 0 | AG66: =IF($AA$77*SUM($W$60:$W65)/Etaw=BedarfWW,0,MAX(MIN($AA$77*W66/Etaw,BedarfWW-$AA$77*SUM($W$60:$W65)/Etaw),0)) ->  | AI66: 0 | AJ66: 0 | AL66: =AE66+AD66+IF(Laufzeit_Zusatzheizung>=SUM($Y66:$Y$77),Kesselleistung*$H$45*Y66,0) ->  | AN66: =IF(Neu,INDEX(WP_BIN!$T$80:$CG$80,1,S66),AZ66) -> 0 | AQ66: 0 | AS66: 0 | AT66: 0 | AU66: 0 | AV66: =INDEX(Berechnungen!$E$79:$BR$79,1,S66) ->  | AW66: -19 | AX66: =INDEX(WP_BIN!$T$78:$CG$78,1,$S66) -> 28.78571429 | AY66: =INDEX(WP_BIN!$T$43:$CG$43,1,$S66) ->  | AZ66: =INDEX(WP_BIN!$T$79:$CG$79,1,$S66) -> 0 | BA66: =INDEX(WP_BIN!$T$86:$CG$86,1,$S66) -> 0 | BB66: =INDEX(WP_BIN!$T$47:$CG$47,1,$S66) ->  | BC66: =INDEX(WP_BIN!$T$54:$CG$54,1,$S66) -> 0 | BG66: HeizSpeicher? | BH66: =IF(AND(Speicher,Heizung),TRUE,FALSE) -> FALSE
K67: kWh/m2a | M67: externe Berechnung: | O67: =IF(OR(N57=6,N57=7),TRUE,FALSE) -> FALSE | P67: 0 | Q67: =Berechnungen!B191 ->  | R67: Deckung Heizung SIA 384/3 | S67: 8 | T67: 0 | V67: 0 | W67: =IF(BIN,INDEX(BIN!$B$3:$BO$364,4+(Klima-2)*11,S67),0) -> 0 | X67: -18 | Y67: =IF(BINkorr,INDEX(Berechnungen!$E$81:$BR$81,1,S67)*IF(OR(Methode_384_3,Z67=0),1,AV67/Z67)/Leistungskorr*(1-Kollektor),W67*$T$130*(1-Kollektor)) ->  | Z67: =IF(Heizung,IF(Methode_384_3,INDEX(Berechnungen!$E$79:$BR$79,1,S67),IF(X67<IF(JAZcalc,TaMinVorarlberg,TaMin),Z68,Z68+$Z$77/28)),0) -> 0 | AB67: 0 | AG67: =IF($AA$77*SUM($W$60:$W66)/Etaw=BedarfWW,0,MAX(MIN($AA$77*W67/Etaw,BedarfWW-$AA$77*SUM($W$60:$W66)/Etaw),0)) ->  | AI67: 0 | AJ67: 0 | AL67: =AE67+AD67+IF(Laufzeit_Zusatzheizung>=SUM($Y67:$Y$77),Kesselleistung*$H$45*Y67,0) ->  | AN67: =IF(Neu,INDEX(WP_BIN!$T$80:$CG$80,1,S67),AZ67) -> 0 | AQ67: 0 | AS67: 0 | AT67: 0 | AU67: 0 | AV67: =INDEX(Berechnungen!$E$79:$BR$79,1,S67) ->  | AW67: -18 | AX67: =INDEX(WP_BIN!$T$78:$CG$78,1,$S67) -> 28.71428571 | AY67: =INDEX(WP_BIN!$T$43:$CG$43,1,$S67) ->  | AZ67: =INDEX(WP_BIN!$T$79:$CG$79,1,$S67) -> 0 | BA67: =INDEX(WP_BIN!$T$86:$CG$86,1,$S67) -> 0 | BB67: =INDEX(WP_BIN!$T$47:$CG$47,1,$S67) ->  | BC67: =INDEX(WP_BIN!$T$54:$CG$54,1,$S67) -> 0 | BG67: Speicherladung | BH67: =J24 -> 1
B68: Zuschlagstemperatur Auslegung Oesterreich: | D68: 0 | E68: Zuschlagstemperatur Auslegung CH: | H68: 2 | S68: 9 | T68: 0 | V68: 0 | W68: =IF(BIN,INDEX(BIN!$B$3:$BO$364,4+(Klima-2)*11,S68),0) -> 0 | X68: -17 | Y68: =IF(BINkorr,INDEX(Berechnungen!$E$81:$BR$81,1,S68)*IF(OR(Methode_384_3,Z68=0),1,AV68/Z68)/Leistungskorr*(1-Kollektor),W68*$T$130*(1-Kollektor)) ->  | Z68: =IF(Heizung,IF(Methode_384_3,INDEX(Berechnungen!$E$79:$BR$79,1,S68),IF(X68<IF(JAZcalc,TaMinVorarlberg,TaMin),Z69,Z69+$Z$77/28)),0) -> 0 | AB68: 0 | AG68: =IF($AA$77*SUM($W$60:$W67)/Etaw=BedarfWW,0,MAX(MIN($AA$77*W68/Etaw,BedarfWW-$AA$77*SUM($W$60:$W67)/Etaw),0)) ->  | AI68: 0 | AJ68: 0 | AL68: =AE68+AD68+IF(Laufzeit_Zusatzheizung>=SUM($Y68:$Y$77),Kesselleistung*$H$45*Y68,0) ->  | AN68: =IF(Neu,INDEX(WP_BIN!$T$80:$CG$80,1,S68),AZ68) -> 0 | AQ68: 0 | AS68: 0 | AT68: 0 | AU68: 0 | AV68: =INDEX(Berechnungen!$E$79:$BR$79,1,S68) ->  | AW68: -17 | AX68: =INDEX(WP_BIN!$T$78:$CG$78,1,$S68) -> 28.64285714 | AY68: =INDEX(WP_BIN!$T$43:$CG$43,1,$S68) ->  | AZ68: =INDEX(WP_BIN!$T$79:$CG$79,1,$S68) -> 0 | BA68: =INDEX(WP_BIN!$T$86:$CG$86,1,$S68) -> 0 | BB68: =INDEX(WP_BIN!$T$47:$CG$47,1,$S68) ->  | BC68: =INDEX(WP_BIN!$T$54:$CG$54,1,$S68) -> 0 | BH68: 0
S69: 10 | T69: 0 | V69: 0 | W69: =IF(BIN,INDEX(BIN!$B$3:$BO$364,4+(Klima-2)*11,S69),0) -> 0 | X69: -16 | Y69: =IF(BINkorr,INDEX(Berechnungen!$E$81:$BR$81,1,S69)*IF(OR(Methode_384_3,Z69=0),1,AV69/Z69)/Leistungskorr*(1-Kollektor),W69*$T$130*(1-Kollektor)) ->  | Z69: =IF(Heizung,IF(Methode_384_3,INDEX(Berechnungen!$E$79:$BR$79,1,S69),IF(X69<IF(JAZcalc,TaMinVorarlberg,TaMin),Z70,Z70+$Z$77/28)),0) -> 0 | AB69: 0 | AG69: =IF($AA$77*SUM($W$60:$W68)/Etaw=BedarfWW,0,MAX(MIN($AA$77*W69/Etaw,BedarfWW-$AA$77*SUM($W$60:$W68)/Etaw),0)) ->  | AI69: 0 | AJ69: 0 | AL69: =AE69+AD69+IF(Laufzeit_Zusatzheizung>=SUM($Y69:$Y$77),Kesselleistung*$H$45*Y69,0) ->  | AN69: =IF(Neu,INDEX(WP_BIN!$T$80:$CG$80,1,S69),AZ69) -> 0 | AQ69: 0 | AS69: 0 | AT69: 0 | AU69: 0 | AV69: =INDEX(Berechnungen!$E$79:$BR$79,1,S69) ->  | AW69: -16 | AX69: =INDEX(WP_BIN!$T$78:$CG$78,1,$S69) -> 28.57142857 | AY69: =INDEX(WP_BIN!$T$43:$CG$43,1,$S69) ->  | AZ69: =INDEX(WP_BIN!$T$79:$CG$79,1,$S69) -> 0 | BA69: =INDEX(WP_BIN!$T$86:$CG$86,1,$S69) -> 0 | BB69: =INDEX(WP_BIN!$T$47:$CG$47,1,$S69) ->  | BC69: =INDEX(WP_BIN!$T$54:$CG$54,1,$S69) -> 0 | BG69: =IF(elZusatz,Sprache!B120,"") ->  | BH69: =IF(elZusatz,Z142,0) -> 0
B70: Klimastationen SIA 2028 | C70: Höhe | D70: Ta,Ausleg. | E70: GH Jahr | F70: mittl. Heizp. | G70: Ta,min | H70: HGT | S70: 11 | T70: 0 | V70: 0 | W70: =IF(BIN,INDEX(BIN!$B$3:$BO$364,4+(Klima-2)*11,S70),0) -> 0 | X70: -15 | Y70: =IF(BINkorr,INDEX(Berechnungen!$E$81:$BR$81,1,S70)*IF(OR(Methode_384_3,Z70=0),1,AV70/Z70)/Leistungskorr*(1-Kollektor),W70*$T$130*(1-Kollektor)) ->  | Z70: =IF(Heizung,IF(Methode_384_3,INDEX(Berechnungen!$E$79:$BR$79,1,S70),IF(X70<IF(JAZcalc,TaMinVorarlberg,TaMin),Z71,Z71+$Z$77/28)),0) -> 0 | AB70: 0 | AG70: =IF($AA$77*SUM($W$60:$W69)/Etaw=BedarfWW,0,MAX(MIN($AA$77*W70/Etaw,BedarfWW-$AA$77*SUM($W$60:$W69)/Etaw),0)) ->  | AI70: 0 | AJ70: 0 | AL70: =AE70+AD70+IF(Laufzeit_Zusatzheizung>=SUM($Y70:$Y$77),Kesselleistung*$H$45*Y70,0) ->  | AN70: =IF(Neu,INDEX(WP_BIN!$T$80:$CG$80,1,S70),AZ70) -> 0 | AQ70: 0 | AS70: 0 | AT70: 0 | AU70: 0 | AV70: =INDEX(Berechnungen!$E$79:$BR$79,1,S70) ->  | AW70: -15 | AX70: =INDEX(WP_BIN!$T$78:$CG$78,1,$S70) -> 28.5 | AY70: =INDEX(WP_BIN!$T$43:$CG$43,1,$S70) ->  | AZ70: =INDEX(WP_BIN!$T$79:$CG$79,1,$S70) -> 0 | BA70: =INDEX(WP_BIN!$T$86:$CG$86,1,$S70) -> 0 | BB70: =INDEX(WP_BIN!$T$47:$CG$47,1,$S70) ->  | BC70: =INDEX(WP_BIN!$T$54:$CG$54,1,$S70) -> 0 | BG70: =IF(AND(elZusatz,Speicher),Sprache!B121,"") ->  | BH70: =IF(AND(elZusatz,Speicher),Z143,0) -> 0
B71: =IF(JAZcalc,34,IF($H$6="",1,INDEX(B72:I104,L2,8))) -> 1 | C71: m.ü.M. | D71: °C | E71: MJ/m2a | F71: °C | G71: °C | H71: nur HT 20/12 | S71: 12 | T71: 0 | V71: 0 | W71: =IF(BIN,INDEX(BIN!$B$3:$BO$364,4+(Klima-2)*11,S71),0) -> 0 | X71: -14 | Y71: =IF(BINkorr,INDEX(Berechnungen!$E$81:$BR$81,1,S71)*IF(OR(Methode_384_3,Z71=0),1,AV71/Z71)/Leistungskorr*(1-Kollektor),W71*$T$130*(1-Kollektor)) ->  | Z71: =IF(Heizung,IF(Methode_384_3,INDEX(Berechnungen!$E$79:$BR$79,1,S71),IF(X71<IF(JAZcalc,TaMinVorarlberg,TaMin),Z72,Z72+$Z$77/28)),0) -> 0 | AB71: 0 | AD71: =MAX(IF(AE71>0,Z71*Y71/Etah/Nutzungsgrad,(Z71*Y71/Etah+AA71*Y71/Etaw-AB71*Y71)/Nutzungsgrad),0) ->  | AF71: =Z71*Y71/Etah ->  | AG71: =IF($AA$77*SUM($W$60:$W70)/Etaw=BedarfWW,0,MAX(MIN($AA$77*W71/Etaw,BedarfWW-$AA$77*SUM($W$60:$W70)/Etaw),0)) ->  | AH71: =MAX(AF71+AG71-AD71*Nutzungsgrad-AE71*Nutzungsgrad,0) ->  | AI71: 0 | AJ71: 0 | AL71: =AE71+AD71+IF(Laufzeit_Zusatzheizung>=SUM($Y71:$Y$77),Kesselleistung*$H$45*Y71,0) ->  | AN71: =IF(Neu,INDEX(WP_BIN!$T$80:$CG$80,1,S71),AZ71) -> 0 | AQ71: 0 | AS71: 0 | AT71: 0 | AU71: 0 | AV71: =INDEX(Berechnungen!$E$79:$BR$79,1,S71) ->  | AW71: -14 | AX71: =INDEX(WP_BIN!$T$78:$CG$78,1,$S71) -> 28.42857143 | AY71: =INDEX(WP_BIN!$T$43:$CG$43,1,$S71) ->  | AZ71: =INDEX(WP_BIN!$T$79:$CG$79,1,$S71) -> 0 | BA71: =INDEX(WP_BIN!$T$86:$CG$86,1,$S71) -> 0 | BB71: =INDEX(WP_BIN!$T$47:$CG$47,1,$S71) ->  | BC71: =INDEX(WP_BIN!$T$54:$CG$54,1,$S71) -> 0 | BG71: =IF(AND(elZusatz,Speicher),Sprache!B122,"") ->  | BH71: =IF(AND(elZusatz,Speicher),Z144,0) -> 0
B72: =IF(JAZcalc,JAZcalc!N723,"") ->  | C72: =IF(JAZcalc,JAZcalc!O723,"") ->  | D72: =IF(JAZcalc,JAZcalc!Q723,"") ->  | F72: =IF(JAZcalc,JAZcalc!P723,"") ->  | G72: =IF(JAZcalc,JAZcalc!S723,"") ->  | H72: =IF(JAZcalc,JAZcalc!R723,"") ->  | I72: 1 | S72: 13 | T72: 0 | V72: 0 | W72: =IF(BIN,INDEX(BIN!$B$3:$BO$364,4+(Klima-2)*11,S72),0) -> 0 | X72: -13 | Y72: =IF(BINkorr,INDEX(Berechnungen!$E$81:$BR$81,1,S72)*IF(OR(Methode_384_3,Z72=0),1,AV72/Z72)/Leistungskorr*(1-Kollektor),W72*$T$130*(1-Kollektor)) ->  | Z72: =IF(Heizung,IF(Methode_384_3,INDEX(Berechnungen!$E$79:$BR$79,1,S72),IF(X72<IF(JAZcalc,TaMinVorarlberg,TaMin),Z73,Z73+$Z$77/28)),0) -> 0 | AB72: 0 | AG72: =IF($AA$77*SUM($W$60:$W71)/Etaw=BedarfWW,0,MAX(MIN($AA$77*W72/Etaw,BedarfWW-$AA$77*SUM($W$60:$W71)/Etaw),0)) ->  | AI72: 0 | AJ72: 0 | AL72: =AE72+AD72+IF(Laufzeit_Zusatzheizung>=SUM($Y72:$Y$77),Kesselleistung*$H$45*Y72,0) ->  | AN72: =IF(Neu,INDEX(WP_BIN!$T$80:$CG$80,1,S72),AZ72) -> 0 | AQ72: 0 | AS72: 0 | AT72: 0 | AU72: 0 | AV72: =INDEX(Berechnungen!$E$79:$BR$79,1,S72) ->  | AW72: -13 | AX72: =INDEX(WP_BIN!$T$78:$CG$78,1,$S72) -> 28.35714286 | AY72: =INDEX(WP_BIN!$T$43:$CG$43,1,$S72) ->  | AZ72: =INDEX(WP_BIN!$T$79:$CG$79,1,$S72) -> 0 | BA72: =INDEX(WP_BIN!$T$86:$CG$86,1,$S72) -> 0 | BB72: =INDEX(WP_BIN!$T$47:$CG$47,1,$S72) ->  | BC72: =INDEX(WP_BIN!$T$54:$CG$54,1,$S72) -> 0
B73: Adelboden | D73: -10 | E73: 4186 | F73: 2.9 | G73: -10 | H73: 4186 | I73: 2 | S73: 14 | T73: 0 | V73: 0 | W73: =IF(BIN,INDEX(BIN!$B$3:$BO$364,4+(Klima-2)*11,S73),0) -> 0 | X73: -12 | Y73: =IF(BINkorr,INDEX(Berechnungen!$E$81:$BR$81,1,S73)*IF(OR(Methode_384_3,Z73=0),1,AV73/Z73)/Leistungskorr*(1-Kollektor),W73*$T$130*(1-Kollektor)) ->  | Z73: =IF(Heizung,IF(Methode_384_3,INDEX(Berechnungen!$E$79:$BR$79,1,S73),IF(X73<IF(JAZcalc,TaMinVorarlberg,TaMin),Z74,Z74+$Z$77/28)),0) -> 0 | AB73: 0 | AG73: =IF($AA$77*SUM($W$60:$W72)/Etaw=BedarfWW,0,MAX(MIN($AA$77*W73/Etaw,BedarfWW-$AA$77*SUM($W$60:$W72)/Etaw),0)) ->  | AI73: 0 | AJ73: 0 | AL73: =AE73+AD73+IF(Laufzeit_Zusatzheizung>=SUM($Y73:$Y$77),Kesselleistung*$H$45*Y73,0) ->  | AN73: =IF(Neu,INDEX(WP_BIN!$T$80:$CG$80,1,S73),AZ73) -> 0 | AQ73: 0 | AS73: 0 | AT73: 0 | AU73: 0 | AV73: =INDEX(Berechnungen!$E$79:$BR$79,1,S73) ->  | AW73: -12 | AX73: =INDEX(WP_BIN!$T$78:$CG$78,1,$S73) -> 28.28571429 | AY73: =INDEX(WP_BIN!$T$43:$CG$43,1,$S73) ->  | AZ73: =INDEX(WP_BIN!$T$79:$CG$79,1,$S73) -> 0 | BA73: =INDEX(WP_BIN!$T$86:$CG$86,1,$S73) -> 0 | BB73: =INDEX(WP_BIN!$T$47:$CG$47,1,$S73) ->  | BC73: =INDEX(WP_BIN!$T$54:$CG$54,1,$S73) -> 0
B74: Altdorf | D74: -6 | E74: 4422 | F74: 4.6 | G74: -6 | H74: 2836 | I74: 3 | S74: 15 | T74: 0 | V74: 0 | W74: =IF(BIN,INDEX(BIN!$B$3:$BO$364,4+(Klima-2)*11,S74),0) -> 0 | X74: -11 | Y74: =IF(BINkorr,INDEX(Berechnungen!$E$81:$BR$81,1,S74)*IF(OR(Methode_384_3,Z74=0),1,AV74/Z74)/Leistungskorr*(1-Kollektor),W74*$T$130*(1-Kollektor)) ->  | Z74: =IF(Heizung,IF(Methode_384_3,INDEX(Berechnungen!$E$79:$BR$79,1,S74),IF(X74<IF(JAZcalc,TaMinVorarlberg,TaMin),Z75,Z75+$Z$77/28)),0) -> 0 | AB74: 0 | AG74: =IF($AA$77*SUM($W$60:$W73)/Etaw=BedarfWW,0,MAX(MIN($AA$77*W74/Etaw,BedarfWW-$AA$77*SUM($W$60:$W73)/Etaw),0)) ->  | AI74: 0 | AJ74: 0 | AL74: =AE74+AD74+IF(Laufzeit_Zusatzheizung>=SUM($Y74:$Y$77),Kesselleistung*$H$45*Y74,0) ->  | AN74: =IF(Neu,INDEX(WP_BIN!$T$80:$CG$80,1,S74),AZ74) -> 0 | AQ74: 0 | AS74: 0 | AT74: 0 | AU74: 0 | AV74: =INDEX(Berechnungen!$E$79:$BR$79,1,S74) ->  | AW74: -11 | AX74: =INDEX(WP_BIN!$T$78:$CG$78,1,$S74) -> 28.21428571 | AY74: =INDEX(WP_BIN!$T$43:$CG$43,1,$S74) ->  | AZ74: =INDEX(WP_BIN!$T$79:$CG$79,1,$S74) -> 0 | BA74: =INDEX(WP_BIN!$T$86:$CG$86,1,$S74) -> 0 | BB74: =INDEX(WP_BIN!$T$47:$CG$47,1,$S74) ->  | BC74: =INDEX(WP_BIN!$T$54:$CG$54,1,$S74) -> 0 | BG74: =INDEX(BG68:BG73,BH67,1) ->  | BH74: =INDEX(BH68:BH73,BH67,1) -> 0
B75: Basel-Binningen | D75: -7 | E75: 3940 | F75: 4.7 | G75: -7 | H75: 2733 | I75: 4 | S75: 16 | T75: 0 | V75: 0 | W75: =IF(BIN,INDEX(BIN!$B$3:$BO$364,4+(Klima-2)*11,S75),0) -> 0 | X75: -10 | Y75: =IF(BINkorr,INDEX(Berechnungen!$E$81:$BR$81,1,S75)*IF(OR(Methode_384_3,Z75=0),1,AV75/Z75)/Leistungskorr*(1-Kollektor),W75*$T$130*(1-Kollektor)) ->  | Z75: =IF(Heizung,IF(Methode_384_3,INDEX(Berechnungen!$E$79:$BR$79,1,S75),IF(X75<IF(JAZcalc,TaMinVorarlberg,TaMin),Z76,Z76+$Z$77/28)),0) -> 0 | AB75: 0 | AG75: =IF($AA$77*SUM($W$60:$W74)/Etaw=BedarfWW,0,MAX(MIN($AA$77*W75/Etaw,BedarfWW-$AA$77*SUM($W$60:$W74)/Etaw),0)) ->  | AI75: 0 | AJ75: 0 | AL75: =AE75+AD75+IF(Laufzeit_Zusatzheizung>=SUM($Y75:$Y$77),Kesselleistung*$H$45*Y75,0) ->  | AN75: =IF(Neu,INDEX(WP_BIN!$T$80:$CG$80,1,S75),AZ75) -> 0 | AQ75: 0 | AS75: 0 | AT75: 0 | AU75: 0 | AV75: =INDEX(Berechnungen!$E$79:$BR$79,1,S75) ->  | AW75: -10 | AX75: =INDEX(WP_BIN!$T$78:$CG$78,1,$S75) -> 28.14285714 | AY75: =INDEX(WP_BIN!$T$43:$CG$43,1,$S75) ->  | AZ75: =INDEX(WP_BIN!$T$79:$CG$79,1,$S75) -> 0 | BA75: =INDEX(WP_BIN!$T$86:$CG$86,1,$S75) -> 0 | BB75: =INDEX(WP_BIN!$T$47:$CG$47,1,$S75) ->  | BC75: =INDEX(WP_BIN!$T$54:$CG$54,1,$S75) -> 0
B76: Bern-Liebefeld | D76: -7 | E76: 4026 | F76: 4.1 | G76: -7 | H76: 3353 | I76: 5 | S76: 17 | T76: =W76*Z76 -> 0 | V76: =Z76*W76 -> 0 | W76: =IF(BIN,INDEX(BIN!$B$3:$BO$364,4+(Klima-2)*11,S76),0) -> 0 | X76: -9 | Y76: =IF(BINkorr,INDEX(Berechnungen!$E$81:$BR$81,1,S76)*IF(OR(Methode_384_3,Z76=0),1,AV76/Z76)/Leistungskorr*(1-Kollektor),W76*$T$130*(1-Kollektor)) ->  | Z76: =IF(Heizung,IF(Methode_384_3,INDEX(Berechnungen!$E$79:$BR$79,1,S76),IF(X76<IF(JAZcalc,TaMinVorarlberg,TaMin),Z77,Z77+$Z$77/28)),0) -> 0 | AA76: =IF(AG76>0,$AA$77,0) ->  | AB76: =IF(Bivalenzpunkt<X76,AN76,0) -> 0 | AC76: =MAX(Z76+AA76-AB76,0)/Nutzungsgrad ->  | AG76: =IF($AA$77*SUM($W$60:$W75)/Etaw=BedarfWW,0,MAX(MIN($AA$77*W76/Etaw,BedarfWW-$AA$77*SUM($W$60:$W75)/Etaw),0)) ->  | AH76: =MAX(AF76+AG76-AD76*Nutzungsgrad-AE76*Nutzungsgrad,0) ->  | AI76: =MIN(IF(AB76>0,AH76/AB76,0),W76) -> 0 | AJ76: =Z76*W76 -> 0 | AK76: =MAX(AF76-AD76*Nutzungsgrad,0) ->  | AL76: =AE76+AD76+IF(Laufzeit_Zusatzheizung>=SUM($Y76:$Y$77),Kesselleistung*$H$45*Y76,0) ->  | AN76: =IF(Neu,INDEX(WP_BIN!$T$80:$CG$80,1,S76),AZ76) -> 0 | AO76: =IF(AE76>AM76,AE76-AM76,0) ->  | AP76: =AL76-AM76-AO76 ->  | AQ76: =MAX(AQ77-(AQ$87-AQ$78)/9,0) -> 0 | AR76: =W76*$T$130 ->  | AS76: 0 | AT76: 0 | AU76: 0 | AV76: =INDEX(Berechnungen!$E$79:$BR$79,1,S76) ->  | AW76: -9 | AX76: =INDEX(WP_BIN!$T$78:$CG$78,1,$S76) -> 28.07142857 | AY76: =INDEX(WP_BIN!$T$43:$CG$43,1,$S76) ->  | AZ76: =INDEX(WP_BIN!$T$79:$CG$79,1,$S76) -> 0 | BA76: =INDEX(WP_BIN!$T$86:$CG$86,1,$S76) -> 0 | BB76: =INDEX(WP_BIN!$T$47:$CG$47,1,$S76) ->  | BC76: =INDEX(WP_BIN!$T$54:$CG$54,1,$S76) -> 0 | BG76: WW-Zusatzheiz | BH76: WP-Anteil (von max):
B77: Buchs-Aarau | D77: -7 | E77: 4178 | F77: 4.2 | G77: -7 | H77: 2917 | I77: 6 | S77: 18 | U77: =MAX(0.0304-0.01*Klimakorr,0) -> 0.0304 | W77: =IF(BIN,INDEX(BIN!$B$3:$BO$364,4+(Klima-2)*11,S77),IF($M$32>0,ROUND(U77*Heizperiode*$M$31/$M$32,0),ROUND(U77*Heizperiode,0))) ->  | X77: -8 | Y77: =IF(BINkorr,INDEX(Berechnungen!$E$81:$BR$81,1,S77)*IF(OR(Methode_384_3,Z77=0),1,AV77/Z77)/Leistungskorr*(1-Kollektor),W77*$T$130*(1-Kollektor)) ->  | Z77: =IF(Heizung,IF(Methode_384_3,INDEX(Berechnungen!$E$79:$BR$79,1,S77),M32),0) -> 0 | AA77: =IF(WW,Qww*EBF/3.6/8760,0) -> 0 | AB77: =IF(Bivalenzpunkt<-8,AN77,0) -> 0 | AC77: 0 | AG77: =IF($AA$77*SUM($W$60:$W76)/Etaw=BedarfWW,0,MAX(MIN($AA$77*W77/Etaw,BedarfWW-$AA$77*SUM($W$60:$W76)/Etaw),0)) ->  | AH77: =MAX(AF77+AG77-AD77*Nutzungsgrad-AE77*Nutzungsgrad,0) ->  | AI77: =MIN(IF(AB77>0,AH77/AB77,0),W77) ->  | AJ77: =Z77*W77 ->  | AL77: =AE77+AD77+IF(Laufzeit_Zusatzheizung>=$Y77,Kesselleistung*$H$45*Y77,0) ->  | AN77: =IF(Neu,INDEX(WP_BIN!$T$80:$CG$80,1,S77),AN78-(AN$87-AN$78)/9) -> 0 | AQ77: =AQ78-(AQ$87-AQ$78)/9 -> 0 | AT77: 0 | AU77: 0 | AV77: =INDEX(Berechnungen!$E$79:$BR$79,1,S77) ->  | AW77: -8 | AX77: =INDEX(WP_BIN!$T$78:$CG$78,1,$S77) -> 28 | AY77: =INDEX(WP_BIN!$T$43:$CG$43,1,$S77) -> 33 | AZ77: =INDEX(WP_BIN!$T$79:$CG$79,1,$S77) -> 0 | BA77: =INDEX(WP_BIN!$T$86:$CG$86,1,$S77) -> 0 | BB77: =INDEX(WP_BIN!$T$47:$CG$47,1,$S77) -> 0 | BC77: =INDEX(WP_BIN!$T$54:$CG$54,1,$S77) -> 0 | BH77: 1
B78: Chur | D78: -7 | E78: 3752 | F78: 4.1 | G78: -7 | H78: 2917 | I78: 7 | S78: 19 | U78: =MAX(0.0076-Klimakorr*0.003*(X78/-7),0) -> 0.0076 | W78: =IF(BIN,INDEX(BIN!$B$3:$BO$364,4+(Klima-2)*11,S78),IF($M$32>0,ROUND(U78*Heizperiode*$M$31/$M$32,0),ROUND(U78*Heizperiode,0))) ->  | X78: -7 | Y78: =IF(BINkorr,INDEX(Berechnungen!$E$81:$BR$81,1,S78)*IF(OR(Methode_384_3,Z78=0),1,AV78/Z78)/Leistungskorr*(1-Kollektor),W78*$T$130*(1-Kollektor)) ->  | Z78: =IF(Heizung,IF(Methode_384_3,INDEX(Berechnungen!$E$79:$BR$79,1,S78),Z77-$Z$77/28),0) -> 0 | AA78: =IF(AG78>0,$AA$77,0) ->  | AB78: =IF(Bivalenzpunkt<X78,AN78,0) -> 0 | AD78: =MAX(IF(AE78>0,Z78*Y78/Etah/Nutzungsgrad,(Z78*Y78/Etah+AA78*Y78/Etaw-AB78*Y78)/Nutzungsgrad),0) ->  | AG78: =IF($AA$77*SUM($W$60:$W77)/Etaw=BedarfWW,0,MAX(MIN($AA$77*W78/Etaw,BedarfWW-$AA$77*SUM($W$60:$W77)/Etaw),0)) ->  | AH78: =MAX(AF78+AG78-AD78*Nutzungsgrad-AE78*Nutzungsgrad,0) ->  | AI78: =MIN(IF(AB78>0,AH78/AB78,0),W78) ->  | AJ78: =Z78*W78 ->  | AL78: =AE78+AD78+IF(Laufzeit_Zusatzheizung>=SUM($Y$60:$Y78),Kesselleistung*$H$45*Y78,0) ->  | AN78: =IF(Neu,INDEX(WP_BIN!$T$80:$CG$80,1,S78),IF(WPArt=2,IF(V20>0,V20,0),IF(OR(WPArt=3,WPArt=5),IF(W52>0,IF(H33<>0,M41,I32),0),IF(WPArt=4,IF(W52>0,W52,0),)))*(Etah*Verteilverluste20wh+Etaw*www)*(24-IF(Sperrzeit<>"",Sperrzeit,0))/24) -> 0 | AQ78: =AN17*(24-IF(Sperrzeit<>"",Sperrzeit,0))/24*(Etah*wh+Etaw*www) -> 0 | AT78: 0 | AU78: 0 | AV78: =INDEX(Berechnungen!$E$79:$BR$79,1,S78) ->  | AW78: -7 | AX78: =INDEX(WP_BIN!$T$78:$CG$78,1,$S78) -> 27.92857143 | AY78: =INDEX(WP_BIN!$T$43:$CG$43,1,$S78) ->  | AZ78: =INDEX(WP_BIN!$T$79:$CG$79,1,$S78) -> 0 | BA78: =INDEX(WP_BIN!$T$86:$CG$86,1,$S78) -> 0 | BB78: =INDEX(WP_BIN!$T$47:$CG$47,1,$S78) ->  | BC78: =INDEX(WP_BIN!$T$54:$CG$54,1,$S78) -> 0 | BG78: =IF(WW,Sprache!B123,"") ->  | BH78: 1
B79: Davos | D79: -13 | E79: 4324 | F79: 1.7 | G79: -13 | H79: 5205 | I79: 8 | S79: 20 | U79: =MAX(0.0124-Klimakorr*0.003*(X79/-7),0) -> 0.0124 | W79: =IF(BIN,INDEX(BIN!$B$3:$BO$364,4+(Klima-2)*11,S79),IF($M$32>0,ROUND(U79*Heizperiode*$M$31/$M$32,0),ROUND(U79*Heizperiode,0))) ->  | X79: -6 | Y79: =IF(BINkorr,INDEX(Berechnungen!$E$81:$BR$81,1,S79)*IF(OR(Methode_384_3,Z79=0),1,AV79/Z79)/Leistungskorr*(1-Kollektor),W79*$T$130*(1-Kollektor)) ->  | Z79: =IF(Heizung,IF(Methode_384_3,INDEX(Berechnungen!$E$79:$BR$79,1,S79),Z78-$Z$77/28),0) -> 0 | AB79: 0 | AG79: =IF($AA$77*SUM($W$60:$W78)/Etaw=BedarfWW,0,MAX(MIN($AA$77*W79/Etaw,BedarfWW-$AA$77*SUM($W$60:$W78)/Etaw),0)) ->  | AH79: =MAX(AF79+AG79-AD79*Nutzungsgrad-AE79*Nutzungsgrad,0) ->  | AI79: =MIN(IF(AB79>0,AH79/AB79,0),W79) ->  | AL79: =AE79+AD79+IF(Laufzeit_Zusatzheizung>=SUM($Y$60:$Y79),Kesselleistung*$H$45*Y79,0) ->  | AN79: =IF(Neu,INDEX(WP_BIN!$T$80:$CG$80,1,S79),AN78+(AN$87-AN$78)/9) -> 0 | AQ79: =AQ78+(AQ$87-AQ$78)/9 -> 0 | AT79: 0 | AU79: 0 | AV79: =INDEX(Berechnungen!$E$79:$BR$79,1,S79) ->  | AW79: -6 | AX79: =INDEX(WP_BIN!$T$78:$CG$78,1,$S79) -> 27.85714286 | AY79: =INDEX(WP_BIN!$T$43:$CG$43,1,$S79) ->  | AZ79: =INDEX(WP_BIN!$T$79:$CG$79,1,$S79) -> 0 | BA79: =INDEX(WP_BIN!$T$86:$CG$86,1,$S79) -> 0 | BB79: =INDEX(WP_BIN!$T$47:$CG$47,1,$S79) ->  | BC79: =INDEX(WP_BIN!$T$54:$CG$54,1,$S79) -> 0 | BG79: =IF(WW,Sprache!B124,"") ->  | BH79: =1-Z145 -> 0.95
B80: Disentis | D80: -10 | E80: 4793 | F80: 3.7 | G80: -10 | H80: 3774 | I80: 9 | S80: 21 | U80: =MAX(0.0162-Klimakorr*0.003*(X80/-7),0) -> 0.0162 | W80: =IF(BIN,INDEX(BIN!$B$3:$BO$364,4+(Klima-2)*11,S80),IF($M$32>0,ROUND(U80*Heizperiode*$M$31/$M$32,0),ROUND(U80*Heizperiode,0))) ->  | X80: -5 | Y80: =IF(BINkorr,INDEX(Berechnungen!$E$81:$BR$81,1,S80)*IF(OR(Methode_384_3,Z80=0),1,AV80/Z80)/Leistungskorr*(1-Kollektor),W80*$T$130*(1-Kollektor)) ->  | Z80: =IF(Heizung,IF(Methode_384_3,INDEX(Berechnungen!$E$79:$BR$79,1,S80),Z79-$Z$77/28),0) -> 0 | AB80: 0 | AG80: =IF($AA$77*SUM($W$60:$W79)/Etaw=BedarfWW,0,MAX(MIN($AA$77*W80/Etaw,BedarfWW-$AA$77*SUM($W$60:$W79)/Etaw),0)) ->  | AL80: =AE80+AD80+IF(Laufzeit_Zusatzheizung>=SUM($Y$60:$Y80),Kesselleistung*$H$45*Y80,0) ->  | AN80: =IF(Neu,INDEX(WP_BIN!$T$80:$CG$80,1,S80),AN79+(AN$87-AN$78)/9) -> 0 | AQ80: 0 | AT80: 0 | AU80: 0 | AV80: =INDEX(Berechnungen!$E$79:$BR$79,1,S80) ->  | AW80: -5 | AX80: =INDEX(WP_BIN!$T$78:$CG$78,1,$S80) -> 27.78571429 | AY80: =INDEX(WP_BIN!$T$43:$CG$43,1,$S80) ->  | AZ80: =INDEX(WP_BIN!$T$79:$CG$79,1,$S80) -> 0 | BA80: =INDEX(WP_BIN!$T$86:$CG$86,1,$S80) -> 0 | BB80: =INDEX(WP_BIN!$T$47:$CG$47,1,$S80) ->  | BC80: =INDEX(WP_BIN!$T$54:$CG$54,1,$S80) -> 0 | BG80: =IF(WW,Sprache!B125,"") ->  | BH80: =1-Z146 -> 1
B81: Engelberg | D81: -11 | E81: 4496 | F81: 3.1 | G81: -11 | H81: 3852 | I81: 10 | S81: 22 | U81: =0.019-Klimakorr*0.003*(X81/-7) -> 0.019 | W81: =IF(BIN,INDEX(BIN!$B$3:$BO$364,4+(Klima-2)*11,S81),IF($M$32>0,ROUND(U81*Heizperiode*$M$31/$M$32,0),ROUND(U81*Heizperiode,0))) ->  | X81: -4 | Y81: =IF(BINkorr,INDEX(Berechnungen!$E$81:$BR$81,1,S81)*IF(OR(Methode_384_3,Z81=0),1,AV81/Z81)/Leistungskorr*(1-Kollektor),W81*$T$130*(1-Kollektor)) ->  | Z81: =IF(Heizung,IF(Methode_384_3,INDEX(Berechnungen!$E$79:$BR$79,1,S81),Z80-$Z$77/28),0) -> 0 | AB81: 0 | AG81: =IF($AA$77*SUM($W$60:$W80)/Etaw=BedarfWW,0,MAX(MIN($AA$77*W81/Etaw,BedarfWW-$AA$77*SUM($W$60:$W80)/Etaw),0)) ->  | AL81: =AE81+AD81+IF(Laufzeit_Zusatzheizung>=SUM($Y$60:$Y81),Kesselleistung*$H$45*Y81,0) ->  | AN81: =IF(Neu,INDEX(WP_BIN!$T$80:$CG$80,1,S81),AN80+(AN$87-AN$78)/9) -> 0 | AQ81: 0 | AT81: 0 | AU81: 0 | AV81: =INDEX(Berechnungen!$E$79:$BR$79,1,S81) ->  | AW81: -4 | AX81: =INDEX(WP_BIN!$T$78:$CG$78,1,$S81) -> 27.71428571 | AY81: =INDEX(WP_BIN!$T$43:$CG$43,1,$S81) ->  | AZ81: =INDEX(WP_BIN!$T$79:$CG$79,1,$S81) -> 0 | BA81: =INDEX(WP_BIN!$T$86:$CG$86,1,$S81) -> 0 | BB81: =INDEX(WP_BIN!$T$47:$CG$47,1,$S81) ->  | BC81: =INDEX(WP_BIN!$T$54:$CG$54,1,$S81) -> 0 | BG81: =IF(WW,Sprache!B152,"") ->  | BH81: 1
B82: Genève-Cointrin | D82: -4 | E82: 3998 | F82: 5.1 | G82: -4 | H82: 2739 | I82: 11 | S82: 23 | U82: =0.0285-Klimakorr*0.003*(X82/-7) -> 0.0285 | W82: =IF(BIN,INDEX(BIN!$B$3:$BO$364,4+(Klima-2)*11,S82),IF($M$32>0,ROUND(U82*Heizperiode*$M$31/$M$32,0),ROUND(U82*Heizperiode,0))) ->  | X82: -3 | Y82: =IF(BINkorr,INDEX(Berechnungen!$E$81:$BR$81,1,S82)*IF(OR(Methode_384_3,Z82=0),1,AV82/Z82)/Leistungskorr*(1-Kollektor),W82*$T$130*(1-Kollektor)) ->  | Z82: =IF(Heizung,IF(Methode_384_3,INDEX(Berechnungen!$E$79:$BR$79,1,S82),Z81-$Z$77/28),0) -> 0 | AB82: 0 | AG82: =IF($AA$77*SUM($W$60:$W81)/Etaw=BedarfWW,0,MAX(MIN($AA$77*W82/Etaw,BedarfWW-$AA$77*SUM($W$60:$W81)/Etaw),0)) ->  | AL82: =AE82+AD82+IF(Laufzeit_Zusatzheizung>=SUM($Y$60:$Y82),Kesselleistung*$H$45*Y82,0) ->  | AN82: =IF(Neu,INDEX(WP_BIN!$T$80:$CG$80,1,S82),AN81+(AN$87-AN$78)/9) -> 0 | AQ82: 0 | AT82: 0 | AU82: 0 | AV82: =INDEX(Berechnungen!$E$79:$BR$79,1,S82) ->  | AW82: -3 | AX82: =INDEX(WP_BIN!$T$78:$CG$78,1,$S82) -> 27.64285714 | AY82: =INDEX(WP_BIN!$T$43:$CG$43,1,$S82) ->  | AZ82: =INDEX(WP_BIN!$T$79:$CG$79,1,$S82) -> 0 | BA82: =INDEX(WP_BIN!$T$86:$CG$86,1,$S82) -> 0 | BB82: =INDEX(WP_BIN!$T$47:$CG$47,1,$S82) ->  | BC82: =INDEX(WP_BIN!$T$54:$CG$54,1,$S82) -> 0 | BG82: =IF(WW,Sprache!B153,"") ->  | BH82: 1
B83: Glarus | D83: -8 | E83: 4453 | F83: 3.7 | G83: -8 | H83: 3410 | I83: 12 | S83: 24 | U83: =0.0342-Klimakorr*0.003*(X83/-7) -> 0.0342 | W83: =IF(BIN,INDEX(BIN!$B$3:$BO$364,4+(Klima-2)*11,S83),IF($M$32>0,ROUND(U83*Heizperiode*$M$31/$M$32,0),ROUND(U83*Heizperiode,0))) ->  | X83: -2 | Y83: =IF(BINkorr,INDEX(Berechnungen!$E$81:$BR$81,1,S83)*IF(OR(Methode_384_3,Z83=0),1,AV83/Z83)/Leistungskorr*(1-Kollektor),W83*$T$130*(1-Kollektor)) ->  | Z83: =IF(Heizung,IF(Methode_384_3,INDEX(Berechnungen!$E$79:$BR$79,1,S83),Z82-$Z$77/28),0) -> 0 | AB83: 0 | AG83: =IF($AA$77*SUM($W$60:$W82)/Etaw=BedarfWW,0,MAX(MIN($AA$77*W83/Etaw,BedarfWW-$AA$77*SUM($W$60:$W82)/Etaw),0)) ->  | AL83: =AE83+AD83+IF(Laufzeit_Zusatzheizung>=SUM($Y$60:$Y83),Kesselleistung*$H$45*Y83,0) ->  | AN83: =IF(Neu,INDEX(WP_BIN!$T$80:$CG$80,1,S83),AN82+(AN$87-AN$78)/9) -> 0 | AQ83: 0 | AT83: 0 | AU83: 0 | AV83: =INDEX(Berechnungen!$E$79:$BR$79,1,S83) ->  | AW83: -2 | AX83: =INDEX(WP_BIN!$T$78:$CG$78,1,$S83) -> 27.57142857 | AY83: =INDEX(WP_BIN!$T$43:$CG$43,1,$S83) ->  | AZ83: =INDEX(WP_BIN!$T$79:$CG$79,1,$S83) -> 0 | BA83: =INDEX(WP_BIN!$T$86:$CG$86,1,$S83) -> 0 | BB83: =INDEX(WP_BIN!$T$47:$CG$47,1,$S83) ->  | BC83: =INDEX(WP_BIN!$T$54:$CG$54,1,$S83) -> 0 | BG83: =J40 -> 1 | BH83: =INDEX($BH77:$BH82,BG83,1) -> 1
B84: Grosser St. Bernhard | D84: -15 | E84: 3809 | F84: -1.1 | G84: -15 | H84: 7473 | I84: 13 | S84: 25 | U84: =0.0437-Klimakorr*0.003*(X84/-7) -> 0.0437 | W84: =IF(BIN,INDEX(BIN!$B$3:$BO$364,4+(Klima-2)*11,S84),IF($M$32>0,ROUND(U84*Heizperiode*$M$31/$M$32,0),ROUND(U84*Heizperiode,0))) ->  | X84: -1 | Y84: =IF(BINkorr,INDEX(Berechnungen!$E$81:$BR$81,1,S84)*IF(OR(Methode_384_3,Z84=0),1,AV84/Z84)/Leistungskorr*(1-Kollektor),W84*$T$130*(1-Kollektor)) ->  | Z84: =IF(Heizung,IF(Methode_384_3,INDEX(Berechnungen!$E$79:$BR$79,1,S84),Z83-$Z$77/28),0) -> 0 | AB84: 0 | AG84: =IF($AA$77*SUM($W$60:$W83)/Etaw=BedarfWW,0,MAX(MIN($AA$77*W84/Etaw,BedarfWW-$AA$77*SUM($W$60:$W83)/Etaw),0)) ->  | AL84: =AE84+AD84+IF(Laufzeit_Zusatzheizung>=SUM($Y$60:$Y84),Kesselleistung*$H$45*Y84,0) ->  | AN84: =IF(Neu,INDEX(WP_BIN!$T$80:$CG$80,1,S84),AN83+(AN$87-AN$78)/9) -> 0 | AQ84: 0 | AT84: 0 | AU84: 0 | AV84: =INDEX(Berechnungen!$E$79:$BR$79,1,S84) ->  | AW84: -1 | AX84: =INDEX(WP_BIN!$T$78:$CG$78,1,$S84) -> 27.5 | AY84: =INDEX(WP_BIN!$T$43:$CG$43,1,$S84) ->  | AZ84: =INDEX(WP_BIN!$T$79:$CG$79,1,$S84) -> 0 | BA84: =INDEX(WP_BIN!$T$86:$CG$86,1,$S84) -> 0 | BB84: =INDEX(WP_BIN!$T$47:$CG$47,1,$S84) ->  | BC84: =INDEX(WP_BIN!$T$54:$CG$54,1,$S84) -> 0 | BG84: =INDEX(BG77:BG82,BG83,1) -> 0
B85: Güttingen | D85: -7 | E85: 4868 | F85: 4.2 | G85: -7 | H85: 3316 | I85: 14 | S85: 26 | U85: =0.0532-Klimakorr*0.003*(X85/-7) -> 0.0532 | W85: =IF(BIN,INDEX(BIN!$B$3:$BO$364,4+(Klima-2)*11,S85),IF($M$32>0,ROUND(U85*Heizperiode*$M$31/$M$32,0),ROUND(U85*Heizperiode,0))) ->  | X85: 0 | Y85: =IF(BINkorr,INDEX(Berechnungen!$E$81:$BR$81,1,S85)*IF(OR(Methode_384_3,Z85=0),1,AV85/Z85)/Leistungskorr*(1-Kollektor),W85*$T$130*(1-Kollektor)) ->  | Z85: =IF(Heizung,IF(Methode_384_3,INDEX(Berechnungen!$E$79:$BR$79,1,S85),Z84-$Z$77/28),0) -> 0 | AB85: 0 | AG85: =IF($AA$77*SUM($W$60:$W84)/Etaw=BedarfWW,0,MAX(MIN($AA$77*W85/Etaw,BedarfWW-$AA$77*SUM($W$60:$W84)/Etaw),0)) ->  | AL85: =AE85+AD85+IF(Laufzeit_Zusatzheizung>=SUM($Y$60:$Y85),Kesselleistung*$H$45*Y85,0) ->  | AN85: =IF(Neu,INDEX(WP_BIN!$T$80:$CG$80,1,S85),AN84+(AN$87-AN$78)/9) -> 0 | AQ85: 0 | AT85: 0 | AU85: 0 | AV85: =INDEX(Berechnungen!$E$79:$BR$79,1,S85) ->  | AW85: 0 | AX85: =INDEX(WP_BIN!$T$78:$CG$78,1,$S85) -> 27.42857143 | AY85: =INDEX(WP_BIN!$T$43:$CG$43,1,$S85) ->  | AZ85: =INDEX(WP_BIN!$T$79:$CG$79,1,$S85) -> 0 | BA85: =INDEX(WP_BIN!$T$86:$CG$86,1,$S85) -> 0 | BB85: =INDEX(WP_BIN!$T$47:$CG$47,1,$S85) ->  | BC85: =INDEX(WP_BIN!$T$54:$CG$54,1,$S85) -> 0 | BG85: =IF(BG83>2,TRUE,FALSE) -> FALSE
B86: La Chaux-de-Fonds | D86: -10 | E86: 3981 | F86: 4.1 | G86: -10 | H86: 3786 | I86: 15 | S86: 27 | U86: =0.0627-Klimakorr*0.003*(X86/-7) -> 0.0627 | W86: =IF(BIN,INDEX(BIN!$B$3:$BO$364,4+(Klima-2)*11,S86),IF($M$32>0,ROUND(U86*Heizperiode*$M$31/$M$32,0),ROUND(U86*Heizperiode,0))) ->  | X86: 1 | Y86: =IF(BINkorr,INDEX(Berechnungen!$E$81:$BR$81,1,S86)*IF(OR(Methode_384_3,Z86=0),1,AV86/Z86)/Leistungskorr*(1-Kollektor),W86*$T$130*(1-Kollektor)) ->  | Z86: =IF(Heizung,IF(Methode_384_3,INDEX(Berechnungen!$E$79:$BR$79,1,S86),Z85-$Z$77/28),0) -> 0 | AB86: 0 | AG86: =IF($AA$77*SUM($W$60:$W85)/Etaw=BedarfWW,0,MAX(MIN($AA$77*W86/Etaw,BedarfWW-$AA$77*SUM($W$60:$W85)/Etaw),0)) ->  | AL86: =AE86+AD86+IF(Laufzeit_Zusatzheizung>=SUM($Y$60:$Y86),Kesselleistung*$H$45*Y86,0) ->  | AN86: =IF(Neu,INDEX(WP_BIN!$T$80:$CG$80,1,S86),AN85+(AN$87-AN$78)/9) -> 0 | AQ86: 0 | AT86: 0 | AU86: 0 | AV86: =INDEX(Berechnungen!$E$79:$BR$79,1,S86) ->  | AW86: 1 | AX86: =INDEX(WP_BIN!$T$78:$CG$78,1,$S86) -> 27.35714286 | AY86: =INDEX(WP_BIN!$T$43:$CG$43,1,$S86) ->  | AZ86: =INDEX(WP_BIN!$T$79:$CG$79,1,$S86) -> 0 | BA86: =INDEX(WP_BIN!$T$86:$CG$86,1,$S86) -> 0 | BB86: =INDEX(WP_BIN!$T$47:$CG$47,1,$S86) ->  | BC86: =INDEX(WP_BIN!$T$54:$CG$54,1,$S86) -> 0
B87: Locarno-Monti | D87: -1 | E87: 4101 | F87: 5.5 | G87: -1 | H87: 2147 | I87: 16 | S87: 28 | U87: =0.0665-Klimakorr*0.003*(X87/-7) -> 0.0665 | W87: =IF(BIN,INDEX(BIN!$B$3:$BO$364,4+(Klima-2)*11,S87),IF($M$32>0,ROUND(U87*Heizperiode*$M$31/$M$32,0),ROUND(U87*Heizperiode,0))) ->  | X87: 2 | Y87: =IF(BINkorr,INDEX(Berechnungen!$E$81:$BR$81,1,S87)*IF(OR(Methode_384_3,Z87=0),1,AV87/Z87)/Leistungskorr*(1-Kollektor),W87*$T$130*(1-Kollektor)) ->  | Z87: =IF(Heizung,IF(Methode_384_3,INDEX(Berechnungen!$E$79:$BR$79,1,S87),Z86-$Z$77/28),0) -> 0 | AB87: 0 | AG87: =IF($AA$77*SUM($W$60:$W86)/Etaw=BedarfWW,0,MAX(MIN($AA$77*W87/Etaw,BedarfWW-$AA$77*SUM($W$60:$W86)/Etaw),0)) ->  | AL87: =AE87+AD87+IF(Laufzeit_Zusatzheizung>=SUM($Y$60:$Y87),Kesselleistung*$H$45*Y87,0) ->  | AN87: =IF(Neu,INDEX(WP_BIN!$T$80:$CG$80,1,S87),IF(WPArt=2,IF(V21>0,V21,0),IF(OR(WPArt=3,WPArt=5),IF(W52>0,IF(H33<>0,M41,I32),0),IF(WPArt=4,IF(I27>0,I27,0),)))*(Etah*wh+Etaw*www)*(24-IF(Sperrzeit<>"",Sperrzeit,0))/24) -> 0 | AQ87: =AN18*(24-IF(Sperrzeit<>"",Sperrzeit,0))/24*(Etah*wh+Etaw*www) -> 0 | AT87: 0 | AU87: 0 | AV87: =INDEX(Berechnungen!$E$79:$BR$79,1,S87) ->  | AW87: 2 | AX87: =INDEX(WP_BIN!$T$78:$CG$78,1,$S87) -> 27.28571429 | AY87: =INDEX(WP_BIN!$T$43:$CG$43,1,$S87) ->  | AZ87: =INDEX(WP_BIN!$T$79:$CG$79,1,$S87) -> 0 | BA87: =INDEX(WP_BIN!$T$86:$CG$86,1,$S87) -> 0 | BB87: =INDEX(WP_BIN!$T$47:$CG$47,1,$S87) ->  | BC87: =INDEX(WP_BIN!$T$54:$CG$54,1,$S87) -> 0
B88: Lugano | D88: -1 | E88: 2644 | F88: 5.8 | G88: -1 | H88: 2144 | I88: 17 | S88: 29 | U88: =0.0745-Klimakorr*0.003*(X88/-7) -> 0.0745 | W88: =IF(BIN,INDEX(BIN!$B$3:$BO$364,4+(Klima-2)*11,S88),IF($M$32>0,ROUND(U88*Heizperiode*$M$31/$M$32,0),ROUND(U88*Heizperiode,0))) ->  | X88: 3 | Y88: =IF(BINkorr,INDEX(Berechnungen!$E$81:$BR$81,1,S88)*IF(OR(Methode_384_3,Z88=0),1,AV88/Z88)/Leistungskorr*(1-Kollektor),W88*$T$130*(1-Kollektor)) ->  | Z88: =IF(Heizung,IF(Methode_384_3,INDEX(Berechnungen!$E$79:$BR$79,1,S88),Z87-$Z$77/28),0) -> 0 | AB88: 0 | AG88: =IF($AA$77*SUM($W$60:$W87)/Etaw=BedarfWW,0,MAX(MIN($AA$77*W88/Etaw,BedarfWW-$AA$77*SUM($W$60:$W87)/Etaw),0)) ->  | AL88: =AE88+AD88+IF(Laufzeit_Zusatzheizung>=SUM($Y$60:$Y88),Kesselleistung*$H$45*Y88,0) ->  | AN88: =IF(Neu,INDEX(WP_BIN!$T$80:$CG$80,1,S88),AN87+(AN$92-AN$87)/5) -> 0 | AQ88: =AQ87+(AQ$92-AQ$87)/5 -> 0 | AT88: 0 | AU88: 0 | AV88: =INDEX(Berechnungen!$E$79:$BR$79,1,S88) ->  | AW88: 3 | AX88: =INDEX(WP_BIN!$T$78:$CG$78,1,$S88) -> 27.21428571 | AY88: =INDEX(WP_BIN!$T$43:$CG$43,1,$S88) ->  | AZ88: =INDEX(WP_BIN!$T$79:$CG$79,1,$S88) -> 0 | BA88: =INDEX(WP_BIN!$T$86:$CG$86,1,$S88) -> 0 | BB88: =INDEX(WP_BIN!$T$47:$CG$47,1,$S88) ->  | BC88: =INDEX(WP_BIN!$T$54:$CG$54,1,$S88) -> 0
B89: Luzern | D89: -6 | E89: 4158 | F89: 4.3 | G89: -6 | H89: 2917 | I89: 18 | S89: 30 | U89: =0.0778-Klimakorr*0.003*(X89/-7) -> 0.0778 | W89: =IF(BIN,INDEX(BIN!$B$3:$BO$364,4+(Klima-2)*11,S89),IF($M$32>0,ROUND(U89*Heizperiode*$M$31/$M$32,0),ROUND(U89*Heizperiode,0))) ->  | X89: 4 | Y89: =IF(BINkorr,INDEX(Berechnungen!$E$81:$BR$81,1,S89)*IF(OR(Methode_384_3,Z89=0),1,AV89/Z89)/Leistungskorr*(1-Kollektor),W89*$T$130*(1-Kollektor)) ->  | Z89: =IF(Heizung,IF(Methode_384_3,INDEX(Berechnungen!$E$79:$BR$79,1,S89),Z88-$Z$77/28),0) -> 0 | AB89: 0 | AG89: =IF($AA$77*SUM($W$60:$W88)/Etaw=BedarfWW,0,MAX(MIN($AA$77*W89/Etaw,BedarfWW-$AA$77*SUM($W$60:$W88)/Etaw),0)) ->  | AL89: =AE89+AD89+IF(Laufzeit_Zusatzheizung>=SUM($Y$60:$Y89),Kesselleistung*$H$45*Y89,0) ->  | AN89: =IF(Neu,INDEX(WP_BIN!$T$80:$CG$80,1,S89),AN88+(AN$92-AN$87)/5) -> 0 | AQ89: =AQ88+(AQ$92-AQ$87)/5 -> 0 | AT89: 0 | AU89: 0 | AV89: =INDEX(Berechnungen!$E$79:$BR$79,1,S89) ->  | AW89: 4 | AX89: =INDEX(WP_BIN!$T$78:$CG$78,1,$S89) -> 27.14285714 | AY89: =INDEX(WP_BIN!$T$43:$CG$43,1,$S89) ->  | AZ89: =INDEX(WP_BIN!$T$79:$CG$79,1,$S89) -> 0 | BA89: =INDEX(WP_BIN!$T$86:$CG$86,1,$S89) -> 0 | BB89: =INDEX(WP_BIN!$T$47:$CG$47,1,$S89) ->  | BC89: =INDEX(WP_BIN!$T$54:$CG$54,1,$S89) -> 0
B90: Magadino | D90: -3 | E90: 4513 | F90: 5.8 | G90: -3 | H90: 2377 | I90: 19 | S90: 31 | U90: =0.0709-Klimakorr*0.003*(X90/-7) -> 0.0709 | W90: =IF(BIN,INDEX(BIN!$B$3:$BO$364,4+(Klima-2)*11,S90),IF($M$32>0,ROUND(U90*Heizperiode*$M$31/$M$32,0),ROUND(U90*Heizperiode,0))) ->  | X90: 5 | Y90: =IF(BINkorr,INDEX(Berechnungen!$E$81:$BR$81,1,S90)*IF(OR(Methode_384_3,Z90=0),1,AV90/Z90)/Leistungskorr*(1-Kollektor),W90*$T$130*(1-Kollektor)) ->  | Z90: =IF(Heizung,IF(Methode_384_3,INDEX(Berechnungen!$E$79:$BR$79,1,S90),Z89-$Z$77/28),0) -> 0 | AB90: 0 | AG90: =IF($AA$77*SUM($W$60:$W89)/Etaw=BedarfWW,0,MAX(MIN($AA$77*W90/Etaw,BedarfWW-$AA$77*SUM($W$60:$W89)/Etaw),0)) ->  | AL90: =AE90+AD90+IF(Laufzeit_Zusatzheizung>=SUM($Y$60:$Y90),Kesselleistung*$H$45*Y90,0) ->  | AN90: =IF(Neu,INDEX(WP_BIN!$T$80:$CG$80,1,S90),AN89+(AN$92-AN$87)/5) -> 0 | AQ90: =AQ89+(AQ$92-AQ$87)/5 -> 0 | AT90: 0 | AU90: 0 | AV90: =INDEX(Berechnungen!$E$79:$BR$79,1,S90) ->  | AW90: 5 | AX90: =INDEX(WP_BIN!$T$78:$CG$78,1,$S90) -> 27.07142857 | AY90: =INDEX(WP_BIN!$T$43:$CG$43,1,$S90) ->  | AZ90: =INDEX(WP_BIN!$T$79:$CG$79,1,$S90) -> 0 | BA90: =INDEX(WP_BIN!$T$86:$CG$86,1,$S90) -> 0 | BB90: =INDEX(WP_BIN!$T$47:$CG$47,1,$S90) ->  | BC90: =INDEX(WP_BIN!$T$54:$CG$54,1,$S90) -> 0
B91: Montana | D91: -10 | E91: 4429 | F91: 3.4 | G91: -10 | H91: 4274 | I91: 20 | S91: 32 | U91: =0.0741-Klimakorr*0.003*(X91/-7) -> 0.0741 | W91: =IF(BIN,INDEX(BIN!$B$3:$BO$364,4+(Klima-2)*11,S91),IF($M$32>0,ROUND(U91*Heizperiode*$M$31/$M$32,0),ROUND(U91*Heizperiode,0))) ->  | X91: 6 | Y91: =IF(BINkorr,INDEX(Berechnungen!$E$81:$BR$81,1,S91)*IF(OR(Methode_384_3,Z91=0),1,AV91/Z91)/Leistungskorr*(1-Kollektor),W91*$T$130*(1-Kollektor)) ->  | Z91: =IF(Heizung,IF(Methode_384_3,INDEX(Berechnungen!$E$79:$BR$79,1,S91),Z90-$Z$77/28),0) -> 0 | AB91: 0 | AG91: =IF($AA$77*SUM($W$60:$W90)/Etaw=BedarfWW,0,MAX(MIN($AA$77*W91/Etaw,BedarfWW-$AA$77*SUM($W$60:$W90)/Etaw),0)) ->  | AL91: =AE91+AD91+IF(Laufzeit_Zusatzheizung>=SUM($Y$60:$Y91),Kesselleistung*$H$45*Y91,0) ->  | AN91: =IF(Neu,INDEX(WP_BIN!$T$80:$CG$80,1,S91),AN90+(AN$92-AN$87)/5) -> 0 | AQ91: =AQ90+(AQ$92-AQ$87)/5 -> 0 | AT91: 0 | AU91: 0 | AV91: =INDEX(Berechnungen!$E$79:$BR$79,1,S91) ->  | AW91: 6 | AX91: =INDEX(WP_BIN!$T$78:$CG$78,1,$S91) -> 27 | AY91: =INDEX(WP_BIN!$T$43:$CG$43,1,$S91) ->  | AZ91: =INDEX(WP_BIN!$T$79:$CG$79,1,$S91) -> 0 | BA91: =INDEX(WP_BIN!$T$86:$CG$86,1,$S91) -> 0 | BB91: =INDEX(WP_BIN!$T$47:$CG$47,1,$S91) ->  | BC91: =INDEX(WP_BIN!$T$54:$CG$54,1,$S91) -> 0
B92: Neuchâtel | D92: -5 | E92: 3767 | F92: 4.5 | G92: -5 | H92: 2799 | I92: 21 | S92: 33 | U92: =0.0688-Klimakorr*0.003*(X92/-7) -> 0.0688 | W92: =IF(BIN,INDEX(BIN!$B$3:$BO$364,4+(Klima-2)*11,S92),IF($M$32>0,ROUND(U92*Heizperiode*$M$31/$M$32,0),ROUND(U92*Heizperiode,0))) ->  | X92: 7 | Y92: =IF(BINkorr,INDEX(Berechnungen!$E$81:$BR$81,1,S92)*IF(OR(Methode_384_3,Z92=0),1,AV92/Z92)/Leistungskorr*(1-Kollektor),W92*$T$130*(1-Kollektor)) ->  | Z92: =IF(Heizung,IF(Methode_384_3,INDEX(Berechnungen!$E$79:$BR$79,1,S92),Z91-$Z$77/28),0) -> 0 | AB92: 0 | AG92: =IF($AA$77*SUM($W$60:$W91)/Etaw=BedarfWW,0,MAX(MIN($AA$77*W92/Etaw,BedarfWW-$AA$77*SUM($W$60:$W91)/Etaw),0)) ->  | AL92: =AE92+AD92+IF(Laufzeit_Zusatzheizung>=SUM($Y$60:$Y125),Kesselleistung*$H$45*Y92,0) ->  | AN92: =IF(Neu,INDEX(WP_BIN!$T$80:$CG$80,1,S92),IF(WPArt=2,IF(V22>0,V22,1),IF(OR(WPArt=3,WPArt=5),IF(W52>0,IF(H33<>0,M41,I32),1),IF(WPArt=4,IF(I27>0,I27,1),)))*(Etah*wh+Etaw*www)*(24-IF(Sperrzeit<>"",Sperrzeit,0))/24) -> 0 | AQ92: =AN19*(24-IF(Sperrzeit<>"",Sperrzeit,0))/24*(Etah*wh+Etaw*www) -> 0 | AT92: 0 | AU92: 0 | AV92: =INDEX(Berechnungen!$E$79:$BR$79,1,S92) ->  | AW92: 7 | AX92: =INDEX(WP_BIN!$T$78:$CG$78,1,$S92) -> 26.92857143 | AY92: =INDEX(WP_BIN!$T$43:$CG$43,1,$S92) ->  | AZ92: =INDEX(WP_BIN!$T$79:$CG$79,1,$S92) -> 0 | BA92: =INDEX(WP_BIN!$T$86:$CG$86,1,$S92) -> 0 | BB92: =INDEX(WP_BIN!$T$47:$CG$47,1,$S92) ->  | BC92: =INDEX(WP_BIN!$T$54:$CG$54,1,$S92) -> 0
B93: Payerne | D93: -7 | E93: 4321 | F93: 4.1 | G93: -7 | H93: 2968 | I93: 22 | S93: 34 | T93: 0 | V93: 0 | W93: =IF(BIN,INDEX(BIN!$B$3:$BO$364,4+(Klima-2)*11,S93),0) -> 0 | X93: 8 | Y93: =IF(BINkorr,INDEX(Berechnungen!$E$81:$BR$81,1,S93)*IF(OR(Methode_384_3,Z93=0),1,AV93/Z93)/Leistungskorr*(1-Kollektor),W93*$T$130*(1-Kollektor)) ->  | Z93: =IF(Heizung,IF(Methode_384_3,INDEX(Berechnungen!$E$79:$BR$79,1,S93),IF(IF(Heizung,Z92-$Z$77/28,0)>0,IF(Heizung,Z92-$Z$77/28,0),0)),0) -> 0 | AB93: =IF(Bivalenzpunkt<X93,AN93,0) -> 0 | AG93: =IF($AA$77*SUM($W$60:$W92)/Etaw=BedarfWW,0,MAX(MIN($AA$77*W93/Etaw,BedarfWW-$AA$77*SUM($W$60:$W92)/Etaw),0)) ->  | AI93: 0 | AJ93: 0 | AL93: =AE93+AD93+IF(Laufzeit_Zusatzheizung>=SUM($Y$60:$Y126),Kesselleistung*$H$45*Y93,0) ->  | AN93: =IF(Neu,INDEX(WP_BIN!$T$80:$CG$80,1,S93),AZ93) -> 0 | AQ93: =AQ92+(AQ$92-AQ$87)/5 -> 0 | AS93: 0 | AT93: 0 | AU93: 0 | AV93: =INDEX(Berechnungen!$E$79:$BR$79,1,S93) ->  | AW93: 8 | AX93: =INDEX(WP_BIN!$T$78:$CG$78,1,$S93) -> 26.85714286 | AY93: =INDEX(WP_BIN!$T$43:$CG$43,1,$S93) ->  | AZ93: =INDEX(WP_BIN!$T$79:$CG$79,1,$S93) -> 0 | BA93: =INDEX(WP_BIN!$T$86:$CG$86,1,$S93) -> 0 | BB93: =INDEX(WP_BIN!$T$47:$CG$47,1,$S93) ->  | BC93: =INDEX(WP_BIN!$T$54:$CG$54,1,$S93) -> 0
B94: Robbia | D94: -8 | E94: 5040 | F94: 3.7 | G94: -8 | H94: 3740 | I94: 23 | S94: 35 | T94: 0 | V94: 0 | W94: =IF(BIN,INDEX(BIN!$B$3:$BO$364,4+(Klima-2)*11,S94),0) -> 0 | X94: 9 | Y94: =IF(BINkorr,INDEX(Berechnungen!$E$81:$BR$81,1,S94)*IF(OR(Methode_384_3,Z94=0),1,AV94/Z94)/Leistungskorr*(1-Kollektor),W94*$T$130*(1-Kollektor)) ->  | Z94: =IF(Heizung,IF(Methode_384_3,INDEX(Berechnungen!$E$79:$BR$79,1,S94),IF(IF(Heizung,Z93-$Z$77/28,0)>0,IF(Heizung,Z93-$Z$77/28,0),0)),0) -> 0 | AA94: =IF(AG94>0,$AA$77,0) ->  | AB94: 0 | AC94: =MAX(Z94+AA94-AB94,0)/Nutzungsgrad ->  | AG94: =IF($AA$77*SUM($W$60:$W93)/Etaw=BedarfWW,0,MAX(MIN($AA$77*W94/Etaw,BedarfWW-$AA$77*SUM($W$60:$W93)/Etaw),0)) ->  | AH94: =MAX(AF94+AG94-AD94*Nutzungsgrad-AE94*Nutzungsgrad,0) ->  | AI94: =MIN(IF(AB94>0,AH94/AB94,0),W94) -> 0 | AJ94: =Z94*W94 -> 0 | AK94: =MAX(AF94-AD94*Nutzungsgrad,0) ->  | AL94: =AE94+AD94+IF(Laufzeit_Zusatzheizung>=SUM($Y$60:$Y127),Kesselleistung*$H$45*Y94,0) ->  | AN94: =IF(Neu,INDEX(WP_BIN!$T$80:$CG$80,1,S94),AZ94) -> 0 | AO94: =IF(AE94>AM94,AE94-AM94,0) ->  | AP94: =AL94-AM94-AO94 ->  | AQ94: =AQ93+(AQ$92-AQ$87)/5 -> 0 | AR94: =W94*$T$130 ->  | AS94: 0 | AT94: 0 | AU94: 0 | AV94: =INDEX(Berechnungen!$E$79:$BR$79,1,S94) ->  | AW94: 9 | AX94: =INDEX(WP_BIN!$T$78:$CG$78,1,$S94) -> 26.78571429 | AY94: =INDEX(WP_BIN!$T$43:$CG$43,1,$S94) ->  | AZ94: =INDEX(WP_BIN!$T$79:$CG$79,1,$S94) -> 0 | BA94: =INDEX(WP_BIN!$T$86:$CG$86,1,$S94) -> 0 | BB94: =INDEX(WP_BIN!$T$47:$CG$47,1,$S94) ->  | BC94: =INDEX(WP_BIN!$T$54:$CG$54,1,$S94) -> 0
B95: Samedan | D95: -18 | E95: 4018 | F95: 1.2 | G95: -18 | H95: 6121 | I95: 24 | S95: 36 | T95: 0 | V95: 0 | W95: =IF(BIN,INDEX(BIN!$B$3:$BO$364,4+(Klima-2)*11,S95),0) -> 0 | X95: 10 | Y95: =IF(BINkorr,INDEX(Berechnungen!$E$81:$BR$81,1,S95)*IF(OR(Methode_384_3,Z95=0),1,AV95/Z95)/Leistungskorr*(1-Kollektor),W95*$T$130*(1-Kollektor)) ->  | Z95: =IF(Heizung,IF(Methode_384_3,INDEX(Berechnungen!$E$79:$BR$79,1,S95),IF(IF(Heizung,Z94-$Z$77/28,0)>0,IF(Heizung,Z94-$Z$77/28,0),0)),0) -> 0 | AB95: 0 | AG95: =IF($AA$77*SUM($W$60:$W94)/Etaw=BedarfWW,0,MAX(MIN($AA$77*W95/Etaw,BedarfWW-$AA$77*SUM($W$60:$W94)/Etaw),0)) ->  | AH95: =MAX(AF95+AG95-AD95*Nutzungsgrad-AE95*Nutzungsgrad,0) ->  | AI95: =MIN(IF(AB95>0,AH95/AB95,0),W95) -> 0 | AJ95: 0 | AL95: =AE95+AD95+IF(Laufzeit_Zusatzheizung>=SUM($Y$60:$Y128),Kesselleistung*$H$45*Y95,0) ->  | AN95: =IF(Neu,INDEX(WP_BIN!$T$80:$CG$80,1,S95),AZ95) -> 0 | AQ95: 0 | AS95: 0 | AT95: 0 | AU95: 0 | AV95: =INDEX(Berechnungen!$E$79:$BR$79,1,S95) ->  | AW95: 10 | AX95: =INDEX(WP_BIN!$T$78:$CG$78,1,$S95) -> 26.71428571 | AY95: =INDEX(WP_BIN!$T$43:$CG$43,1,$S95) ->  | AZ95: =INDEX(WP_BIN!$T$79:$CG$79,1,$S95) -> 0 | BA95: =INDEX(WP_BIN!$T$86:$CG$86,1,$S95) -> 0 | BB95: =INDEX(WP_BIN!$T$47:$CG$47,1,$S95) ->  | BC95: =INDEX(WP_BIN!$T$54:$CG$54,1,$S95) -> 0
B96: San Bernardino | D96: -11 | E96: 4223 | F96: 3.3 | G96: -11 | H96: 5132 | I96: 25 | S96: 37 | T96: =W96*Z96 -> 0 | V96: =Z96*W96 -> 0 | W96: =IF(BIN,INDEX(BIN!$B$3:$BO$364,4+(Klima-2)*11,S96),0) -> 0 | X96: 11 | Y96: =IF(BINkorr,INDEX(Berechnungen!$E$81:$BR$81,1,S96)*IF(OR(Methode_384_3,Z96=0),1,AV96/Z96)/Leistungskorr*(1-Kollektor),W96*$T$130*(1-Kollektor)) ->  | Z96: =IF(Heizung,IF(Methode_384_3,INDEX(Berechnungen!$E$79:$BR$79,1,S96),IF(IF(Heizung,Z95-$Z$77/28,0)>0,IF(Heizung,Z95-$Z$77/28,0),0)),0) -> 0 | AB96: 0 | AG96: =IF($AA$77*SUM($W$60:$W95)/Etaw=BedarfWW,0,MAX(MIN($AA$77*W96/Etaw,BedarfWW-$AA$77*SUM($W$60:$W95)/Etaw),0)) ->  | AI96: 0 | AJ96: 0 | AL96: =AE96+AD96+IF(Laufzeit_Zusatzheizung>=SUM($Y$60:$Y129),Kesselleistung*$H$45*Y96,0) ->  | AN96: =IF(Neu,INDEX(WP_BIN!$T$80:$CG$80,1,S96),AZ96) -> 0 | AQ96: 0 | AS96: 0 | AT96: 0 | AU96: 0 | AV96: =INDEX(Berechnungen!$E$79:$BR$79,1,S96) ->  | AW96: 11 | AX96: =INDEX(WP_BIN!$T$78:$CG$78,1,$S96) -> 26.64285714 | AY96: =INDEX(WP_BIN!$T$43:$CG$43,1,$S96) ->  | AZ96: =INDEX(WP_BIN!$T$79:$CG$79,1,$S96) -> 0 | BA96: =INDEX(WP_BIN!$T$86:$CG$86,1,$S96) -> 0 | BB96: =INDEX(WP_BIN!$T$47:$CG$47,1,$S96) ->  | BC96: =INDEX(WP_BIN!$T$54:$CG$54,1,$S96) -> 0
B97: St. Gallen | D97: -9 | E97: 4017 | F97: 3.9 | G97: -9 | H97: 3483 | I97: 26 | S97: 38 | T97: 0 | V97: 0 | W97: =IF(BIN,INDEX(BIN!$B$3:$BO$364,4+(Klima-2)*11,S97),0) -> 0 | X97: 12 | Y97: =IF(BINkorr,INDEX(Berechnungen!$E$81:$BR$81,1,S97)*IF(OR(Methode_384_3,Z97=0),1,AV97/Z97)/Leistungskorr*(1-Kollektor),W97*$T$130*(1-Kollektor)) ->  | Z97: =IF(Heizung,IF(Methode_384_3,INDEX(Berechnungen!$E$79:$BR$79,1,S97),IF(IF(Heizung,Z96-$Z$77/28,0)>0,IF(Heizung,Z96-$Z$77/28,0),0)),0) -> 0 | AB97: 0 | AG97: =IF($AA$77*SUM($W$60:$W96)/Etaw=BedarfWW,0,MAX(MIN($AA$77*W97/Etaw,BedarfWW-$AA$77*SUM($W$60:$W96)/Etaw),0)) ->  | AI97: 0 | AJ97: 0 | AL97: =AE97+AD97+IF(Laufzeit_Zusatzheizung>=SUM($Y$60:$Y130),Kesselleistung*$H$45*Y97,0) ->  | AN97: =IF(Neu,INDEX(WP_BIN!$T$80:$CG$80,1,S97),AZ97) -> 0 | AQ97: 0 | AS97: 0 | AT97: 0 | AU97: 0 | AV97: =INDEX(Berechnungen!$E$79:$BR$79,1,S97) ->  | AW97: 12 | AX97: =INDEX(WP_BIN!$T$78:$CG$78,1,$S97) -> 26.57142857 | AY97: =INDEX(WP_BIN!$T$43:$CG$43,1,$S97) ->  | AZ97: =INDEX(WP_BIN!$T$79:$CG$79,1,$S97) -> 0 | BA97: =INDEX(WP_BIN!$T$86:$CG$86,1,$S97) -> 0 | BB97: =INDEX(WP_BIN!$T$47:$CG$47,1,$S97) ->  | BC97: =INDEX(WP_BIN!$T$54:$CG$54,1,$S97) -> 0
B98: Schaffhausen | D98: -8 | E98: 4468 | F98: 4 | G98: -8 | H98: 3310 | I98: 27 | S98: 39 | T98: 0 | V98: 0 | W98: =IF(BIN,INDEX(BIN!$B$3:$BO$364,4+(Klima-2)*11,S98),0) -> 0 | X98: 13 | Y98: =IF(BINkorr,INDEX(Berechnungen!$E$81:$BR$81,1,S98)*IF(OR(Methode_384_3,Z98=0),1,AV98/Z98)/Leistungskorr*(1-Kollektor),W98*$T$130*(1-Kollektor)) ->  | Z98: =IF(Heizung,IF(Methode_384_3,INDEX(Berechnungen!$E$79:$BR$79,1,S98),IF(IF(Heizung,Z97-$Z$77/28,0)>0,IF(Heizung,Z97-$Z$77/28,0),0)),0) -> 0 | AB98: 0 | AG98: =IF($AA$77*SUM($W$60:$W97)/Etaw=BedarfWW,0,MAX(MIN($AA$77*W98/Etaw,BedarfWW-$AA$77*SUM($W$60:$W97)/Etaw),0)) ->  | AI98: 0 | AJ98: 0 | AL98: =AE98+AD98+IF(Laufzeit_Zusatzheizung>=SUM($Y$60:$Y131),Kesselleistung*$H$45*Y98,0) ->  | AN98: =IF(Neu,INDEX(WP_BIN!$T$80:$CG$80,1,S98),AZ98) -> 0 | AQ98: 0 | AS98: 0 | AT98: 0 | AU98: 0 | AV98: =INDEX(Berechnungen!$E$79:$BR$79,1,S98) ->  | AW98: 13 | AX98: =INDEX(WP_BIN!$T$78:$CG$78,1,$S98) -> 26.5 | AY98: =INDEX(WP_BIN!$T$43:$CG$43,1,$S98) ->  | AZ98: =INDEX(WP_BIN!$T$79:$CG$79,1,$S98) -> 0 | BA98: =INDEX(WP_BIN!$T$86:$CG$86,1,$S98) -> 0 | BB98: =INDEX(WP_BIN!$T$47:$CG$47,1,$S98) ->  | BC98: =INDEX(WP_BIN!$T$54:$CG$54,1,$S98) -> 0
B99: Scuol | D99: -12 | E99: 4317 | F99: 2 | G99: -12 | H99: 4158 | I99: 28 | S99: 40 | T99: 0 | V99: 0 | W99: =IF(BIN,INDEX(BIN!$B$3:$BO$364,4+(Klima-2)*11,S99),0) -> 0 | X99: 14 | Y99: =IF(BINkorr,INDEX(Berechnungen!$E$81:$BR$81,1,S99)*IF(OR(Methode_384_3,Z99=0),1,AV99/Z99)/Leistungskorr*(1-Kollektor),W99*$T$130*(1-Kollektor)) ->  | Z99: =IF(Heizung,IF(Methode_384_3,INDEX(Berechnungen!$E$79:$BR$79,1,S99),IF(IF(Heizung,Z98-$Z$77/28,0)>0,IF(Heizung,Z98-$Z$77/28,0),0)),0) -> 0 | AB99: 0 | AG99: =IF($AA$77*SUM($W$60:$W98)/Etaw=BedarfWW,0,MAX(MIN($AA$77*W99/Etaw,BedarfWW-$AA$77*SUM($W$60:$W98)/Etaw),0)) ->  | AI99: 0 | AJ99: 0 | AL99: =AE99+AD99+IF(Laufzeit_Zusatzheizung>=SUM($Y$60:$Y132),Kesselleistung*$H$45*Y99,0) ->  | AN99: =IF(Neu,INDEX(WP_BIN!$T$80:$CG$80,1,S99),AZ99) -> 0 | AQ99: 0 | AS99: 0 | AT99: 0 | AU99: 0 | AV99: =INDEX(Berechnungen!$E$79:$BR$79,1,S99) ->  | AW99: 14 | AX99: =INDEX(WP_BIN!$T$78:$CG$78,1,$S99) -> 26.42857143 | AY99: =INDEX(WP_BIN!$T$43:$CG$43,1,$S99) ->  | AZ99: =INDEX(WP_BIN!$T$79:$CG$79,1,$S99) -> 0 | BA99: =INDEX(WP_BIN!$T$86:$CG$86,1,$S99) -> 0 | BB99: =INDEX(WP_BIN!$T$47:$CG$47,1,$S99) ->  | BC99: =INDEX(WP_BIN!$T$54:$CG$54,1,$S99) -> 0
B100: Sion | D100: -6 | E100: 4038 | F100: 4.3 | G100: -6 | H100: 2606 | I100: 29 | S100: 41 | T100: 0 | V100: 0 | W100: =IF(BIN,INDEX(BIN!$B$3:$BO$364,4+(Klima-2)*11,S100),0) -> 0 | X100: 15 | Y100: =IF(BINkorr,INDEX(Berechnungen!$E$81:$BR$81,1,S100)*IF(OR(Methode_384_3,Z100=0),1,AV100/Z100)/Leistungskorr*(1-Kollektor),W100*$T$130*(1-Kollektor)) ->  | Z100: =IF(Heizung,IF(Methode_384_3,INDEX(Berechnungen!$E$79:$BR$79,1,S100),IF(IF(Heizung,Z99-$Z$77/28,0)>0,IF(Heizung,Z99-$Z$77/28,0),0)),0) -> 0 | AB100: 0 | AG100: =IF($AA$77*SUM($W$60:$W99)/Etaw=BedarfWW,0,MAX(MIN($AA$77*W100/Etaw,BedarfWW-$AA$77*SUM($W$60:$W99)/Etaw),0)) ->  | AI100: 0 | AJ100: 0 | AL100: =AE100+AD100+IF(Laufzeit_Zusatzheizung>=SUM($Y$60:$Y133),Kesselleistung*$H$45*Y100,0) ->  | AN100: =IF(Neu,INDEX(WP_BIN!$T$80:$CG$80,1,S100),AZ100) -> 0 | AQ100: 0 | AS100: 0 | AT100: 0 | AU100: 0 | AV100: =INDEX(Berechnungen!$E$79:$BR$79,1,S100) ->  | AW100: 15 | AX100: =INDEX(WP_BIN!$T$78:$CG$78,1,$S100) -> 26.35714286 | AY100: =INDEX(WP_BIN!$T$43:$CG$43,1,$S100) ->  | AZ100: =INDEX(WP_BIN!$T$79:$CG$79,1,$S100) -> 0 | BA100: =INDEX(WP_BIN!$T$86:$CG$86,1,$S100) -> 0 | BB100: =INDEX(WP_BIN!$T$47:$CG$47,1,$S100) ->  | BC100: =INDEX(WP_BIN!$T$54:$CG$54,1,$S100) -> 0
B101: Vaduz | D101: -8 | E101: 4988 | F101: 4.1 | G101: -8 | H101: 2851 | I101: 30 | S101: 42 | T101: 0 | V101: 0 | W101: =IF(BIN,INDEX(BIN!$B$3:$BO$364,4+(Klima-2)*11,S101),0) -> 0 | X101: 16 | Y101: =IF(BINkorr,INDEX(Berechnungen!$E$81:$BR$81,1,S101)*IF(OR(Methode_384_3,Z101=0),1,AV101/Z101)/Leistungskorr*(1-Kollektor),W101*$T$130*(1-Kollektor)) ->  | Z101: =IF(Heizung,IF(Methode_384_3,INDEX(Berechnungen!$E$79:$BR$79,1,S101),IF(IF(Heizung,Z100-$Z$77/28,0)>0,IF(Heizung,Z100-$Z$77/28,0),0)),0) -> 0 | AB101: 0 | AG101: =IF($AA$77*SUM($W$60:$W100)/Etaw=BedarfWW,0,MAX(MIN($AA$77*W101/Etaw,BedarfWW-$AA$77*SUM($W$60:$W100)/Etaw),0)) ->  | AI101: =MIN(IF(AB101>0,AH101/AB101,0),W101) -> 0 | AJ101: 0 | AL101: =AE101+AD101+IF(Laufzeit_Zusatzheizung>=SUM($Y$60:$Y134),Kesselleistung*$H$45*Y101,0) ->  | AN101: =IF(Neu,INDEX(WP_BIN!$T$80:$CG$80,1,S101),AZ101) -> 0 | AQ101: 0 | AS101: 0 | AT101: 0 | AU101: 0 | AV101: =INDEX(Berechnungen!$E$79:$BR$79,1,S101) ->  | AW101: 16 | AX101: =INDEX(WP_BIN!$T$78:$CG$78,1,$S101) -> 26.28571429 | AY101: =INDEX(WP_BIN!$T$43:$CG$43,1,$S101) ->  | AZ101: =INDEX(WP_BIN!$T$79:$CG$79,1,$S101) -> 0 | BA101: =INDEX(WP_BIN!$T$86:$CG$86,1,$S101) -> 0 | BB101: =INDEX(WP_BIN!$T$47:$CG$47,1,$S101) ->  | BC101: =INDEX(WP_BIN!$T$54:$CG$54,1,$S101) -> 0
B102: Wynau | D102: -7 | E102: 4405 | F102: 4 | G102: -7 | H102: 3371 | I102: 31 | S102: 43 | T102: 0 | V102: 0 | W102: =IF(BIN,INDEX(BIN!$B$3:$BO$364,4+(Klima-2)*11,S102),0) -> 0 | X102: 17 | Y102: =IF(BINkorr,INDEX(Berechnungen!$E$81:$BR$81,1,S102)*IF(OR(Methode_384_3,Z102=0),1,AV102/Z102)/Leistungskorr*(1-Kollektor),W102*$T$130*(1-Kollektor)) ->  | Z102: =IF(Heizung,IF(Methode_384_3,INDEX(Berechnungen!$E$79:$BR$79,1,S102),IF(IF(Heizung,Z101-$Z$77/28,0)>0,IF(Heizung,Z101-$Z$77/28,0),0)),0) -> 0 | AB102: 0 | AG102: =IF($AA$77*SUM($W$60:$W101)/Etaw=BedarfWW,0,MAX(MIN($AA$77*W102/Etaw,BedarfWW-$AA$77*SUM($W$60:$W101)/Etaw),0)) ->  | AI102: 0 | AJ102: 0 | AL102: =AE102+AD102+IF(Laufzeit_Zusatzheizung>=SUM($Y$60:$Y135),Kesselleistung*$H$45*Y102,0) ->  | AN102: =IF(Neu,INDEX(WP_BIN!$T$80:$CG$80,1,S102),AZ102) -> 0 | AQ102: 0 | AS102: 0 | AT102: 0 | AU102: 0 | AV102: =INDEX(Berechnungen!$E$79:$BR$79,1,S102) ->  | AW102: 17 | AX102: =INDEX(WP_BIN!$T$78:$CG$78,1,$S102) -> 26.21428571 | AY102: =INDEX(WP_BIN!$T$43:$CG$43,1,$S102) ->  | AZ102: =INDEX(WP_BIN!$T$79:$CG$79,1,$S102) -> 0 | BA102: =INDEX(WP_BIN!$T$86:$CG$86,1,$S102) -> 0 | BB102: =INDEX(WP_BIN!$T$47:$CG$47,1,$S102) ->  | BC102: =INDEX(WP_BIN!$T$54:$CG$54,1,$S102) -> 0
B103: Zermatt | D103: -11 | E103: 3894 | F103: 2.5 | G103: -11 | H103: 5017 | I103: 32 | S103: 44 | T103: 0 | V103: 0 | W103: =IF(BIN,INDEX(BIN!$B$3:$BO$364,4+(Klima-2)*11,S103),0) -> 0 | X103: 18 | Y103: =IF(BINkorr,INDEX(Berechnungen!$E$81:$BR$81,1,S103)*IF(OR(Methode_384_3,Z103=0),1,AV103/Z103)/Leistungskorr*(1-Kollektor),W103*$T$130*(1-Kollektor)) ->  | Z103: =IF(Heizung,IF(Methode_384_3,INDEX(Berechnungen!$E$79:$BR$79,1,S103),IF(IF(Heizung,Z102-$Z$77/28,0)>0,IF(Heizung,Z102-$Z$77/28,0),0)),0) -> 0 | AB103: 0 | AG103: =IF($AA$77*SUM($W$60:$W102)/Etaw=BedarfWW,0,MAX(MIN($AA$77*W103/Etaw,BedarfWW-$AA$77*SUM($W$60:$W102)/Etaw),0)) ->  | AI103: 0 | AJ103: 0 | AL103: =AE103+AD103+IF(Laufzeit_Zusatzheizung>=SUM($Y$60:$Y136),Kesselleistung*$H$45*Y103,0) ->  | AN103: =IF(Neu,INDEX(WP_BIN!$T$80:$CG$80,1,S103),AZ103) -> 0 | AQ103: 0 | AS103: 0 | AT103: 0 | AU103: 0 | AV103: =INDEX(Berechnungen!$E$79:$BR$79,1,S103) ->  | AW103: 18 | AX103: =INDEX(WP_BIN!$T$78:$CG$78,1,$S103) -> 26.14285714 | AY103: =INDEX(WP_BIN!$T$43:$CG$43,1,$S103) ->  | AZ103: =INDEX(WP_BIN!$T$79:$CG$79,1,$S103) -> 0 | BA103: =INDEX(WP_BIN!$T$86:$CG$86,1,$S103) -> 0 | BB103: =INDEX(WP_BIN!$T$47:$CG$47,1,$S103) ->  | BC103: =INDEX(WP_BIN!$T$54:$CG$54,1,$S103) -> 0
B104: Zürich SMA | D104: -8 | E104: 4010 | F104: 4.1 | G104: -8 | H104: 2959 | I104: 33 | S104: 45 | T104: 0 | V104: 0 | W104: =IF(BIN,INDEX(BIN!$B$3:$BO$364,4+(Klima-2)*11,S104),0) -> 0 | X104: 19 | Y104: =IF(BINkorr,INDEX(Berechnungen!$E$81:$BR$81,1,S104)*IF(OR(Methode_384_3,Z104=0),1,AV104/Z104)/Leistungskorr*(1-Kollektor),W104*$T$130*(1-Kollektor)) ->  | Z104: =IF(Heizung,IF(Methode_384_3,INDEX(Berechnungen!$E$79:$BR$79,1,S104),IF(IF(Heizung,Z103-$Z$77/28,0)>0,IF(Heizung,Z103-$Z$77/28,0),0)),0) -> 0 | AB104: 0 | AG104: =IF($AA$77*SUM($W$60:$W103)/Etaw=BedarfWW,0,MAX(MIN($AA$77*W104/Etaw,BedarfWW-$AA$77*SUM($W$60:$W103)/Etaw),0)) ->  | AI104: 0 | AJ104: 0 | AL104: =AE104+AD104+IF(Laufzeit_Zusatzheizung>=SUM($Y$60:$Y137),Kesselleistung*$H$45*Y104,0) ->  | AN104: =IF(Neu,INDEX(WP_BIN!$T$80:$CG$80,1,S104),AZ104) -> 0 | AQ104: 0 | AS104: 0 | AT104: 0 | AU104: 0 | AV104: =INDEX(Berechnungen!$E$79:$BR$79,1,S104) ->  | AW104: 19 | AX104: =INDEX(WP_BIN!$T$78:$CG$78,1,$S104) -> 26.07142857 | AY104: =INDEX(WP_BIN!$T$43:$CG$43,1,$S104) ->  | AZ104: =INDEX(WP_BIN!$T$79:$CG$79,1,$S104) -> 0 | BA104: =INDEX(WP_BIN!$T$86:$CG$86,1,$S104) -> 0 | BB104: =INDEX(WP_BIN!$T$47:$CG$47,1,$S104) ->  | BC104: =INDEX(WP_BIN!$T$54:$CG$54,1,$S104) -> 0
B105: =IF(JAZcalc,B72,INDEX(B72:B104,Klima,1)) ->  | C105: =IF(JAZcalc,C72,INDEX(C72:C104,Klima,1)) ->  | E105: 0 | S105: 46 | T105: 0 | V105: 0 | W105: =IF(BIN,INDEX(BIN!$B$3:$BO$364,4+(Klima-2)*11,S105),0) -> 0 | X105: 20 | Y105: =IF(BINkorr,INDEX(Berechnungen!$E$81:$BR$81,1,S105)*IF(OR(Methode_384_3,Z105=0),1,AV105/Z105)/Leistungskorr*(1-Kollektor),W105*$T$130*(1-Kollektor)) ->  | Z105: =IF(Heizung,IF(Methode_384_3,INDEX(Berechnungen!$E$79:$BR$79,1,S105),IF(IF(Heizung,Z104-$Z$77/28,0)>0,IF(Heizung,Z104-$Z$77/28,0),0)),0) -> 0 | AB105: 0 | AG105: =IF($AA$77*SUM($W$60:$W104)/Etaw=BedarfWW,0,MAX(MIN($AA$77*W105/Etaw,BedarfWW-$AA$77*SUM($W$60:$W104)/Etaw),0)) ->  | AI105: 0 | AJ105: 0 | AL105: =AE105+AD105+IF(Laufzeit_Zusatzheizung>=SUM($Y$60:$Y138),Kesselleistung*$H$45*Y105,0) ->  | AN105: =IF(Neu,INDEX(WP_BIN!$T$80:$CG$80,1,S105),AZ105) -> 0 | AQ105: 0 | AS105: 0 | AT105: 0 | AU105: 0 | AV105: =INDEX(Berechnungen!$E$79:$BR$79,1,S105) ->  | AW105: 20 | AX105: =INDEX(WP_BIN!$T$78:$CG$78,1,$S105) -> 26 | AY105: =INDEX(WP_BIN!$T$43:$CG$43,1,$S105) ->  | AZ105: =INDEX(WP_BIN!$T$79:$CG$79,1,$S105) -> 0 | BA105: =INDEX(WP_BIN!$T$86:$CG$86,1,$S105) -> 0 | BB105: =INDEX(WP_BIN!$T$47:$CG$47,1,$S105) ->  | BC105: =INDEX(WP_BIN!$T$54:$CG$54,1,$S105) -> 0
S106: 47 | T106: 0 | V106: 0 | W106: =IF(BIN,INDEX(BIN!$B$3:$BO$364,4+(Klima-2)*11,S106),0) -> 0 | X106: 21 | Y106: =IF(BINkorr,INDEX(Berechnungen!$E$81:$BR$81,1,S106)*IF(OR(Methode_384_3,Z106=0),1,AV106/Z106)/Leistungskorr*(1-Kollektor),W106*$T$130*(1-Kollektor)) ->  | Z106: =IF(Heizung,IF(Methode_384_3,INDEX(Berechnungen!$E$79:$BR$79,1,S106),IF(IF(Heizung,Z105-$Z$77/28,0)>0,IF(Heizung,Z105-$Z$77/28,0),0)),0) -> 0 | AB106: 0 | AG106: =IF($AA$77*SUM($W$60:$W105)/Etaw=BedarfWW,0,MAX(MIN($AA$77*W106/Etaw,BedarfWW-$AA$77*SUM($W$60:$W105)/Etaw),0)) ->  | AI106: 0 | AJ106: 0 | AL106: =AE106+AD106+IF(Laufzeit_Zusatzheizung>=SUM($Y$60:$Y139),Kesselleistung*$H$45*Y106,0) ->  | AN106: =IF(Neu,INDEX(WP_BIN!$T$80:$CG$80,1,S106),AZ106) -> 0 | AQ106: 0 | AS106: 0 | AT106: 0 | AU106: 0 | AV106: =INDEX(Berechnungen!$E$79:$BR$79,1,S106) ->  | AW106: 21 | AX106: =INDEX(WP_BIN!$T$78:$CG$78,1,$S106) -> 26 | AY106: =INDEX(WP_BIN!$T$43:$CG$43,1,$S106) ->  | AZ106: =INDEX(WP_BIN!$T$79:$CG$79,1,$S106) -> 0 | BA106: =INDEX(WP_BIN!$T$86:$CG$86,1,$S106) -> 0 | BB106: =INDEX(WP_BIN!$T$47:$CG$47,1,$S106) ->  | BC106: =INDEX(WP_BIN!$T$54:$CG$54,1,$S106) -> 0
M107: SIA 384/3-Modell freigeben? | O107: FALSE | S107: 48 | T107: 0 | V107: 0 | W107: =IF(BIN,INDEX(BIN!$B$3:$BO$364,4+(Klima-2)*11,S107),0) -> 0 | X107: 22 | Y107: =IF(BINkorr,INDEX(Berechnungen!$E$81:$BR$81,1,S107)*IF(OR(Methode_384_3,Z107=0),1,AV107/Z107)/Leistungskorr*(1-Kollektor),W107*$T$130*(1-Kollektor)) ->  | Z107: =IF(Heizung,IF(Methode_384_3,INDEX(Berechnungen!$E$79:$BR$79,1,S107),IF(IF(Heizung,Z106-$Z$77/28,0)>0,IF(Heizung,Z106-$Z$77/28,0),0)),0) -> 0 | AB107: 0 | AG107: =IF($AA$77*SUM($W$60:$W106)/Etaw=BedarfWW,0,MAX(MIN($AA$77*W107/Etaw,BedarfWW-$AA$77*SUM($W$60:$W106)/Etaw),0)) ->  | AI107: 0 | AJ107: 0 | AL107: =AE107+AD107+IF(Laufzeit_Zusatzheizung>=SUM($Y$60:$Y140),Kesselleistung*$H$45*Y107,0) ->  | AN107: =IF(Neu,INDEX(WP_BIN!$T$80:$CG$80,1,S107),AZ107) -> 0 | AQ107: 0 | AS107: 0 | AT107: 0 | AU107: 0 | AV107: =INDEX(Berechnungen!$E$79:$BR$79,1,S107) ->  | AW107: 22 | AX107: =INDEX(WP_BIN!$T$78:$CG$78,1,$S107) -> 26 | AY107: =INDEX(WP_BIN!$T$43:$CG$43,1,$S107) ->  | AZ107: =INDEX(WP_BIN!$T$79:$CG$79,1,$S107) -> 0 | BA107: =INDEX(WP_BIN!$T$86:$CG$86,1,$S107) -> 0 | BB107: =INDEX(WP_BIN!$T$47:$CG$47,1,$S107) ->  | BC107: =INDEX(WP_BIN!$T$54:$CG$54,1,$S107) -> 0
S108: 49 | T108: 0 | V108: 0 | W108: =IF(BIN,INDEX(BIN!$B$3:$BO$364,4+(Klima-2)*11,S108),0) -> 0 | X108: 23 | Y108: =IF(BINkorr,INDEX(Berechnungen!$E$81:$BR$81,1,S108)*IF(OR(Methode_384_3,Z108=0),1,AV108/Z108)/Leistungskorr*(1-Kollektor),W108*$T$130*(1-Kollektor)) ->  | Z108: =IF(Heizung,IF(Methode_384_3,INDEX(Berechnungen!$E$79:$BR$79,1,S108),IF(IF(Heizung,Z107-$Z$77/28,0)>0,IF(Heizung,Z107-$Z$77/28,0),0)),0) -> 0 | AB108: 0 | AG108: =IF($AA$77*SUM($W$60:$W107)/Etaw=BedarfWW,0,MAX(MIN($AA$77*W108/Etaw,BedarfWW-$AA$77*SUM($W$60:$W107)/Etaw),0)) ->  | AI108: 0 | AJ108: 0 | AL108: =AE108+AD108+IF(Laufzeit_Zusatzheizung>=SUM($Y$60:$Y141),Kesselleistung*$H$45*Y108,0) ->  | AN108: =IF(Neu,INDEX(WP_BIN!$T$80:$CG$80,1,S108),AZ108) -> 0 | AQ108: 0 | AS108: 0 | AT108: 0 | AU108: 0 | AV108: =INDEX(Berechnungen!$E$79:$BR$79,1,S108) ->  | AW108: 23 | AX108: =INDEX(WP_BIN!$T$78:$CG$78,1,$S108) -> 26 | AY108: =INDEX(WP_BIN!$T$43:$CG$43,1,$S108) ->  | AZ108: =INDEX(WP_BIN!$T$79:$CG$79,1,$S108) -> 0 | BA108: =INDEX(WP_BIN!$T$86:$CG$86,1,$S108) -> 0 | BB108: =INDEX(WP_BIN!$T$47:$CG$47,1,$S108) ->  | BC108: =INDEX(WP_BIN!$T$54:$CG$54,1,$S108) -> 0
S109: 50 | T109: 0 | V109: 0 | W109: =IF(BIN,INDEX(BIN!$B$3:$BO$364,4+(Klima-2)*11,S109),0) -> 0 | X109: 24 | Y109: =IF(BINkorr,INDEX(Berechnungen!$E$81:$BR$81,1,S109)*IF(OR(Methode_384_3,Z109=0),1,AV109/Z109)/Leistungskorr*(1-Kollektor),W109*$T$130*(1-Kollektor)) ->  | Z109: =IF(Heizung,IF(Methode_384_3,INDEX(Berechnungen!$E$79:$BR$79,1,S109),IF(IF(Heizung,Z108-$Z$77/28,0)>0,IF(Heizung,Z108-$Z$77/28,0),0)),0) -> 0 | AB109: 0 | AG109: =IF($AA$77*SUM($W$60:$W108)/Etaw=BedarfWW,0,MAX(MIN($AA$77*W109/Etaw,BedarfWW-$AA$77*SUM($W$60:$W108)/Etaw),0)) ->  | AI109: 0 | AJ109: 0 | AL109: =AE109+AD109+IF(Laufzeit_Zusatzheizung>=SUM($Y$60:$Y142),Kesselleistung*$H$45*Y109,0) ->  | AN109: =IF(Neu,INDEX(WP_BIN!$T$80:$CG$80,1,S109),AZ109) -> 0 | AQ109: 0 | AS109: 0 | AT109: 0 | AU109: 0 | AV109: =INDEX(Berechnungen!$E$79:$BR$79,1,S109) ->  | AW109: 24 | AX109: =INDEX(WP_BIN!$T$78:$CG$78,1,$S109) -> 26 | AY109: =INDEX(WP_BIN!$T$43:$CG$43,1,$S109) ->  | AZ109: =INDEX(WP_BIN!$T$79:$CG$79,1,$S109) -> 0 | BA109: =INDEX(WP_BIN!$T$86:$CG$86,1,$S109) -> 0 | BB109: =INDEX(WP_BIN!$T$47:$CG$47,1,$S109) ->  | BC109: =INDEX(WP_BIN!$T$54:$CG$54,1,$S109) -> 0
S110: 51 | T110: 0 | V110: 0 | W110: =IF(BIN,INDEX(BIN!$B$3:$BO$364,4+(Klima-2)*11,S110),0) -> 0 | X110: 25 | Y110: =IF(BINkorr,INDEX(Berechnungen!$E$81:$BR$81,1,S110)*IF(OR(Methode_384_3,Z110=0),1,AV110/Z110)/Leistungskorr*(1-Kollektor),W110*$T$130*(1-Kollektor)) ->  | Z110: =IF(Heizung,IF(Methode_384_3,INDEX(Berechnungen!$E$79:$BR$79,1,S110),IF(IF(Heizung,Z109-$Z$77/28,0)>0,IF(Heizung,Z109-$Z$77/28,0),0)),0) -> 0 | AB110: 0 | AG110: =IF($AA$77*SUM($W$60:$W109)/Etaw=BedarfWW,0,MAX(MIN($AA$77*W110/Etaw,BedarfWW-$AA$77*SUM($W$60:$W109)/Etaw),0)) ->  | AI110: 0 | AJ110: 0 | AL110: =AE110+AD110+IF(Laufzeit_Zusatzheizung>=SUM($Y$60:$Y143),Kesselleistung*$H$45*Y110,0) ->  | AN110: =IF(Neu,INDEX(WP_BIN!$T$80:$CG$80,1,S110),AZ110) -> 0 | AQ110: 0 | AS110: 0 | AT110: 0 | AU110: 0 | AV110: =INDEX(Berechnungen!$E$79:$BR$79,1,S110) ->  | AW110: 25 | AX110: =INDEX(WP_BIN!$T$78:$CG$78,1,$S110) -> 26 | AY110: =INDEX(WP_BIN!$T$43:$CG$43,1,$S110) ->  | AZ110: =INDEX(WP_BIN!$T$79:$CG$79,1,$S110) -> 0 | BA110: =INDEX(WP_BIN!$T$86:$CG$86,1,$S110) -> 0 | BB110: =INDEX(WP_BIN!$T$47:$CG$47,1,$S110) ->  | BC110: =INDEX(WP_BIN!$T$54:$CG$54,1,$S110) -> 0
S111: 52 | T111: 0 | V111: 0 | W111: =IF(BIN,INDEX(BIN!$B$3:$BO$364,4+(Klima-2)*11,S111),0) -> 0 | X111: 26 | Y111: =IF(BINkorr,INDEX(Berechnungen!$E$81:$BR$81,1,S111)*IF(OR(Methode_384_3,Z111=0),1,AV111/Z111)/Leistungskorr*(1-Kollektor),W111*$T$130*(1-Kollektor)) ->  | Z111: =IF(Heizung,IF(Methode_384_3,INDEX(Berechnungen!$E$79:$BR$79,1,S111),IF(IF(Heizung,Z110-$Z$77/28,0)>0,IF(Heizung,Z110-$Z$77/28,0),0)),0) -> 0 | AB111: =AB110 -> 0 | AG111: =IF($AA$77*SUM($W$60:$W110)/Etaw=BedarfWW,0,MAX(MIN($AA$77*W111/Etaw,BedarfWW-$AA$77*SUM($W$60:$W110)/Etaw),0)) ->  | AI111: 0 | AJ111: 0 | AL111: =AE111+AD111+IF(Laufzeit_Zusatzheizung>=SUM($Y$60:$Y144),Kesselleistung*$H$45*Y111,0) ->  | AN111: =IF(Neu,INDEX(WP_BIN!$T$80:$CG$80,1,S111),AZ111) -> 0 | AQ111: 0 | AS111: 0 | AT111: 0 | AU111: 0 | AV111: =INDEX(Berechnungen!$E$79:$BR$79,1,S111) ->  | AW111: 26 | AX111: =INDEX(WP_BIN!$T$78:$CG$78,1,$S111) -> 26 | AY111: =INDEX(WP_BIN!$T$43:$CG$43,1,$S111) ->  | AZ111: =INDEX(WP_BIN!$T$79:$CG$79,1,$S111) -> 0 | BA111: =INDEX(WP_BIN!$T$86:$CG$86,1,$S111) -> 0 | BB111: =INDEX(WP_BIN!$T$47:$CG$47,1,$S111) ->  | BC111: =INDEX(WP_BIN!$T$54:$CG$54,1,$S111) -> 0
S112: 53 | T112: 0 | V112: 0 | W112: =IF(BIN,INDEX(BIN!$B$3:$BO$364,4+(Klima-2)*11,S112),0) -> 0 | X112: 27 | Y112: =IF(BINkorr,INDEX(Berechnungen!$E$81:$BR$81,1,S112)*IF(OR(Methode_384_3,Z112=0),1,AV112/Z112)/Leistungskorr*(1-Kollektor),W112*$T$130*(1-Kollektor)) ->  | Z112: =IF(Heizung,IF(Methode_384_3,INDEX(Berechnungen!$E$79:$BR$79,1,S112),IF(IF(Heizung,Z111-$Z$77/28,0)>0,IF(Heizung,Z111-$Z$77/28,0),0)),0) -> 0 | AB112: =AB111 -> 0 | AG112: =IF($AA$77*SUM($W$60:$W111)/Etaw=BedarfWW,0,MAX(MIN($AA$77*W112/Etaw,BedarfWW-$AA$77*SUM($W$60:$W111)/Etaw),0)) ->  | AI112: 0 | AJ112: 0 | AL112: =AE112+AD112+IF(Laufzeit_Zusatzheizung>=SUM($Y$60:$Y145),Kesselleistung*$H$45*Y112,0) ->  | AN112: =IF(Neu,INDEX(WP_BIN!$T$80:$CG$80,1,S112),AZ112) -> 0 | AQ112: 0 | AS112: 0 | AT112: 0 | AU112: 0 | AV112: =INDEX(Berechnungen!$E$79:$BR$79,1,S112) ->  | AW112: 27 | AX112: =INDEX(WP_BIN!$T$78:$CG$78,1,$S112) -> 26 | AY112: =INDEX(WP_BIN!$T$43:$CG$43,1,$S112) ->  | AZ112: =INDEX(WP_BIN!$T$79:$CG$79,1,$S112) -> 0 | BA112: =INDEX(WP_BIN!$T$86:$CG$86,1,$S112) -> 0 | BB112: =INDEX(WP_BIN!$T$47:$CG$47,1,$S112) ->  | BC112: =INDEX(WP_BIN!$T$54:$CG$54,1,$S112) -> 0
S113: 54 | T113: 0 | V113: 0 | W113: =IF(BIN,INDEX(BIN!$B$3:$BO$364,4+(Klima-2)*11,S113),0) -> 0 | X113: 28 | Y113: =IF(BINkorr,INDEX(Berechnungen!$E$81:$BR$81,1,S113)*IF(OR(Methode_384_3,Z113=0),1,AV113/Z113)/Leistungskorr*(1-Kollektor),W113*$T$130*(1-Kollektor)) ->  | Z113: =IF(Heizung,IF(Methode_384_3,INDEX(Berechnungen!$E$79:$BR$79,1,S113),IF(IF(Heizung,Z112-$Z$77/28,0)>0,IF(Heizung,Z112-$Z$77/28,0),0)),0) -> 0 | AB113: 0 | AG113: =IF($AA$77*SUM($W$60:$W112)/Etaw=BedarfWW,0,MAX(MIN($AA$77*W113/Etaw,BedarfWW-$AA$77*SUM($W$60:$W112)/Etaw),0)) ->  | AI113: 0 | AJ113: 0 | AL113: =AE113+AD113+IF(Laufzeit_Zusatzheizung>=SUM($Y$60:$Y146),Kesselleistung*$H$45*Y113,0) ->  | AN113: =IF(Neu,INDEX(WP_BIN!$T$80:$CG$80,1,S113),AZ113) -> 0 | AQ113: 0 | AS113: 0 | AT113: 0 | AU113: 0 | AV113: =INDEX(Berechnungen!$E$79:$BR$79,1,S113) ->  | AW113: 28 | AX113: =INDEX(WP_BIN!$T$78:$CG$78,1,$S113) -> 26 | AY113: =INDEX(WP_BIN!$T$43:$CG$43,1,$S113) ->  | AZ113: =INDEX(WP_BIN!$T$79:$CG$79,1,$S113) -> 0 | BA113: =INDEX(WP_BIN!$T$86:$CG$86,1,$S113) -> 0 | BB113: =INDEX(WP_BIN!$T$47:$CG$47,1,$S113) ->  | BC113: =INDEX(WP_BIN!$T$54:$CG$54,1,$S113) -> 0
S114: 55 | T114: 0 | V114: 0 | W114: =IF(BIN,INDEX(BIN!$B$3:$BO$364,4+(Klima-2)*11,S114),0) -> 0 | X114: 29 | Y114: =IF(BINkorr,INDEX(Berechnungen!$E$81:$BR$81,1,S114)*IF(OR(Methode_384_3,Z114=0),1,AV114/Z114)/Leistungskorr*(1-Kollektor),W114*$T$130*(1-Kollektor)) ->  | Z114: =IF(Heizung,IF(Methode_384_3,INDEX(Berechnungen!$E$79:$BR$79,1,S114),IF(IF(Heizung,Z113-$Z$77/28,0)>0,IF(Heizung,Z113-$Z$77/28,0),0)),0) -> 0 | AB114: 0 | AG114: =IF($AA$77*SUM($W$60:$W113)/Etaw=BedarfWW,0,MAX(MIN($AA$77*W114/Etaw,BedarfWW-$AA$77*SUM($W$60:$W113)/Etaw),0)) ->  | AI114: 0 | AJ114: 0 | AL114: =AE114+AD114+IF(Laufzeit_Zusatzheizung>=SUM($Y$60:$Y147),Kesselleistung*$H$45*Y114,0) ->  | AN114: =IF(Neu,INDEX(WP_BIN!$T$80:$CG$80,1,S114),AZ114) -> 0 | AQ114: 0 | AS114: 0 | AT114: 0 | AU114: 0 | AV114: =INDEX(Berechnungen!$E$79:$BR$79,1,S114) ->  | AW114: 29 | AX114: =INDEX(WP_BIN!$T$78:$CG$78,1,$S114) -> 26 | AY114: =INDEX(WP_BIN!$T$43:$CG$43,1,$S114) ->  | AZ114: =INDEX(WP_BIN!$T$79:$CG$79,1,$S114) -> 0 | BA114: =INDEX(WP_BIN!$T$86:$CG$86,1,$S114) -> 0 | BB114: =INDEX(WP_BIN!$T$47:$CG$47,1,$S114) ->  | BC114: =INDEX(WP_BIN!$T$54:$CG$54,1,$S114) -> 0
S115: 56 | T115: 0 | V115: 0 | W115: =IF(BIN,INDEX(BIN!$B$3:$BO$364,4+(Klima-2)*11,S115),0) -> 0 | X115: 30 | Y115: =IF(BINkorr,INDEX(Berechnungen!$E$81:$BR$81,1,S115)*IF(OR(Methode_384_3,Z115=0),1,AV115/Z115)/Leistungskorr*(1-Kollektor),W115*$T$130*(1-Kollektor)) ->  | Z115: =IF(Heizung,IF(Methode_384_3,INDEX(Berechnungen!$E$79:$BR$79,1,S115),IF(IF(Heizung,Z114-$Z$77/28,0)>0,IF(Heizung,Z114-$Z$77/28,0),0)),0) -> 0 | AB115: 0 | AG115: =IF($AA$77*SUM($W$60:$W114)/Etaw=BedarfWW,0,MAX(MIN($AA$77*W115/Etaw,BedarfWW-$AA$77*SUM($W$60:$W114)/Etaw),0)) ->  | AI115: 0 | AJ115: 0 | AL115: =AE115+AD115+IF(Laufzeit_Zusatzheizung>=SUM($Y$60:$Y148),Kesselleistung*$H$45*Y115,0) ->  | AN115: =IF(Neu,INDEX(WP_BIN!$T$80:$CG$80,1,S115),AZ115) -> 0 | AQ115: 0 | AS115: 0 | AT115: 0 | AU115: 0 | AV115: =INDEX(Berechnungen!$E$79:$BR$79,1,S115) ->  | AW115: 30 | AX115: =INDEX(WP_BIN!$T$78:$CG$78,1,$S115) -> 26 | AY115: =INDEX(WP_BIN!$T$43:$CG$43,1,$S115) ->  | AZ115: =INDEX(WP_BIN!$T$79:$CG$79,1,$S115) -> 0 | BA115: =INDEX(WP_BIN!$T$86:$CG$86,1,$S115) -> 0 | BB115: =INDEX(WP_BIN!$T$47:$CG$47,1,$S115) ->  | BC115: =INDEX(WP_BIN!$T$54:$CG$54,1,$S115) -> 0
S116: 57 | T116: 0 | V116: 0 | W116: =IF(BIN,INDEX(BIN!$B$3:$BO$364,4+(Klima-2)*11,S116),0) -> 0 | X116: 31 | Y116: =IF(BINkorr,INDEX(Berechnungen!$E$81:$BR$81,1,S116)*IF(OR(Methode_384_3,Z116=0),1,AV116/Z116)/Leistungskorr*(1-Kollektor),W116*$T$130*(1-Kollektor)) ->  | Z116: =IF(Heizung,IF(Methode_384_3,INDEX(Berechnungen!$E$79:$BR$79,1,S116),IF(IF(Heizung,Z115-$Z$77/28,0)>0,IF(Heizung,Z115-$Z$77/28,0),0)),0) -> 0 | AB116: 0 | AG116: =IF($AA$77*SUM($W$60:$W115)/Etaw=BedarfWW,0,MAX(MIN($AA$77*W116/Etaw,BedarfWW-$AA$77*SUM($W$60:$W115)/Etaw),0)) ->  | AI116: 0 | AJ116: 0 | AL116: =AE116+AD116+IF(Laufzeit_Zusatzheizung>=SUM($Y$60:$Y149),Kesselleistung*$H$45*Y116,0) ->  | AN116: =IF(Neu,INDEX(WP_BIN!$T$80:$CG$80,1,S116),AZ116) -> 0 | AQ116: 0 | AS116: 0 | AT116: 0 | AU116: 0 | AV116: =INDEX(Berechnungen!$E$79:$BR$79,1,S116) ->  | AW116: 31 | AX116: =INDEX(WP_BIN!$T$78:$CG$78,1,$S116) -> 26 | AY116: =INDEX(WP_BIN!$T$43:$CG$43,1,$S116) ->  | AZ116: =INDEX(WP_BIN!$T$79:$CG$79,1,$S116) -> 0 | BA116: =INDEX(WP_BIN!$T$86:$CG$86,1,$S116) -> 0 | BB116: =INDEX(WP_BIN!$T$47:$CG$47,1,$S116) ->  | BC116: =INDEX(WP_BIN!$T$54:$CG$54,1,$S116) -> 0
S117: 58 | T117: 0 | V117: 0 | W117: =IF(BIN,INDEX(BIN!$B$3:$BO$364,4+(Klima-2)*11,S117),0) -> 0 | X117: 32 | Y117: =IF(BINkorr,INDEX(Berechnungen!$E$81:$BR$81,1,S117)*IF(OR(Methode_384_3,Z117=0),1,AV117/Z117)/Leistungskorr*(1-Kollektor),W117*$T$130*(1-Kollektor)) ->  | Z117: =IF(Heizung,IF(Methode_384_3,INDEX(Berechnungen!$E$79:$BR$79,1,S117),IF(IF(Heizung,Z116-$Z$77/28,0)>0,IF(Heizung,Z116-$Z$77/28,0),0)),0) -> 0 | AB117: 0 | AG117: =IF($AA$77*SUM($W$60:$W116)/Etaw=BedarfWW,0,MAX(MIN($AA$77*W117/Etaw,BedarfWW-$AA$77*SUM($W$60:$W116)/Etaw),0)) ->  | AI117: 0 | AJ117: 0 | AL117: =AE117+AD117+IF(Laufzeit_Zusatzheizung>=SUM($Y$60:$Y150),Kesselleistung*$H$45*Y117,0) ->  | AN117: =IF(Neu,INDEX(WP_BIN!$T$80:$CG$80,1,S117),AZ117) -> 0 | AQ117: 0 | AS117: 0 | AT117: 0 | AU117: 0 | AV117: =INDEX(Berechnungen!$E$79:$BR$79,1,S117) ->  | AW117: 32 | AX117: =INDEX(WP_BIN!$T$78:$CG$78,1,$S117) -> 26 | AY117: =INDEX(WP_BIN!$T$43:$CG$43,1,$S117) ->  | AZ117: =INDEX(WP_BIN!$T$79:$CG$79,1,$S117) -> 0 | BA117: =INDEX(WP_BIN!$T$86:$CG$86,1,$S117) -> 0 | BB117: =INDEX(WP_BIN!$T$47:$CG$47,1,$S117) ->  | BC117: =INDEX(WP_BIN!$T$54:$CG$54,1,$S117) -> 0
S118: 59 | T118: 0 | V118: 0 | W118: =IF(BIN,INDEX(BIN!$B$3:$BO$364,4+(Klima-2)*11,S118),0) -> 0 | X118: 33 | Y118: =IF(BINkorr,INDEX(Berechnungen!$E$81:$BR$81,1,S118)*IF(OR(Methode_384_3,Z118=0),1,AV118/Z118)/Leistungskorr*(1-Kollektor),W118*$T$130*(1-Kollektor)) ->  | Z118: =IF(Heizung,IF(Methode_384_3,INDEX(Berechnungen!$E$79:$BR$79,1,S118),IF(IF(Heizung,Z117-$Z$77/28,0)>0,IF(Heizung,Z117-$Z$77/28,0),0)),0) -> 0 | AB118: 0 | AG118: =IF($AA$77*SUM($W$60:$W117)/Etaw=BedarfWW,0,MAX(MIN($AA$77*W118/Etaw,BedarfWW-$AA$77*SUM($W$60:$W117)/Etaw),0)) ->  | AI118: 0 | AJ118: 0 | AL118: =AE118+AD118+IF(Laufzeit_Zusatzheizung>=SUM($Y$60:$Y151),Kesselleistung*$H$45*Y118,0) ->  | AN118: =IF(Neu,INDEX(WP_BIN!$T$80:$CG$80,1,S118),AZ118) -> 0 | AQ118: 0 | AS118: 0 | AT118: 0 | AU118: 0 | AV118: =INDEX(Berechnungen!$E$79:$BR$79,1,S118) ->  | AW118: 33 | AX118: =INDEX(WP_BIN!$T$78:$CG$78,1,$S118) -> 26 | AY118: =INDEX(WP_BIN!$T$43:$CG$43,1,$S118) ->  | AZ118: =INDEX(WP_BIN!$T$79:$CG$79,1,$S118) -> 0 | BA118: =INDEX(WP_BIN!$T$86:$CG$86,1,$S118) -> 0 | BB118: =INDEX(WP_BIN!$T$47:$CG$47,1,$S118) ->  | BC118: =INDEX(WP_BIN!$T$54:$CG$54,1,$S118) -> 0
S119: 60 | T119: 0 | V119: 0 | W119: =IF(BIN,INDEX(BIN!$B$3:$BO$364,4+(Klima-2)*11,S119),0) -> 0 | X119: 34 | Y119: =IF(BINkorr,INDEX(Berechnungen!$E$81:$BR$81,1,S119)*IF(OR(Methode_384_3,Z119=0),1,AV119/Z119)/Leistungskorr*(1-Kollektor),W119*$T$130*(1-Kollektor)) ->  | Z119: =IF(Heizung,IF(Methode_384_3,INDEX(Berechnungen!$E$79:$BR$79,1,S119),IF(IF(Heizung,Z118-$Z$77/28,0)>0,IF(Heizung,Z118-$Z$77/28,0),0)),0) -> 0 | AB119: 0 | AG119: =IF($AA$77*SUM($W$60:$W118)/Etaw=BedarfWW,0,MAX(MIN($AA$77*W119/Etaw,BedarfWW-$AA$77*SUM($W$60:$W118)/Etaw),0)) ->  | AI119: 0 | AJ119: 0 | AL119: =AE119+AD119+IF(Laufzeit_Zusatzheizung>=SUM($Y$60:$Y152),Kesselleistung*$H$45*Y119,0) ->  | AN119: =IF(Neu,INDEX(WP_BIN!$T$80:$CG$80,1,S119),AZ119) -> 0 | AQ119: 0 | AS119: 0 | AT119: 0 | AU119: 0 | AV119: =INDEX(Berechnungen!$E$79:$BR$79,1,S119) ->  | AW119: 34 | AX119: =INDEX(WP_BIN!$T$78:$CG$78,1,$S119) -> 26 | AY119: =INDEX(WP_BIN!$T$43:$CG$43,1,$S119) ->  | AZ119: =INDEX(WP_BIN!$T$79:$CG$79,1,$S119) -> 0 | BA119: =INDEX(WP_BIN!$T$86:$CG$86,1,$S119) -> 0 | BB119: =INDEX(WP_BIN!$T$47:$CG$47,1,$S119) ->  | BC119: =INDEX(WP_BIN!$T$54:$CG$54,1,$S119) -> 0
S120: 61 | T120: 0 | V120: 0 | W120: =IF(BIN,INDEX(BIN!$B$3:$BO$364,4+(Klima-2)*11,S120),0) -> 0 | X120: 35 | Y120: =IF(BINkorr,INDEX(Berechnungen!$E$81:$BR$81,1,S120)*IF(OR(Methode_384_3,Z120=0),1,AV120/Z120)/Leistungskorr*(1-Kollektor),W120*$T$130*(1-Kollektor)) ->  | Z120: =IF(Heizung,IF(Methode_384_3,INDEX(Berechnungen!$E$79:$BR$79,1,S120),IF(IF(Heizung,Z119-$Z$77/28,0)>0,IF(Heizung,Z119-$Z$77/28,0),0)),0) -> 0 | AB120: 0 | AG120: =IF($AA$77*SUM($W$60:$W119)/Etaw=BedarfWW,0,MAX(MIN($AA$77*W120/Etaw,BedarfWW-$AA$77*SUM($W$60:$W119)/Etaw),0)) ->  | AI120: 0 | AJ120: 0 | AL120: =AE120+AD120+IF(Laufzeit_Zusatzheizung>=SUM($Y$60:$Y153),Kesselleistung*$H$45*Y120,0) ->  | AN120: =IF(Neu,INDEX(WP_BIN!$T$80:$CG$80,1,S120),AZ120) -> 0 | AQ120: 0 | AS120: 0 | AT120: 0 | AU120: 0 | AV120: =INDEX(Berechnungen!$E$79:$BR$79,1,S120) ->  | AW120: 35 | AX120: =INDEX(WP_BIN!$T$78:$CG$78,1,$S120) -> 26 | AY120: =INDEX(WP_BIN!$T$43:$CG$43,1,$S120) ->  | AZ120: =INDEX(WP_BIN!$T$79:$CG$79,1,$S120) -> 0 | BA120: =INDEX(WP_BIN!$T$86:$CG$86,1,$S120) -> 0 | BB120: =INDEX(WP_BIN!$T$47:$CG$47,1,$S120) ->  | BC120: =INDEX(WP_BIN!$T$54:$CG$54,1,$S120) -> 0
S121: 62 | T121: 0 | V121: 0 | W121: =IF(BIN,INDEX(BIN!$B$3:$BO$364,4+(Klima-2)*11,S121),0) -> 0 | X121: 36 | Y121: =IF(BINkorr,INDEX(Berechnungen!$E$81:$BR$81,1,S121)*IF(OR(Methode_384_3,Z121=0),1,AV121/Z121)/Leistungskorr*(1-Kollektor),W121*$T$130*(1-Kollektor)) ->  | Z121: =IF(Heizung,IF(Methode_384_3,INDEX(Berechnungen!$E$79:$BR$79,1,S121),IF(IF(Heizung,Z120-$Z$77/28,0)>0,IF(Heizung,Z120-$Z$77/28,0),0)),0) -> 0 | AB121: 0 | AG121: =IF($AA$77*SUM($W$60:$W120)/Etaw=BedarfWW,0,MAX(MIN($AA$77*W121/Etaw,BedarfWW-$AA$77*SUM($W$60:$W120)/Etaw),0)) ->  | AI121: 0 | AJ121: 0 | AL121: =AE121+AD121+IF(Laufzeit_Zusatzheizung>=SUM($Y$60:$Y154),Kesselleistung*$H$45*Y121,0) ->  | AN121: =IF(Neu,INDEX(WP_BIN!$T$80:$CG$80,1,S121),AZ121) -> 0 | AQ121: 0 | AS121: 0 | AT121: 0 | AU121: 0 | AV121: =INDEX(Berechnungen!$E$79:$BR$79,1,S121) ->  | AW121: 36 | AX121: =INDEX(WP_BIN!$T$78:$CG$78,1,$S121) -> 26 | AY121: =INDEX(WP_BIN!$T$43:$CG$43,1,$S121) ->  | AZ121: =INDEX(WP_BIN!$T$79:$CG$79,1,$S121) -> 0 | BA121: =INDEX(WP_BIN!$T$86:$CG$86,1,$S121) -> 0 | BB121: =INDEX(WP_BIN!$T$47:$CG$47,1,$S121) ->  | BC121: =INDEX(WP_BIN!$T$54:$CG$54,1,$S121) -> 0
S122: 63 | T122: 0 | V122: 0 | W122: =IF(BIN,INDEX(BIN!$B$3:$BO$364,4+(Klima-2)*11,S122),0) -> 0 | X122: 37 | Y122: =IF(BINkorr,INDEX(Berechnungen!$E$81:$BR$81,1,S122)*IF(OR(Methode_384_3,Z122=0),1,AV122/Z122)/Leistungskorr*(1-Kollektor),W122*$T$130*(1-Kollektor)) ->  | Z122: =IF(Heizung,IF(Methode_384_3,INDEX(Berechnungen!$E$79:$BR$79,1,S122),IF(IF(Heizung,Z121-$Z$77/28,0)>0,IF(Heizung,Z121-$Z$77/28,0),0)),0) -> 0 | AB122: 0 | AG122: =IF($AA$77*SUM($W$60:$W121)/Etaw=BedarfWW,0,MAX(MIN($AA$77*W122/Etaw,BedarfWW-$AA$77*SUM($W$60:$W121)/Etaw),0)) ->  | AI122: 0 | AJ122: 0 | AL122: =AE122+AD122+IF(Laufzeit_Zusatzheizung>=SUM($Y$60:$Y155),Kesselleistung*$H$45*Y122,0) ->  | AN122: =IF(Neu,INDEX(WP_BIN!$T$80:$CG$80,1,S122),AZ122) -> 0 | AQ122: 0 | AS122: 0 | AT122: 0 | AU122: 0 | AV122: =INDEX(Berechnungen!$E$79:$BR$79,1,S122) ->  | AW122: 37 | AX122: =INDEX(WP_BIN!$T$78:$CG$78,1,$S122) -> 26 | AY122: =INDEX(WP_BIN!$T$43:$CG$43,1,$S122) ->  | AZ122: =INDEX(WP_BIN!$T$79:$CG$79,1,$S122) -> 0 | BA122: =INDEX(WP_BIN!$T$86:$CG$86,1,$S122) -> 0 | BB122: =INDEX(WP_BIN!$T$47:$CG$47,1,$S122) ->  | BC122: =INDEX(WP_BIN!$T$54:$CG$54,1,$S122) -> 0
S123: 64 | T123: 0 | V123: 0 | W123: =IF(BIN,INDEX(BIN!$B$3:$BO$364,4+(Klima-2)*11,S123),0) -> 0 | X123: 38 | Y123: =IF(BINkorr,INDEX(Berechnungen!$E$81:$BR$81,1,S123)*IF(OR(Methode_384_3,Z123=0),1,AV123/Z123)/Leistungskorr*(1-Kollektor),W123*$T$130*(1-Kollektor)) ->  | Z123: =IF(Heizung,IF(Methode_384_3,INDEX(Berechnungen!$E$79:$BR$79,1,S123),IF(IF(Heizung,Z122-$Z$77/28,0)>0,IF(Heizung,Z122-$Z$77/28,0),0)),0) -> 0 | AB123: 0 | AG123: =IF($AA$77*SUM($W$60:$W122)/Etaw=BedarfWW,0,MAX(MIN($AA$77*W123/Etaw,BedarfWW-$AA$77*SUM($W$60:$W122)/Etaw),0)) ->  | AI123: 0 | AJ123: 0 | AL123: =AE123+AD123+IF(Laufzeit_Zusatzheizung>=SUM($Y$60:$Y156),Kesselleistung*$H$45*Y123,0) ->  | AN123: =IF(Neu,INDEX(WP_BIN!$T$80:$CG$80,1,S123),AZ123) -> 0 | AQ123: 0 | AS123: 0 | AT123: 0 | AU123: 0 | AV123: =INDEX(Berechnungen!$E$79:$BR$79,1,S123) ->  | AW123: 38 | AX123: =INDEX(WP_BIN!$T$78:$CG$78,1,$S123) -> 26 | AY123: =INDEX(WP_BIN!$T$43:$CG$43,1,$S123) ->  | AZ123: =INDEX(WP_BIN!$T$79:$CG$79,1,$S123) -> 0 | BA123: =INDEX(WP_BIN!$T$86:$CG$86,1,$S123) -> 0 | BB123: =INDEX(WP_BIN!$T$47:$CG$47,1,$S123) ->  | BC123: =INDEX(WP_BIN!$T$54:$CG$54,1,$S123) -> 0
S124: 65 | T124: 0 | V124: 0 | W124: =IF(BIN,INDEX(BIN!$B$3:$BO$364,4+(Klima-2)*11,S124),0) -> 0 | X124: 39 | Y124: =IF(BINkorr,INDEX(Berechnungen!$E$81:$BR$81,1,S124)*IF(OR(Methode_384_3,Z124=0),1,AV124/Z124)/Leistungskorr*(1-Kollektor),W124*$T$130*(1-Kollektor)) ->  | Z124: =IF(Heizung,IF(Methode_384_3,INDEX(Berechnungen!$E$79:$BR$79,1,S124),IF(IF(Heizung,Z123-$Z$77/28,0)>0,IF(Heizung,Z123-$Z$77/28,0),0)),0) -> 0 | AB124: 0 | AG124: =IF($AA$77*SUM($W$60:$W123)/Etaw=BedarfWW,0,MAX(MIN($AA$77*W124/Etaw,BedarfWW-$AA$77*SUM($W$60:$W123)/Etaw),0)) ->  | AI124: 0 | AJ124: 0 | AL124: =AE124+AD124+IF(Laufzeit_Zusatzheizung>=SUM($Y$60:$Y157),Kesselleistung*$H$45*Y124,0) ->  | AN124: =IF(Neu,INDEX(WP_BIN!$T$80:$CG$80,1,S124),AZ124) -> 0 | AQ124: 0 | AS124: 0 | AT124: 0 | AU124: 0 | AV124: =INDEX(Berechnungen!$E$79:$BR$79,1,S124) ->  | AW124: 39 | AX124: =INDEX(WP_BIN!$T$78:$CG$78,1,$S124) -> 26 | AY124: =INDEX(WP_BIN!$T$43:$CG$43,1,$S124) ->  | AZ124: =INDEX(WP_BIN!$T$79:$CG$79,1,$S124) -> 0 | BA124: =INDEX(WP_BIN!$T$86:$CG$86,1,$S124) -> 0 | BB124: =INDEX(WP_BIN!$T$47:$CG$47,1,$S124) ->  | BC124: =INDEX(WP_BIN!$T$54:$CG$54,1,$S124) -> 0
S125: 66 | T125: 0 | V125: 0 | W125: =IF(BIN,INDEX(BIN!$B$3:$BO$364,4+(Klima-2)*11,S125),0) -> 0 | X125: 40 | Y125: =IF(BINkorr,INDEX(Berechnungen!$E$81:$BR$81,1,S125)*IF(OR(Methode_384_3,Z125=0),1,AV125/Z125)/Leistungskorr*(1-Kollektor),W125*$T$130*(1-Kollektor)) ->  | Z125: =IF(Heizung,IF(Methode_384_3,INDEX(Berechnungen!$E$79:$BR$79,1,S125),IF(IF(Heizung,Z124-$Z$77/28,0)>0,IF(Heizung,Z124-$Z$77/28,0),0)),0) -> 0 | AB125: 0 | AD125: =MAX(IF(AE125>0,Z125*Y125/Etah/Nutzungsgrad,(Z125*Y125/Etah+AA125*Y125/Etaw-AB125*Y125)/Nutzungsgrad),0) ->  | AE125: =MAX(AA125-AB125,0)*W125/Nutzungsgrad/Etaw ->  | AF125: =Z125*Y125/Etah ->  | AG125: =IF($AA$77*SUM($W$60:$W124)/Etaw=BedarfWW,0,MAX(MIN($AA$77*W125/Etaw,BedarfWW-$AA$77*SUM($W$60:$W124)/Etaw),0)) ->  | AI125: 0 | AJ125: 0 | AL125: =AE125+AD125+IF(Laufzeit_Zusatzheizung>=SUM($Y$60:$Y158),Kesselleistung*$H$45*Y125,0) ->  | AM125: =MIN(AL125,W125*Kesselleistung) ->  | AN125: =IF(Neu,INDEX(WP_BIN!$T$80:$CG$80,1,S125),AZ125) -> 0 | AQ125: 0 | AS125: =MIN(IF(AB125>0,AK125/AB125,0),W125) -> 0 | AT125: =IF(WW=TRUE,AI125-AS125,0) -> 0 | AU125: 0 | AV125: =INDEX(Berechnungen!$E$79:$BR$79,1,S125) ->  | AW125: =X125 -> 40 | AX125: =INDEX(WP_BIN!$T$78:$CG$78,1,$S125) -> 26 | AY125: =INDEX(WP_BIN!$T$43:$CG$43,1,$S125) ->  | AZ125: =INDEX(WP_BIN!$T$79:$CG$79,1,$S125) -> 0 | BA125: =INDEX(WP_BIN!$T$86:$CG$86,1,$S125) -> 0 | BB125: =INDEX(WP_BIN!$T$47:$CG$47,1,$S125) ->  | BC125: =INDEX(WP_BIN!$T$54:$CG$54,1,$S125) -> 0
T126: =W126*Z126 ->  | U126: =1-SUM(U60:U125) -> 0.2595 | V126: =Z126*W126 ->  | W126: =IF(BIN,0,MIN(8760-SUM(W60:W125),IF($M$32>0,ROUND(U126*Heizperiode*$M$31/$M$32,0),ROUND(U126*Heizperiode,0)))) ->  | X126: 7-20 °C | Y126: =IF(BINkorr,0,W126*$T$130*(1-Kollektor)) -> 0 | Z126: =IF(Heizung,IF(Methode_384_3,0,IF(BINkorr,0,Z92/2)),0) -> 0 | AA126: =IF(AG126>0,$AA$77,0) ->  | AB126: =IF(Bivalenzpunkt<X126,AN126,0) -> 0 | AC126: =MAX(Z126+AA126-AB126,0)/Nutzungsgrad ->  | AD126: =MAX(IF(AE126>0,Z126*Y126/Etah/Nutzungsgrad*(1+Verteilverluste),(Z126*Y126/Etah*(1+Verteilverluste)+AA126*Y126/Etaw-AB126*Y126)/Nutzungsgrad),0) ->  | AE126: =MAX(AA126-AB126,0)*W126/Nutzungsgrad/Etaw ->  | AF126: =Z126*Y126/Etah -> 0 | AG126: =IF($AA$77*SUM($W$60:$W125)/Etaw=BedarfWW,0,MAX(MIN($AA$77*W126/Etaw,BedarfWW-$AA$77*SUM($W$60:$W125)/Etaw),0)) ->  | AH126: =MAX(AF126+AG126-AD126*Nutzungsgrad-AE126*Nutzungsgrad,0) ->  | AI126: =MIN(IF(AB126>0,AH126/AB126,0),W126) ->  | AJ126: =Z126*W126 ->  | AK126: =MAX(AF126-AD126*Nutzungsgrad,0) ->  | AL126: =AE126+AD126+IF(Laufzeit_Zusatzheizung>=SUM($Y$60:$Y126),Kesselleistung*$H$45*Y126,0) ->  | AM126: 0 | AN126: =MAX(0,AN92+(AN$92-AN$87)/5) -> 0 | AO126: =IF(AE126>AM126,AE126-AM126,0) ->  | AP126: =AL126-AM126-AO126 ->  | AQ126: =AQ92+(AQ$92-AQ$87)/5 -> 0 | AR126: =W126*$T$130 ->  | AS126: =MIN(IF(AB126>0,AK126/AB126,0),W126) ->  | AT126: =IF(WW=TRUE,AI126-AS126,0) -> 0 | AU126: =IF(WW=TRUE,W126*$AT$128/8760,0) -> 0
W127: =W128-SUM(W60:W126) ->  | X127: über 20° | Y127: =W128-SUM(Y60:Y126) ->  | Z127: 0 | AA127: =IF(AG127>0,$AA$77,0) ->  | AB127: =IF(Bivalenzpunkt<X127,AN127,0) -> 0 | AC127: =MAX(Z127+AA127-AB127,0)/Nutzungsgrad ->  | AD127: =MAX(IF(AE127>0,Z127*Y127/Etah/Nutzungsgrad*(1+Verteilverluste),(Z127*Y127/Etah*(1+Verteilverluste)+AA127*Y127/Etaw-AB127*Y127)/Nutzungsgrad),0) ->  | AE127: =MAX(AA127-AB127,0)*W127/Nutzungsgrad/Etaw ->  | AF127: =Z127*Y127/Etah*(1+Verteilverluste) ->  | AG127: =IF($AA$77*SUM($W$60:$W126)/Etaw=BedarfWW,0,MAX(MIN($AA$77*W127/Etaw,BedarfWW-$AA$77*SUM($W$60:$W126)/Etaw),0)) ->  | AH127: =MAX(AF127+AG127-AD127*Nutzungsgrad-AE127*Nutzungsgrad,0) ->  | AI127: =IF(Neu,0,MIN(IF(AB127>0,AH127/AB127,0),Y127,8760-SUM(AI60:AI126))) -> 0 | AK127: =MAX(AF127*Etah-AD127*Nutzungsgrad,0) ->  | AL127: =AE127+AD127+IF(Laufzeit_Zusatzheizung>=SUM($Y$60:$Y127),Kesselleistung*$H$45*Y127,0) ->  | AM127: 0 | AN127: =AN126 -> 0 | AO127: =IF(AE127>AM127,AE127-AM127,0) ->  | AP127: =AL127-AM127-AO127 ->  | AQ127: =AQ126 -> 0 | AR127: =W128-SUM(AR60:AR126) ->  | AS127: =MIN(IF(AB127>0,AK127/AB127,0),Y127,8760-SUM(AI60:AI126)) ->  | AT127: =IF(WW=TRUE,AI127-AS127,0) -> 0 | AW127: Summe Heizung | BB127: =SUM(AS60:AS125*BB60:BB125) -> 
U128: =SUM(U60:U127) -> 1 | V128: =SUM(V60:V126) ->  | W128: 8760 | X128: Total: | Y128: =SUM(Y60:Y127) ->  | AD128: =SUM(AD60:AD127) ->  | AE128: =SUM(AE60:AE127) ->  | AF128: =SUM(AF60:AF127) ->  | AG128: =IF($AA$77*Y128/Etaw*(1-KollektorWW)>0,$AA$77*Y128/Etaw*(1-KollektorWW),0.1) ->  | AH128: =SUM(AH60:AH127) ->  | AI128: =SUM(AI60:AI127) ->  | AO128: =SUM(AO60:AO127) ->  | AP128: =SUM(AP60:AP127) ->  | AR128: =SUM(AR60:AR127) ->  | AS128: =SUM(AS60:AS127) ->  | AT128: =SUM(AT60:AT127) -> 0 | AU128: =SUM(AU60:AU126) -> 0 | AW128: Mittelwert Heizung | BB128: =SUM(AS60:AS125*BB60:BB125)/AS128 -> 
T129: 1 - eff. Solar | V129: Qh | W129: Heizperiode [h/a] | X129: Heizstunden: | Y129: =Heizperiode*(1-Solaranteil) ->  | AD129: total Zusatzheizung Heizung und WW (ohne Bereitschaftsverluste): | AE129: =ZusatzWW+Zusatzheizung ->  | AF129: Bedarf: | AG129: =AF128+AG128 ->  | AK129: Zusatzheizung inkl. Bereitschaftsverluste: | AL129: =AL128 ->  | AW129: Summe Warmwasser | BC129: =SUM(AU60:AU125*BC60:BC125) -> 0
T130: =1-Solaranteil ->  | V130: =Qh*EBF/3.6 -> 0 | W130: =(HGT*1.065)/(20-TaMittel)*24 ->  | X130: Solarant. = | Y130: =IF(V128>0,IF(Qtot>0,1-'WP1'!H9*(1+Verteilverluste)/Qtot,1-15/24),0) ->  | Z130: =SUMIF('WP1'!X60:X125,TaMin,'WP1'!Z60:Z125) -> 0 | AA130: Max. Leistung Gebäude | AW130: Mittelwert Warmwasser | BC130: =SUM(AU60:AU125*BC60:BC125)/AU128 -> 
S132: WP-Art | T132: WP-Typ | AD132: Betrieb | AE132: bivalent? | AF132: el.-Zusatz | AH132: Speicher-Verluste | AI132: =J22 -> 1 | AJ132: Speicherverluste | AK132: Überladung
S133: 1 | AE133: FALSE | AF133: FALSE | AI133: TRUE | AJ133: 0 | AK133: FALSE
S134: 2 | T134: =Sprache!B61&" "&Sprache!B264 -> Pompe à chaleur air/eau une vitesse | V134: Verlust - Tabelle: | AD134: =Sprache!B115 -> fonctionnement chauffage monovalent | AE134: FALSE | AF134: FALSE | AH134: =IF(J20=18,"",IF(Heizung=FALSE,"",Sprache!B119)) ->  | AI134: FALSE | AJ134: 0 | AK134: FALSE
S135: 2 | T135: =Sprache!B61&" "&Sprache!B265 -> Pompe à chaleur air/eau 2 vitesses | AA135: default: | AD135: =Sprache!B116 -> avec chauffage électrique de secours | AE135: FALSE | AF135: TRUE | AH135: =IF(J20=18,"",IF(Heizung=FALSE,"",Sprache!B118)) ->  | AI135: TRUE | AJ135: =Z136 -> 0.02 | AK135: FALSE
S136: 2 | T136: =Sprache!B61&" "&Sprache!B266 -> Pompe à chaleur air/eau Plusieurs vitesses | V136: Verluste Heizungs-Speicher, inkl. Speicherladepumpe: | Z136: 0.02 | AA136: 0.02 | AD136: =Sprache!B117 -> Installation bivalente fossile | AE136: TRUE | AF136: FALSE | AH136: =IF(J20=18,"",IF(BH57=4,IF(JAZcalc,JAZcalc!AE6,Sprache!B279),"")) ->  | AI136: =IF(BH57=4,TRUE,FALSE) -> FALSE | AJ136: =Z137 -> 0.04 | AK136: TRUE
S137: 2 | T137: =Sprache!B61&" "&Sprache!B267 -> Pompe à chaleur air/eau vitesse variable | V137: Verluste Heizungs-Speicher, Kombispeicher, Stasch-Schaltung | Z137: 0.04 | AA137: 0.04 | AD137: =Sprache!B287 -> Installation bivalente fossile alternative | AH137: =IF(J20=18,"",IF(BH57=4,Sprache!B280,"")) ->  | AI137: =IF(BH57=4,TRUE,FALSE) -> FALSE | AJ137: =Z138 -> 0.06 | AK137: TRUE
S138: 3 | T138: =Sprache!B62&" "&Sprache!B264 -> Pompe à chaleur sol/eau une vitesse | V138: Verluste Heizungs-Speicher, Kombispeicher, 1 WP-Rücklauf aus Speicher | Z138: 0.06 | AA138: 0.06 | AH138: =IF(J20=18,"",IF(BH57=4,Sprache!B281,"")) ->  | AI138: =IF(BH57=4,TRUE,FALSE) -> FALSE | AJ138: =Z139 -> 0.05 | AK138: TRUE
S139: 3 | T139: =Sprache!B62&" "&Sprache!B265 -> Pompe à chaleur sol/eau 2 vitesses | V139: Verluste Heizungs-Speicher, Kombispeicher, 2 WP-Rücklauf aus Speicher | Z139: 0.05 | AA139: 0.05 | AD139: =J23 -> 1 | AE139: =INDEX(AE133:AE136,AD139,1) -> FALSE | AF139: =INDEX(AF133:AF136,AD139,1) -> FALSE
S140: 3 | T140: =Sprache!B62&" "&Sprache!B266 -> Pompe à chaleur sol/eau Plusieurs vitesses
S141: 3 | T141: =Sprache!B62&" "&Sprache!B267 -> Pompe à chaleur sol/eau vitesse variable | V141: Verluste WW-Speicher: | Z141: 0.04 | AA141: 0.04
S142: 4 | T142: =Sprache!B63&" "&Sprache!B264 -> Pompe à chaleur eau/eau une vitesse | V142: zus. Speicher-Ladeverluste mit Elektro-Durchlauferhitzer | Z142: 0.02 | AA142: 0.02
S143: 4 | T143: =Sprache!B63&" "&Sprache!B265 -> Pompe à chaleur eau/eau 2 vitesses | V143: zus. Speicher-Ladeverluste mit Heizstab | Z143: 0.04 | AA143: 0.04
S144: 4 | T144: =Sprache!B63&" "&Sprache!B266 -> Pompe à chaleur eau/eau Plusieurs vitesses | V144: zus. Speicher-Ladeverluste mit Heizstab, gesperrt bei Ladung | Z144: 0.01 | AA144: 0.01
S145: 4 | T145: =Sprache!B63&" "&Sprache!B267 -> Pompe à chaleur eau/eau vitesse variable | V145: WW-Zusatzstrombedarf mit Heizstab im parallelbetrieb | Z145: 0.05 | AA145: 0.05
S146: 5 | T146: =Sprache!B64&" "&Sprache!B264 -> PAC avec collecteur terrestre une vitesse | V146: WW-Zusatzstrombedarf mit el.-Nachwärmung | Z146: 0 | AA146: 0 | AH146: =INDEX(AH133:AH145,AI132,1) ->  | AI146: =INDEX(AI133:AI145,AI132,1) -> TRUE | AJ146: =INDEX(AJ133:AJ145,AI132,1) -> 0 | AK146: =INDEX(AK133:AK145,AI132,1) -> FALSE
S147: 5 | T147: =Sprache!B64&" "&Sprache!B265 -> PAC avec collecteur terrestre 2 vitesses | V147: Anfahrverluste WP Heizung | Z147: 0.02 | AA147: 0.02
S148: 5 | T148: =Sprache!B64&" "&Sprache!B266 -> PAC avec collecteur terrestre Plusieurs vitesses | V148: Anfahrverluste WP WW | Z148: 0.02 | AA148: 0.02
S149: 5 | T149: =Sprache!B64&" "&Sprache!B267 -> PAC avec collecteur terrestre vitesse variable
S150: 6 | T150: =Sprache!B268 -> PAC sur air extrait sur installation de ventilation sans récupération de chaleur | U150: Sonnenkollektoren
S151: 6 | T151: ="" -> 
S152: 6 | T152: ="" ->  | U152: Heizungsunterstützung | X152: Index1 Azimut: | Y152: =IF(Azimut="",4,IF(ABS(Azimut)>90,13,IF(Azimut<0,ROUND(-Azimut/15,0)+7,ROUND(Azimut/15,0)+7))) -> 7 | AA152: Index Neigung: | AB152: =IF(Neigung="",5,IF(Neigung>90,1,IF(Neigung<0,10,10-ROUND(Neigung/10,0)))) -> 10 | AC152: Korrektur: | AD152: =(INDEX(V156:AH165,AB152,Y152)+INDEX(V156:AH165,AB152,Y153))/2/W167 -> 0.7868852459
S153: 6 | T153: ="" ->  | X153: Index2 Azimut: | Y153: =14-Y152 -> 7 | AA153: Azimut:
V154: West | AH154: Ost
U155: Neigung: | V155: -90 | W155: -75 | X155: -60 | Y155: -45 | Z155: -30 | AA155: -15 | AB155: 0 | AC155: 15 | AD155: 30 | AE155: 45 | AF155: 60 | AG155: 75 | AH155: 90
U156: 90 | V156: 0.58 | W156: 0.65 | X156: 0.72 | Y156: 0.77 | Z156: 0.79 | AA156: 0.8 | AB156: 0.79 | AC156: 0.77 | AD156: 0.73 | AE156: 0.68 | AF156: 0.63 | AG156: 0.55 | AH156: 0.47
U157: 80 | V157: 0.63 | W157: 0.71 | X157: 0.78 | Y157: 0.84 | Z157: 0.87 | AA157: 0.89 | AB157: 0.87 | AC157: 0.85 | AD157: 0.82 | AE157: 0.76 | AF157: 0.7 | AG157: 0.61 | AH157: 0.53
U158: 70 | V158: 0.68 | W158: 0.76 | X158: 0.84 | Y158: 0.9 | Z158: 0.93 | AA158: 0.95 | AB158: 0.95 | AC158: 0.92 | AD158: 0.89 | AE158: 0.83 | AF158: 0.75 | AG158: 0.66 | AH158: 0.58
U159: 60 | V159: 0.71 | W159: 0.8 | X159: 0.87 | Y159: 0.93 | Z159: 0.96 | AA159: 0.98 | AB159: 0.97 | AC159: 0.96 | AD159: 0.92 | AE159: 0.86 | AF159: 0.8 | AG159: 0.71 | AH159: 0.62
U160: 50 | V160: 0.74 | W160: 0.82 | X160: 0.89 | Y160: 0.95 | Z160: 0.97 | AA160: 1 | AB160: 0.98 | AC160: 0.97 | AD160: 0.93 | AE160: 0.88 | AF160: 0.82 | AG160: 0.74 | AH160: 0.65
U161: 40 | V161: 0.75 | W161: 0.83 | X161: 0.89 | Y161: 0.93 | Z161: 0.96 | AA161: 0.98 | AB161: 0.97 | AC161: 0.96 | AD161: 0.93 | AE161: 0.87 | AF161: 0.83 | AG161: 0.76 | AH161: 0.67
U162: 30 | V162: 0.75 | W162: 0.82 | X162: 0.87 | Y162: 0.91 | Z162: 0.95 | AA162: 0.95 | AB162: 0.95 | AC162: 0.94 | AD162: 0.91 | AE162: 0.86 | AF162: 0.82 | AG162: 0.77 | AH162: 0.7
U163: 20 | V163: 0.75 | W163: 0.8 | X163: 0.84 | Y163: 0.87 | Z163: 0.89 | AA163: 0.9 | AB163: 0.9 | AC163: 0.89 | AD163: 0.87 | AE163: 0.84 | AF163: 0.8 | AG163: 0.76 | AH163: 0.7
U164: 10 | V164: 0.74 | W164: 0.76 | X164: 0.79 | Y164: 0.8 | Z164: 0.82 | AA164: 0.82 | AB164: 0.82 | AC164: 0.82 | AD164: 0.8 | AE164: 0.79 | AF164: 0.77 | AG164: 0.75 | AH164: 0.71
U165: 0 | V165: 0.72 | W165: 0.72 | X165: 0.72 | Y165: 0.72 | Z165: 0.72 | AA165: 0.72 | AB165: 0.72 | AC165: 0.72 | AD165: 0.72 | AE165: 0.72 | AF165: 0.72 | AG165: 0.72 | AH165: 0.72
U167: Referenz: | V167: 45° / 45°: | W167: 0.915
U170: Warmwasser | AC170: Korrektur: | AD170: =(INDEX(V174:AH183,AB152,Y152)+INDEX(V174:AH183,AB152,Y153))/2/W185 -> 0.8972972973
AA171: Azimut:
V172: West | AH172: Ost
U173: Neigung: | V173: -90 | W173: -75 | X173: -60 | Y173: -45 | Z173: -30 | AA173: -15 | AB173: 0 | AC173: 15 | AD173: 30 | AE173: 45 | AF173: 60 | AG173: 75 | AH173: 90
U174: 90 | V174: 0.64 | W174: 0.7 | X174: 0.74 | Y174: 0.77 | Z174: 0.78 | AA174: 0.78 | AB174: 0.77 | AC174: 0.75 | AD174: 0.73 | AE174: 0.7 | AF174: 0.66 | AG174: 0.61 | AH174: 0.55
U175: 80 | V175: 0.69 | W175: 0.75 | X175: 0.8 | Y175: 0.83 | Z175: 0.85 | AA175: 0.85 | AB175: 0.85 | AC175: 0.83 | AD175: 0.8 | AE175: 0.76 | AF175: 0.72 | AG175: 0.67 | AH175: 0.6
U176: 70 | V176: 0.73 | W176: 0.8 | X176: 0.85 | Y176: 0.89 | Z176: 0.91 | AA176: 0.92 | AB176: 0.91 | AC176: 0.9 | AD176: 0.87 | AE176: 0.83 | AF176: 0.78 | AG176: 0.71 | AH176: 0.65
U177: 60 | V177: 0.76 | W177: 0.83 | X177: 0.88 | Y177: 0.93 | Z177: 0.95 | AA177: 0.95 | AB177: 0.95 | AC177: 0.95 | AD177: 0.92 | AE177: 0.87 | AF177: 0.82 | AG177: 0.75 | AH177: 0.69
U178: 50 | V178: 0.79 | W178: 0.85 | X178: 0.9 | Y178: 0.95 | Z178: 0.96 | AA178: 0.97 | AB178: 0.97 | AC178: 0.96 | AD178: 0.95 | AE178: 0.9 | AF178: 0.85 | AG178: 0.79 | AH178: 0.72
U179: 40 | V179: 0.81 | W179: 0.86 | X179: 0.91 | Y179: 0.95 | Z179: 0.96 | AA179: 0.99 | AB179: 0.99 | AC179: 0.97 | AD179: 0.95 | AE179: 0.92 | AF179: 0.87 | AG179: 0.81 | AH179: 0.75
U180: 30 | V180: 0.82 | W180: 0.86 | X180: 0.91 | Y180: 0.95 | Z180: 0.95 | AA180: 0.97 | AB180: 0.97 | AC180: 0.96 | AD180: 0.95 | AE180: 0.91 | AF180: 0.87 | AG180: 0.82 | AH180: 0.76
U181: 20 | V181: 0.82 | W181: 0.85 | X181: 0.89 | Y181: 0.91 | Z181: 0.93 | AA181: 0.94 | AB181: 0.94 | AC181: 0.93 | AD181: 0.92 | AE181: 0.89 | AF181: 0.86 | AG181: 0.82 | AH181: 0.78
U182: 10 | V182: 0.82 | W182: 0.84 | X182: 0.85 | Y182: 0.87 | Z182: 0.87 | AA182: 0.89 | AB182: 0.89 | AC182: 0.88 | AD182: 0.87 | AE182: 0.85 | AF182: 0.84 | AG182: 0.83 | AH182: 0.8
U183: 0 | V183: 0.83 | W183: 0.83 | X183: 0.83 | Y183: 0.83 | Z183: 0.83 | AA183: 0.83 | AB183: 0.83 | AC183: 0.83 | AD183: 0.83 | AE183: 0.83 | AF183: 0.83 | AG183: 0.83 | AH183: 0.83
U185: Referenz: | V185: 45° / 45°: | W185: 0.925

Sheet Sprache (hidden)
A2: Sprachversion | C2: 2 | D2: Programm-Version: | E2: 8.3.33 | G2: deutsch
D3: gültig bis: | E3: 31.12.2025 | G3: français
B4: Auswahl | C4: deutsch | D4: französisch | E4: italienisch | F4: Hilfsformeln | G4: italiano
C6: Blatt WP
A7: 1 | B7: =IF(F7<>"",F7,INDEX($C$7:$F$713,A7,$C$2)) -> PAC | C7: WP | D7: PAC | E7: PdC
A8: 2 | B8: =IF(F8<>"",F8,INDEX($C$7:$F$713,A8,$C$2)) -> WPesti / V 8.3.33 / 27.09.2024 valable jusqu'à 31.12.2025 | C8: WPesti / V | D8: WPesti / V | E8: WPesti / V | F8: =INDEX($C$7:$F$713,A8,$C$2)&E2&" / "&TEXT(WP_Daten!E2,"tt.MM.jjjj ")&B282&TEXT(E3,"tt.MM.jjjj") -> WPesti / V 8.3.33 / 27.09.2024 valable jusqu'à 31.12.2025
A9: 3 | B9: Projet: | C9: Projekt: | D9: Projet: | E9: Progetto:
A10: 4 | B10: Données concernant le bâtiment | C10: Gebäudedaten | D10: Données concernant le bâtiment | E10: Dati dell'edificio
A11: 5 | B11: Station climatique: | C11: Klimastation | D11: Station climatique: | E11: Stazione climatica
A12: 6 | B12: Surface de référence énergétique SRE | C12: Energiebezugsfläche EBF | D12: Surface de référence énergétique SRE | E12: Superficie di riferimento energetico Ae
A13: 7 | B13: Catégorie d'ouvrage | C13: Gebäudekategorie | D13: Catégorie d'ouvrage | E13: Categoria dell'edificio
A14: 8 | B14: Besoins de chaleur pour le chauffage selon SIA 380/1 | C14: Heizwärmebedarf nach SIA 380/1 | D14: Besoins de chaleur pour le chauffage selon SIA 380/1 | E14: Fabbisogno termico per il riscaldamento secondo SIA 380/1
A15: 9 | B15: Déperditions par transmission selon SIA 380/1 | C15: Transmissionswärmeverluste nach SIA 380/1 | D15: Déperditions par transmission selon SIA 380/1 | E15: Perdite per trasmissione secondo SIA 380/1
A16: 10 | B16: Déperditions par renouvellement d'air selon SIA 380/1 | C16: Lüftungswärmeverluste nach SIA 380/1 | D16: Déperditions par renouvellement d'air selon SIA 380/1 | E16: Perdite termiche per ventilazione secondo SIA 380/1
A17: 11 | B17: Chauffage: pertes supplémentaires de distribution de chaleur | C17: Heizung: Zusätzliche Verteilverluste | D17: Chauffage: pertes supplémentaires de distribution de chaleur | E17: Riscaldamento: ulteriori perdite di distribuzione
A18: 12 | B18: Durée de coupure d'alimentation de la PAC | C18: Sperrzeiten für Wärmepumpe | D18: Durée de coupure d'alimentation de la PAC | E18: Durata di interruzione di corrente della PdC
A19: 13 | B19: Puissance de chauffage nécessaire sans ECS à °C | C19: Heizleistungsbedarf ohne Warmwasser bei | D19: Puissance de chauffage nécessaire sans ECS à | E19: Potenza termica senza acqua calda | F19: =IF(TaMin<>0,INDEX($C$7:$F$713,A19,$C$2)&TaMin&"°C",INDEX($C$7:$F$713,A19,$C$2)&"-8°C") -> Puissance de chauffage nécessaire sans ECS à °C
A20: 14 | B20: Besoins de chaleur pour l'ECS selon SIA 380/1 | C20: Warmwasserbedarf nach SIA 380/1 | D20: Besoins de chaleur pour l'ECS selon SIA 380/1 | E20: Fabbisogno termico per l'acqua calda ACS secondo SIA 380/1
A21: 15 | B21: Eau chaude sanitaire: pertes supplémentaires d'accumulation et de distribution | C21: Warmwasser: Zusätzliche Speicher- und Verteilverluste | D21: Eau chaude sanitaire: pertes supplémentaires d'accumulation et de distribution | E21: Acqua calda sanitaria: ulteriori perdite di accumulazione e distribuzione
A22: 16 | B22: Installation de pompe à chaleur | C22: Wärmepumpen-Anlage | D22: Installation de pompe à chaleur | E22: Sistemi di pompe di calore
A23: 17 | B23: Nom et type de PAC | C23: Name und Typ der Wärmepumpe: | D23: Nom et type de PAC | E23: Nome e tipo della PdC
A24: 18 | B24: choisir -> | C24: auswählen -> | D24: choisir -> | E24: scegliere ->
A25: 19 | B25: Erreur! | C25: Fehler! | D25: Erreur! | E25: Errore!
A26: 20 | B26: Source de chaleur: | C26: Wärmequelle: | D26: Source de chaleur: | E26: Fonte di calore
A27: 21 | B27: Utilisation (chauffage ou eau chaude sanitaire) | C27: Einsatz (Heizung oder Warmwasser): | D27: Utilisation (chauffage ou eau chaude sanitaire) | E27: Utilizzazione (riscaldamento o acqua calda)
A28: 22 | B28: Mode de fonctionnement de la PAC | C28: Betriebsweise der Wärmepumpen-Anlage: | D28: Mode de fonctionnement de la PAC | E28: Modalità di funzionamento della PdC
A29: 23 | B29: Accumulateur de chaleur | C29: Heizungsspeicher | D29: Accumulateur de chaleur | E29: Accumulatore per il riscaldamento
A30: 24 | B30: Commande de l'appoint électrique de chauffage | C30: Steuerung des Elektro-Heizeinsatzes | D30: Commande de l'appoint électrique de chauffage | E30: Comando del riscaldamento elettrico d'appoggio
A31: 25 | B31: Installation solaire | C31: Solaranlage | D31: Installation solaire | E31: Impianto solare
A32: 26 | B32: Résultats | C32: Resultate | D32: Résultats | E32: Risultati
A33: 27 | B33: Part d'énergie fossile d'appoint pour le chauffage | C33: Anteil fossiler Zusatzheizung für Heizung | D33: Part d'énergie fossile d'appoint pour le chauffage | E33: Quota di energia fossile per il riscaldamento
A34: 28 | B34: Part d'énergie électrique pour le chauffage | C34: Elektro-Direkt-Anteil für die Heizung | D34: Part d'énergie électrique pour le chauffage | E34: Quota di energia elettrica per il riscaldamento
A35: 29 | B35: Part non couverte des besoins de chaleur pour le chauffage | C35: ungedeckter Wärmebedarf Heizung | D35: Part non couverte des besoins de chaleur pour le chauffage | E35: Quota non coperta del fabbisogno termico per il riscaldamento
A36: 30 | B36: Part d'énergie électrique pour l'ECS | C36: Elektro-Direkt-Anteil für das Warmwasser | D36: Part d'énergie électrique pour l'ECS | E36: Quota di energia elettrica per il riscaldamento dell'ACS
A37: 31 | B37: Part d'énergie fossile d'appoint pour l'ECS | C37: Anteil fossiler Zusatzheizung für Warmwasser | D37: Part d'énergie fossile d'appoint pour l'ECS | E37: Quota di energia fossile per il riscaldamento dell'ACS
A38: 32 | B38: Pertes en mode chauffage (démarrage, accumulateur, etc.) | C38: Verluste im Heizbetrieb (Anfahren, Speicher, etc.) | D38: Pertes en mode chauffage (démarrage, accumulateur, etc.) | E38: Perdite in modalità riscaldamento (avviamento, accumulatore, ecc.)
A39: 33 | B39: =IF(F39<>"",F39,INDEX($C$7:$F$713,A39,$C$2)) -> Pertes en mode préparation d'ECS (démarrage, accumulateur, etc.) | C39: Verluste im WW-Betrieb (Anfahren, Speicher, etc.) | D39: Pertes en mode préparation d'ECS (démarrage, accumulateur, etc.) | E39: Perdite in modalità preparazione dell' ACS (avviamento, accumulatore, ecc.)
A40: 34 | B40: Durée de fonctionnement de la pompe à chaleur | C40: Laufzeit der Wärmepumpe | D40: Durée de fonctionnement de la pompe à chaleur | E40: Durata di funzionamento della pompa di calore
A41: 35 | B41: Part et COP annuel de la pompe à chaleur pour le chauffage | C41: Anteil und JAZ der Wärmepumpe für die Heizung | D41: Part et COP annuel de la pompe à chaleur pour le chauffage | E41: Quota e CLA della pompa di calore per il riscaldamento
A42: 36 | B42: Part et COP annuel de la pompe à chaleur pour l'ECS | C42: Anteil und JAZ der Wärmepumpe für Warmwasser | D42: Part et COP annuel de la pompe à chaleur pour l'ECS | E42: Quota e CLA della pompa di calore per l'ACS
A43: 37 | B43: Facteur de pondération pour le chauffage: | C43: Gewichtungsfaktor Heizung wh: | D43: Facteur de pondération pour le chauffage: | E43: Fattore di ponderazione per il riscaldamento:
A44: 38 | B44: Facteur de pondération pour l'ECS | C44: Gewichtungsfaktor Warmwasser www: | D44: Facteur de pondération pour l'ECS | E44: Fattore di ponderazione per l'ACS:
A45: 39 | B45: COP annuel pour chauffage et ECS (COPa [ch+ECS]) | C45: Jahresarbeitszahl Heizung + Warmwasser JAZh+ww: | D45: COP annuel pour chauffage et ECS (COPa [ch+ECS]) | E45: CLA per il riscaldamento e l'ACS (CLA [risc+acs]):
A46: 40 | B46: Elévation de température dans la PAC en conditions de test selon la norme | C46: Temperaturerhöhung in der Wärmepumpe bei Normbedingungen | D46: Elévation de température dans la PAC en conditions de test selon la norme | E46: Aumento della temperatura nella PdC alle condizioni normalizzate
A47: 41 | B47: Température de départ du chauffage: | C47: Vorlauftemperatur der Heizung: | D47: Température de départ du chauffage: | E47: Temperatura di mandata del riscaldamento:
A48: 42 | B48: Température de retour du chauffage: | C48: Rücklauftemperatur der Heizung: | D48: Température de retour du chauffage: | E48: Temperatura di ritorno del riscaldamento:
A49: 43 | B49: Différence de température accu - départ chauffage | C49: Differenz Speichertemperatur - Vorlauftemperatur Heizung | D49: Différence de température accu - départ chauffage | E49: Differenza di temperatura tra accumulatore e mandata riscaldamento:
A50: 44 | B50: Température de commutation pour fonctionnement bivalent alternatif | C50: Umschalt-Temperatur für bivalent-alternativen Betrieb | D50: Température de commutation pour fonctionnement bivalent alternatif | E50: Temperatura di commutazione per il funzionamento bivalente alternativo
A51: 45 | B51: Type d'appoint électrique pour ECS : | C51: elektrische Zusatzheizung Warmwasser: | D51: Type d'appoint électrique pour ECS : | E51: Tipo d'appoggio elettrico per ACS
A52: 46 | B52: Température ECS garantie sans appoint électrique : | C52: garantierte Warmwassertemperatur ohne Elektroheizstab: | D52: Température ECS garantie sans appoint électrique : | E52: Temperatura dell'ACS garantita senza appoggio elettrico:
A53: 47 | B53: Température ECS avec postchauffage électrique: | C53: Warmwassertemperatur mit Elektro - Nachwärmer Qww : | D53: Température ECS avec postchauffage électrique: | E53: Temperatura dell'ACS con post-riscaldamento elettrico:
A54: 48 | B54: Capacité de l'accumulateur d'ECS | C54: WW-Speicher-Inhalt | D54: Capacité de l'accumulateur d'ECS | E54: Capacità dell'accumulatore dell'ACS
A55: 49 | B55: Surface des absorbeurs | C55: Absorberfläche | D55: Surface des absorbeurs | E55: Superficie dell'assorbitore
A56: 50 | B56: orientation / inclinaison des collecteurs | C56: Kollektorausrichtung | D56: orientation / inclinaison des collecteurs | E56: Orientamento / inclinazione dei collettori
A57: 51 | B57: Apport net par m2 d'absorbeur | C57: Nettoertrag pro m2 Absorberfläche | D57: Apport net par m2 d'absorbeur | E57: Apporto netto per m2 d'assorbitore
A58: 52 | B58: Altitude par rapport au niveau de la mer | C58: Höhe über Meer des Standortes | D58: Altitude par rapport au niveau de la mer | E58: Altitudine dell'impianto
A59: 53 | B59: Taux de couverture solaire pour l'ECS | C59: Solarer Deckungsgrad Warmwasser | D59: Taux de couverture solaire pour l'ECS | E59: Tasso di copertura solare per l'ACS
A60: 54 | B60: Taux de couverture solaire pour le chauffage | C60: Solarer Deckungsgrad Heizung | D60: Taux de couverture solaire pour le chauffage | E60: Tasso di copertura solare per il riscaldamento
A61: 55 | B61: Pompe à chaleur air/eau | C61: Luft-Wasser - Wärmepumpe | D61: Pompe à chaleur air/eau | E61: Pompa di calore aria / acqua
A62: 56 | B62: Pompe à chaleur sol/eau | C62: Erdsonden-Wärmepumpe | D62: Pompe à chaleur sol/eau | E62: Pompa di calore con sonda geotermica
A63: 57 | B63: Pompe à chaleur eau/eau | C63: Wasser-Wasser-Wärmepumpe | D63: Pompe à chaleur eau/eau | E63: Pompa di calore acqua / acqua
A64: 58 | B64: PAC avec collecteur terrestre | C64: Erdkollektor-Wärmepumpe | D64: PAC avec collecteur terrestre | E64: PdC con registro nel terreno
A65: 59 | B65: COP aux conditions normalisées 7 °C / 50°C (A7 / W50): | C65: COP bei Normtemperatur 7 °C / 50°C (A7 / W50): | D65: COP aux conditions normalisées 7 °C / 50°C (A7 / W50): | E65: COP alle condizioni normalizzate 7 °C / 50°C (A7 / W50):
A66: 60 | B66: COP aux conditions normalisées 7 °C / 50°C (A7 / W50): | C66: COP bei Normtemperatur 7 °C / 50°C (A7 / W50): | D66: COP aux conditions normalisées 7 °C / 50°C (A7 / W50): | E66: COP alle condizioni normalizzate 7 °C / 50°C (A7 / W50):
A67: 61 | B67: Puissance électrique soutirée par pompe de sonde: | C67: Elektrische Leistungsaufnahme Sondenpumpe: | D67: Puissance électrique soutirée par pompe de sonde: | E67: Potenza elettrica assorbita dalla pompa delle sonde
A68: 62 | B68: COP aux conditions normalisées (W10 / W50): | C68: COP bei Normtemperatur (W10 / W50): | D68: COP aux conditions normalisées (W10 / W50): | E68: COP alle condizioni normalizzate (W10 / W50):
A69: 63 | B69: Température de la source (entrée PAC) | C69: Quellentemperatur (Verdampfer-Eintritt): | D69: Température de la source (entrée PAC) | E69: Temperatura della fonte di calore (dalle PdC):
A70: 64 | B70: Puissance électrique soutirée par pompe saumure: | C70: Elektrische Leistungsaufnahme Solepumpe: | D70: Puissance électrique soutirée par pompe saumure: | E70: Potenza elettrica assorbita dalla pompa salamoia
A71: 65 | B71: =IF(F71<>"",F71,INDEX($C$7:$F$713,A71,$C$2)) -> COP aux conditions normalisées -7 °C / 35°C (A-7 / W35): | C71: COP bei Normtemperatur -7 °C / 35°C (A-7 / W35): | D71: COP aux conditions normalisées -7 °C / 35°C (A-7 / W35): | E71: COP alle condizioni normalizzate -7 °C / 35°C (A-7 / W35):
A72: 66 | B72: Nombre: | C72: Anzahl: | D72: Nombre: | E72: Numero:
A73: 67 | B73: COP aux conditions normalisées (W10 / W35): | C73: COP bei Normtemperatur (W10 / W35): | D73: COP aux conditions normalisées (W10 / W35): | E73: COP alle condizioni normalizzate (W10 / W35):
A74: 68 | B74: Surface de collecteurs | C74: Kollektorfläche | D74: Surface de collecteurs | E74: Superficie dei collettori
A75: 69 | B75: choisir -> | C75: ausfüllen -> | D75: choisir -> | E75: scegliere ->
A76: 70 | B76: Puissance calorifique aux conditions normalisées -7 °C (A-7 / W35): | C76: Heizleistung bei Normtemperatur -7 °C (A-7 / W35): | D76: Puissance calorifique aux conditions normalisées -7 °C (A-7 / W35): | E76: Potenza termica alle condizioni normalizzate -7 °C (A-7 / W35):
A77: 71 | B77: Longueur: | C77: Länge: | D77: Longueur: | E77: Lunghezza:
A78: 72 | B78: Puissance thermique à (W10 / W35): | C78: Heizleistung bei (W10 / W35): | D78: Puissance thermique à (W10 / W35): | E78: Potenza termica a (W10 / W35):
A79: 73 | B79: Sondes géothermiques: | C79: Erdwärmesonden: | D79: Sondes géothermiques: | E79: Sonde geotermiche:
A80: 74 | B80: Puissance spécifique soutirée | C80: Spezifische Entzugsleistung | D80: Puissance spécifique soutirée | E80: Potenza di estrazione specifica
A81: 75 | B81: COP aux conditions normalisées +2 °C (A2 / W35): | C81: COP bei Normtemperatur +2 °C (A2 / W35): | D81: COP aux conditions normalisées +2 °C (A2 / W35): | E81: COP alle condizioni normalizzate +2 °C (A2 / W35)
A82: 76 | B82: Température de dimensionnement des sondes (optionnel, calcul externe) | C82: Auslegungs-Sondentemperatur (optional, aus externer Berechnung in Beilage) | D82: Température de dimensionnement des sondes (optionnel, calcul externe) | E82: Temperatura di dimensionamento delle sonde (opzioni, calcolo esterno)
A83: 77 | B83: Température source de chaleur (si pas 10°C) | C83: Quellentemperatur (falls nicht 10°C) | D83: Température source de chaleur (si pas 10°C) | E83: Temperatura della fonte di calore (se non 10°C)
A84: 78 | B84: Température de dimensionnement des sondes (optionnel, calcul externe) | C84: Auslegungs-Sondentemperatur (optional, aus externer Berechnung in Beilage) | D84: Température de dimensionnement des sondes (optionnel, calcul externe) | E84: Temperatura di dimensionamento delle sonde (opzioni, calcolo esterno)
A85: 79
A86: 80 | B86: =IF(F86<>"",F86,INDEX($C$7:$F$713,A86,$C$2)) -> Puissance calorifique aux conditions normalisées +2 °C (A2 / W35): | C86: Heizleistung bei Normtemperatur +2 °C (A2 / W35): | D86: Puissance calorifique aux conditions normalisées +2 °C (A2 / W35): | E86: Potenza termica alle condizioni normalizzate +2 °C (A2 / W35):
A87: 81 | B87: COP aux conditions normalisées (B0 / W50) | C87: COP bei Normtemperatur (B0 / W50): | D87: COP aux conditions normalisées (B0 / W50) | E87: COP alle condizioni normalizzate (B0 / W50)
A88: 82 | B88: Puissance électrique soutirée par pompe de circulation: | C88: Elektrische Leistungsaufnahme Förderpumpe: | D88: Puissance électrique soutirée par pompe de circulation: | E88: Potenza elettrica assorbita dalla pompa di circolazione:
A89: 83 | B89: COP aux conditions normalisées (B0 / W50) | C89: COP bei Normtemperatur (B0 / W50): | D89: COP aux conditions normalisées (B0 / W50) | E89: COP alle condizioni normalizzate (B0 / W50)
A90: 84 | B90: COP aux conditions normalisées +7 °C (A7 / W35): | C90: COP bei Normtemperatur +7 °C (A7 / W35): | D90: COP aux conditions normalisées +7 °C (A7 / W35): | E90: COP alle condizioni normalizzate +7 °C (A7 / W35):
A91: 85 | B91: Coefficient de performance COP (B0 / W35) | C91: Leistungszahl COP (B0 / W35): | D91: Coefficient de performance COP (B0 / W35) | E91: Coefficiente di prestazione COP (B0 / W35)
A92: 86 | B92: Type de pompe (données nécessaires si puissance < valeur proposée) | C92: Typ der Förderpumpe (Angabe nötig, wenn Leistung < Vorschlagswert) | D92: Type de pompe (données nécessaires si puissance < valeur proposée) | E92: Tipo di pompa (dati necessari se la potenza < al valore proposto)
A93: 87 | B93: Coefficient de performance COP (B0 / W35) | C93: Leistungszahl COP (B0 / W35): | D93: Coefficient de performance COP (B0 / W35) | E93: Coefficiente di prestazione COP (B0 / W35)
A94: 88 | B94: Puissance calorifique aux conditions normalisées +7 °C (A7 / W35): | C94: Heizleistung bei Normtemperatur +7 °C (A7 / W35): | D94: Puissance calorifique aux conditions normalisées +7 °C (A7 / W35): | E94: Potenza termica alle condizioni normalizzate +7 °C (A7 / W35):
A95: 89 | B95: Puissance calorifique pour (B0 / W35): | C95: Heizleistung bei (B0 / W35): | D95: Puissance calorifique pour (B0 / W35): | E95: Potenza termica per (B0 / W35):
A96: 90 | B96: Capacité de l'accumulateur chauffage | C96: Grösse Heizungsspeicher | D96: Capacité de l'accumulateur chauffage | E96: Capacità dell'accumulatore del riscaldamento
A97: 91 | B97: Puissance calorifique pour (B0 / W35): | C97: Heizleistung bei (B0 / W35): | D97: Puissance calorifique pour (B0 / W35): | E97: Potenza termica per (B0 / W35):
A98: 92 | B98: Capacité de l'accumulateur chauffage | C98: Grösse Heizungsspeicher | D98: Capacité de l'accumulateur chauffage | E98: Capacità dell'accumulatore del riscaldamento
A99: 93 | B99: Litres | C99: Liter | D99: Litres | E99: Litri
A100: 94 | B100: Habitat collectif | C100: MFH | D100: Habitat collectif | E100: Abitazione plurifamiliare
A101: 95 | B101: Habitat individuel | C101: EFH | D101: Habitat individuel | E101: Abitazione monofamiliare
A102: 96 | B102: Administration | C102: Verwaltung | D102: Administration | E102: Amministrazione
A103: 97 | B103: Ecole | C103: Schule | D103: Ecole | E103: Scuole
A104: 98 | B104: Commerce | C104: Verkauf | D104: Commerce | E104: Negozi
A105: 99 | B105: Restauration | C105: Restaurant | D105: Restauration | E105: Ristoranti
A106: 100 | B106: Lieu de rassemblement | C106: Vers. | D106: Lieu de rassemblement | E106: Locali pubblici
A107: 101 | B107: Hôpitaux | C107: Spitäler | D107: Hôpitaux | E107: Ospedali
A108: 102 | B108: Industrie | C108: Industrie | D108: Industrie | E108: Industrie
A109: 103 | B109: Dépôt | C109: Lager | D109: Dépôt | E109: Magazzini
A110: 104 | B110: Installation sportive | C110: Sportbau | D110: Installation sportive | E110: Impianti sportivi
A111: 105 | B111: Piscine | C111: Hallenbad | D111: Piscine | E111: Piscine
A112: 106 | B112: Chauffage | C112: Heizung | D112: Chauffage | E112: Riscaldamento
A113: 107 | B113: ECS eau chaude sanitaire | C113: Warmwasser | D113: ECS eau chaude sanitaire | E113: ACS acqua calda sanitaria
A114: 108 | B114: Chauffage+ECS | C114: Heizung + Warmwasser | D114: Chauffage+ECS | E114: Riscaldamento + ACS
A115: 109 | B115: fonctionnement chauffage monovalent | C115: monovalenter Betrieb Heizung | D115: fonctionnement chauffage monovalent | E115: funzionamento monovalente del riscaldamento
A116: 110 | B116: avec chauffage électrique de secours | C116: mit elektrischer Notheizung | D116: avec chauffage électrique de secours | E116: con riscaldamento elettrico d'appoggio
A117: 111 | B117: Installation bivalente fossile | C117: fossil bivalent (paralleler Betrieb) | D117: Installation bivalente fossile | E117: Impianto bivalente supplemento fossile
A118: 112 | B118: =IF(F118<>"",F118,INDEX($C$7:$F$713,A118,$C$2)) -> avec accumulateur chauffage | C118: mit Heizungs - Speicher | D118: avec accumulateur chauffage | E118: con accumulatore riscaldamento
A119: 113 | B119: sans accumulateur chauffage | C119: ohne Heizungs - Speicher | D119: sans accumulateur chauffage | E119: senza accumulatore riscaldamento
A120: 114 | B120: Registre électrique instantané | C120: Elektro Durchlauferhitzer | D120: Registre électrique instantané | E120: resistenza elettrica istantanea
A121: 115 | B121: Registre électrique dans l'accumulateur | C121: Elektro-Einsatz im Speicher | D121: Registre électrique dans l'accumulateur | E121: resistenza elettrica nell'accumulatore
A122: 116 | B122: Registre électrique bloqué durant la charge de l'accu. | C122: Elektro-Einsatz gesperrt bei Speicher-Ladung | D122: Registre électrique bloqué durant la charge de l'accu. | E122: resistenza elettrica bloccata durante la carica dell'accumulatore
A123: 117 | B123: pas de résistance électrique | C123: kein Elektro-Heizstab | D123: pas de résistance électrique | E123: senza resistenza elettrica
A124: 118 | B124: Registre électrique en service en parallèle | C124: Elektro-Einsatz im Parallelbetrieb | D124: Registre électrique en service en parallèle | E124: resistenza elettrica in parallelo
A125: 119 | B125: Registre électrique pour postchauffage | C125: Elektroeinsatz zur Nachwärmung | D125: Registre électrique pour postchauffage | E125: resistenza elettrica per postriscaldamento
A126: 120 | B126: Collecteurs solaires pour l'ECS | C126: Sonnenkollektoren für Warmwasser | D126: Collecteurs solaires pour l'ECS | E126: Collettori solari per l'ACS
A127: 121 | B127: Collecteurs solaires pour chauffage et ECS | C127: Sonnenkollektoren für Heizung und Warmwasser | D127: Collecteurs solaires pour chauffage et ECS | E127: Collettori solari per il riscaldamento e l'ACS
A128: 122 | B128: Azimut [°]: | C128: Azimut [°]: | D128: Azimut [°]: | E128: Azimut [°]:
A129: 123 | B129: Pente [°]: | C129: Neigung [°]: | D129: Pente [°]: | E129: Inclinazione [°]:
A130: 124 | B130: m | C130: m.ü.M. | D130: m | E130: msm
A131: 125 | B131: impossible | C131: unmöglich | D131: impossible | E131: impossibile
A132: 126 | B132: Danger de gel! | C132: Frostgefahr! | D132: Danger de gel! | E132: Pericolo di gelo!
A133: 127 | B133: dT utilisateur | C133: dT Nutzer | D133: dT utilisateur | E133: dT utilizzatore
A134: 128 | B134: T Dep | C134: T VL | D134: T Dep | E134: T mand
A135: 129 | B135: T Ret | C135: T RL | D135: T Ret | E135: T rit
A136: 130 | B136: dT accu | C136: dT Speicher | D136: dT accu | E136: dT accu
A137: 131 | B137: Offre de l'installateur: | C137: Offerte Unternehmer: | D137: Offre de l'installateur: | E137: Offerta dell'installatore:
A138: 132 | B138: Exigence minimale pour l'installation PAC | C138: Minimalanforderung an Wärmepumpenanlage | D138: Exigence minimale pour l'installation PAC | E138: Esigenze minime per l'istallazione della PdC
A139: 133 | B139: valeur minimale: | C139: Minimalwert: | D139: valeur minimale: | E139: Valore minimo:
A140: 134 | B140: valeur proposée: | C140: Vorschlagswert: | D140: valeur proposée: | E140: Valore proposto:
A141: 135 | B141: Chauffage + production d'ECS décentralisée par PAC | C141: Heizung + dezentrale Warmwasser-WP | D141: Chauffage + production d'ECS décentralisée par PAC | E141: Riscaldamento + ACS non centralizzato
A142: 136 | B142: Besoin de chaleur pour le chauffage Qh,eff: | C142: Heizwärmebedarf Qh,eff: | D142: Besoin de chaleur pour le chauffage Qh,eff: | E142: Fabbisogno di calore per il riscaldamento Qh, eff:
A143: 137 | B143: Peut être repris du calcul selon SIA 380/1. Calculé avec le débit d'air neuf thermiquement actif (la RC peut être prise en compte). | C143: Kann aus der Berechnung SIA 380/1 entnommen werden. Berechnet mit effektivem, thermisch wirksamen Aussenluftvolumenstrom (WRG kann berücksichtigt werden). | D143: Peut être repris du calcul selon SIA 380/1. Calculé avec le débit d'air neuf thermiquement actif (la RC peut être prise en compte). | E143: Può essere ripreso dal calcolo SIA 380/1. Calcolato con la portata d'aria termicamente determinante (il recupero di calore può essere preso in conto)
A144: 138 | B144: Déperditions par tranmission: | C144: Transmissionswärmeverluste: | D144: Déperditions par tranmission: | E144: Perdite per trasmissione
A145: 139 | B145: Peuvent être repris du calcul selon SIA 380/1. Si QT et QV sont laissés vides, il est admis que: (QT+QV)=Qh/15*24 | C145: Können aus der Berechnung SIA 380/1 entnommen werden. Falls QT und QV leer gelassen werden, wird (QT+QV) = Qh/15*24 gesetzt. | D145: Peuvent être repris du calcul selon SIA 380/1. Si QT et QV sont laissés vides, il est admis que: (QT+QV)=Qh/15*24 | E145: Possono essere ripresi dal calcolo SIA 380/1. Se QT e QV sono lasciati vuoti, é ammesso che: (QT+QV)=Qh/15*24
A146: 140 | B146: puissance de la PAC insuffisante | C146: ungenügende Leistung der Wärmepumpe | D146: puissance de la PAC insuffisante | E146: potenza della PdC insufficente
A147: 141 | B147: Déperditions par renouvellement d'air: | C147: Lüftungswärmeverluste: | D147: Déperditions par renouvellement d'air: | E147: Perdite per ventilazione
A148: 142 | B148: Peuvent être repris du calcul selon SIA 380/1. La RC peut être prise en compte dans les déperditions par renouvellement d'air (c-à-d. calculé avec le débit d'air neuf thermiquement actif). Si QT et QV sont laissés vides, il est admis que: (QT+QV)=Qh/15*24 | C148: Können aus der Berechnung SIA 380/1 entnommen werden. Bei den Lüftungswärmeverlusten darf die WRG eingerechnet werden (d.h. es ist mit dem effektiven, thermisch wirksamen Aussenluft-volumenstrom zu rechnen). Falls QT und QV leer gelassen werden, wird (QT+QV) = Qh/15*24 gesetzt. | D148: Peuvent être repris du calcul selon SIA 380/1. La RC peut être prise en compte dans les déperditions par renouvellement d'air (c-à-d. calculé avec le débit d'air neuf thermiquement actif). Si QT et QV sont laissés vides, il est admis que: (QT+QV)=Qh/15*24 | E148: Possono essere ripresi dal calcolo SIA 380/1. Il recupero di calore può essere preso in conto nelle perdite per ventilazione (Dunque calcolate con la portata d'aria termicamente determinante). Se QT e QV sono lasciati vuoti, é ammesso che: (QT+QV)=Qh/15*2
A149: 143 | B149: Température cible du local le plus chaud (p.ex. salle de bains) | C149: Solltemperatur wärmster Raum (z.B. Badezimmer) | D149: Température cible du local le plus chaud (p.ex. salle de bains) | E149: Temperatura mirata per il locale più caldo (ad es. bagno)
A150: 144 | B150: =IF(F150<>"",F150,INDEX($C$7:$F$713,A150,$C$2)) -> Valeurs typiques par défaut pour habitations: | C150: Vorschlgswerte typtische Wohnbauten: | D150: Valeurs typiques par défaut pour habitations: | E150: Valori tipici di default per abitazioni:
A151: 145 | B151: Pertes de distribution pour bâtiment à construire, chauffage dans la cave, isolée selon prescriptions (armatures, pompes ainsiq ue conduites isolées): 1-3%. / Pertes de distribution pour bâtiment à construire, chauffage dans bâtiment voisin: 3-15%. | C151: Verteilverluste bei Neubauten, Heizung im Keller, nach Vorschrift gedämmt (Armaturen, Pumpen wie Leitungen gedämmt): 1-3%. / Verteilverluste bei Neubauten, Heizung im Nachbargebäude: 3-15%. Der Strombedarf von Frostschutzbändern ist separat zu berechnen. | D151: Pertes de distribution pour bâtiment à construire, chauffage dans la cave, isolée selon prescriptions (armatures, pompes ainsiq ue conduites isolées): 1-3%. / Pertes de distribution pour bâtiment à construire, chauffage dans bâtiment voisin: 3-15%. | E151: Perdite per distribuzione per edifici nuovi, riscaldamento in cantina, isolata secondo le prescrizioni (rubinetteria, pompe, condotte isolate,..): 1.3%. / Perdite di distribuzione per edifici in costruzione, riscaldamento nell'edifici vicino: 3-15%.
A152: 146 | B152: mode anti-légionnellose journalier | C152: tägliche Legionellenschaltung | D152: mode anti-légionnellose journalier | E152: impostazione anti-legionella giornaliera
A153: 147 | B153: mode anti-légionnellose hebdomadaire | C153: wöchentliche Legionellenschaltung | D153: mode anti-légionnellose hebdomadaire | E153: impostazione anti-legionella settimanale
A154: 148 | B154: Température de dimensionnement des sondes: | C154: Auslegungs-Sondentemperatur: | D154: Température de dimensionnement des sondes: | E154: Temperatura di dimensionamento delle sonde:
A155: 149 | B155: Annexer le calcul externe (p. ex. avec le logiciel EWS) ou laisser vide. | C155: Externe Berechnung (z.B. mit Erdsonden-programm EWS) beilegen, sonst leer lassen. | D155: Annexer le calcul externe (p. ex. avec le logiciel EWS) ou laisser vide. | E155: Allegare il calcolo esterno (p.es. con programma EWS) o lasciare vuoto
A156: 150 | B156: Durée de coupure d'alimentation de la PAC: | C156: Sperrzeiten der Wärmepumpe: | D156: Durée de coupure d'alimentation de la PAC: | E156: Durata di interruzione di corrente della PdC
A157: 151 | B157: (heures par jour): interruptions de l'alimentation électrique de la PAC par le distributeur d'électricité. A demander auprès du distributeur local. Mentionner les temps de coupure effectifs, aux conditions de dimensionnement. | C157: (Stunden pro Tag): Tägliche Strom - Sperrzeiten für die Wärmepumpe durch das Elektrizitätswerk. Muss vom lokalen Elektrizitäswerk erfragt werden. Es sind die effektiv gesperrten Zeiten bei Auslegungsbedingungen einzusetzten. | D157: (heures par jour): interruptions de l'alimentation électrique de la PAC par le distributeur d'électricité. A demander auprès du distributeur local. Mentionner les temps de coupure effectifs, aux conditions de dimensionnement. | E157: (ore giornaliere): interruzioni dell'alimentazione elettrica della PdC dal distributore di elettricità. Informarsi presso il distributore locale. Menzionare il tempo di interruzione effettivo, alle condizioni di dimensionamento.
A158: 152 | B158: Puissance de chauffage nécessaire: | C158: Heizleistungsbedarf: | D158: Puissance de chauffage nécessaire: | E158: Potenza termica necessaria:
A159: 153 | B159: La puissance de chauffage nécessaire peut tenir compte des gains de chaleur assurés (max. 10%, resp 1 kW). A justifier séparément. | C159: Beim Heizleistungsbedarf darf die im Auslegungsfall sicher aufretende, freie Wärme berücksichtigt werden (max. 10%, bzw. 1 kW). Diese ist separat auszuweisen. | D159: La puissance de chauffage nécessaire peut tenir compte des gains de chaleur assurés (max. 10%, resp 1 kW). A justifier séparément. | E159: La potenza termica necessaria può tenere conto degli apporti di calore assicurati (max. 10%, risp.1 kW). Da giustificare separatamente.
A160: 154 | B160: Puissance de chauffage nécessaire: | C160: Heizleistungsbedarf: | D160: Puissance de chauffage nécessaire: | E160: Potenza termica necessaria:
A161: 155 | B161: Valeur proposée: si le champ reste vide, le calcul se fait avec une valeur par défaut, calculée comme suit: (QT+QV)*SRE/3.6/(HGT*1.065)/24*(20-TaMin) [kW]. | C161: Vorschlagswert: Falls Eingabefeld leer, wird mit dem Vorschlagswert gerechnet. Der Vorschlagswert wird berechnet mit (QT+QV)*EBF/3.6/(HGT*1.065)/24*(20-TaMin) [kW]. | D161: Valeur proposée: si le champ reste vide, le calcul se fait avec une valeur par défaut, calculée comme suit: (QT+QV)*SRE/3.6/(HGT*1.065)/24*(20-TaMin) [kW]. | E161: Valore proposto: se il campo resta vuoto, il calcolo viene fatto con un valore di default, calcolato come segue: (QT+QV)*Ae/3.6/(HGT*1.065)/24*(20-TaMin) [kW].
A162: 156 | B162: Valeur minimale: si la valeur introduite est plus petite que la valeur minimale, le calcul se fait avec la valeur minimale, calculée comme suit: 0.85*valeur proposée [kW], resp. valeur proposée - 1.2 kW. | C162: Minimalwert: Falls Eingabe kleiner als Minimalwert, so wird mit dem Minimalwert gerechnet. Der Minimalwert wird berechnet mit 0.85*Vorschlagswert [kW], bzw. Vorschlagswert - 1.2 kW. | D162: Valeur minimale: si la valeur introduite est plus petite que la valeur minimale, le calcul se fait avec la valeur minimale, calculée comme suit: 0.85*valeur proposée [kW], resp. valeur proposée - 1.2 kW. | E162: Valore minimo: se il valore introdotto é più piccolo del valore minimo, il calcolo viene eseguito con il valore minimo, calcolato come segue: 0.85*valore proposto [kW], risp. valore proposto - 1.2 kW.
A163: 157 | B163: Valeurs typiques par défaut pour habitations: | C163: Vorschlgswerte typtische Wohnbauten: | D163: Valeurs typiques par défaut pour habitations: | E163: Valori tipici di default per abitazioni:
A164: 158 | B164: - Pertes accumulateur + distribution (armatures, pompes ainsi que conduites isolées): 15-30% | C164: - Speicher + Verteilverluste (Armaturen, Pumpen wie Leitungen gedämmt): 15-30% | D164: - Pertes accumulateur + distribution (armatures, pompes ainsi que conduites isolées): 15-30% | E164: - Perdite accumulatore + distribuzione (rubinetterie, pompe, condotte isolate): 15-30%
A165: 159 | B165: - Pertes accumulateur + distribution + circulation (armatures, pompes ainsi que conduites isolées): 30-50%. Le besoin en électricité des rubans chauffant est à calculer séparément. | C165: - Speicher + Verteilverluste + Zirkulation (Armaturen, Pumpen wie Leitungen gedämmt): 30-50%. Der Strombedarf von Warmhaltebändern ist separat zu berechnen. | D165: - Pertes accumulateur + distribution + circulation (armatures, pompes ainsi que conduites isolées): 30-50%. Le besoin en électricité des rubans chauffant est à calculer séparément. | E165: - Perdite accumulatore + distribuzione + circolazione (rubinetterie, pompe, condotte isolate): 30-50%. I bisogni di elettricità dei nastri riscaldanti sono da calcolare separatamente.
A166: 160 | B166: Fonctionnement chauffage monovalent: | C166: monovalenter Betrieb Heizung: | D166: Fonctionnement chauffage monovalent: | E166: Funzionamento monovalente del riscaldamento
A167: 161 | B167: Chauffage avec PAC sans chauffage d'appoint et sans corps de chauffe électrique (pour le chauffage) | C167: Heizung mit Wärmepumpe ohne Zusatzheizung und ohne Elektro-Einsatz (für die Heizung) | D167: Chauffage avec PAC sans chauffage d'appoint et sans corps de chauffe électrique (pour le chauffage) | E167: Riscaldamento con PdC senza riscaldamento d'appoggio e senza riscaldamenti elettrici (per il riscaldamento)
A168: 162 | B168: avec chauffage électrique d'appoint: | C168: mit elektrischer Zusatzheizung: | D168: avec chauffage électrique d'appoint: | E168: con riscaldamento elettrico d'appoggio
A169: 163 | B169: Chauffage avec PAC et chauffage électrique d'appoint | C169: Heizung mit Wärmepumpe und elektrischer Zusatzheizung | D169: Chauffage avec PAC et chauffage électrique d'appoint | E169: Riscaldamento con PdC e riscaldamento elettrico d'appoggio
A170: 164 | B170: Fonctionnement bivalent fossile: | C170: fossil bivalenter Betrieb: | D170: Fonctionnement bivalent fossile: | E170: Funzionamento bivalente fossile:
A171: 165 | B171: Chauffage avec PAC et chaudière d'appoint à mazout ou à gaz pour les pointes de puissance | C171: Heizung mit Wärmepumpe und mit einem Öl- oder Gas - Spitzenlastkessel | D171: Chauffage avec PAC et chaudière d'appoint à mazout ou à gaz pour les pointes de puissance | E171: Riscaldamento con PdC e caldaia d'appoggio a olio o gas per i picchi di potenza.
A172: 166 | B172: Température de dimensionnement des sondes: | C172: Auslegungs-Sondentemperatur: | D172: Température de dimensionnement des sondes: | E172: Temperatura di dimensionamento delle sonde:
A173: 167 | B173: Annexer le calcul externe (p. ex. avec le logiciel EWS) ou laisser vide. | C173: Externe Berechnung (z.B. mit Erdsonden-programm EWS) beilegen, sonst leer lassen. | D173: Annexer le calcul externe (p. ex. avec le logiciel EWS) ou laisser vide. | E173: Allegare il calcolo esterno (p.es. con programma EWS) o lasciare vuoto
A174: 168 | B174: Prendre les valeurs selon publications du centre de test pour PAC WPZ, ou calculer avec dT utilisateur = Q / m cp | C174: Wert z. B. aus Publikation des Wärmepumpen-Testzentrums WPZ entnehmen oder berechnen mit dT Nutzer = Q / m cp | D174: Prendre les valeurs selon publications du centre de test pour PAC WPZ, ou calculer avec dT utilisateur = Q / m cp | E174: Prendere i valori secondo le pubblicazioni del centro di test delle PdC WPZ, o calcolare con dT utilizzatore= Q / m cp
A175: 169 | B175: Indique à combien de °C au-dessus de la température de départ l'accumulateur est chargé. | C175: Gibt an, um wie viel °C der Speicher höher geladen wird als die Vorlauftemperatur | D175: Indique à combien de °C au-dessus de la température de départ l'accumulateur est chargé. | E175: Indica a quanti gradi °C é caricato l'accumulatore al di sopra della temperatura di mandata
A176: 170 | B176: Température de commutation pour fonctionnement bivalent alternatif: | C176: Umschalt-Temperatur für bivalent-alternativen Betrieb: | D176: Température de commutation pour fonctionnement bivalent alternatif: | E176: Temperatura di commutazione per il funzionamento bivalente alternativo
A177: 171 | B177: Température extérieure de dimensionnement au-dessous de laquelle la PAC est complètement déclenchée, le chauffage d'appoint couvrant la totalité des besoins de chaleur. | C177: Auslegungs-Aussentemperatur, unterhalb der die Wärmpumpe ganz abgestellt wird und die Zusatzheizung den ganzen Wärmebedarf deckt. | D177: Température extérieure de dimensionnement au-dessous de laquelle la PAC est complètement déclenchée, le chauffage d'appoint couvrant la totalité des besoins de chaleur. | E177: Temperatura esterna di dimensionamento al si sotto della quale la PdC é completamente spenta ed il riscaldamento d'appoggio copre la totalità del fabbisogno termico.
A178: 172 | B178: Chauffage électrique en fonctionnement parallèle: | C178: Elektro - Einsatz im Parallelbetrieb: | D178: Chauffage électrique en fonctionnement parallèle: | E178: Riscaldamento elettrico in parallelo:
A179: 173 | B179: Corps de chauffe monté dans l'accumulateur, non bloqué durant le chargement de l'accumulteur. | C179: Heizstab im Speicher eingebaut und während der Speicherladung nicht gesperrt | D179: Corps de chauffe monté dans l'accumulateur, non bloqué durant le chargement de l'accumulteur. | E179: Resistenza montata nell'accumulatore, non bloccata durante la carica dell'accumulatore
A180: 174 | B180: Registre électrique pour post-chauffage: | C180: Elektro-Einsatz zur Nachwärmung: | D180: Registre électrique pour post-chauffage: | E180: Resistenza elettrica per post riscaldamento:
A181: 175 | B181: Registre électrique instantanné après l'accumulateur ou registre électrique dans accumulateur, bloqué durant le chargement de l'accumulateur. | C181: Durchlauferhitzer nach Speicher oder Heizstab in Speicher, gesperrt bei Speicherladung. | D181: Registre électrique instantanné après l'accumulateur ou registre électrique dans accumulateur, bloqué durant le chargement de l'accumulateur. | E181: Resistenza elettrica istantanea dopo l'accumulatore o resistenza elettrica nell'accumulatore, bloccate durante la carica dell'accumulatore.
A182: 176 | B182: =IF(F182<>"",F182,INDEX($C$7:$F$713,A182,$C$2)) -> Température de l'ECS pouvant être atteinte avec la seule PAC. | C182: Warmwasser-Temperatur, die alleine mit der Wärmepumpe erzeugt werden kann. | D182: Température de l'ECS pouvant être atteinte avec la seule PAC. | E182: Temperatura dell'ACS che può essere raggiunta con la sola pompa di calore
A183: 177 | B183: Installation solaire: | C183: Solaranlage: | D183: Installation solaire: | E183: Impianto solare:
A184: 178 | B184: 1. Aucune installation solaire 2. Chauffage solaire ECS 3. Chauffage solaire ECS avec appoint au chauffage | C184: 1. Keine Solaranlage 2. Solare Wassererwärmung 3. Solare Wassererwärmung mit Heizungsunterstützung | D184: 1. Aucune installation solaire 2. Chauffage solaire ECS 3. Chauffage solaire ECS avec appoint au chauffage | E184: 1. Nessuna istallazione solare 2. Riscaldamento solare dell' ACS 3. Riscaldamento solare dell'ACS con aiuto al riscaldamento
A185: 179 | B185: Valeurs de calcul pour Tdép | C185: Rechenwerte bei TVL= | D185: Valeurs de calcul pour Tdép | E185: Valore di calcolo della T mand
A186: 180 | B186: Taux de couverture du chauffage d'appoint pour chauffage: | C186: Deckungsgrad Zusatzheizung für die Heizung: | D186: Taux de couverture du chauffage d'appoint pour chauffage: | E186: Quota di copertura del riscaldamento d'appoggio per il riscaldamento:
A187: 181 | B187: A reporter dans le justificatif MINERGIE | C187: In den MINERGIE-Nachweis übertragen | D187: A reporter dans le justificatif MINERGIE | E187: Da riportare nella verifica MINERGIE
A188: 182 | B188: Surface | C188: Fläche | D188: Surface | E188: Superficie
A189: 183 | B189: Taux de couverture du chauffage d'appoint pour chauffage ECS: | C189: Deckungsgrad Zusatzheizung für das Warmwasser: | D189: Taux de couverture du chauffage d'appoint pour chauffage ECS: | E189: Quota di copertura del riscaldamento d'appoggio per l'acqua calda ACS:
A190: 184 | B190: A reporter dans le justificatif MINERGIE | C190: In den MINERGIE-Nachweis übertragen | D190: A reporter dans le justificatif MINERGIE | E190: Da riportare nella verifica MINERGIE
A191: 185 | B191: Taux de couverture de la PAC pour le chauffage: | C191: Deckungsgrad der Wärmepumpe für die Heizung: | D191: Taux de couverture de la PAC pour le chauffage: | E191: Quota di copertura della PdC per il riscaldamento:
A192: 186 | B192: A reporter dans le justificatif MINERGIE | C192: In den MINERGIE-Nachweis übertragen | D192: A reporter dans le justificatif MINERGIE | E192: Da riportare nella verifica MINERGIE
A193: 187 | B193: Taux de couverture de la PAC pour ECS | C193: Deckungsgrad der Wärmepume für das Warmwasser: | D193: Taux de couverture de la PAC pour ECS | E193: Quota di copertura della PdC per l'ACS
A194: 188 | B194: A reporter dans le justificatif MINERGIE | C194: In den MINERGIE-Nachweis übertragen | D194: A reporter dans le justificatif MINERGIE | E194: Da riportare nella verifica MINERGIE
A195: 189 | B195: Coefficient de performance | C195: Arbeitszahl | D195: Coefficient de performance | E195: Coefficiente di prestazione
A196: 190 | B196: sans tenir compte du chauffage d'appoint électrique / sans RC | C196: ohne Berücksichtigung der Elektro - Zusatzheizung / ohne WRG | D196: sans tenir compte du chauffage d'appoint électrique / sans RC | E196: senza tenere conto del riscaldamento d'appoggio elettrico / senza RC
A197: 191 | B197: Puissance de chauffe pour Tdép | C197: Heizleistung bei Vorlauftemperatur | D197: Puissance de chauffe pour Tdép | E197: Potenza termica alla temperatura di mandata
A198: 192 | B198: COP à la température de départ | C198: COP bei Vorlauftemperatur | D198: COP à la température de départ | E198: COP alla temperatura di mandata
A199: 193 | B199: Circulation d'ECS / câble chauffant | C199: Warmwasser-Zirkulation / Begleitheizband | D199: Circulation d'ECS / câble chauffant | E199: Circolazione dell'ACS/ cavo riscaldante
A200: 194 | B200: Coefficient de performance annuel (COPa) de la PAC, pour le chauffage | C200: Jahresarbeitszahl (JAZ) der WP für die Heizung | D200: Coefficient de performance annuel (COPa) de la PAC, pour le chauffage | E200: Coefficiente di lavoro annuo CLA della PdC, per il riscaldamento
A201: 195 | B201: Sans considérer la part de chauffage électrique direct et sans la part de la RC. A reporter dans le justificatif MINERGIE. | C201: ohne Berücksichtigung des Elektro-Direktheizungsanteils und ohne WRG-Anteil. In den MINERGIE-Nachweis übertragen. | D201: Sans considérer la part de chauffage électrique direct et sans la part de la RC. A reporter dans le justificatif MINERGIE. | E201: senza considerare la parte di riscaldamento elettrico diretto e senza la parte del RC. Da riportare nella verifica MINERGIE.
A202: 196 | B202: Coefficient de performance annuel (COPa) de la PAC, pour l'ECS | C202: Jahresarbeitszahl (JAZ) der WP für Warmwasser | D202: Coefficient de performance annuel (COPa) de la PAC, pour l'ECS | E202: Coefficiente di lavoro annuo CLA della PdC, per l'ACS
... 139 more rows

Sheet Tabelle1 (hidden)

Sheet WP
B1: =Sprache!B283 -> Feuille de calcul PACesti | G1: =Sprache!B8 -> WPesti / V 8.3.33 / 27.09.2024 valable jusqu'à 31.12.2025
B2: =Sprache!B9 -> Projet: | L2: Auswahl Klima | M2: =IF(H6="",1,MATCH(H6,B68:B100,0)) -> 1 | N2: =IF(AND(M2>1,M2<34),TRUE,FALSE) -> FALSE | O2: Neu: | P2: TRUE
L3: Kategorie: | M3: =IF(H7=0,1,MATCH(H7,L5:L17,0)) -> 1 | N3: =H7 -> 0 | P3: W/m²
B4: =IF(Spez!$L$47,Sprache!B337,"") ->  | K4: 2 | L4: Grenzwerte | M4: Hg0 | N4: DHg | O4: Qww | P4: Fg, ev
B5: =Sprache!B10 -> Données concernant le bâtiment | L5: ="" ->  | P5: 0
B6: =Sprache!B11 -> Station climatique: | G6: =IF(JAZcalc,"",IF(Klima=1,Sprache!B24,"")) -> choisir -> | L6: =Sprache!B100 -> Habitat collectif | M6: 55 | N6: 65 | O6: =75*(1+EtaWW) -> 75 | P6: 3.1
B7: =Sprache!B13 -> Catégorie d'ouvrage | G7: =IF(Kategorie=1,Sprache!B24,"") -> choisir -> | L7: =Sprache!B101 -> Habitat individuel | M7: 65 | N7: 65 | O7: =50*(1+EtaWW) -> 50 | P7: 2.4
B8: =Sprache!B12 -> Surface de référence énergétique SRE | E8: =IF(OR(EBF="",EBF=0),Sprache!B75,"") -> choisir -> | F8: AE | G8: m2 | L8: =Sprache!B102 -> Administration | M8: 65 | N8: 85 | O8: =25*(1+EtaWW) -> 25 | P8: 3.3
B9: =Sprache!B14 -> Besoins de chaleur pour le chauffage selon SIA 380/1 | E9: =IF(H9="",Sprache!B75,"") -> choisir -> | F9: Qh,eff | G9: MJ/m2a | L9: =Sprache!B103 -> Ecole | M9: 70 | N9: 70 | O9: =25*(1+EtaWW) -> 25 | P9: 2.3
B10: =Sprache!B15 -> Déperditions par transmission selon SIA 380/1 | E10: =IF(OR(QT="",QT=0),Sprache!B75,IF(H10,IF(OR(H10<=0.5*$H$9,Berechnungen!E33),Sprache!B131,""),"")) -> choisir -> | F10: QT | G10: =G9 -> MJ/m2a | L10: =Sprache!B104 -> Commerce | M10: 50 | N10: 65 | O10: =25*(1+EtaWW) -> 25 | P10: 2.3
B11: =Sprache!B16 -> Déperditions par renouvellement d'air selon SIA 380/1 | E11: =IF(OR(QV="",QV=0),Sprache!B75,IF(H11,IF(OR((H11+QT)<$H$9,Berechnungen!E33),Sprache!B131,""),"")) -> choisir -> | F11: QV | G11: =G9 -> MJ/m2a | L11: =Sprache!B105 -> Restauration | M11: 95 | N11: 75 | O11: =200*(1+EtaWW) -> 200 | P11: 2.3
B12: =Sprache!B17 -> Chauffage: pertes supplémentaires de distribution de chaleur | G12: % | L12: =Sprache!B106 -> Lieu de rassemblement | M12: 95 | N12: 75 | O12: =50*(1+EtaWW) -> 50 | P12: 2.3
B13: =Sprache!B18 -> Durée de coupure d'alimentation de la PAC | G13: h/d | L13: =Sprache!B107 -> Hôpitaux | M13: 80 | N13: 80 | O13: =100*(1+EtaWW) -> 100 | P13: 4
B14: =Sprache!B19 -> Puissance de chauffage nécessaire sans ECS à °C | E14: ='WP1'!E14 ->  | F14: ='WP1'!F14 ->  | G14: kW | K14: =IF(Leistung<(N32/28*(20-TaMin)),(N32/28*(20-TaMin)),IF(Qtot>0,Qtot*(1+Verteilverluste)*EBF/3.6/(HGT*1.065)/24*(20-TaMin),IF(Qh,Qh*EBF/3.6/HGT/15*(20-TaMin),"")))-INDEX(P5:P17,Kategorie,1)*EBF/1000 ->  | L14: =Sprache!B108 -> Industrie | M14: 60 | N14: 70 | O14: =25*(1+EtaWW) -> 25 | P14: 2.3
B15: =Sprache!B20 -> Besoins de chaleur pour l'ECS selon SIA 380/1 | F15: Qww | G15: =G11 -> MJ/m2a | H15: =IF(H7<>"",Qww/Einheitenfaktor,"") ->  | K15: =INDEX(O5:O17,Kategorie,1) ->  | L15: =Sprache!B109 -> Dépôt | M15: 60 | N15: 70 | O15: =5*(1+EtaWW) -> 5 | P15: 2.3
B16: =Sprache!B21 -> Eau chaude sanitaire: pertes supplémentaires d'accumulation et de distribution | G16: % | L16: =Sprache!B110 -> Installation sportive | M16: 75 | N16: 70 | O16: =300*(1+EtaWW) -> 300 | P16: 2.3
B17: =IF(AND(Qh>0,$M$26<>3),IF(AND(bivalent=FALSE,elZusatz=FALSE,F53>0.01),Sprache!B146,""),"") ->  | L17: =Sprache!B111 -> Piscine | M17: 70 | N17: 90 | O17: =300*(1+EtaWW) -> 300 | P17: 2.3
B18: =Sprache!B22 -> Installation de pompe à chaleur | E18: WP-Liste | F18: =IF(SpezWP,IF(Spez!E5<>"",Spez!E5,""),"Hersteller: ") -> Hersteller: | K18: =IF(OR(E18="",E18=L47,E18=L49),FALSE,TRUE) -> TRUE | P18: =INDEX(P5:P18,M3,1) -> 0
B19: =Sprache!B23 -> Nom et type de PAC | F19: =IF(SpezWP,IF(Spez!E5<>"",Spez!E5,""),"Typ: ") -> Typ: | K19: =IF(OR(G18=WP_Daten!D10,G18=""),FALSE,TRUE) -> FALSE
B20: =Sprache!B26 -> Source de chaleur: | E20: =IF(WPArt=1,Sprache!B24,"") -> choisir -> | K20: =IF(F20="",1,MATCH(F20,$M$74:$M$94,0)) -> 1 | L20: Einheiten | O20: Speicher-Verluste | P20: =K22 -> 1 | Q20: Speicherverluste | R20: Überladung | T20: Betrieb | U20: bivalent? | V20: el.-Zusatz | X20: Speicherladung | Y20: =K24 -> 1 | AA20: WW-Zusatzheiz
B21: =Sprache!B27 -> Utilisation (chauffage ou eau chaude sanitaire) | E21: =IF(M27=1,Sprache!B24,"") -> choisir -> | K21: =IF(F21="",1,MATCH(F21,$L$28:$L$32,0)) -> 1 | L21: MJ/m2a | M21: =MATCH(G9,L21:L22,0) -> 1 | P21: TRUE | Q21: ='WP1'!AJ133 -> 0 | R21: FALSE | U21: FALSE | V21: FALSE | Y21: 0
B22: =IF(Heizung=FALSE,"",Sprache!B29) ->  | E22: =IF(AND(HeizungSolar,$P$20=3),Sprache!B25,IF(AND(P20=1,Heizung),Sprache!B24,"")) ->  | K22: =IF(F22="",1,IF(OR($K$21=3,$K$21=1,$K$20=18),1,MATCH(F22,$O$21:$O$27,0))) -> 1 | L22: kWh/m2a | M22: =IF(M21=2,3.6,1) -> 1 | O22: =IF('WP1'!AH134<>"",'WP1'!AH134,"") ->  | P22: FALSE | Q22: ='WP1'!AJ134 -> 0 | R22: FALSE | T22: ='WP1'!AD134 -> fonctionnement chauffage monovalent | U22: FALSE | V22: FALSE | X22: ='WP1'!BG69 ->  | Y22: =IF(elZusatz,AC80,0) -> 0 | AA22: ='WP1'!BG78 -> 
B23: =Sprache!B28 -> Mode de fonctionnement de la PAC | E23: =IF(T27=1,Sprache!B24,"") -> choisir -> | K23: =IF(F23="",1,IF(MATCH(F23,$T$21:$T$25,0)=5,4,MATCH(F23,$T$21:$T$25,0))) -> 1 | L23: =IF(F23="",1,MATCH(F23,$T$21:$T$25,0)) -> 1 | O23: =IF('WP1'!AH135<>"",'WP1'!AH135,"") ->  | P23: TRUE | Q23: ='WP1'!AJ135 -> 0.02 | R23: FALSE | T23: ='WP1'!AD135 -> avec chauffage électrique de secours | U23: FALSE | V23: TRUE | X23: ='WP1'!BG70 ->  | Y23: =IF(AND(elZusatz,Speicher),AC81,0) -> 0 | AA23: ='WP1'!BG79 -> 
B24: =IF(elZusatz,Sprache!B30,"") ->  | E24: =IF(AND(elZusatz,Y20=1),Sprache!B24,"") ->  | K24: =IF(F24="",1,MATCH(F24,$X$21:$X$25,0)) -> 1 | O24: =IF('WP1'!AH136<>"",'WP1'!AH136,"") ->  | P24: =IF(M26=4,TRUE,FALSE) -> FALSE | Q24: ='WP1'!AJ136 -> 0.04 | R24: FALSE | T24: ='WP1'!AD136 -> Installation bivalente fossile | U24: TRUE | V24: FALSE | X24: ='WP1'!BG71 ->  | Y24: =IF(AND(elZusatz,Speicher),AC82,0) -> 0 | AA24: ='WP1'!BG80 -> 
B25: =Sprache!B69 -> Température de la source (entrée PAC) | C25: °C | D25: -15 | E25: -7 | F25: 2 | G25: 7 | H25: ='WP1'!H25 -> 20 | L25: Handauswahl: | O25: =IF('WP1'!AH137<>"",'WP1'!AH137,"") ->  | P25: =IF(M26=4,TRUE,FALSE) -> FALSE | Q25: ='WP1'!AJ137 -> 0.06 | R25: TRUE | T25: ='WP1'!AD137 -> Installation bivalente fossile alternative | AA25: ='WP1'!BG81 -> 
B26: =Sprache!B185&IF(SpezWP,Spez!C10,35)&"°C(Qh/COP):" -> Valeurs de calcul pour Tdép35°C(Qh/COP): | C26: °C | D26: ='WP1'!D26 ->  | E26: ='WP1'!E26 ->  | F26: ='WP1'!F26 ->  | G26: ='WP1'!G26 ->  | H26: ='WP1'!H26 -> 0.0kW / 0.0 | K26: =IF(AND(WPArt=2,SpezWP=FALSE,WP_Daten!K5>0,WP_Daten!L5>0),TRUE,FALSE) -> FALSE | L26: Auswahl: | M26: =K21 -> 1 | O26: =IF('WP1'!AH138<>"",'WP1'!AH138,"") ->  | P26: =IF(M26=4,TRUE,FALSE) -> FALSE | Q26: ='WP1'!AJ138 -> 0.05 | R26: FALSE | AA26: ='WP1'!BG82 -> 
B27: =IF(WPArt=4,Sprache!B335&" W10/W35",Sprache!B197&" 35°C") -> Puissance de chauffe pour Tdép 35°C | C27: kW | K27: =IF(AND(WPArt=2,SpezWP=TRUE,WP_BIN!AU81>0,WP_BIN!AU82>0),TRUE,FALSE) -> FALSE | L27: Einsatz: | M27: =IF(M26=1,IF(M25>0,M25,M26),M26) -> 1 | O27: =IF('WP1'!AH139<>"",'WP1'!AH139,"") ->  | Q27: ='WP1'!AJ139 -> 0 | T27: =K23 -> 1 | U27: =INDEX(U21:U24,T27,1) -> FALSE | V27: =INDEX(V21:V24,T27,1) -> FALSE | X27: =INDEX(X21:X26,Y20,1) ->  | Y27: =INDEX(Y21:Y26,Y20,1) -> 0 | AA27: =K40 -> 1
B28: =IF(WPArt=4,Sprache!B336&" W10W35",Sprache!B198&" 35°C") -> COP à la température de départ 35°C | C28: - | K28: =IF(OR(K26,K27,WPArt<>2),TRUE,FALSE) -> TRUE | O28: =IF('WP1'!AH140<>"",'WP1'!AH140,"") ->  | Q28: ='WP1'!AJ140 -> 0 | AA28: =INDEX(AA21:AA26,AA27,1) -> 
B29: =IF(WPArt=4,Sprache!B335&" W10/W55",Sprache!B197&" 55°C") -> Puissance de chauffe pour Tdép 55°C | C29: kW | L29: ='WP1'!BG60 -> Chauffage | O29: =IF('WP1'!AH141<>"",'WP1'!AH141,"") ->  | Q29: ='WP1'!AJ141 -> 0 | AA29: =IF(AA27>2,TRUE,FALSE) -> FALSE
B30: =IF(WPArt=4,Sprache!B336&" W10W55",Sprache!B198&" 55°C") -> COP à la température de départ 55°C | C30: - | L30: ='WP1'!BG61 -> ECS eau chaude sanitaire | O30: =IF('WP1'!AH142<>"",'WP1'!AH142,"") ->  | Q30: ='WP1'!AJ142 -> 0
B31: =IF(WPArt=4,Sprache!B88,Sprache!B70) -> Puissance électrique soutirée par pompe saumure: | D31: =IF(H31<>"",IF('WP1'!W49<IF(WPArt=3,'WP1'!X19,IF(WPArt=4,'WP1'!Z19,IF(WPArt=5,'WP1'!AB19,)))*40,Sprache!B338,""),"") ->  | F31: =IF(H31<>"",IF('WP1'!W49<IF(WPArt=3,'WP1'!X19,IF(WPArt=4,'WP1'!Z19,IF(WPArt=5,'WP1'!AB19,)))*40,"0",""),"") ->  | G31: W | K31: =IF(OR(Spez!L38,Spez!L46),TRUE,FALSE) -> FALSE | L31: ='WP1'!BG62 -> Chauffage+ECS | O31: =IF('WP1'!AH143<>"",'WP1'!AH143,"") ->  | Q31: ='WP1'!AJ143 -> 0
B32: =IF(WPArt=3,Sprache!B79,IF(WPArt=5,Sprache!B80,"")) ->  | D32: =IF(WPArt=3,Sprache!B72,IF(WPArt=5,"W/m2","")) ->  | F32: =IF(WPArt=3,Sprache!B77,IF(WPArt=5,Sprache!B188,"")) ->  | G32: =IF(WPArt=3,"m",IF(WPArt=5,"m2","")) ->  | L32: ='WP1'!BG63 -> Chauffage + production d'ECS décentralisée par PAC | O32: =IF('WP1'!AH144<>"",'WP1'!AH144,"") ->  | Q32: ='WP1'!AJ144 -> 0
B33: =IF(EBF>0,IF(WPArt=5,Sprache!B82,IF(WPArt=4,Sprache!B83,Sprache!B82)),"") ->  | F33: =IF(WPArt=5,ROUND(TQuelle_Koll-Offset,1),IF(WPArt=3,IF(S25<>"",S25,IF(H32>0,ROUND(TQuelle-Offset,1),"")),IF(WPArt=4,IF(AND(H33<4,H33<>""),Sprache!B132,""),""))) ->  | G33: =IF(Heizung=FALSE,"","°C") ->  | O33: =IF('WP1'!AH145<>"",'WP1'!AH145,"") ->  | Q33: ='WP1'!AJ145 -> 0 | V33: Sonnenkollektoren
B34: ='WP1'!B34 ->  | G34: ='WP1'!G34 ->  | O34: =INDEX(O21:O33,P20,1) ->  | P34: =INDEX(P21:P33,P20,1) -> TRUE | Q34: =INDEX(Q21:Q33,P20,1) -> 0 | R34: =INDEX(R21:R33,P20,1) -> FALSE
B35: =IF(Heizung=FALSE,"",Sprache!B149) ->  | E35: =IF(AND(Heizung,H35=""),Sprache!B75,"") ->  | F35: =IF(Heizung=FALSE,"","Ti,soll") ->  | G35: =IF(Heizung=FALSE,"","°C") ->  | V35: Heizungsunterstützung | Y35: Index1 Azimut: | Z35: =IF(ABS(Azimut)>90,13,IF(Azimut<0,ROUND(-Azimut/15,0)+7,ROUND(Azimut/15,0)+7)) -> 7 | AB35: Index Neigung: | AC35: =IF(Neigung>90,1,IF(Neigung<0,10,10-ROUND(Neigung/10,0))) -> 10 | AD35: Korrektur: | AE35: =(INDEX(W39:AI48,AC35,Z35)+INDEX(W39:AI48,AC35,Z36))/2/X50 -> 0.7868852459
B36: =IF(Heizung=FALSE,"",Sprache!B47&" (Ta = -8°C)") ->  | E36: =IF(AND(Heizung,H36=""),Sprache!B75,"") ->  | F36: =IF(Heizung=FALSE,"",Sprache!B134) ->  | G36: =IF(Heizung=FALSE,"","°C") ->  | Y36: Index2 Azimut: | Z36: =14-Z35 -> 7 | AB36: Azimut:
B37: =IF(Heizung=FALSE,"",Sprache!B48&" (Ta = -8°C)") ->  | E37: =IF(AND(Heizung,H37=""),Sprache!B75,"") ->  | F37: =IF(Heizung=FALSE,"",Sprache!B135) ->  | G37: =IF(Heizung=FALSE,"","°C") ->  | W37: West | AI37: Ost
B38: =IF(Heizung=FALSE,"",IF(Heizspeicher,Sprache!B49,"")) ->  | F38: =IF(Heizung=FALSE,"",IF(Heizspeicher,Sprache!B136,"")) ->  | G38: =IF(Heizung=FALSE,"",IF(Heizspeicher,"°C","")) ->  | L38: WP Typ: | N38: Umwälzpumpen | Q38: MINERGIE-Solarformeln: | V38: Neigung: | W38: -90 | X38: -75 | Y38: -60 | Z38: -45 | AA38: -30 | AB38: -15 | AC38: 0 | AD38: 15 | AE38: 30 | AF38: 45 | AG38: 60 | AH38: 75 | AI38: 90
B39: =IF(L23=5,Sprache!B50,"") ->  | G39: =IF(L23=5,"°C","") ->  | L39: =IF(K31,"Quellen-Pumpe auf Blatt Spez","Pumpe auf Blatt WP") -> Pumpe auf Blatt WP | N39: =IF($K$31,Spez!H32,H31) -> 0 | O39: W | Q39: =IF(KollFlaeche>0,490/((1/KollFlaeche)+610/(EBF*(Qww/3.6+Qh/3.6))),0) -> 0 | V39: 90 | W39: 0.58 | X39: 0.65 | Y39: 0.72 | Z39: 0.77 | AA39: 0.79 | AB39: 0.8 | AC39: 0.79 | AD39: 0.77 | AE39: 0.73 | AF39: 0.68 | AG39: 0.63 | AH39: 0.55 | AI39: 0.47
B40: =IF(WW,Sprache!B51,"") ->  | E40: =IF(AND(WW,AA27=1),Sprache!B24,"") ->  | K40: =IF(M26<3,1,IF(F40="",1,MATCH(F40,AA21:AA26,0))) -> 1 | L40: =Spez!S20 -> COP B0/35 | N40: =IF(SpezWP,Spez!T20,IF(WPDatenbank,IF(WPArt=6,WP_Daten!P5,WP_Daten!X5),H28)) -> 0 | Q40: =Qww*EBF/3.6 ->  | V40: 80 | W40: 0.63 | X40: 0.71 | Y40: 0.78 | Z40: 0.84 | AA40: 0.87 | AB40: 0.89 | AC40: 0.87 | AD40: 0.85 | AE40: 0.82 | AF40: 0.76 | AG40: 0.7 | AH40: 0.61 | AI40: 0.53
B41: =IF(WW,Sprache!B52,"") ->  | E41: =IF(AND(H41="",WW),Sprache!$B$24,"") ->  | G41: =IF(WW,"°C","") ->  | L41: =Spez!S22 -> COP B0/55 | N41: =IF(SpezWP,Spez!T22,IF(WPDatenbank,IF(WPArt=6,WP_Daten!V5,WP_Daten!Z5),H30)) -> 0 | Q41: =Q39/Q40 ->  | V41: 70 | W41: 0.68 | X41: 0.76 | Y41: 0.84 | Z41: 0.9 | AA41: 0.93 | AB41: 0.95 | AC41: 0.95 | AD41: 0.92 | AE41: 0.89 | AF41: 0.83 | AG41: 0.75 | AH41: 0.66 | AI41: 0.58
B42: =IF(WW,Sprache!B53,"") ->  | E42: =IF(AND(WW,OR($H$41<=$H$42,$H$42=""),H42=""),Sprache!$B$24,IF(AND(H42<H41,H42<>"",WW),Sprache!B131,"")) ->  | F42: =IF(WW,IF(AND(H42>_Tww1,AA27=2),Sprache!B131,""),"") ->  | G42: =IF(WW,"°C","") ->  | L42: =Spez!S21 -> Qh B0/35 | N42: =IF(SpezWP,Spez!T21,IF(WPDatenbank,IF(WPArt=6,WP_Daten!O5,WP_Daten!W5),H27)) -> 0 | O42: kW | V42: 60 | W42: 0.71 | X42: 0.8 | Y42: 0.87 | Z42: 0.93 | AA42: 0.96 | AB42: 0.98 | AC42: 0.97 | AD42: 0.96 | AE42: 0.92 | AF42: 0.86 | AG42: 0.8 | AH42: 0.71 | AI42: 0.62
B43: =IF(AND(WW),Sprache!B199,"") ->  | D43: =IF(AND(WW,K43=1),Sprache!B24,"") ->  | F43: Länge: | G43: m | K43: =IF(M26<3,1,IF(E43="",1,MATCH(E43,N46:N49,0))) -> 1 | L43: =Spez!S23 -> Qh B0/55 | N43: =IF(SpezWP,Spez!T23,IF(WPDatenbank,IF(WPArt=6,WP_Daten!U5,WP_Daten!Y5),H29)) -> 0 | O43: kW | V43: 50 | W43: 0.74 | X43: 0.82 | Y43: 0.89 | Z43: 0.95 | AA43: 0.97 | AB43: 1 | AC43: 0.98 | AD43: 0.97 | AE43: 0.93 | AF43: 0.88 | AG43: 0.82 | AH43: 0.74 | AI43: 0.65
B44: =Sprache!B31 -> Installation solaire | E44: =IF(AND(F44=""),Sprache!B24,"") -> choisir -> | K44: =IF(F44="",1,MATCH(F44,N54:N60,0)) -> 1 | V44: 40 | W44: 0.75 | X44: 0.83 | Y44: 0.89 | Z44: 0.93 | AA44: 0.96 | AB44: 0.98 | AC44: 0.97 | AD44: 0.96 | AE44: 0.93 | AF44: 0.87 | AG44: 0.83 | AH44: 0.76 | AI44: 0.67
B45: =Sprache!B55 -> Surface des absorbeurs | G45: m2 | L45: WP Typ: | N45: Begleitheizband | Q45: JAZ mit / ohne el-Zusatz | V45: 30 | W45: 0.75 | X45: 0.82 | Y45: 0.87 | Z45: 0.91 | AA45: 0.95 | AB45: 0.95 | AC45: 0.95 | AD45: 0.94 | AE45: 0.91 | AF45: 0.86 | AG45: 0.82 | AH45: 0.77 | AI45: 0.7
B46: =Sprache!B56 -> orientation / inclinaison des collecteurs | E46: ='WP1'!E50 -> Azimut [°]: | G46: ='WP1'!G50 -> Pente [°]: | Q46: =Sprache!B333 -> exclu el. add. | V46: 20 | W46: 0.75 | X46: 0.8 | Y46: 0.84 | Z46: 0.87 | AA46: 0.89 | AB46: 0.9 | AC46: 0.9 | AD46: 0.89 | AE46: 0.87 | AF46: 0.84 | AG46: 0.8 | AH46: 0.76 | AI46: 0.7
B47: =Sprache!B57 -> Apport net par m2 d'absorbeur | E47: =IF(_SIA384,Sprache!B269,Sprache!B140) -> valeur proposée: | F47: ='WP1'!F51 -> 0 | G47: kWh/m2a | L47: =Sprache!B284 -> Entrées en bas | N47: =Sprache!B274 -> Non disponibles | Q47: =Sprache!B334 -> y compris el. add. | V47: 10 | W47: 0.74 | X47: 0.76 | Y47: 0.79 | Z47: 0.8 | AA47: 0.82 | AB47: 0.82 | AC47: 0.82 | AD47: 0.82 | AE47: 0.8 | AF47: 0.79 | AG47: 0.77 | AH47: 0.75 | AI47: 0.71
B48: =IF(OR(MinSol,solarExtern),Sprache!B58,Sprache!B275) -> Spécifications du collecteur | C48: =IF(OR(MinSol,solarExtern),""," ho = ") -> ho = | E48: =IF(OR(MinSol,solarExtern),""," a1 = ") -> a1 = | G48: =IF(OR(MinSol,solarExtern),Sprache!B130," a2 = ") -> a2 = | K48: =IF(OR(H48="",H48=0),0.00001,H48) -> 1e-05 | L48: =Sprache!B285 -> Liste des PAC | N48: =Sprache!B208 -> Circulation d'ECS | V48: 0 | W48: 0.72 | X48: 0.72 | Y48: 0.72 | Z48: 0.72 | AA48: 0.72 | AB48: 0.72 | AC48: 0.72 | AD48: 0.72 | AE48: 0.72 | AF48: 0.72 | AG48: 0.72 | AH48: 0.72 | AI48: 0.72
B49: =Sprache!B59 -> Taux de couverture solaire pour l'ECS | F49: e = | G49: % | H49: ='WP1'!H53 -> 0 | L49: =Sprache!B286 -> Entrées dans "Spez" | N49: =Sprache!B209 -> Câble chauffant
B50: =Sprache!B60 -> Taux de couverture solaire pour le chauffage | F50: e = | G50: % | H50: ='WP1'!H54 -> 0 | V50: Referenz: | W50: 45° / 45°: | X50: 0.915
K51: =SUMIF('WP1'!X60:X125,TaMin,'WP1'!AB60:AB125) -> 0 | N51: WW solar | O51: Heizung solar
B52: =Sprache!B32 -> Résultats | K52: =IF(Kategorie>1,(IF(Heizung,'WP1'!M32/28*(20-TaMin)-IF(Methode_384_3,H8*P18/1000,0),0)+IF(WW,Qww*H8/3.6/8760,0)),) -> 0 | L52: Berechnung für Solaranlagen: | N52: =IF(OR(O53=2,O53=4,O53=6),TRUE,FALSE) -> FALSE | O52: =IF(OR(O53=3,O53=5,O53=7),TRUE,FALSE) -> FALSE
B53: ='WP1'!B57 ->  | E53: =IF(AND(H8>0,H9>0),'WP1'!E57,"") ->  | F53: =IF(AND(H8>0,H9>0),'WP1'!F57,"") ->  | G53: ='WP1'!G57 ->  | H53: =IF(AND(H8<>"",H9<>""),'WP1'!H57,"") ->  | K53: =IF(OR(K52=0,K51=0),FALSE,IF(K52<=K51*1.01,FALSE,TRUE)) -> FALSE | L53: Rechenwert | N53: Pulldowns: | O53: =K44 -> 1 | V53: Warmwasser | AD53: Korrektur: | AE53: =(INDEX(W57:AI66,AC35,Z35)+INDEX(W57:AI66,AC35,Z36))/2/X68 -> 0.8972972973
B54: ='WP1'!B58 ->  | E54: ='WP1'!E58 ->  | F54: ='WP1'!F58 ->  | G54: ='WP1'!G58 ->  | H54: ='WP1'!H58 -> 0 | L54: =IF(O53>1,H45,0)*WinkelKorr -> 0 | M54: korr. Fläche Koll. | N54: ='WP1'!M58 -> pas d'installation solaire | AB54: Azimut:
B55: =Sprache!B38 -> Pertes en mode chauffage (démarrage, accumulateur, etc.) | F55: ='WP1'!F59 -> 0 | G55: Etah = | H55: =1-F55 -> 1 | L55: =IF(H47>0,IF(solarExtern,H47,L60),L60) ->  | M55: Nettoertrag, kWh/m2 | N55: ='WP1'!M59 ->  | W55: West | AI55: Ost
B56: =Sprache!B39 -> Pertes en mode préparation d'ECS (démarrage, accumulateur, etc.) | F56: ='WP1'!F60 -> 0 | G56: Etaw = | H56: =1-F56 -> 1 | L56: =IF(OR(Azimut>90,Neigung>90,Azimut<-90,Neigung<-90),0,IF(MinSol,IF(OR(AND(H47>0,solarExtern),_SIA384),1,IF(wwSolar,AE53,IF(HeizungSolar,AE35,1))),1)) -> 1 | M56: Winkelkorr WW | N56: ='WP1'!M60 ->  | V56: Neigung: | W56: -90 | X56: -75 | Y56: -60 | Z56: -45 | AA56: -30 | AB56: -15 | AC56: 0 | AD56: 15 | AE56: 30 | AF56: 45 | AG56: 60 | AH56: 75 | AI56: 90
B57: =Sprache!B40 -> Durée de fonctionnement de la pompe à chaleur | G57: h / a | H57: =IF(AND(H8>0,H9>0),'WP1'!H61,"") ->  | K57: inkl. el.: | N57: ='WP1'!M61 -> Chauffage solaire de l'ECS | V57: 90 | W57: 0.64 | X57: 0.7 | Y57: 0.74 | Z57: 0.77 | AA57: 0.78 | AB57: 0.78 | AC57: 0.77 | AD57: 0.75 | AE57: 0.73 | AF57: 0.7 | AG57: 0.66 | AH57: 0.61 | AI57: 0.55
B58: =Sprache!B41 -> Part et COP annuel de la pompe à chaleur pour le chauffage | E58: ='WP1'!E62 ->  | F58: =IF(AND(H8>0,H9>0),'WP1'!F62,"") ->  | G58: JAZh = | H58: =IF(AND(H8>0,H9>0),jazh,"") ->  | K58: =IF(H50<1,IF(bivalent,jazh,(1-H50)/(F58/jazh+F53)),999) ->  | L58: =IF(O53>1,H49,0) -> 0 | M58: Deckung WW | N58: ='WP1'!M62 -> Eau chaude sanitaire ECS + chauffage | V58: 80 | W58: 0.69 | X58: 0.75 | Y58: 0.8 | Z58: 0.83 | AA58: 0.85 | AB58: 0.85 | AC58: 0.85 | AD58: 0.83 | AE58: 0.8 | AF58: 0.76 | AG58: 0.72 | AH58: 0.67 | AI58: 0.6
B59: =Sprache!B42 -> Part et COP annuel de la pompe à chaleur pour l'ECS | E59: ='WP1'!E63 ->  | F59: =IF(AND(H8<>"",H9<>""),'WP1'!F63,"") ->  | G59: JAZww = | H59: =IF(AND(H8<>"",H9<>""),jazww,"") ->  | K59: =IF(H49<1,(1-H49)/(F59/jazww+IF(F54<>"",F54,0)),999) ->  | L59: =IF(HeizungSolar,H50,0) -> 0 | M59: Deckung Heizung | N59: ='WP1'!M63 -> Chauffage solaire de l'ECS (calcul externe) | V59: 70 | W59: 0.73 | X59: 0.8 | Y59: 0.85 | Z59: 0.89 | AA59: 0.91 | AB59: 0.92 | AC59: 0.91 | AD59: 0.9 | AE59: 0.87 | AF59: 0.83 | AG59: 0.78 | AH59: 0.71 | AI59: 0.65
B60: ='WP1'!B66 -> COP annuel pour chauffage et ECS (COPa [ch+ECS]) | E60: exkl. el. Zusatz | G60: ='WP1'!G66 -> - | H60: =IF(AND(H8<>"",H9<>""),IF(JAZel,K61,'WP1'!H66),"") ->  | K60: =IF(E60="",FALSE,IF(MATCH(E60,Q46:Q47,0)=2,TRUE,FALSE)) ->  | L60: =IF(Qh+Qww=0,,IF(wwSolar,Q54,IF(HeizungSolar,R54,0))) ->  | M60: Solarertrag | N60: ='WP1'!M64 -> Eau chaude sanitaire ECS + chauffage (calcul externe) | V60: 60 | W60: 0.76 | X60: 0.83 | Y60: 0.88 | Z60: 0.93 | AA60: 0.95 | AB60: 0.95 | AC60: 0.95 | AD60: 0.95 | AE60: 0.92 | AF60: 0.87 | AG60: 0.82 | AH60: 0.75 | AI60: 0.69
K61: =IF(AND(WW=TRUE,K40=1),"",IF(AND(WW=FALSE,Heizung=FALSE),"",IF(Heizung=FALSE,K59,IF(WW=FALSE,K58,IF(OR(EBF=0,K28=FALSE,AND(WPArt=3,H32="")),"",IF(AND(F58>0,F59>0),IF(bivalent,(wh/www*F58+F59)/(wh/www*F58/jazh+F59/jazww+IF(F54<>"",F54,0)),(wh/www*(1-H50)+1-H49)/(wh/www*(F58/jazh+IF(F53<>"",F53,0))+F59/jazww+IF(F54<>"",F54,0))))))))) ->  | L61: Vorschlag Minergie: | N61: Berechnung nach MINERGIE | P61: =IF(OR(O53=4,O53=5),TRUE,FALSE) -> FALSE | V61: 50 | W61: 0.79 | X61: 0.85 | Y61: 0.9 | Z61: 0.95 | AA61: 0.96 | AB61: 0.97 | AC61: 0.97 | AD61: 0.96 | AE61: 0.95 | AF61: 0.9 | AG61: 0.85 | AH61: 0.79 | AI61: 0.72
L62: =IF(Qh+Qww=0,,IF(wwSolar,Q54,IF(HeizungSolar,R54,0))) ->  | M62: Solarertrag | N62: Berechnung nach SIA 384/3 | P62: =IF(OR(O53=2,O53=3),TRUE,FALSE) -> FALSE | V62: 40 | W62: 0.81 | X62: 0.86 | Y62: 0.91 | Z62: 0.95 | AA62: 0.96 | AB62: 0.99 | AC62: 0.99 | AD62: 0.97 | AE62: 0.95 | AF62: 0.92 | AG62: 0.87 | AH62: 0.81 | AI62: 0.75
B63: =Sprache!B43 -> Facteur de pondération pour le chauffage: | G63: ='WP1'!G64 -> - | H63: =wh -> 0 | L63: kWh/m2a | N63: externe Berechnung: | P63: =IF(OR(O53=6,O53=7),TRUE,FALSE) -> FALSE | V63: 30 | W63: 0.82 | X63: 0.86 | Y63: 0.91 | Z63: 0.95 | AA63: 0.95 | AB63: 0.97 | AC63: 0.97 | AD63: 0.96 | AE63: 0.95 | AF63: 0.91 | AG63: 0.87 | AH63: 0.82 | AI63: 0.76
B64: =Sprache!B44 -> Facteur de pondération pour l'ECS | G64: ='WP1'!G65 -> - | H64: =www -> 0 | V64: 20 | W64: 0.82 | X64: 0.85 | Y64: 0.89 | Z64: 0.91 | AA64: 0.93 | AB64: 0.94 | AC64: 0.94 | AD64: 0.93 | AE64: 0.92 | AF64: 0.89 | AG64: 0.86 | AH64: 0.82 | AI64: 0.78
V65: 10 | W65: 0.82 | X65: 0.84 | Y65: 0.85 | Z65: 0.87 | AA65: 0.87 | AB65: 0.89 | AC65: 0.89 | AD65: 0.88 | AE65: 0.87 | AF65: 0.85 | AG65: 0.84 | AH65: 0.83 | AI65: 0.8
B66: Klimastationen SIA 2028 | E66: GH Jahr | F66: mittl. Heizp. | G66: Ta,min | H66: HGT | V66: 0 | W66: 0.83 | X66: 0.83 | Y66: 0.83 | Z66: 0.83 | AA66: 0.83 | AB66: 0.83 | AC66: 0.83 | AD66: 0.83 | AE66: 0.83 | AF66: 0.83 | AG66: 0.83 | AH66: 0.83 | AI66: 0.83
B67: Station | E67: MJ/m2a | F67: °C | G67: °C
V68: Referenz: | W68: 45° / 45°: | X68: 0.925
B69: Adelboden | E69: 4186 | F69: 2.8 | G69: -10 | H69: 4186
B70: Altdorf | E70: 4422 | F70: 4.4 | G70: -6 | H70: 2836
B71: Basel-Binningen | E71: 3940 | F71: 4.3 | G71: -7 | H71: 2733
B72: Bern-Liebefeld | E72: 4026 | F72: 4.9 | G72: -7 | H72: 3353
B73: Buchs-Aarau | E73: 4178 | F73: 4.2 | G73: -7 | H73: 2917 | L73: WP-Art | M73: WP-Typ
B74: Chur | E74: 3752 | F74: 3.9 | G74: -7 | H74: 2917 | L74: 1
B75: Davos | E75: 4324 | F75: 3.9 | G75: -13 | H75: 5205 | L75: 2 | M75: ='WP1'!T134 -> Pompe à chaleur air/eau une vitesse
B76: Disentis | E76: 4793 | F76: 0.9 | G76: -10 | H76: 3774 | L76: 2 | M76: ='WP1'!T135 -> Pompe à chaleur air/eau 2 vitesses
B77: Engelberg | E77: 4496 | F77: 2.2 | G77: -11 | H77: 3852 | L77: 2 | M77: ='WP1'!T136 -> Pompe à chaleur air/eau Plusieurs vitesses
B78: Genève-Cointrin | E78: 3998 | F78: 1.8 | G78: -4 | H78: 2739 | L78: 2 | M78: ='WP1'!T137 -> Pompe à chaleur air/eau vitesse variable
B79: Glarus | E79: 4453 | F79: 4.9 | G79: -8 | H79: 3410 | L79: 3 | M79: ='WP1'!T138 -> Pompe à chaleur sol/eau une vitesse
B80: Grosser St. Bernhard | E80: 3809 | F80: 3.9 | G80: -15 | H80: 7473 | L80: 3 | M80: ='WP1'!T139 -> Pompe à chaleur sol/eau 2 vitesses
B81: Güttingen | E81: 4868 | F81: -0.5 | G81: -7 | H81: 3316 | L81: 3 | M81: ='WP1'!T140 -> Pompe à chaleur sol/eau Plusieurs vitesses
B82: La Chaux-de-Fonds | E82: 3981 | F82: 4.4 | G82: -10 | H82: 3786 | L82: 3 | M82: ='WP1'!T141 -> Pompe à chaleur sol/eau vitesse variable
B83: Locarno-Monti | E83: 4101 | F83: 3.8 | G83: -1 | H83: 2147 | L83: 4 | M83: ='WP1'!T142 -> Pompe à chaleur eau/eau une vitesse
B84: Lugano | E84: 4163 | F84: 2.1 | G84: -1 | H84: 2144 | L84: 4 | M84: ='WP1'!T143 -> Pompe à chaleur eau/eau 2 vitesses
B85: Luzern | E85: 4158 | F85: 2.7 | G85: -6 | H85: 2917 | L85: 4 | M85: ='WP1'!T144 -> Pompe à chaleur eau/eau Plusieurs vitesses
B86: Magadino | E86: 4513 | F86: 5.8 | G86: -3 | H86: 2377 | L86: 4 | M86: ='WP1'!T145 -> Pompe à chaleur eau/eau vitesse variable
B87: Montana | E87: 4429 | F87: 5.8 | G87: -10 | H87: 4274 | L87: 5 | M87: ='WP1'!T146 -> PAC avec collecteur terrestre une vitesse
B88: Neuchâtel | E88: 3767 | F88: 3.9 | G88: -5 | H88: 2799 | L88: 5 | M88: ='WP1'!T147 -> PAC avec collecteur terrestre 2 vitesses
B89: Payerne | E89: 4321 | F89: 4.3 | G89: -7 | H89: 2968 | L89: 5 | M89: ='WP1'!T148 -> PAC avec collecteur terrestre Plusieurs vitesses
B90: Robbia | E90: 5040 | F90: 2.4 | G90: -8 | H90: 3740 | L90: 5 | M90: ='WP1'!T149 -> PAC avec collecteur terrestre vitesse variable
B91: Samedan | E91: 4018 | F91: 4.5 | G91: -18 | H91: 6121 | L91: 6 | M91: ='WP1'!T150 -> PAC sur air extrait sur installation de ventilation sans récupération de chaleur
B92: San Bernardino | E92: 4223 | F92: 3.6 | G92: -11 | H92: 5132 | L92: 6 | M92: ='WP1'!T151 -> 
B93: St. Gallen | E93: 4017 | F93: 2.9 | G93: -9 | H93: 3483 | L93: 6 | M93: ='WP1'!T152 -> 
B94: Schaffhausen | E94: 4468 | F94: 5.3 | G94: -8 | H94: 3310 | L94: 6 | M94: ='WP1'!T153 -> 
B95: Scuol | E95: 4317 | F95: 2.4 | G95: -12 | H95: 4158
B96: Sion | E96: 4038 | F96: 3.5 | G96: -6 | H96: 2606
B97: Vaduz | E97: 4988 | F97: -0.2 | G97: -8 | H97: 2851
B98: Wynau | E98: 4405 | F98: 1.2 | G98: -7 | H98: 3371
B99: Zermatt | E99: 3894 | F99: 3.6 | G99: -11 | H99: 5017
B100: Zürich SMA | E100: 4010 | F100: 4.4 | G100: -8 | H100: 2959

Sheet JAZcalc (hidden)
B1: Wärmepumpen - Berechnungsblatt | J1: Blatt nicht aktiv
B2: JAZcalc | C2: ="Version "&Sprache!E2 -> Version 8.3.33 | D2: =IF(TODAY()>DATE(2013,12,31),"Abgelaufen!","") -> Abgelaufen! | N2: Warmwasserbedarf nach OIB Richtlinie 6 | S2: Warnmeldungen Sonden | U2: =IF(OR(T7,T13),TRUE,FALSE) -> FALSE | V2: Bundesland: | W2: max. Sondenbelastung: | Z2: WP Typ: | AB2: Begleitheizband | AE2: Speicher-Verluste | AF2: =L25 -> 1 | AG2: Speicherverluste | AH2: Überladung | AJ2: Betrieb | AK2: bivalent? | AL2: el.-Zusatz | AN2: Speicherladung | AO2: =L27 -> 1 | AQ2: WW-Zusatzheiz | AT2: WW solar | AU2: Heizung solar | AX2: Heizwärmebedarf und TVL / TRL
B3: Projekt: | F3: Installateur / Planer: | H3: ="JAZcalc "&Sprache!E2&" / "&TEXT(WP_Daten!E2,"tt.MMM.jjjj") -> JAZcalc 8.3.33 / 27.Sep.2024 | N3: Kategorie: | O3: =IF(H10="",1,MATCH(H10,N5:N17,0)) -> 1 | S3: Erdsonden-WP | T3: =WPArt=3 -> FALSE | W3: W/m | X3: kWh/m | AF3: TRUE | AG3: ='WP1'!AJ133 -> 0 | AH3: FALSE | AK3: FALSE | AL3: FALSE | AT3: =IF(OR(AU4=2,AU4=4,AU4=6),TRUE,FALSE) -> FALSE | AU3: =IF(OR(AU4=3,AU4=5,AU4=7),TRUE,FALSE) -> FALSE | AX3: Spezifischer Heizwärmebedarf bis [°C] | BA3: 30 | BB3: 45 | BC3: 70 | BD3: 90 | BE3: 999
B4: Name (Bauherr/GU): | F4: Name: | N4: Grenzwerte | O4: Qww [MJ/m2] | P4: wwwb [Wh/m2d] | S4: Leistung: | V4: Vorarlberg | W4: 40 | X4: 1000 | Z4: Angaben unten | AB4: ='WP1'!R50 -> Non disponibles | AE4: =IF('WP1'!AH134<>"",'WP1'!AH134,"") ->  | AF4: FALSE | AG4: ='WP1'!AJ134 -> 0 | AH4: FALSE | AJ4: ='WP1'!AD134 -> fonctionnement chauffage monovalent | AK4: FALSE | AL4: FALSE | AN4: ='WP1'!BG69 ->  | AQ4: ='WP1'!BG78 ->  | AT4: Pulldowns: | AU4: =L47 -> 1 | AX4: Vorlauftemperatur TVL [°C] | BA4: 32 | BB4: 35 | BC4: 40 | BD4: 50 | BE4: 60
B5: Strasse: | F5: Strasse: | S5: Sondenbelastung | T5: =IF(AND(I35>0,T3),'WP1'!W52/'WP1'!W50*('WP1'!W50-1)*1000/MAX(F35,1)/I35,) -> 0 | U5: W/m | V5: Burgenland | W5: 40 | X5: 1000 | Z5: WP-Liste | AB5: ='WP1'!R51 -> Circulation d'ECS | AE5: =IF('WP1'!AH135<>"",'WP1'!AH135,"") ->  | AF5: TRUE | AG5: ='WP1'!AJ135 -> 0.02 | AH5: FALSE | AJ5: ='WP1'!AD135 -> avec chauffage électrique de secours | AK5: FALSE | AL5: TRUE | AN5: ='WP1'!BG70 ->  | AQ5: ='WP1'!BG79 ->  | AT5: ='WP1'!M58 -> pas d'installation solaire | AX5: Rücklauftemperatur TRL [°C] | BA5: 27 | BB5: 30 | BC5: 35 | BD5: 40 | BE5: 45
B6: Ort: | F6: Ort: | N6: Mehrfamilienhäuser | O6: =P6*365/1000*3.6 -> 45.99 | P6: 35 | S6: Sondenbelastung | T6: =IF(T3,"(Sondenbelastung = "&ROUND(T5,1)&" W/m)") -> FALSE | V6: Kärnten | W6: 40 | X6: 1000 | Z6: Eingabe in "Spez" | AB6: ='WP1'!R52 -> Câble chauffant | AE6: =IF(OR(L23=1,L23=18),"","Hygienespeicher WP optimiert") ->  | AF6: =IF(AC8=4,TRUE,FALSE) -> FALSE | AG6: ='WP1'!AJ136 -> 0.04 | AH6: FALSE | AJ6: ='WP1'!AD136 -> Installation bivalente fossile | AK6: TRUE | AL6: FALSE | AN6: ='WP1'!BG71 ->  | AQ6: ='WP1'!BG80 -> 
B7: Tel : | F7: Tel : | N7: Einfamilienhäuser | O7: =P7*365/1000*3.6 -> 45.99 | P7: 35 | S7: Warnhinweis | T7: =T5>W17 -> FALSE | V7: Niederösterreich | W7: 40 | X7: 1000 | AE7: =IF('WP1'!AH137<>"",'WP1'!AH137,"") ->  | AF7: =IF(AC8=4,TRUE,FALSE) -> FALSE | AG7: ='WP1'!AJ137 -> 0.06 | AH7: TRUE | AJ7: ='WP1'!AD137 -> Installation bivalente fossile alternative | AQ7: ='WP1'!BG81 -> 
B8: =Sprache!B10 -> Données concernant le bâtiment | C8: Energieausweis Nr: | F8: =IF(AND(H8=""),Sprache!B24,"") -> choisir -> | G8: Bundesland: | N8: Bürogebäude | O8: =P8*365/1000*3.6 -> 22.995 | P8: 17.5 | V8: Oberösterreich | W8: 40 | X8: 1000 | Z8: Handauswahl: | AE8: =IF('WP1'!AH138<>"",'WP1'!AH138,"") ->  | AF8: =IF(AC8=4,TRUE,FALSE) -> FALSE | AG8: ='WP1'!AJ138 -> 0.05 | AH8: FALSE | AQ8: ='WP1'!BG82 ->  | AT8: ='WP1'!M61 -> Chauffage solaire de l'ECS
B9: Klimastation | G9: =IF(AND(H9=""),Sprache!B24,"") -> choisir -> | L9: =IF(H9="",1,MATCH(H9,N22:N722,0)) -> 1 | N9: Schulen | O9: =P9*365/1000*3.6 -> 22.995 | P9: 17.5 | S9: Energie: | V9: Salzburg | W9: 40 | X9: 1000 | Z9: Auswahl: | AA9: =W5 -> 40 | AE9: =IF('WP1'!AH139<>"",'WP1'!AH139,"") ->  | AG9: ='WP1'!AJ139 -> 0 | AJ9: =AA5 -> 0 | AK9: =INDEX(AK3:AK6,AJ9,1) ->  | AL9: =INDEX(AL3:AL6,AJ9,1) ->  | AN9: =INDEX(AN3:AN8,AO2,1) ->  | AQ9: =L43 -> 1 | AT9: ='WP1'!M62 -> Eau chaude sanitaire ECS + chauffage
B10: Gebäudekategorie | G10: =IF(AND(H10=""),Sprache!B24,"") -> choisir -> | N10: Verkauf | O10: =25 -> 25 | S10: JAZ | T10: =IF((wh+www)=0,0,IF(AND(jazh=0,jazww=0),0,1/(IF(jazh>0,wh/jazh,0)+IF(jazww>0,www/jazww,0)))) -> 0 | V10: Steiermark | W10: 40 | X10: 1000 | Z10: Einsatz: | AA10: =IF(AA9=1,IF(AA8>0,AA8,AA9),AA9) -> 40 | AE10: =IF('WP1'!AH140<>"",'WP1'!AH140,"") ->  | AG10: ='WP1'!AJ140 -> 0 | AQ10: =INDEX(AQ3:AQ8,AQ9,1) -> 0 | AT10: ='WP1'!M63 -> Chauffage solaire de l'ECS (calcul externe)
B11: Brutto Grundfläche BGF (gemäß Energieausweis) | F11: =IF(OR(EBF="",EBF=0),"ausfüllen ->","") -> ausfüllen -> | G11: AE | H11: m2 | N11: Restaurant | O11: =200 -> 200 | S11: Sondenbelastung | T11: =IF(T3,IF(AND(I35>0,T10<>1,T10<>"",T3),Grafik!C13*(T10-1)/MAX(F35,1)/I35,),) -> 0 | U11: kWh/m | V11: Tirol | W11: 40 | X11: 1000 | AE11: =IF('WP1'!AH141<>"",'WP1'!AH141,"") ->  | AG11: ='WP1'!AJ141 -> 0 | AQ11: =IF(AQ9>2,TRUE,FALSE) -> FALSE | AT11: ='WP1'!M64 -> Eau chaude sanitaire ECS + chauffage (calcul externe)
B12: Heizwärmebedarf (gemäß Energieausweis) | F12: =IF(I12="","ausfüllen ->","") -> ausfüllen -> | G12: Qh,eff | H12: kWh/m2a | N12: Versammlungslokale | O12: =50 -> 50 | Q12: Ja/Nein | S12: Sondenbelastung | T12: =IF(T3,"(Sondenbelastung = "&ROUND(T11,1)&" kWh/m)") -> FALSE | V12: Wien | W12: 40 | X12: 1000 | Z12: ='WP1'!BG60 -> Chauffage | AE12: =IF('WP1'!AH142<>"",'WP1'!AH142,"") ->  | AG12: ='WP1'!AJ142 -> 0 | AT12: Berechnung nach MINERGIE | AV12: =IF(OR(AU4=4,AU4=5),TRUE,FALSE) -> FALSE
B13: Transmissionswärmeverluste (gemäß Energieausweis) | F13: =IF(OR(QT="",QT=0),"",IF(I13,IF(OR(I13<=0.5*$I$12,Berechnungen!E33),Sprache!B131,""),"")) ->  | G13: QT | H13: kWh/m2a | N13: Krankenäuser & Pflegeheime | O13: =P13*365/1000*3.6 -> 91.98 | P13: 70 | Q13: ja | S13: Warnhinweis | T13: =T11>X17 -> FALSE | Z13: ='WP1'!BG61 -> ECS eau chaude sanitaire | AE13: =IF('WP1'!AH143<>"",'WP1'!AH143,"") ->  | AG13: ='WP1'!AJ143 -> 0 | AT13: Berechnung nach SIA 384/3 | AV13: =IF(OR(AU4=2,AU4=3),TRUE,FALSE) -> FALSE
B14: Lüftungswärmeverluste (gemäß Energieausweis) | F14: =IF(OR(QV="",QV=0),"",IF(I14,IF(OR((I14+QT)<$I$12,Berechnungen!E33),Sprache!B131,""),"")) ->  | G14: QV | H14: kWh/m2a | N14: Industrie | O14: =25 -> 25 | Q14: nein | T14: =IF(T3,"(Sondenbelastung = "&ROUND(T5,1)&" W/m bzw. "&ROUND(T11,1)&" kWh/m) ") -> FALSE | Z14: ='WP1'!BG62 -> Chauffage+ECS | AE14: =IF('WP1'!AH144<>"",'WP1'!AH144,"") ->  | AG14: ='WP1'!AJ144 -> 0 | AT14: externe Berechnung: | AV14: =IF(OR(AU4=6,AU4=7),TRUE,FALSE) -> FALSE
B15: Heizung: Zusätzliche Verteilverluste | H15: % | N15: Lager | O15: =5 -> 5 | Q15: Ja | Z15: ='WP1'!BG63 -> Chauffage + production d'ECS décentralisée par PAC | AE15: =IF('WP1'!AH145<>"",'WP1'!AH145,"") ->  | AG15: ='WP1'!AJ145 -> 0
B16: Sperrzeiten für Wärmepumpe | H16: h/d | N16: Sportbau | O16: =300 -> 300 | Q16: nein | R16: JAZcalc | S16: =IF(U17=J1,TRUE,FALSE) -> FALSE | AE16: =INDEX(AE3:AE15,AF2,1) ->  | AF16: =INDEX(AF3:AF15,AF2,1) -> TRUE | AG16: =INDEX(AG3:AG15,AF2,1) -> 0 | AH16: =INDEX(AH3:AH15,AF2,1) -> FALSE
B17: ="Heizleistungsbedarf ohne Warmwasser bei "&IF(TaMinVorarlberg=0,"-8",TaMinVorarlberg)&"°C" -> Heizleistungsbedarf ohne Warmwasser bei -8°C | F17: =IF(L9=1,"",'WP1'!E14) ->  | G17: =IF(L9=1,"",'WP1'!F14/(20-TaMin)*(20-TaMinVorarlberg)) ->  | H17: kW | L17: =I17*(20-TaMin)/(20-TaMinVorarlberg) ->  | N17: Hallenbad | O17: =300 -> 300 | Q17: JA | R17: Bundesland | S17: =V17 -> 1 | T17: TRUE | U17: Blatt aktiv | V17: =IF(H8="",1,MATCH(H8,V4:V16,0)) -> 1 | W17: =INDEX(W4:W12,$V$17,1) -> 40 | X17: =INDEX(X4:X12,$V$17,1) -> 1000
B18: Warmwasserbedarf | G18: Qww | H18: kWh/m2a | I18: =IF(H10<>"",IF(U31<>"",U31,IF('WP1'!J21=1,INDEX(O5:O17,Kategorie,1)/3.6*(1+I19),IF(O3>1,IF(WW,IF(AND(EBF>0,O3>1),IF(I11=0,"",O18/3.6),""),0),0))),"") ->  | N18: =INDEX(N5:N17,O3,1) ->  | O18: =INDEX(O5:O17,$O$3,1)*(1+EtaWW) ->  | P18: =INDEX(P5:P17,$O$3,1) -> 0 | Q18: NEIN | R18: bivalent: | S18: ='WP1'!Z89 -> 0 | T18: FALSE | U18: Blatt nicht aktiv
B19: Warmwasser: Zusätzliche Speicher- und Verteilverluste | H19: %
B20: =IF(AND(Qh>0,L24<>3),IF(AND(bivalent=FALSE,elZusatz=FALSE,G56>0.01),Sprache!B146,""),"") ->  | I20: ='WP1'!H17 ->  | N20: Klimastationen | O20: Höhe | P20: Temperatur °C | R20: HGT nur HT | S20: Auslegung | X20: Klimastationen | Y20: Höhe | Z20: Temperatur °C | AA20: HGT nur HT | AB20: Auslegung | AE20: Klimastationen | AF20: Höhe | AG20: Temperatur °C | AH20: HGT nur HT | AI20: Auslegung | AL20: Klimastationen | AM20: Höhe | AN20: Temperatur °C | AO20: HGT nur HT | AP20: Auslegung | AS20: Klimastationen | AT20: Höhe | AU20: Temperatur °C | AV20: HGT nur HT | AW20: Auslegung | AZ20: Klimastationen | BA20: Höhe | BB20: Temperatur °C | BC20: HGT nur HT | BD20: Auslegung | BG20: Klimastationen | BH20: Höhe | BI20: Temperatur °C | BJ20: HGT nur HT | BK20: Auslegung | BN20: Klimastationen | BO20: Höhe | BP20: Temperatur °C | BQ20: HGT nur HT | BR20: Auslegung | BU20: Klimastationen | BV20: Höhe | BW20: Temperatur °C | BX20: HGT nur HT | BY20: Auslegung | CB20: Klimastationen | CC20: Höhe | CD20: Temperatur °C | CE20: HGT nur HT | CF20: Auslegung
B21: =Sprache!B22 -> Installation de pompe à chaleur | G21: =IF(SpezWP,IF(Spez!E5<>"",Spez!E5,""),"Hersteller: ") -> Hersteller: | L21: =IF(OR(F21="",F21=Z4,F21=Z6),FALSE,TRUE) -> FALSE | N21: =L9 -> 1 | O21: m.ü.M. | P21: mittl. Heizp. | Q21: Auslegung CH | R21: 20/12 | S21: =INDEX(AB$21:CL$21,1,(Bundesland-1)*8+1) -> Vorarlberg | X21: 1 | Y21: m.ü.M. | Z21: mittl. Heizp. | AA21: 20/12 | AB21: =V4 -> Vorarlberg | AF21: m.ü.M. | AG21: mittl. Heizp. | AH21: 20/12 | AI21: =V5 -> Burgenland | AM21: m.ü.M. | AN21: mittl. Heizp. | AO21: 20/12 | AP21: =V6 -> Kärnten | AT21: m.ü.M. | AU21: mittl. Heizp. | AV21: 20/12 | AW21: =V7 -> Niederösterreich | BA21: m.ü.M. | BB21: mittl. Heizp. | BC21: 20/12 | BD21: =V8 -> Oberösterreich | BH21: m.ü.M. | BI21: mittl. Heizp. | BJ21: 20/12 | BK21: =V9 -> Salzburg | BO21: m.ü.M. | BP21: mittl. Heizp. | BQ21: 20/12 | BR21: =V10 -> Steiermark | BV21: m.ü.M. | BW21: mittl. Heizp. | BX21: 20/12 | BY21: =V11 -> Tirol | CC21: m.ü.M. | CD21: mittl. Heizp. | CE21: 20/12 | CF21: =V12 -> Wien
B22: =Sprache!B23 -> Nom et type de PAC | G22: =IF(SpezWP,IF(Spez!E5<>"",Spez!E5,""),"Typ: ") -> Typ: | L22: =IF(OR(H21=WP_Daten!D10,H21=""),FALSE,TRUE) -> FALSE
B23: =Sprache!B26 -> Source de chaleur: | F23: =IF(WPArt=1,Sprache!B24,"") -> choisir -> | L23: =IF(G23="",1,MATCH(G23,C69:C89,0)) -> 1 | M23: 1 | N23: =INDEX(X$23:CG$723,$M23,(Bundesland-1)*7+1) -> Alberschwende | O23: =INDEX(Y$23:CH$723,$M23,(Bundesland-1)*7+1) -> 721 | P23: =INDEX(Z$23:CI$723,$M23,(Bundesland-1)*7+1) -> 2.82 | Q23: =MIN(S23+Zuschlag_A,-8) -> -15 | R23: =INDEX(AA$23:CK$723,$M23,(Bundesland-1)*7+1) -> 4380 | S23: =INDEX(AB$23:CL$723,$M23,(Bundesland-1)*7+1) -> -15 | W23: 1 | X23: Alberschwende | Y23: 721 | Z23: 2.82 | AA23: 4380 | AB23: -15 | AD23: 1 | AE23: Andau | AF23: 120 | AG23: 3.46 | AH23: 3341 | AI23: -14 | AK23: 1 | AL23: Afritz | AM23: 715 | AN23: 2.86 | AO23: 4131 | AP23: -15 | AR23: 1 | AS23: Absdorf | AT23: 180 | AU23: 3.45 | AV23: 3575 | AW23: -13 | AY23: 1 | AZ23: Ach | BA23: 380 | BB23: 3.11 | BC23: 3850 | BD23: -15 | BF23: 1 | BG23: Abtenau | BH23: 715 | BI23: 2.15 | BJ23: 4462 | BK23: -16 | BM23: 1 | BN23: Admont | BO23: 641 | BP23: 2.07 | BQ23: 4591 | BR23: -17 | BT23: 1 | BU23: Abfaltersbach | BV23: 982 | BW23: 1.99 | BX23: 4808 | BY23: -17 | CA23: 1 | CB23: Wien-Alsergrund | CC23: 164 | CD23: 3.76 | CE23: 3297 | CF23: -13
B24: =Sprache!B27 -> Utilisation (chauffage ou eau chaude sanitaire) | F24: =IF(#REF!=1,Sprache!B24,"") ->  | L24: =IF(G24="",1,MATCH(G24,Z11:Z15,0)) -> 1 | M24: 2 | N24: Altach | O24: 412 | P24: 3.83 | Q24: =MIN(S24+Zuschlag_A,-8) -> -13 | R24: 3542 | S24: -13 | W24: 2 | X24: Altach | Y24: 412 | Z24: 3.83 | AA24: 3542 | AB24: -13 | AD24: 2 | AE24: Apetlon | AF24: 120 | AG24: 3.32 | AH24: 3252 | AI24: -14 | AK24: 2 | AL24: Althofen | AM24: 665 | AN24: 2.49 | AO24: 4132 | AP24: -15 | AR24: 2 | AS24: Achau | AT24: 170 | AU24: 3.6 | AV24: 3394 | AW24: -13 | AY24: 2 | AZ24: Adlwang | BA24: 420 | BB24: 3.13 | BC24: 3847 | BD24: -14 | BF24: 2 | BG24: Adnet | BH24: 481 | BI24: 3.49 | BJ24: 3880 | BK24: -15 | BM24: 2 | BN24: Aflenz Kurort | BO24: 763 | BP24: 2.54 | BQ24: 4556 | BR24: -15 | BT24: 2 | BU24: Achenkirch | BV24: 916 | BW24: 2.4 | BX24: 4841 | BY24: -17 | CA24: 2 | CB24: Wien-Breitenlee | CC24: 160 | CD24: 3.6 | CE24: 3379 | CF24: -13
B25: =IF(Heizung=FALSE,"",Sprache!B29) ->  | F25: =IF(AND(HeizungSolar,#REF!=3),Sprache!B25,IF(AND(#REF!=1,Heizung),Sprache!B24,"")) ->  | L25: =IF(G25="",1,MATCH(G25,AE3:AE15,0)) -> 1 | M25: 3 | N25: Andelsbuch | O25: 613 | P25: 3.12 | Q25: -15 | R25: 4136 | S25: -15 | W25: 3 | X25: Andelsbuch | Y25: 613 | Z25: 3.12 | AA25: 4136 | AB25: -15 | AD25: 3 | AE25: Bad Tatzmannsdorf | AF25: 338 | AG25: 3.07 | AH25: 3775 | AI25: -13 | AK25: 3 | AL25: Arnoldstein | AM25: 575 | AN25: 2.32 | AO25: 4102 | AP25: -16 | AR25: 3 | AS25: Aggsbach Dorf | AT25: 220 | AU25: 3.5 | AV25: 3548 | AW25: -13 | AY25: 3 | AZ25: Aigen im Mühlkreis | BA25: 596 | BB25: 2.68 | BC25: 4157 | BD25: -14 | BF25: 3 | BG25: Aigen-Voglhub | BH25: 521 | BI25: 3.26 | BJ25: 3950 | BK25: -14 | BM25: 3 | BN25: Aich (im Ennstal) | BO25: 700 | BP25: 2.72 | BQ25: 4388 | BR25: -15 | BT25: 3 | BU25: Ainet | BV25: 740 | BW25: 2.22 | BX25: 4302 | BY25: -16 | CA25: 3 | CB25: Wien-Brigittenau | CC25: 170 | CD25: 3.78 | CE25: 3308 | CF25: -13
B26: =Sprache!B28 -> Mode de fonctionnement de la PAC | F26: =IF(#REF!=1,Sprache!B24,"") ->  | L26: =IF(G26="",1,IF(MATCH(G26,AJ3:AJ7,0)=5,4,MATCH(G26,AJ3:AJ7,0))) -> 1 | M26: 4 | N26: Au (Bregenzerwald) | O26: 810 | P26: 2.34 | Q26: -19 | R26: 4734 | S26: -19 | W26: 4 | X26: Au (Bregenzerwald) | Y26: 810 | Z26: 2.34 | AA26: 4734 | AB26: -19 | AD26: 4 | AE26: Bernstein | AF26: 617 | AG26: 2.91 | AH26: 3879 | AI26: -13 | AK26: 4 | AL26: Arriach | AM26: 895 | AN26: 2.87 | AO26: 4352 | AP26: -15 | AR26: 4 | AS26: Aggsbach Markt | AT26: 215 | AU26: 3.56 | AV26: 3535 | AW26: -13 | AY26: 4 | AZ26: Aistersheim | BA26: 437 | BB26: 3.19 | BC26: 3782 | BD26: -15 | BF26: 4 | BG26: Alm | BH26: 800 | BI26: 2.35 | BJ26: 4447 | BK26: -17 | BM26: 4 | BN26: Aigen im Ennstal | BO26: 680 | BP26: 2.26 | BQ26: 4505 | BR26: -16 | BT26: 4 | BU26: Aldrans | BV26: 759 | BW26: 3.05 | BX26: 4135 | BY26: -15 | CA26: 4 | CB26: Wien-Döbling | CC26: 200 | CD26: 3.71 | CE26: 3355 | CF26: -13
B27: =IF(elZusatz,Sprache!B30,"") ->  | F27: =IF(AND(elZusatz,#REF!=1),Sprache!B24,"") ->  | L27: =IF(G27="",1,MATCH(G27,AN3:AN6,0)) -> 1 | M27: 5 | N27: Bezau | O27: 653 | P27: 2.93 | Q27: -17 | R27: 4267 | S27: -17 | W27: 5 | X27: Bezau | Y27: 653 | Z27: 2.93 | AA27: 4267 | AB27: -17 | AD27: 5 | AE27: Breitenbrunn | AF27: 145 | AG27: 3.49 | AH27: 3385 | AI27: -13 | AK27: 5 | AL27: Außerfragant | AM27: 721 | AN27: 2.91 | AO27: 4171 | AP27: -15 | AR27: 5 | AS27: Aigen (Waldviertel) | AT27: 445 | AU27: 2.64 | AV27: 4132 | AW27: -16 | AY27: 5 | AZ27: Alberndorf in der Riedmark | BA27: 570 | BB27: 2.87 | BC27: 4077 | BD27: -14 | BF27: 5 | BG27: Altenmarkt im Pongau | BH27: 843 | BI27: 1.92 | BJ27: 4792 | BK27: -17 | BM27: 5 | BN27: Allerheiligen bei Wildon | BO27: 400 | BP27: 3.12 | BQ27: 3596 | BR27: -14 | BT27: 5 | BU27: Alpach | BV27: 975 | BW27: 2.33 | BX27: 4823 | BY27: -17 | CA27: 5 | CB27: Wien-Donaustadt | CC27: 160 | CD27: 3.67 | CE27: 3348 | CF27: -13
B28: =Sprache!B69 -> Température de la source (entrée PAC) | D28: °C | E28: -15 | F28: -7 | G28: 2 | H28: 7 | I28: =IF(WPArt=2,20,IF(WPArt=3,0,IF(WPArt=4,10,IF(WPArt=5,0,IF(WPArt=6,20,20))))) -> 20 | L28: =IF(G26="",1,MATCH(G26,AJ3:AJ7,0)) -> 1 | M28: 6 | N28: Bizau | O28: 681 | P28: 2.77 | Q28: -17 | R28: 4359 | S28: -17 | W28: 6 | X28: Bizau | Y28: 681 | Z28: 2.77 | AA28: 4359 | AB28: -17 | AD28: 6 | AE28: Deutsch Jahrndorf | AF28: 133 | AG28: 3.42 | AH28: 3382 | AI28: -14 | AK28: 6 | AL28: Bad Bleiberg | AM28: 892 | AN28: 2.06 | AO28: 4610 | AP28: -17 | AR28: 6 | AS28: Albrechtsberg an der Großen Krems | AT28: 690 | AU28: 2.2 | AV28: 4735 | AW28: -17 | AY28: 6 | AZ28: Alkoven | BA28: 268 | BB28: 3.06 | BC28: 3675 | BD28: -14 | BF28: 6 | BG28: Anif | BH28: 434 | BI28: 3.42 | BJ28: 3796 | BK28: -15 | BM28: 6 | BN28: Allerheiligen im Mürztal | BO28: 552 | BP28: 2.93 | BQ28: 4080 | BR28: -14 | BT28: 6 | BU28: Arzl im Pitztal | BV28: 883 | BW28: 2.5 | BX28: 4392 | BY28: -16 | CA28: 6 | CB28: Wien-Eßling | CC28: 157 | CD28: 3.55 | CE28: 3372 | CF28: -14
B29: =Sprache!B185&IF(SpezWP,Spez!C10,35)&"°C (Qh / COP):" -> Valeurs de calcul pour Tdép35°C (Qh / COP): | D29: °C | E29: =IF(WPArt=2,IF(SpezWP,FIXED(WP_BIN!AD81,1)&"kW / "&FIXED(WP_BIN!AD82,1),FIXED(WP_Daten!G5,1)&"kW / "&FIXED(WP_Daten!H5,1)),"") ->  | F29: =IF(WPArt=2,IF(SpezWP,FIXED(WP_BIN!AL81,1)&"kW / "&FIXED(WP_BIN!AL82,1),FIXED(WP_Daten!I5,1)&"kW / "&FIXED(WP_Daten!J5,1)),"") ->  | G29: =IF(WPArt=2,IF(SpezWP,FIXED(WP_BIN!AU81,1)&"kW / "&FIXED(WP_BIN!AU82,1),FIXED(WP_Daten!K5,1)&"kW / "&FIXED(WP_Daten!L5,1)),"") ->  | H29: =IF(WPArt=2,IF(SpezWP,FIXED(WP_BIN!AZ81,1)&"kW / "&FIXED(WP_BIN!AZ82,1),FIXED(WP_Daten!M5,1)&"kW / "&FIXED(WP_Daten!N5,1)),"") ->  | I29: ='WP1'!H26 -> 0.0kW / 0.0 | L29: =IF(AND(WPArt=2,SpezWP=FALSE,WP_Daten!K5>0,WP_Daten!L5>0),TRUE,FALSE) -> FALSE | M29: 7 | N29: Bludenz | O29: 570 | P29: 3.29 | Q29: -15 | R29: 3860 | S29: -15 | W29: 7 | X29: Bludenz | Y29: 570 | Z29: 3.29 | AA29: 3860 | AB29: -15 | AD29: 7 | AE29: Deutsch Kaltenbrunn | AF29: 262 | AG29: 3.14 | AH29: 3574 | AI29: -13 | AK29: 7 | AL29: Bad Kleinkirchheim | AM29: 1073 | AN29: 2.71 | AO29: 4720 | AP29: -16 | AR29: 7 | AS29: Alland | AT29: 325 | AU29: 3.2 | AV29: 3780 | AW29: -14 | AY29: 7 | AZ29: Allhaming | BA29: 342 | BB29: 3.17 | BC29: 3737 | BD29: -14 | BF29: 7 | BG29: Annaberg im Lammertal | BH29: 777 | BI29: 2.03 | BJ29: 4600 | BK29: -15 | BM29: 7 | BN29: Alpl | BO29: 1062 | BP29: 2.53 | BQ29: 4629 | BR29: -16 | BT29: 7 | BU29: Aschau (Zillertal) | BV29: 567 | BW29: 2.5 | BX29: 4147 | BY29: -15 | CA29: 7 | CB29: Wien-Favoriten | CC29: 212 | CD29: 3.51 | CE29: 3463 | CF29: -13
B30: =Sprache!B197&" 35°C" -> Puissance de chauffe pour Tdép 35°C | D30: kW | L30: =IF(AND(WPArt=2,SpezWP=TRUE,WP_BIN!AU81>0,WP_BIN!AU82>0),TRUE,FALSE) -> FALSE | M30: 8 | N30: Brand | O30: 1020 | P30: 2.52 | Q30: -17 | R30: 4773 | S30: -17 | W30: 8 | X30: Brand | Y30: 1020 | Z30: 2.52 | AA30: 4773 | AB30: -17 | AD30: 8 | AE30: Deutsch Schützen | AF30: 227 | AG30: 3.35 | AH30: 3480 | AI30: -13 | AK30: 8 | AL30: Bad Sankt Leonhard im Lavanttal | AM30: 714 | AN30: 2.92 | AO30: 4184 | AP30: -14 | AR30: 8 | AS30: Alland Heilstätte | AT30: 420 | AU30: 2.95 | AV30: 4091 | AW30: -15 | AY30: 8 | AZ30: Altenberg bei Linz | BA30: 590 | BB30: 2.82 | BC30: 4107 | BD30: -14 | BF30: 8 | BG30: Anthering | BH30: 422 | BI30: 3.25 | BJ30: 3786 | BK30: -15 | BM30: 8 | BN30: Altaussee | BO30: 725 | BP30: 2.61 | BQ30: 4416 | BR30: -15 | BT30: 8 | BU30: Assling | BV30: 1100 | BW30: 2.34 | BX30: 4838 | BY30: -16 | CA30: 8 | CB30: Wien-Floridsdorf | CC30: 164 | CD30: 3.74 | CE30: 3300 | CF30: -13
B31: =Sprache!B198&" 35°C" -> COP à la température de départ 35°C | D31: - | L31: =IF(OR(L29,L30,WPArt<>2),TRUE,FALSE) -> TRUE | M31: 9 | N31: Braz | O31: 708 | P31: 2.88 | Q31: -16 | R31: 4211 | S31: -16 | W31: 9 | X31: Braz | Y31: 708 | Z31: 2.88 | AA31: 4211 | AB31: -16 | AD31: 9 | AE31: Deutschkreutz | AF31: 185 | AG31: 3.54 | AH31: 3407 | AI31: -13 | AK31: 9 | AL31: Baldramsdorf | AM31: 584 | AN31: 2.81 | AO31: 3989 | AP31: -14 | AR31: 9 | AS31: Allentsteig | AT31: 556 | AU31: 2.44 | AV31: 4408 | AW31: -17 | AY31: 9 | AZ31: Altenfelden | BA31: 599 | BB31: 2.64 | BC31: 4202 | BD31: -15 | BF31: 9 | BG31: Bad Hofgastein | BH31: 885 | BI31: 2.46 | BJ31: 4595 | BK31: -16 | BM31: 9 | BN31: Altenmarkt bei Sankt Gallen | BO31: 461 | BP31: 3.03 | BQ31: 4073 | BR31: -15 | BT31: 9 | BU31: Auffach | BV31: 869 | BW31: 2.1 | BX31: 4779 | BY31: -18 | CA31: 9 | CB31: Wien-Hadersdorf | CC31: 230 | CD31: 3.44 | CE31: 3611 | CF31: -13
B32: =Sprache!B197&" 55°C" -> Puissance de chauffe pour Tdép 55°C | D32: kW | M32: 10 | N32: Bregenz | O32: 400 | P32: 4.16 | Q32: -11 | R32: 3470 | S32: -11 | W32: 10 | X32: Bregenz | Y32: 400 | Z32: 4.16 | AA32: 3470 | AB32: -11 | AD32: 10 | AE32: Dobersdorf | AF32: 240 | AG32: 3.15 | AH32: 3556 | AI32: -14 | AK32: 10 | AL32: Berg (im Drautal) | AM32: 680 | AN32: 2.27 | AO32: 4256 | AP32: -16 | AR32: 10 | AS32: Altenburg | AT32: 387 | AU32: 2.7 | AV32: 4101 | AW32: -15 | AY32: 10 | AZ32: Altenhof am Hausruck | BA32: 532 | BB32: 3.13 | BC32: 3881 | BD32: -15 | BF32: 10 | BG32: Badgastein | BH32: 1002 | BI32: 2.59 | BJ32: 4666 | BK32: -15 | BM32: 10 | BN32: Anger | BO32: 479 | BP32: 3.11 | BQ32: 3800 | BR32: -14 | BT32: 10 | BU32: Außervillgraten | BV32: 1286 | BW32: 1.92 | BX32: 5334 | BY32: -17 | CA32: 10 | CB32: Wien-Hernals | CC32: 200 | CD32: 3.63 | CE32: 3421 | CF32: -13
B33: =Sprache!B198&" 55°C" -> COP à la température de départ 55°C | D33: - | M33: 11 | N33: Bregenz-Rieden | O33: 410 | P33: 4.09 | Q33: -12 | R33: 3517 | S33: -12 | W33: 11 | X33: Bregenz-Rieden | Y33: 410 | Z33: 4.09 | AA33: 3517 | AB33: -12 | AD33: 11 | AE33: Donnerskirchen | AF33: 160 | AG33: 3.54 | AH33: 3358 | AI33: -13 | AK33: 11 | AL33: Birnbaum | AM33: 960 | AN33: 2.86 | AO33: 4405 | AP33: -14 | AR33: 11 | AS33: Altenmarkt-Thenneberg | AT33: 409 | AU33: 2.93 | AV33: 4079 | AW33: -15 | AY33: 11 | AZ33: Altheim | BA33: 363 | BB33: 3.15 | BC33: 3807 | BD33: -15 | BF33: 11 | BG33: Bergheim | BH33: 439 | BI33: 3.21 | BJ33: 3811 | BK33: -15 | BM33: 11 | BN33: Ardning | BO33: 670 | BP33: 2.02 | BQ33: 4639 | BR33: -17 | BT33: 11 | BU33: Axams | BV33: 878 | BW33: 2.78 | BX33: 4477 | BY33: -15 | CA33: 11 | CB33: Wien-Hietzing | CC33: 190 | CD33: 3.66 | CE33: 3415 | CF33: -13
B34: =IF(WPArt=4,Sprache!B88,Sprache!B70) -> Puissance électrique soutirée par pompe saumure: | G34: =IF(OR(L9=1,I11="",I35="",L43=1),"",IF(T3,T14,"")) ->  | H34: W | L34: =IF(OR(Spez!L38,Spez!L46),TRUE,FALSE) -> FALSE | M34: 12 | N34: Bregenz-Vorkloster | O34: 400 | P34: 4.15 | Q34: -11 | R34: 3472 | S34: -11 | W34: 12 | X34: Bregenz-Vorkloster | Y34: 400 | Z34: 4.15 | AA34: 3472 | AB34: -11 | AD34: 12 | AE34: Draßburg | AF34: 218 | AG34: 3.56 | AH34: 3386 | AI34: -13 | AK34: 12 | AL34: Bleiburg | AM34: 479 | AN34: 2.29 | AO34: 4056 | AP34: -16 | AR34: 12 | AS34: Altenwörth | AT34: 180 | AU34: 3.37 | AV34: 3526 | AW34: -13 | AY34: 12 | AZ34: Altmünster | BA34: 448 | BB34: 3.37 | BC34: 3774 | BD34: -14 | BF34: 12 | BG34: Berndorf bei Salzburg | BH34: 548 | BI34: 3.21 | BJ34: 3912 | BK34: -15 | BM34: 12 | BN34: Arnfels | BO34: 314 | BP34: 3.08 | BQ34: 3605 | BR34: -14 | BT34: 12 | BU34: Bach (Lechtal) | BV34: 1070 | BW34: 2.38 | BX34: 4915 | BY34: -17 | CA34: 12 | CB34: Wien-Innere Stadt | CC34: 170 | CD34: 3.73 | CE34: 3319 | CF34: -13
B35: =IF(WPArt=3,Sprache!B79,IF(WPArt=5,Sprache!B80,"")) ->  | E35: =IF(WPArt=3,Sprache!B72,IF(WPArt=5,"W/m2","")) ->  | G35: =IF(WPArt=3,Sprache!B77,IF(WPArt=5,Sprache!B188,"")) ->  | H35: =IF(WPArt=3,"m",IF(WPArt=5,"m2","")) ->  | L35: =IF(AND(WPArt=4,I36=""),"",IF(AND(WPArt=3,L36=1,I36>0),I36,IF(WPArt<>3,I36,""))) -> 0 | M35: 13 | N35: Dalaas | O35: 835 | P35: 2.55 | Q35: -17 | R35: 4608 | S35: -17 | W35: 13 | X35: Dalaas | Y35: 835 | Z35: 2.55 | AA35: 4608 | AB35: -17 | AD35: 13 | AE35: Draßmarkt | AF35: 330 | AG35: 3.25 | AH35: 3635 | AI35: -13 | AK35: 13 | AL35: Bodensdorf | AM35: 508 | AN35: 2.61 | AO35: 3896 | AP35: -15 | AR35: 13 | AS35: Altlengbach | AT35: 290 | AU35: 3.26 | AV35: 3717 | AW35: -14 | AY35: 13 | AZ35: Altschwendt | BA35: 420 | BB35: 3.04 | BC35: 3917 | BD35: -16 | BF35: 13 | BG35: Bischofshofen | BH35: 544 | BI35: 2.45 | BJ35: 4248 | BK35: -16 | BM35: 13 | BN35: Assach | BO35: 761 | BP35: 2.59 | BQ35: 4510 | BR35: -15 | BT35: 13 | BU35: Bad Häring | BV35: 590 | BW35: 2.46 | BX35: 4263 | BY35: -17 | CA35: 13 | CB35: Wien-Josefstadt | CC35: 205 | CD35: 3.65 | CE35: 3400 | CF35: -13
B36: =IF(EBF>0,IF(WPArt=3,"Auslegungs-Sondentemperatur",IF(WPArt=5,"Auslegungs-Soletemperatur",IF(WPArt=4,Sprache!B83,"Auslegungs-Soletemperatur"))),"") ->  | E36: =IF(WPArt<>3,"","manuelle Eingabe? ") ->  | G36: =IF(OR(L9=1,I11=""),"",IF(WPArt=5,ROUND(TQuelle_Koll-Offset,1),IF(WPArt=3,IF(U25<>"",U25,IF(I35>0,ROUND(TQuelle-Offset,1),"")),IF(WPArt=4,IF(AND(L35<4,L35<>""),Sprache!B132,""),"")))) ->  | H36: =IF(Heizung=FALSE,"","°C") ->  | J36: =IF(AND(L36=1,I36>0),"!","") ->  | L36: =IF(F36="",2,MATCH(F36,$Q$13:$Q$14,0)) -> 2 | M36: 14 | N36: Damüls | O36: 1428 | P36: 2.7 | Q36: -16 | R36: 5121 | S36: -16 | W36: 14 | X36: Damüls | Y36: 1428 | Z36: 2.7 | AA36: 5121 | AB36: -16 | AD36: 14 | AE36: Eberau | AF36: 214 | AG36: 3.23 | AH36: 3555 | AI36: -14 | AK36: 14 | AL36: Brückl | AM36: 502 | AN36: 2.58 | AO36: 4006 | AP36: -15 | AR36: 14 | AS36: Altlichtenwarth | AT36: 226 | AU36: 4.1 | AV36: 3149 | AW36: -14 | AY36: 14 | AZ36: Ampflwang | BA36: 566 | BB36: 3.04 | BC36: 4003 | BD36: -16 | BF36: 14 | BG36: Böckstein | BH36: 1131 | BI36: 2.67 | BJ36: 4817 | BK36: -15 | BM36: 14 | BN36: Au bei Aflenz | BO36: 778 | BP36: 2.52 | BQ36: 4579 | BR36: -16 | BT36: 14 | BU36: Baumkirchen | BV36: 595 | BW36: 3.12 | BX36: 3832 | BY36: -15 | CA36: 14 | CB36: Wien-Kaiserebersdorf | CC36: 160 | CD36: 3.62 | CE36: 3357 | CF36: -13
B37: ='WP1'!B34 ->  | H37: ='WP1'!G34 ->  | M37: 15 | N37: Doren | O37: 709 | P37: 2.93 | Q37: -15 | R37: 4337 | S37: -15 | W37: 15 | X37: Doren | Y37: 709 | Z37: 2.93 | AA37: 4337 | AB37: -15 | AD37: 15 | AE37: Eisenstadt | AF37: 182 | AG37: 3.74 | AH37: 3252 | AI37: -12 | AK37: 15 | AL37: Dellach (im Gailtal) | AM37: 672 | AN37: 2.48 | AO37: 4257 | AP37: -15 | AR37: 15 | AS37: Ameis | AT37: 235 | AU37: 2.95 | AV37: 3784 | AW37: -14 | AY37: 15 | AZ37: Andorf | BA37: 344 | BB37: 3.12 | BC37: 3832 | BD37: -15 | BF37: 15 | BG37: Bramberg am Wildkogel | BH37: 818 | BI37: 2.05 | BJ37: 4703 | BK37: -18 | BM37: 15 | BN37: Bad Aussee | BO37: 659 | BP37: 2.81 | BQ37: 4264 | BR37: -14 | BT37: 15 | BU37: Berwang | BV37: 1336 | BW37: 2.18 | BX37: 5294 | BY37: -18 | CA37: 15 | CB37: Wien-Kalksburg | CC37: 300 | CD37: 3.41 | CE37: 3617 | CF37: -14
B38: =IF(Heizung=FALSE,"",Sprache!B149) ->  | F38: =IF(AND(Heizung,I38=""),"ausfüllen ->","") ->  | G38: =IF(Heizung=FALSE,"","Ti,soll") ->  | H38: =IF(Heizung=FALSE,"","°C") ->  | M38: 16 | N38: Dornbirn | O38: 440 | P38: 3.76 | Q38: -12 | R38: 3654 | S38: -12 | W38: 16 | X38: Dornbirn | Y38: 440 | Z38: 3.76 | AA38: 3654 | AB38: -12 | AD38: 16 | AE38: Eltendorf | AF38: 242 | AG38: 3.13 | AH38: 3576 | AI38: -14 | AK38: 16 | AL38: Dellach im Drautal | AM38: 610 | AN38: 2.18 | AO38: 4187 | AP38: -16 | AR38: 16 | AS38: Amstetten | AT38: 270 | AU38: 3.34 | AV38: 3582 | AW38: -13 | AY38: 16 | AZ38: Andrichsfurt | BA38: 420 | BB38: 3.15 | BC38: 3927 | BD38: -15 | BF38: 16 | BG38: Bruck an der Großglocknerstraße | BH38: 755 | BI38: 2.04 | BJ38: 4471 | BK38: -18 | BM38: 16 | BN38: Bad Gams | BO38: 406 | BP38: 3.19 | BQ38: 3648 | BR38: -14 | BT38: 16 | BU38: Biberwier | BV38: 989 | BW38: 2.56 | BX38: 4726 | BY38: -18 | CA38: 16 | CB38: Wien-Landstraße | CC38: 170 | CD38: 3.63 | CE38: 3355 | CF38: -13
B39: =IF(Heizung=FALSE,"",Sprache!B47&" (Ta = -8°C)") ->  | E39: =IF(Heizung=FALSE,"","manuelle Eingabe? ") ->  | G39: =IF(AND(L39=1,I39>24,I39<>""),MAX(I39,G40+4),IF(I12<=$BA$3,BA4,IF(I12<=$BB$3,BB4,IF(I12<=$BC$3,BC4,IF(I12<=BD3,BD4,BE4))))) -> 32 | H39: =IF(Heizung=FALSE,"",Sprache!B134&" [°C]") ->  | J39: =IF(AND(L39=1,I39>0),"!","") ->  | L39: =IF(F39="",2,MATCH(F39,$Q$13:$Q$14,0)) -> 2 | M39: 17 | N39: Egg | O39: 545 | P39: 3.43 | Q39: -14 | R39: 3926 | S39: -14 | W39: 17 | X39: Egg | Y39: 545 | Z39: 3.43 | AA39: 3926 | AB39: -14 | AD39: 17 | AE39: Forchtenstein | AF39: 340 | AG39: 3.26 | AH39: 3649 | AI39: -14 | AK39: 17 | AL39: Deutsch-Griffen | AM39: 825 | AN39: 2.13 | AO39: 4681 | AP39: -17 | AR39: 17 | AS39: Angern an der March | AT39: 150 | AU39: 3.34 | AV39: 3498 | AW39: -14 | AY39: 17 | AZ39: Ansfelden | BA39: 290 | BB39: 3.26 | BC39: 3632 | BD39: -13 | BF39: 17 | BG39: Bürmoos | BH39: 440 | BI39: 3.27 | BJ39: 3815 | BK39: -15 | BM39: 17 | BN39: Bad Gleichenberg | BO39: 300 | BP39: 3.15 | BQ39: 3539 | BR39: -13 | BT39: 17 | BU39: Bichlbach | BV39: 1075 | BW39: 2.54 | BX39: 4925 | BY39: -18 | CA39: 17 | CB39: Wien-Leopoldstadt | CC39: 170 | CD39: 3.73 | CE39: 3319 | CF39: -13
B40: =IF(Heizung=FALSE,"",Sprache!B48&" (Ta = -8°C)") ->  | E40: =IF(Heizung=FALSE,"","manuelle Eingabe? ") ->  | G40: =IF(AND(L40=1,I40>22,I40<>""),I40,IF(I12<=$BA$3,BA5,IF(I12<=$BB$3,BB5,IF(I12<=$BC$3,BC5,IF(I12<=BD3,BD5,BE5))))) -> 27 | H40: =IF(Heizung=FALSE,"",Sprache!B135&" [°C]") ->  | J40: =IF(AND(L40=1,I40>0),"!","") ->  | L40: =IF(F40="",2,MATCH(F40,$Q$13:$Q$14,0)) -> 2 | M40: 18 | N40: Feldkirch | O40: 458 | P40: 3.76 | Q40: -13 | R40: 3556 | S40: -13 | W40: 18 | X40: Feldkirch | Y40: 458 | Z40: 3.76 | AA40: 3556 | AB40: -13 | AD40: 18 | AE40: Frauenkirchen | AF40: 125 | AG40: 3.37 | AH40: 3392 | AI40: -14 | AK40: 18 | AL40: Diex | AM40: 1152 | AN40: 2.5 | AO40: 4917 | AP40: -16 | AR40: 18 | AS40: Annaberg | AT40: 973 | AU40: 3.21 | AV40: 4651 | AW40: -15 | AY40: 18 | AZ40: Antiesenhofen | BA40: 345 | BB40: 3.15 | BC40: 3842 | BD40: -15 | BF40: 18 | BG40: Dienten am Hochkönig | BH40: 1051 | BI40: 2.5 | BJ40: 4725 | BK40: -16 | BM40: 18 | BN40: Bad Mitterndorf | BO40: 809 | BP40: 2.05 | BQ40: 4776 | BR40: -16 | BT40: 18 | BU40: Brandenberg | BV40: 919 | BW40: 2.33 | BX40: 4825 | BY40: -17 | CA40: 18 | CB40: Wien-Liesing | CC40: 210 | CD40: 3.59 | CE40: 3446 | CF40: -13
B41: =IF(Heizung=FALSE,"",IF(Heizspeicher,Sprache!B49,"")) ->  | G41: =IF(Heizung=FALSE,"",IF(Heizspeicher,Sprache!B136,"")) ->  | H41: =IF(Heizung=FALSE,"",IF(Heizspeicher,"°C","")) ->  | M41: 19 | N41: Fontanella | O41: 1145 | P41: 2.71 | Q41: -17 | R41: 4859 | S41: -17 | W41: 19 | X41: Fontanella | Y41: 1145 | Z41: 2.71 | AA41: 4859 | AB41: -17 | AD41: 19 | AE41: Gattendorf | AF41: 147 | AG41: 3.45 | AH41: 3409 | AI41: -14 | AK41: 19 | AL41: Döbriach | AM41: 620 | AN41: 3 | AO41: 3944 | AP41: -15 | AR41: 19 | AS41: Arbesbach | AT41: 850 | AU41: 2.03 | AV41: 4941 | AW41: -18 | AY41: 19 | AZ41: Arbing | BA41: 255 | BB41: 3.16 | BC41: 3637 | BD41: -14 | BF41: 19 | BG41: Dorfgastein | BH41: 830 | BI41: 2.21 | BJ41: 4678 | BK41: -17 | BM41: 19 | BN41: Bärnbach | BO41: 430 | BP41: 2.89 | BQ41: 3952 | BR41: -14 | BT41: 19 | BU41: Brixen im Thale | BV41: 794 | BW41: 1.93 | BX41: 4715 | BY41: -18 | CA41: 19 | CB41: Wien-Margareten | CC41: 180 | CD41: 3.66 | CE41: 3398 | CF41: -13
B42: ='WP1'!B39 ->  | H42: ='WP1'!G39 ->  | M42: 20 | N42: Frastanz | O42: 495 | P42: 3.42 | Q42: -14 | R42: 3747 | S42: -14 | W42: 20 | X42: Frastanz | Y42: 495 | Z42: 3.42 | AA42: 3747 | AB42: -14 | AD42: 20 | AE42: Gerersdorf bei Güssing | AF42: 239 | AG42: 3.2 | AH42: 3595 | AI42: -14 | AK42: 20 | AL42: Döllach | AM42: 1012 | AN42: 2.42 | AO42: 4572 | AP42: -15 | AR42: 20 | AS42: Ardagger Markt | AT42: 240 | AU42: 3.34 | AV42: 3598 | AW42: -13 | AY42: 20 | AZ42: Arnreit | BA42: 604 | BB42: 2.66 | BC42: 4162 | BD42: -14 | BF42: 20 | BG42: Dürrnberg | BH42: 771 | BI42: 3.51 | BJ42: 4039 | BK42: -15 | BM42: 20 | BN42: Birkfeld | BO42: 623 | BP42: 2.62 | BQ42: 4206 | BR42: -15 | BT42: 20 | BU42: Brixlegg | BV42: 534 | BW42: 2.89 | BX42: 3901 | BY42: -15 | CA42: 20 | CB42: Wien-Mariahilf | CC42: 180 | CD42: 3.64 | CE42: 3386 | CF42: -13
B43: =IF(WW,Sprache!B51,"") ->  | F43: ='WP1'!E40 ->  | L43: =IF(G43="",1,MATCH(G43,AQ3:AQ8,0)) -> 1 | M43: 21 | N43: Fußach | O43: 398 | P43: 3.78 | Q43: -12 | R43: 3650 | S43: -12 | W43: 21 | X43: Fußach | Y43: 398 | Z43: 3.78 | AA43: 3650 | AB43: -12 | AD43: 21 | AE43: Gols | AF43: 130 | AG43: 3.54 | AH43: 3357 | AI43: -13 | AK43: 21 | AL43: Drobollach am Faakersee | AM43: 580 | AN43: 2.49 | AO43: 4063 | AP43: -16 | AR43: 21 | AS43: Artstetten | AT43: 395 | AU43: 2.9 | AV43: 4035 | AW43: -15 | AY43: 21 | AZ43: Aschach an der Donau | BA43: 272 | BB43: 3.33 | BC43: 3701 | BD43: -14 | BF43: 21 | BG43: Eben im Pongau | BH43: 856 | BI43: 1.89 | BJ43: 4817 | BK43: -17 | BM43: 21 | BN43: Bischoffeld | BO43: 860 | BP43: 2.62 | BQ43: 4414 | BR43: -15 | BT43: 21 | BU43: Dölsach | BV43: 737 | BW43: 2.25 | BX43: 4278 | BY43: -16 | CA43: 21 | CB43: Wien-Meidling | CC43: 190 | CD43: 3.59 | CE43: 3414 | CF43: -13
B44: =IF(WW,Sprache!B52,"") ->  | F44: ='WP1'!E41 ->  | H44: =IF(WW,"°C","") ->  | L44: ='WP1'!J41 -> FALSE | M44: 22 | N44: Gaißau | O44: 399 | P44: 3.72 | Q44: -12 | R44: 3647 | S44: -12 | W44: 22 | X44: Gaißau | Y44: 399 | Z44: 3.72 | AA44: 3647 | AB44: -12 | AD44: 22 | AE44: Großhöflein | AF44: 194 | AG44: 3.73 | AH44: 3271 | AI44: -12 | AK44: 22 | AL44: Ebene Reichenau | AM44: 1062 | AN44: 2.39 | AO44: 4879 | AP44: -16 | AR44: 22 | AS44: Aschbach Markt | AT44: 310 | AU44: 3.25 | AV44: 3736 | AW44: -14 | AY44: 22 | AZ44: Aschach an der Steyr | BA44: 432 | BB44: 3.23 | BC44: 3908 | BD44: -14 | BF44: 22 | BG44: Ebenau | BH44: 621 | BI44: 3.17 | BJ44: 4073 | BK44: -16 | BM44: 22 | BN44: Blumau in der Steiermark | BO44: 284 | BP44: 3.11 | BQ44: 3580 | BR44: -13 | BT44: 22 | BU44: Ebbs | BV44: 475 | BW44: 3.05 | BX44: 3949 | BY44: -15 | CA44: 22 | CB44: Wien-Neubau | CC44: 200 | CD44: 3.64 | CE44: 3419 | CF44: -13
B45: ='WP1'!B42 ->  | F45: ='WP1'!E42 ->  | G45: ='WP1'!F42 ->  | H45: =IF(WW,"°C","") ->  | L45: ='WP1'!J42 -> TRUE | M45: 23 | N45: Gargellen | O45: 1423 | P45: 2.7 | Q45: -18 | R45: 5242 | S45: -18 | W45: 23 | X45: Gargellen | Y45: 1423 | Z45: 2.7 | AA45: 5242 | AB45: -18 | AD45: 23 | AE45: Großpetersdorf | AF45: 311 | AG45: 3.23 | AH45: 3571 | AI45: -13 | AK45: 23 | AL45: Ebenthal | AM45: 430 | AN45: 2.25 | AO45: 3922 | AP45: -16 | AR45: 23 | AS45: Aspang Markt | AT45: 498 | AU45: 2.95 | AV45: 4108 | AW45: -14 | AY45: 23 | AZ45: Aspach | BA45: 448 | BB45: 3.12 | BC45: 3900 | BD45: -15 | BF45: 23 | BG45: Elsbethen | BH45: 430 | BI45: 3.44 | BJ45: 3792 | BK45: -15 | BM45: 23 | BN45: Breitenfeld an der Rittschein | BO45: 278 | BP45: 3.11 | BQ45: 3581 | BR45: -13 | BT45: 23 | BU45: Ehrwald | BV45: 995 | BW45: 2.52 | BX45: 4736 | BY45: -17 | CA45: 23 | CB45: Wien-Neustift | CC45: 264 | CD45: 3.48 | CE45: 3502 | CF45: -13
B46: =IF(AND(WW),Sprache!B199,"") ->  | E46: =IF(AND(WW,L46=1),Sprache!B24,"") ->  | G46: Länge: | H46: m | L46: =IF(F46="",1,MATCH(F46,$AB$3:$AB$6,0)) -> 1 | M46: 24 | N46: Gaschurn | O46: 979 | P46: 2.55 | Q46: -17 | R46: 4728 | S46: -17 | W46: 24 | X46: Gaschurn | Y46: 979 | Z46: 2.55 | AA46: 4728 | AB46: -17 | AD46: 24 | AE46: Großwarasdorf | AF46: 238 | AG46: 3.41 | AH46: 3483 | AI46: -13 | AK46: 24 | AL46: Eberndorf | AM46: 475 | AN46: 1.95 | AO46: 4097 | AP46: -16 | AR46: 24 | AS46: Asparn an der Zaya | AT46: 221 | AU46: 3.09 | AV46: 3653 | AW46: -14 | AY46: 24 | AZ46: Asten | BA46: 254 | BB46: 3.27 | BC46: 3598 | BD46: -13 | BF46: 24 | BG46: Eugendorf | BH46: 560 | BI46: 3.11 | BJ46: 4004 | BK46: -16 | BM46: 24 | BN46: Bruck an der Lafnitz | BO46: 542 | BP46: 3.03 | BQ46: 3902 | BR46: -14 | BT46: 24 | BU46: Elbigenalp | BV46: 1040 | BW46: 2.42 | BX46: 4851 | BY46: -17 | CA46: 24 | CB46: Wien-Nußdorf | CC46: 170 | CD46: 3.78 | CE46: 3309 | CF46: -13
B47: =Sprache!B31 -> Installation solaire | F47: =IF(AND(G47=""),Sprache!B24,"") -> choisir -> | L47: =IF(G47="",1,MATCH(G47,AT5:AT11,0)) -> 1 | M47: 25 | N47: Göfis | O47: 558 | P47: 3.29 | Q47: -14 | R47: 3861 | S47: -14 | W47: 25 | X47: Göfis | Y47: 558 | Z47: 3.29 | AA47: 3861 | AB47: -14 | AD47: 25 | AE47: Güssing | AF47: 225 | AG47: 3.24 | AH47: 3586 | AI47: -14 | AK47: 25 | AL47: Eberstein | AM47: 575 | AN47: 2.3 | AO47: 4196 | AP47: -16 | AR47: 25 | AS47: Asperhofen | AT47: 208 | AU47: 3.29 | AV47: 3577 | AW47: -14 | AY47: 25 | AZ47: Attersee | BA47: 484 | BB47: 3.15 | BC47: 4077 | BD47: -15 | BF47: 25 | BG47: Faistenau | BH47: 787 | BI47: 2.97 | BJ47: 4292 | BK47: -16 | BM47: 25 | BN47: Bruck an der Mur | BO47: 485 | BP47: 2.9 | BQ47: 3915 | BR47: -14 | BT47: 25 | BU47: Ellmau | BV47: 804 | BW47: 1.91 | BX47: 4740 | BY47: -18 | CA47: 25 | CB47: Wien-Oberlaa | CC47: 200 | CD47: 3.57 | CE47: 3417 | CF47: -13
B48: =Sprache!B55 -> Surface des absorbeurs | H48: m2 | M48: 26 | N48: Götzis | O48: 448 | P48: 3.71 | Q48: -13 | R48: 3600 | S48: -13 | W48: 26 | X48: Götzis | Y48: 448 | Z48: 3.71 | AA48: 3600 | AB48: -13 | AD48: 26 | AE48: Halbturn | AF48: 128 | AG48: 3.4 | AH48: 3370 | AI48: -14 | AK48: 26 | AL48: Egg (bei Hermagor) | AM48: 637 | AN48: 2.76 | AO48: 4104 | AP48: -15 | AR48: 26 | AS48: Atzenbrugg | AT48: 189 | AU48: 3.37 | AV48: 3543 | AW48: -13 | AY48: 26 | AZ48: Attnang | BA48: 416 | BB48: 3.06 | BC48: 3946 | BD48: -15 | BF48: 26 | BG48: Filzmoos | BH48: 1050 | BI48: 1.74 | BJ48: 5095 | BK48: -17 | BM48: 26 | BN48: Brunnsee | BO48: 250 | BP48: 3.09 | BQ48: 3535 | BR48: -13 | BT48: 26 | BU48: Elmen | BV48: 976 | BW48: 2.6 | BX48: 4680 | BY48: -17 | CA48: 26 | CB48: Wien-Ottakring | CC48: 215 | CD48: 3.58 | CE48: 3416 | CF48: -13
B49: =Sprache!B56 -> orientation / inclinaison des collecteurs | F49: ='WP1'!E50 -> Azimut [°]: | H49: ='WP1'!G50 -> Pente [°]: | M49: 27 | N49: Hard | O49: 398 | P49: 3.74 | Q49: -12 | R49: 3643 | S49: -12 | W49: 27 | X49: Hard | Y49: 398 | Z49: 3.74 | AA49: 3643 | AB49: -12 | AD49: 27 | AE49: Hannersdorf | AF49: 253 | AG49: 3.36 | AH49: 3428 | AI49: -13 | AK49: 27 | AL49: Einöde bei Villach | AM49: 600 | AN49: 2.75 | AO49: 3968 | AP49: -15 | AR49: 27 | AS49: Auersthal | AT49: 178 | AU49: 3.3 | AV49: 3558 | AW49: -14 | AY49: 27 | AZ49: Atzbach | BA49: 464 | BB49: 3.2 | BC49: 3813 | BD49: -15 | BF49: 27 | BG49: Flachau | BH49: 920 | BI49: 1.88 | BJ49: 4910 | BK49: -17 | BM49: 27 | BN49: Buch bei Hartberg | BO49: 319 | BP49: 3.4 | BQ49: 3470 | BR49: -12 | BT49: 27 | BU49: Erl | BV49: 475 | BW49: 3.03 | BX49: 3953 | BY49: -15 | CA49: 27 | CB49: Wien-Penzing | CC49: 210 | CD49: 3.54 | CE49: 3474 | CF49: -13
B50: =Sprache!B57 -> Apport net par m2 d'absorbeur | F50: =IF(_SIA384,Sprache!B269,Sprache!B140) -> valeur proposée: | G50: ='WP1'!F51 -> 0 | H50: kWh/m2a | M50: 28 | N50: Hirschegg | O50: 1124 | P50: 2.4 | Q50: -18 | R50: 5068 | S50: -18 | W50: 28 | X50: Hirschegg | Y50: 1124 | Z50: 2.4 | AA50: 5068 | AB50: -18 | AD50: 28 | AE50: Heiligenkreuz im Lafnitztal | AF50: 229 | AG50: 3.17 | AH50: 3584 | AI50: -14 | AK50: 28 | AL50: Eisenkappel | AM50: 555 | AN50: 2.7 | AO50: 4082 | AP50: -15 | AR50: 28 | AS50: Bad Deutsch-Altenburg | AT50: 148 | AU50: 3.42 | AV50: 3415 | AW50: -14 | AY50: 28 | AZ50: Au an der Donau | BA50: 242 | BB50: 3.27 | BC50: 3564 | BD50: -13 | BF50: 28 | BG50: Fusch an der Großglocknerstraße | BH50: 812 | BI50: 2.13 | BJ50: 4610 | BK50: -18 | BM50: 28 | BN50: Burgau | BO50: 290 | BP50: 3.27 | BQ50: 3496 | BR50: -12 | BT50: 28 | BU50: Erpfendorf | BV50: 635 | BW50: 2.6 | BX50: 4316 | BY50: -16 | CA50: 28 | CB50: Wien-Rudolfsheim-Fünfhaus | CC50: 200 | CD50: 3.6 | CE50: 3428 | CF50: -13
B51: =IF(OR(MinSol,solarExtern),Sprache!B58,Sprache!B275) -> Spécifications du collecteur | D51: =IF(OR(MinSol,solarExtern),""," ho = ") -> ho = | F51: =IF(OR(MinSol,solarExtern),""," a1 = ") -> a1 = | H51: =IF(OR(MinSol,solarExtern),Sprache!B130," a2 = ") -> a2 = | M51: 29 | N51: Hittisau | O51: 790 | P51: 2.55 | Q51: -17 | R51: 4623 | S51: -17 | W51: 29 | X51: Hittisau | Y51: 790 | Z51: 2.55 | AA51: 4623 | AB51: -17 | AD51: 29 | AE51: Hirm | AF51: 182 | AG51: 3.68 | AH51: 3297 | AI51: -13 | AK51: 29 | AL51: Eisentratten | AM51: 802 | AN51: 2.88 | AO51: 4264 | AP51: -15 | AR51: 29 | AS51: Bad Fischau | AT51: 286 | AU51: 3.33 | AV51: 3551 | AW51: -14 | AY51: 29 | AZ51: Aurolzmünster | BA51: 407 | BB51: 3.14 | BC51: 3911 | BD51: -15 | BF51: 29 | BG51: Fuschl am See | BH51: 670 | BI51: 2.97 | BJ51: 4173 | BK51: -15 | BM51: 29 | BN51: Dechantskirchen | BO51: 531 | BP51: 3.08 | BQ51: 3858 | BR51: -13 | BT51: 29 | BU51: Feichten | BV51: 1273 | BW51: 2.2 | BX51: 5250 | BY51: -17 | CA51: 29 | CB51: Wien-Simmering | CC51: 175 | CD51: 3.64 | CE51: 3387 | CF51: -13
B52: =Sprache!B59 -> Taux de couverture solaire pour l'ECS | G52: e = | H52: % | I52: ='WP1'!H53 -> 0 | M52: 30 | N52: Höchst | O52: 403 | P52: 3.73 | Q52: -12 | R52: 3660 | S52: -12 | W52: 30 | X52: Höchst | Y52: 403 | Z52: 3.73 | AA52: 3660 | AB52: -12 | AD52: 30 | AE52: Horitschon | AF52: 239 | AG52: 3.4 | AH52: 3485 | AI52: -13 | AK52: 30 | AL52: Eitweg | AM52: 560 | AN52: 2.72 | AO52: 4027 | AP52: -15 | AR52: 30 | AS52: Bad Schönau | AT52: 480 | AU52: 3.05 | AV52: 3881 | AW52: -13 | AY52: 30 | AZ52: Bachmanning | BA52: 435 | BB52: 2.99 | BC52: 3929 | BD52: -15 | BF52: 30 | BG52: Gartenau-Sankt Leonhard | BH52: 459 | BI52: 3.42 | BJ52: 3813 | BK52: -15 | BM52: 30 | BN52: Deutsch Goritz | BO52: 244 | BP52: 3.17 | BQ52: 3518 | BR52: -13 | BT52: 30 | BU52: Fieberbrunn | BV52: 790 | BW52: 2.12 | BX52: 4685 | BY52: -17 | CA52: 30 | CB52: Wien-Stammersdorf | CC52: 172 | CD52: 3.55 | CE52: 3373 | CF52: -13
B53: =Sprache!B60 -> Taux de couverture solaire pour le chauffage | G53: e = | H53: % | I53: ='WP1'!H54 -> 0 | M53: 31 | N53: Hohenems | O53: 432 | P53: 3.71 | Q53: -13 | R53: 3632 | S53: -13 | W53: 31 | X53: Hohenems | Y53: 432 | Z53: 3.71 | AA53: 3632 | AB53: -13 | AD53: 31 | AE53: Hornstein | AF53: 273 | AG53: 3.62 | AH53: 3424 | AI53: -13 | AK53: 31 | AL53: Ettendorf | AM53: 440 | AN53: 2.56 | AO53: 3960 | AP53: -15 | AR53: 31 | AS53: Bad Vöslau | AT53: 260 | AU53: 3.55 | AV53: 3455 | AW53: -13 | AY53: 31 | AZ53: Bad Goisern | BA53: 498 | BB53: 2.7 | BC53: 4272 | BD53: -14 | BF53: 31 | BG53: Glasenbach | BH53: 440 | BI53: 3.3 | BJ53: 3807 | BK53: -15 | BM53: 31 | BN53: Deutschfeistritz | BO53: 410 | BP53: 2.94 | BQ53: 3838 | BR53: -14 | BT53: 31 | BU53: Finkenberg | BV53: 839 | BW53: 2.82 | BX53: 4399 | BY53: -14 | CA53: 31 | CB53: Wien-Süßenbrunn | CC53: 160 | CD53: 3.5 | CE53: 3449 | CF53: -13
B54: =IF(OR(L39=1,L40=1),IF(L36=1,"Berechnungen sind beizulegen: Heizlast nach EN12831 und Auslegung Wärmeabgabesystem gem. Hersteller und Sondenauslegung","Berechnungen sind beizulegen: Heizlast nach EN12831 und Auslegung Wärmeabgabesystem gem. Hersteller"),IF(L36=1,"Berechnungen sind beizulegen: Sondenauslegung","")) ->  | M54: 32 | N54: Hohenweiler | O54: 504 | P54: 3.65 | Q54: -12 | R54: 3760 | S54: -12 | W54: 32 | X54: Hohenweiler | Y54: 504 | Z54: 3.65 | AA54: 3760 | AB54: -12 | AD54: 32 | AE54: Illmitz | AF54: 117 | AG54: 3.39 | AH54: 3305 | AI54: -14 | AK54: 32 | AL54: Faak am See | AM54: 554 | AN54: 2.45 | AO54: 4036 | AP54: -16 | AR54: 32 | AS54: Baden | AT54: 228 | AU54: 3.74 | AV54: 3350 | AW54: -13 | AY54: 32 | AZ54: Bad Hall | BA54: 378 | BB54: 3.1 | BC54: 3768 | BD54: -14 | BF54: 32 | BG54: Goldegg | BH54: 885 | BI54: 2.03 | BJ54: 4799 | BK54: -17 | BM54: 32 | BN54: Deutschlandsberg | BO54: 368 | BP54: 3.21 | BQ54: 3594 | BR54: -13 | BT54: 32 | BU54: Flaurling | BV54: 675 | BW54: 2.82 | BX54: 4089 | BY54: -15 | CA54: 32 | CB54: Wien-Währing | CC54: 200 | CD54: 3.71 | CE54: 3355 | CF54: -13
B55: =Sprache!B32 -> Résultats | C55: =IF(AND(WPArt=3,I35=""),"",IF(OR(L9=1,L31=FALSE),"",IF(I11>0,IF(OR(I61<4,I64<3.5),"Achtung, Anlage nicht förderfähig, JAZ(Heizung) muss grösser 4,0 und JAZ(Gesamt) grösser 3,5 sein!","Anlage ist förderfähig!"),""))) ->  | M55: 33 | N55: Hörbranz | O55: 426 | P55: 4 | Q55: -12 | R55: 3552 | S55: -12 | W55: 33 | X55: Hörbranz | Y55: 426 | Z55: 4 | AA55: 3552 | AB55: -12 | AD55: 33 | AE55: Jennersdorf | AF55: 242 | AG55: 3.17 | AH55: 3552 | AI55: -13 | AK55: 33 | AL55: Feistritz an der Drau | AM55: 540 | AN55: 3.08 | AO55: 3841 | AP55: -14 | AR55: 33 | AS55: Behamberg | AT55: 519 | AU55: 2.97 | AV55: 4052 | AW55: -15 | AY55: 33 | AZ55: Bad Ischl | BA55: 469 | BB55: 3.28 | BC55: 3862 | BD55: -14 | BF55: 33 | BG55: Golling an der Salzach | BH55: 480 | BI55: 3.68 | BJ55: 3802 | BK55: -14 | BM55: 33 | BN55: Dobl | BO55: 324 | BP55: 2.8 | BQ55: 3699 | BR55: -14 | BT55: 33 | BU55: Fließ | BV55: 1073 | BW55: 2.77 | BX55: 4584 | BY55: -16 | CA55: 33 | CB55: Wien-Wieden | CC55: 170 | CD55: 3.68 | CE55: 3361 | CF55: -13
B56: =IF(AND(WPArt=3,I35=""),"",IF(OR(L9=1,I11="",L31=FALSE),"",'WP1'!B57)) ->  | F56: =IF(AND(WPArt=3,I35=""),"",IF(OR(L9=1,I11="",L31=FALSE),"",'WP1'!E57)) ->  | G56: =IF(AND(WPArt=3,I35=""),"",IF(OR(L9=1,I11="",L31=FALSE),"",'WP1'!F57)) ->  | H56: =IF(AND(Heizung,OR(bivalent,elZusatz)),"kWh = ","") ->  | I56: =IF(AND(WPArt=3,I35=""),"",IF(Kategorie>1,IF(AND(Heizung,OR(bivalent,elZusatz)),Zusatzheizung_total/Etah,""),)) -> 0 | M56: 34 | N56: Kennelbach | O56: 430 | P56: 4.03 | Q56: -12 | R56: 3545 | S56: -12 | W56: 34 | X56: Kennelbach | Y56: 430 | Z56: 4.03 | AA56: 3545 | AB56: -12 | AD56: 34 | AE56: Jois | AF56: 130 | AG56: 3.53 | AH56: 3360 | AI56: -13 | AK56: 34 | AL56: Feistritz an der Gail | AM56: 565 | AN56: 2.51 | AO56: 4041 | AP56: -16 | AR56: 34 | AS56: Berg (bei Kittsee) | AT56: 154 | AU56: 3.37 | AV56: 3426 | AW56: -14 | AY56: 34 | AZ56: Bad Kreuzen | BA56: 479 | BB56: 3 | BC56: 3944 | BD56: -14 | BF56: 34 | BG56: Gries im Pinzgau | BH56: 745 | BI56: 2.18 | BJ56: 4474 | BK56: -17 | BM56: 34 | BN56: Dobldorf | BO56: 324 | BP56: 2.8 | BQ56: 3699 | BR56: -14 | BT56: 34 | BU56: Flirsch | BV56: 1154 | BW56: 2.39 | BX56: 4930 | BY56: -17 | CA56: 34
B57: ='WP1'!B58 ->  | F57: ='WP1'!E58 ->  | G57: ='WP1'!F58 ->  | H57: ='WP1'!G58 ->  | I57: ='WP1'!H58 -> 0 | M57: 35 | N57: Klaus | O57: 475 | P57: 3.65 | Q57: -13 | R57: 3647 | S57: -13 | W57: 35 | X57: Klaus | Y57: 475 | Z57: 3.65 | AA57: 3647 | AB57: -13 | AD57: 35 | AE57: Kaisersdorf | AF57: 361 | AG57: 3.2 | AH57: 3679 | AI57: -13 | AK57: 35 | AL57: Feistritz im Rosental | AM57: 488 | AN57: 2.34 | AO57: 4043 | AP57: -16 | AR57: 35 | AS57: Berndorf (an der Triesting) | AT57: 315 | AU57: 3.21 | AV57: 3694 | AW57: -14 | AY57: 35 | AZ57: Bad Leonfelden | BA57: 749 | BB57: 2.42 | BC57: 4466 | BD57: -16 | BF57: 35 | BG57: Grödig | BH57: 445 | BI57: 3.41 | BJ57: 3798 | BK57: -15 | BM57: 35 | BN57: Donawitz | BO57: 575 | BP57: 3.01 | BQ57: 3908 | BR57: -14 | BT57: 35 | BU57: Fritzens | BV57: 592 | BW57: 3.07 | BX57: 3842 | BY57: -15 | CA57: 35
B58: =IF(I58<>"",'WP1'!B61,"") ->  | H58: =IF(I58<>"","h / a","") ->  | I58: =IF(AND(WPArt=3,I35=""),"",IF(OR(L9=1,I11="",L31=FALSE),"",'WP1'!H61)) ->  | L58: e Inkl. Solar: | M58: 36 | N58: Klösterle | O58: 1073 | P58: 2.65 | Q58: -17 | R58: 4858 | S58: -17 | W58: 36 | X58: Klösterle | Y58: 1073 | Z58: 2.65 | AA58: 4858 | AB58: -17 | AD58: 36 | AE58: Kemeten | AF58: 300 | AG58: 3.43 | AH58: 3429 | AI58: -12 | AK58: 36 | AL58: Feld am See | AM58: 743 | AN58: 2.93 | AO58: 4149 | AP58: -15 | AR58: 36 | AS58: Bernhardsthal | AT58: 164 | AU58: 3.26 | AV58: 3600 | AW58: -14 | AY58: 36 | AZ58: Bad Schallerbach | BA58: 311 | BB58: 2.96 | BC58: 3971 | BD58: -16 | BF58: 36 | BG58: Großarl | BH58: 922 | BI58: 2.4 | BJ58: 4699 | BK58: -16 | BM58: 36 | BN58: Donnersbach | BO58: 690 | BP58: 2.6 | BQ58: 4314 | BR58: -15 | BT58: 36 | BU58: Fügen | BV58: 544 | BW58: 2.95 | BX58: 3870 | BY58: -15 | CA58: 36
B59: =IF(Heizung=FALSE,"","Anteil und JAZ der Heizung mit Solaranlage") ->  | H59: JAZHeizung = | I59: =IF(AND(WPArt=3,I35=""),"",IF(OR(L9=1,I11="",L31=FALSE,Heizung=FALSE),"",IF(I53<1,IF(bivalent,(1-G56)/(G61/jazh),1/(G61/jazh+G56)),999))) ->  | L59: =IF(G61<>"",G61+I53,I53) -> 0 | M59: 37 | N59: Koblach | O59: 445 | P59: 3.75 | Q59: -13 | R59: 3576 | S59: -13 | W59: 37 | X59: Koblach | Y59: 445 | Z59: 3.75 | AA59: 3576 | AB59: -13 | AD59: 37 | AE59: Kittsee | AF59: 138 | AG59: 3.42 | AH59: 3399 | AI59: -14 | AK59: 37 | AL59: Feldkirchen in Kärnten | AM59: 550 | AN59: 2.5 | AO59: 4059 | AP59: -15 | AR59: 37 | AS59: Biedermannsdorf | AT59: 185 | AU59: 3.66 | AV59: 3349 | AW59: -13 | AY59: 37 | AZ59: Bad Wimsbach-Neydharting | BA59: 380 | BB59: 2.99 | BC59: 3929 | BD59: -15 | BF59: 37 | BG59: Großgmain | BH59: 522 | BI59: 3.3 | BJ59: 3942 | BK59: -15 | BM59: 37 | BN59: Dorf Veitsch | BO59: 669 | BP59: 2.81 | BQ59: 4367 | BR59: -15 | BT59: 37 | BU59: Fulpmes | BV59: 937 | BW59: 2.85 | BX59: 4527 | BY59: -15 | CA59: 37
B60: =IF(WW=FALSE,"","Anteil und JAZ für Warmwasser mit Solaranlage") ->  | H60: JAZWarmwasser = | I60: =IF(AND(WPArt=3,I35=""),"",IF(OR(L9=1,I11="",G62=0,WW=FALSE,AND(WW=TRUE,L43=1)),"",IF(I52<1,1/(G62/jazww+IF(G57<>"",G57,0)),999))) ->  | L60: =IF(G62<>"",G62+I52,I52) -> 0 | M60: 38 | N60: Krumbach | O60: 732 | P60: 2.73 | Q60: -16 | R60: 4439 | S60: -16 | W60: 38 | X60: Krumbach | Y60: 732 | Z60: 2.73 | AA60: 4439 | AB60: -16 | AD60: 38 | AE60: Klingenbach | AF60: 233 | AG60: 3.53 | AH60: 3425 | AI60: -13 | AK60: 38 | AL60: Ferlach | AM60: 466 | AN60: 2.24 | AO60: 3926 | AP60: -16 | AR60: 38 | AS60: Bisamberg | AT60: 192 | AU60: 3.54 | AV60: 3408 | AW60: -13 | AY60: 38 | AZ60: Bad Zell | BA60: 515 | BB60: 2.97 | BC60: 3899 | BD60: -14 | BF60: 38 | BG60: Hallein | BH60: 445 | BI60: 3.59 | BJ60: 3824 | BK60: -15 | BM60: 38 | BN60: Ebersdorf | BO60: 312 | BP60: 3.29 | BQ60: 3492 | BR60: -12 | BT60: 38 | BU60: Galtür | BV60: 1584 | BW60: 1.26 | BX60: 5977 | BY60: -20 | CA60: 38
B61: =IF(Heizung=FALSE,"","Anteil und JAZ der Heizung") ->  | F61: =IF(AND(Heizung),"e = ","") ->  | G61: =IF(AND(WPArt=3,I35=""),"",IF(OR(L9=1,I11="",L31=FALSE),"",'WP1'!F62)) ->  | H61: JAZHeizung = | I61: =IF(AND(WPArt=3,I35=""),"",IF(OR(L9=1,I11="",L31=FALSE,Heizung=FALSE),"",IF(I53<1,IF(bivalent,jazh,(1-I53)/(G61/jazh+G56)),999))) ->  | M61: 39 | N61: Langen | O61: 657 | P61: 3.15 | Q61: -14 | R61: 4161 | S61: -14 | W61: 39 | X61: Langen | Y61: 657 | Z61: 3.15 | AA61: 4161 | AB61: -14 | AD61: 39 | AE61: Kobersdorf | AF61: 321 | AG61: 3.28 | AH61: 3628 | AI61: -13 | AK61: 39 | AL61: Ferndorf | AM61: 520 | AN61: 3.11 | AO61: 3817 | AP61: -14 | AR61: 39 | AS61: Bischofstetten | AT61: 275 | AU61: 3.33 | AV61: 3750 | AW61: -14 | AY61: 39 | AZ61: Baumgartenberg | BA61: 236 | BB61: 3.09 | BC61: 3669 | BD61: -14 | BF61: 39 | BG61: Henndorf am Wallersee | BH61: 550 | BI61: 3.01 | BJ61: 4077 | BK61: -16 | BM61: 39 | BN61: Edelsbach bei Feldbach | BO61: 309 | BP61: 3.16 | BQ61: 3553 | BR61: -13 | BT61: 39 | BU61: Gerlos | BV61: 1245 | BW61: 2.43 | BX61: 5024 | BY61: -16 | CA61: 39
B62: =IF(WW=FALSE,"","Anteil und JAZ für Warmwasser") ->  | F62: =IF(AND(WW),"e = ","") ->  | G62: =IF(AND(WPArt=3,I35=""),"",IF(OR(L9=1,I11=""),"",'WP1'!F63)) ->  | H62: JAZWarmwasser = | I62: =IF(AND(WPArt=3,I35=""),"",IF(OR(L9=1,I11="",G62=0,WW=FALSE,AND(WW=TRUE,L43=1)),"",IF(I52<1,(1-I52)/(G62/jazww+IF(G57<>"",G57,0)),999))) ->  | M62: 40 | N62: Langen am Arlberg | O62: 1174 | P62: 2.72 | Q62: -16 | R62: 4926 | S62: -16 | W62: 40 | X62: Langen am Arlberg | Y62: 1174 | Z62: 2.72 | AA62: 4926 | AB62: -16 | AD62: 40 | AE62: Kohfidisch | AF62: 256 | AG62: 3.25 | AH62: 3552 | AI62: -13 | AK62: 40 | AL62: Finkenstein | AM62: 559 | AN62: 2.45 | AO62: 4053 | AP62: -16 | AR62: 40 | AS62: Blindenmarkt | AT62: 245 | AU62: 3.46 | AV62: 3656 | AW62: -13 | AY62: 40 | AZ62: Braunau am Inn | BA62: 352 | BB62: 3.15 | BC62: 3826 | BD62: -15 | BF62: 40 | BG62: Hinterglemm | BH62: 1053 | BI62: 1.99 | BJ62: 5079 | BK62: -18 | BM62: 40 | BN62: Edelschrott | BO62: 794 | BP62: 2.88 | BQ62: 4228 | BR62: -14 | BT62: 40 | BU62: Ginzling | BV62: 985 | BW62: 2.65 | BX62: 4651 | BY62: -15 | CA62: 40
B63: =IF(L28>3,"",IF(OR(WW=FALSE,Heizung=FALSE),"",IF($L$47>1,"JAZ (ohne Elektrozusatz) für Heizung + Warmwasser ohne Solaranlage:","Jahresarbeitszahl (ohne Elektrozusatz) Heizung + Warmwasser (JAZh+ww):"))) ->  | H63: =IF(L28=5,"","-") -> - | I63: ='WP1'!H66 ->  | M63: 41 | N63: Langenegg | O63: 695 | P63: 2.88 | Q63: -15 | R63: 4331 | S63: -15 | W63: 41 | X63: Langenegg | Y63: 695 | Z63: 2.88 | AA63: 4331 | AB63: -15 | AD63: 41 | AE63: Königsdorf | AF63: 236 | AG63: 3.14 | AH63: 3557 | AI63: -14 | AK63: 41 | AL63: Flattach | AM63: 694 | AN63: 3.03 | AO63: 4089 | AP63: -14 | AR63: 41 | AS63: Blumau bei Felixdorf | AT63: 252 | AU63: 3.53 | AV63: 3475 | AW63: -13 | AY63: 41 | AZ63: Breitenaich | BA63: 284 | BB63: 2.99 | BC63: 3896 | BD63: -15 | BF63: 41 | BG63: Hof bei Salzburg | BH63: 738 | BI63: 2.95 | BJ63: 4263 | BK63: -16 | BM63: 41 | BN63: Eggersdorf bei Graz | BO63: 405 | BP63: 3.32 | BQ63: 3520 | BR63: -13 | BT63: 41 | BU63: Going | BV63: 773 | BW63: 2.01 | BX63: 4678 | BY63: -18 | CA63: 41
B64: =IF(L28=5,"",IF(OR(L9=1,I11="",L31=FALSE,AND(WPArt=3,I35="")),"","Jahresarbeitszahl JAZ (inkl. Elektrozusatz) für Heizung und Warmwasser")) ->  | H64: =IF(L28=5,"","JAZ Gesamt =") -> JAZ Gesamt = | I64: =IF(OR(AND(WW=TRUE,L43=1),L28=5),"",IF(AND(WW=FALSE,Heizung=FALSE),"",IF(Heizung=FALSE,I62,IF(WW=FALSE,I61,IF(OR(L9=1,I11="",L31=FALSE,AND(WPArt=3,I35="")),"",IF(AND(G61>0,G62>0),IF(bivalent,(wh/www*G61+G62)/(wh/www*G61/jazh+G62/jazww+IF(G57<>"",G57,0)),(wh/www*(1-I53)+1-I52)/(wh/www*(G61/jazh+IF(G56<>"",G56,0))+G62/jazww+IF(G57<>"",G57,0))))))))) ->  | M64: 42 | N64: Lauterach | O64: 412 | P64: 3.98 | Q64: -12 | R64: 3541 | S64: -12 | W64: 42 | X64: Lauterach | Y64: 412 | Z64: 3.98 | AA64: 3541 | AB64: -12 | AD64: 42 | AE64: Krensdorf | AF64: 197 | AG64: 3.58 | AH64: 3350 | AI64: -13 | AK64: 42 | AL64: Föderlach | AM64: 491 | AN64: 2.49 | AO64: 3905 | AP64: -16 | AR64: 42 | AS64: Bockfließ | AT64: 168 | AU64: 3.35 | AV64: 3547 | AW64: -14 | AY64: 42 | AZ64: Breitenschützing | BA64: 393 | BB64: 2.97 | BC64: 3917 | BD64: -15 | BF64: 42 | BG64: Hollersbach im Pinzgau | BH64: 800 | BI64: 1.94 | BJ64: 4749 | BK64: -18 | BM64: 42 | BN64: Ehrenhausen | BO64: 270 | BP64: 3 | BQ64: 3570 | BR64: -14 | BT64: 42 | BU64: Götzens | BV64: 868 | BW64: 2.83 | BX64: 4465 | BY64: -15 | CA64: 42
B65: Wichtiger Hnweis für Endkunden: Aufgrund individuellen Nutzerverhaltens (z.B. höhere Raumtemperaturen, anderer Brauchwasserbedarf, etc.) oder Änderungen in der realisierten Ausführung, kann die tatsächliche Jahresarbeitszahl von der berechneten Jahresarbeitszahl abweichen. | M65: 43 | N65: Lech | O65: 1444 | P65: 2.2 | Q65: -17 | R65: 5482 | S65: -17 | W65: 43 | X65: Lech | Y65: 1444 | Z65: 2.2 | AA65: 5482 | AB65: -17 | AD65: 43 | AE65: Kukmirn | AF65: 254 | AG65: 3.17 | AH65: 3584 | AI65: -14 | AK65: 43 | AL65: Fresach | AM65: 695 | AN65: 2.98 | AO65: 4086 | AP65: -15 | AR65: 43 | AS65: Böheimkirchen | AT65: 240 | AU65: 3.34 | AV65: 3615 | AW65: -14 | AY65: 43 | AZ65: Buchkirchen | BA65: 340 | BB65: 3.29 | BC65: 3793 | BD65: -14 | BF65: 43 | BG65: Hüttau | BH65: 710 | BI65: 2.2 | BJ65: 4539 | BK65: -17 | BM65: 43 | BN65: Eibiswald | BO65: 365 | BP65: 3.12 | BQ65: 3662 | BR65: -14 | BT65: 43 | BU65: Grän | BV65: 1034 | BW65: 2.45 | BX65: 5003 | BY65: -19 | CA65: 43
B66: Gewichtungsfaktor Heizung wh: | H66: - | I66: =IF(AND(WPArt=3,I35=""),"",IF(OR(L9=1,I11=""),"",IF(AND(WW,Heizung),IF((Qww+Qh)>0,Qh/(Qww+Qh),0),IF(Heizung,1,0)))) ->  | M66: 44 | N66: Lingenau | O66: 685 | P66: 2.9 | Q66: -16 | R66: 4326 | S66: -16 | W66: 44 | X66: Lingenau | Y66: 685 | Z66: 2.9 | AA66: 4326 | AB66: -16 | AD66: 44 | AE66: Lackenbach | AF66: 305 | AG66: 3.32 | AH66: 3587 | AI66: -13 | AK66: 44 | AL66: Friesach | AM66: 634 | AN66: 2.63 | AO66: 4239 | AP66: -15 | AR66: 44 | AS66: Böhlerwerk | AT66: 340 | AU66: 3.23 | AV66: 3806 | AW66: -14 | AY66: 44 | AZ66: Burgkirchen | BA66: 394 | BB66: 3.07 | BC66: 3877 | BD66: -15 | BF66: 44 | BG66: Hüttschlag | BH66: 980 | BI66: 2.48 | BJ66: 4714 | BK66: -16 | BM66: 44 | BN66: Eisenerz | BO66: 745 | BP66: 3 | BQ66: 4181 | BR66: -14 | BT66: 44 | BU66: Gries am Brenner | BV66: 1165 | BW66: 2.37 | BX66: 4990 | BY66: -15 | CA66: 44
B67: Gewichtungsfaktor Warmwasser www: | H67: - | I67: =IF(AND(WPArt=3,I35=""),"",IF(OR(L9=1,I11=""),"",IF(AND(WW,Heizung),IF((Qww+Qh)>0,Qww/(Qww+Qh),0),IF(WW,1,0)))) ->  | M67: 45 | N67: Lochau | O67: 415 | P67: 4.1 | Q67: -12 | R67: 3514 | S67: -12 | W67: 45 | X67: Lochau | Y67: 415 | Z67: 4.1 | AA67: 3514 | AB67: -12 | AD67: 45 | AE67: Lackendorf | AF67: 294 | AG67: 3.34 | AH67: 3566 | AI67: -13 | AK67: 45 | AL67: Fürnitz | AM67: 507 | AN67: 2.39 | AO67: 3997 | AP67: -16 | AR67: 45 | AS67: Brand (Waldviertel) | AT67: 535 | AU67: 2.55 | AV67: 4379 | AW67: -17 | AY67: 45 | AZ67: Desselbrunn | BA67: 421 | BB67: 3.15 | BC67: 3876 | BD67: -15 | BF67: 45 | BG67: Kaprun | BH67: 784 | BI67: 2.12 | BJ67: 4542 | BK67: -18 | BM67: 45 | BN67: Etmißl | BO67: 710 | BP67: 2.63 | BQ67: 4430 | BR67: -15 | BT67: 45 | BU67: Gries im Sellrain | BV67: 1238 | BW67: 2.19 | BX67: 5147 | BY67: -17 | CA67: 45
B68: WP-Art | C68: WP-Typ | M68: 46 | N68: Ludesch | O68: 555 | P68: 3.34 | Q68: -15 | R68: 3815 | S68: -15 | W68: 46 | X68: Ludesch | Y68: 555 | Z68: 3.34 | AA68: 3815 | AB68: -15 | AD68: 46 | AE68: Litzelsdorf | AF68: 280 | AG68: 3.41 | AH68: 3417 | AI68: -12 | AK68: 46 | AL68: Gallizien | AM68: 437 | AN68: 1.99 | AO68: 4052 | AP68: -16 | AR68: 46 | AS68: Breitenau (Steinfeld) | AT68: 343 | AU68: 3.28 | AV68: 3695 | AW68: -14 | AY68: 46 | AZ68: Dimbach | BA68: 680 | BB68: 2.63 | BC68: 4325 | BD68: -16 | BF68: 46 | BG68: Köstendorf | BH68: 561 | BI68: 2.91 | BJ68: 4203 | BK68: -16 | BM68: 46 | BN68: Fehring | BO68: 275 | BP68: 3.14 | BQ68: 3541 | BR68: -13 | BT68: 46 | BU68: Grins | BV68: 1006 | BW68: 2.83 | BX68: 4430 | BY68: -15 | CA68: 46
B69: 1 | M69: 47 | N69: Lustenau | O69: 404 | P69: 3.72 | Q69: -12 | R69: 3647 | S69: -12 | W69: 47 | X69: Lustenau | Y69: 404 | Z69: 3.72 | AA69: 3647 | AB69: -12 | AD69: 47 | AE69: Lockenhaus | AF69: 340 | AG69: 3.21 | AH69: 3761 | AI69: -13 | AK69: 47 | AL69: Glanegg | AM69: 490 | AN69: 2.3 | AO69: 3983 | AP69: -16 | AR69: 47 | AS69: Breitenfurt bei Wien | AT69: 402 | AU69: 3.13 | AV69: 3879 | AW69: -14 | AY69: 47 | AZ69: Dorf an der Pram | BA69: 395 | BB69: 3.13 | BC69: 3863 | BD69: -15 | BF69: 47 | BG69: Krimml | BH69: 1159 | BI69: 2.65 | BJ69: 4807 | BK69: -16 | BM69: 47 | BN69: Feldbach | BO69: 284 | BP69: 3.19 | BQ69: 3530 | BR69: -13 | BT69: 47 | BU69: Haiming | BV69: 670 | BW69: 2.49 | BX69: 4168 | BY69: -16 | CA69: 47
B70: 2 | C70: ='WP1'!T134 -> Pompe à chaleur air/eau une vitesse | M70: 48 | N70: Mäder | O70: 414 | P70: 3.85 | Q70: -13 | R70: 3537 | S70: -13 | W70: 48 | X70: Mäder | Y70: 414 | Z70: 3.85 | AA70: 3537 | AB70: -13 | AD70: 48 | AE70: Lutzmannsburg | AF70: 206 | AG70: 3.47 | AH70: 3439 | AI70: -13 | AK70: 48 | AL70: Globasnitz | AM70: 545 | AN70: 2.38 | AO70: 4105 | AP70: -16 | AR70: 48 | AS70: Breitenstein | AT70: 800 | AU70: 2.89 | AV70: 4448 | AW70: -16 | AY70: 48 | AZ70: Ebensee | BA70: 430 | BB70: 3.39 | BC70: 3821 | BD70: -13 | BF70: 48 | BG70: Kuchl | BH70: 469 | BI70: 3.82 | BJ70: 3754 | BK70: -14 | BM70: 48 | BN70: Feldkirchen bei Graz | BO70: 342 | BP70: 2.65 | BQ70: 3799 | BR70: -15 | BT70: 48 | BU70: Hall in Tirol | BV70: 560 | BW70: 3.09 | BX70: 3737 | BY70: -14 | CA70: 48
B71: 2 | C71: ='WP1'!T135 -> Pompe à chaleur air/eau 2 vitesses | M71: 49 | N71: Meiningen | O71: 425 | P71: 3.84 | Q71: -13 | R71: 3491 | S71: -13 | W71: 49 | X71: Meiningen | Y71: 425 | Z71: 3.84 | AA71: 3491 | AB71: -13 | AD71: 49 | AE71: Mannersdorf an der Rabnitz | AF71: 245 | AG71: 3.39 | AH71: 3522 | AI71: -13 | AK71: 49 | AL71: Glödnitz | AM71: 748 | AN71: 2.06 | AO71: 4611 | AP71: -17 | AR71: 49 | AS71: Breitenwaida | AT71: 218 | AU71: 3.37 | AV71: 3592 | AW71: -14 | AY71: 49 | AZ71: Eberschwang | BA71: 529 | BB71: 3.05 | BC71: 3984 | BD71: -16 | BF71: 49 | BG71: Lamprechtshausen Kirchendorf | BH71: 458 | BI71: 3.23 | BJ71: 3823 | BK71: -15 | BM71: 49 | BN71: Fernitz | BO71: 318 | BP71: 2.82 | BQ71: 3693 | BR71: -14 | BT71: 49 | BU71: Häselgehr | BV71: 1003 | BW71: 2.55 | BX71: 4747 | BY71: -17 | CA71: 49
B72: 2 | C72: ='WP1'!T136 -> Pompe à chaleur air/eau Plusieurs vitesses | M72: 50 | N72: Mellau | O72: 688 | P72: 2.74 | Q72: -17 | R72: 4366 | S72: -17 | W72: 50 | X72: Mellau | Y72: 688 | Z72: 2.74 | AA72: 4366 | AB72: -17 | AD72: 50 | AE72: Mariasdorf | AF72: 400 | AG72: 3.02 | AH72: 3753 | AI72: -13 | AK72: 50 | AL72: Gmünd | AM72: 732 | AN72: 2.94 | AO72: 4145 | AP72: -15 | AR72: 50 | AS72: Bromberg | AT72: 435 | AU72: 3.07 | AV72: 3928 | AW72: -14 | AY72: 50 | AZ72: Eberstallzell | BA72: 400 | BB72: 3.12 | BC72: 3865 | BD72: -14 | BF72: 50 | BG72: Lend | BH72: 639 | BI72: 2.15 | BJ72: 4427 | BK72: -17 | BM72: 50 | BN72: Fischbach | BO72: 1010 | BP72: 2.56 | BQ72: 4588 | BR72: -16 | BT72: 50 | BU72: Heiterwang | BV72: 992 | BW72: 2.64 | BX72: 4862 | BY72: -19 | CA72: 50
B73: 2 | C73: ='WP1'!T137 -> Pompe à chaleur air/eau vitesse variable | M73: 51 | N73: Mittelberg | O73: 1218 | P73: 2.51 | Q73: -17 | R73: 5124 | S73: -17 | W73: 51 | X73: Mittelberg | Y73: 1218 | Z73: 2.51 | AA73: 5124 | AB73: -17 | AD73: 51 | AE73: Markt Allhau | AF73: 346 | AG73: 3.39 | AH73: 3488 | AI73: -12 | AK73: 51 | AL73: Gnesau | AM73: 973 | AN73: 2.59 | AO73: 4630 | AP73: -16 | AR73: 51 | AS73: Bruck an der Leitha | AT73: 158 | AU73: 3.35 | AV73: 3446 | AW73: -14 | AY73: 51 | AZ73: Eferding | BA73: 270 | BB73: 3.24 | BC73: 3720 | BD73: -15 | BF73: 51 | BG73: Leogang | BH73: 797 | BI73: 2.21 | BJ73: 4554 | BK73: -17 | BM73: 51 | BN73: Fladnitz an der Teichalpe | BO73: 692 | BP73: 2.85 | BQ73: 4150 | BR73: -15 | BT73: 51 | BU73: Hintertux | BV73: 1493 | BW73: 1.78 | BX73: 5685 | BY73: -17 | CA73: 51
B74: 3 | C74: ='WP1'!T138 -> Pompe à chaleur sol/eau une vitesse | M74: 52 | N74: Nenzing | O74: 530 | P74: 3.15 | Q74: -15 | R74: 3942 | S74: -15 | W74: 52 | X74: Nenzing | Y74: 530 | Z74: 3.15 | AA74: 3942 | AB74: -15 | AD74: 52 | AE74: Markt Neuhodis | AF74: 312 | AG74: 3.38 | AH74: 3456 | AI74: -13 | AK74: 52 | AL74: Gödersdorf | AM74: 543 | AN74: 2.45 | AO74: 4037 | AP74: -16 | AR74: 52 | AS74: Brunn am Gebirge | AT74: 229 | AU74: 3.63 | AV74: 3404 | AW74: -13 | AY74: 52 | AZ74: Eggelsberg | BA74: 518 | BB74: 3.09 | BC74: 3991 | BD74: -15 | BF74: 52 | BG74: Lofer | BH74: 610 | BI74: 3 | BJ74: 4268 | BK74: -15 | BM74: 52 | BN74: Floing | BO74: 455 | BP74: 3.16 | BQ74: 3721 | BR74: -13 | BT74: 52 | BU74: Hippach | BV74: 602 | BW74: 2.74 | BX74: 4074 | BY74: -14 | CA74: 52
B75: 3 | C75: ='WP1'!T139 -> Pompe à chaleur sol/eau 2 vitesses | M75: 53 | N75: Nüziders | O75: 570 | P75: 3.28 | Q75: -15 | R75: 3863 | S75: -15 | W75: 53 | X75: Nüziders | Y75: 570 | Z75: 3.28 | AA75: 3863 | AB75: -15 | AD75: 53 | AE75: Marz | AF75: 250 | AG75: 3.41 | AH75: 3484 | AI75: -13 | AK75: 53 | AL75: Görtschach | AM75: 605 | AN75: 2.66 | AO75: 4057 | AP75: -15 | AR75: 53 | AS75: Brunn an der Wild | AT75: 450 | AU75: 2.54 | AV75: 4190 | AW75: -16 | AY75: 53 | AZ75: Eggendorf im Traunkreis | BA75: 364 | BB75: 3.26 | BC75: 3750 | BD75: -14 | BF75: 53 | BG75: Lungötz | BH75: 840 | BI75: 1.92 | BJ75: 4720 | BK75: -16 | BM75: 53 | BN75: Fohnsdorf | BO75: 736 | BP75: 2.26 | BQ75: 4434 | BR75: -16 | BT75: 53 | BU75: Hochfilzen | BV75: 959 | BW75: 1.78 | BX75: 5047 | BY75: -18 | CA75: 53
B76: 3 | C76: ='WP1'!T140 -> Pompe à chaleur sol/eau Plusieurs vitesses | M76: 54 | N76: Partenen | O76: 1051 | P76: 2.59 | Q76: -17 | R76: 4788 | S76: -17 | W76: 54 | X76: Partenen | Y76: 1051 | Z76: 2.59 | AA76: 4788 | AB76: -17 | AD76: 54 | AE76: Mattersburg | AF76: 240 | AG76: 3.43 | AH76: 3463 | AI76: -13 | AK76: 54 | AL76: Grades | AM76: 870 | AN76: 2.4 | AO76: 4646 | AP76: -15 | AR76: 54 | AS76: Deutsch Brodersdorf | AT76: 197 | AU76: 3.44 | AV76: 3445 | AW76: -13 | AY76: 54 | AZ76: Eggerding | BA76: 376 | BB76: 3.07 | BC76: 3878 | BD76: -15 | BF76: 54 | BG76: Maishofen | BH76: 767 | BI76: 2.24 | BJ76: 4476 | BK76: -17 | BM76: 54 | BN76: Frauental an der Laßnitz | BO76: 332 | BP76: 3.22 | BQ76: 3558 | BR76: -13 | BT76: 54 | BU76: Hochsölden | BV76: 2090 | BW76: 0.42 | BX76: 6794 | BY76: -20 | CA76: 54
B77: 3 | C77: ='WP1'!T141 -> Pompe à chaleur sol/eau vitesse variable | M77: 55 | N77: Raggal | O77: 1015 | P77: 2.49 | Q77: -17 | R77: 4780 | S77: -17 | W77: 55 | X77: Raggal | Y77: 1015 | Z77: 2.49 | AA77: 4780 | AB77: -17 | AD77: 55 | AE77: Minihof-Liebau | AF77: 278 | AG77: 3.15 | AH77: 3539 | AI77: -13 | AK77: 55 | AL77: Grafenstein | AM77: 415 | AN77: 2.13 | AO77: 3967 | AP77: -16 | AR77: 55 | AS77: Deutsch-Wagram | AT77: 160 | AU77: 3.32 | AV77: 3536 | AW77: -14 | AY77: 55 | AZ77: Engelhartszell | BA77: 293 | BB77: 3.17 | BC77: 3770 | BD77: -15 | BF77: 55 | BG77: Mandling | BH77: 809 | BI77: 2.03 | BJ77: 4707 | BK77: -16 | BM77: 55 | BN77: Frein an der Mürz | BO77: 864 | BP77: 2.84 | BQ77: 4634 | BR77: -16 | BT77: 55 | BU77: Holzgau | BV77: 1103 | BW77: 2.35 | BX77: 4978 | BY77: -17 | CA77: 55
B78: 4 | C78: ='WP1'!T142 -> Pompe à chaleur eau/eau une vitesse | M78: 56 | N78: Rankweil | O78: 502 | P78: 3.55 | Q78: -14 | R78: 3701 | S78: -14 | W78: 56 | X78: Rankweil | Y78: 502 | Z78: 3.55 | AA78: 3701 | AB78: -14 | AD78: 56 | AE78: Mischendorf | AF78: 265 | AG78: 3.28 | AH78: 3528 | AI78: -13 | AK78: 56 | AL78: Greifenburg | AM78: 638 | AN78: 2.43 | AO78: 4200 | AP78: -15 | AR78: 56 | AS78: Dietmanns | AT78: 610 | AU78: 2.35 | AV78: 4465 | AW78: -17 | AY78: 56 | AZ78: Enns | BA78: 280 | BB78: 3.22 | BC78: 3641 | BD78: -13 | BF78: 56 | BG78: Maria Alm am Steinernen Meer | BH78: 896 | BI78: 2.26 | BJ78: 4560 | BK78: -17 | BM78: 56 | BN78: Fresing | BO78: 287 | BP78: 3.02 | BQ78: 3583 | BR78: -14 | BT78: 56 | BU78: Hopfgarten im Brixental | BV78: 621 | BW78: 2.4 | BX78: 4330 | BY78: -17 | CA78: 56
B79: 4 | C79: ='WP1'!T143 -> Pompe à chaleur eau/eau 2 vitesses | M79: 57 | N79: Riefensberg | O79: 781 | P79: 2.62 | Q79: -16 | R79: 4570 | S79: -16 | W79: 57 | X79: Riefensberg | Y79: 781 | Z79: 2.62 | AA79: 4570 | AB79: -16 | AD79: 57 | AE79: Mogersdorf | AF79: 228 | AG79: 3.17 | AH79: 3568 | AI79: -14 | AK79: 57 | AL79: Griffen | AM79: 484 | AN79: 2.51 | AO79: 4041 | AP79: -16 | AR79: 57 | AS79: Dobermannsdorf | AT79: 162 | AU79: 3.29 | AV79: 3593 | AW79: -14 | AY79: 57 | AZ79: Enzenkirchen | BA79: 371 | BB79: 3.04 | BC79: 3884 | BD79: -15 | BF79: 57 | BG79: Mariapfarr | BH79: 1120 | BI79: 1.93 | BJ79: 5185 | BK79: -20 | BM79: 57 | BN79: Friedberg | BO79: 600 | BP79: 2.97 | BQ79: 4019 | BR79: -14 | BT79: 57 | BU79: Hopfgarten in Defereggen | BV79: 1107 | BW79: 2.33 | BX79: 4912 | BY79: -16 | CA79: 57
B80: 4 | C80: ='WP1'!T144 -> Pompe à chaleur eau/eau Plusieurs vitesses | M80: 58 | N80: Riezlern | O80: 1088 | P80: 2.37 | Q80: -18 | R80: 5041 | S80: -18 | W80: 58 | X80: Riezlern | Y80: 1088 | Z80: 2.37 | AA80: 5041 | AB80: -18 | AD80: 58 | AE80: Mönchhof | AF80: 129 | AG80: 3.48 | AH80: 3370 | AI80: -14 | AK80: 58 | AL80: Gummern | AM80: 511 | AN80: 2.46 | AO80: 3982 | AP80: -16 | AR80: 58 | AS80: Dobersberg | AT80: 468 | AU80: 2.67 | AV80: 4195 | AW80: -16 | AY80: 58 | AZ80: Esternberg | BA80: 510 | BB80: 2.83 | BC80: 4086 | BD80: -15 | BF80: 58 | BG80: Mattsee | BH80: 503 | BI80: 3.23 | BJ80: 3841 | BK80: -15 | BM80: 58 | BN80: Frohnleiten | BO80: 438 | BP80: 3 | BQ80: 3807 | BR80: -14 | BT80: 58 | BU80: Huben | BV80: 810 | BW80: 2.27 | BX80: 4469 | BY80: -16 | CA80: 58
B81: 4 | C81: ='WP1'!T145 -> Pompe à chaleur eau/eau vitesse variable | M81: 59 | N81: Röthis | O81: 500 | P81: 3.55 | Q81: -14 | R81: 3701 | S81: -14 | W81: 59 | X81: Röthis | Y81: 500 | Z81: 3.55 | AA81: 3701 | AB81: -14 | AD81: 59 | AE81: Mörbisch am See | AF81: 122 | AG81: 3.41 | AH81: 3352 | AI81: -13 | AK81: 59 | AL81: Gundersheim | AM81: 645 | AN81: 2.44 | AO81: 4266 | AP81: -15 | AR81: 59 | AS81: Dorfstetten | AT81: 740 | AU81: 2.27 | AV81: 4627 | AW81: -17 | AY81: 59 | AZ81: Feldkirchen an der Donau | BA81: 268 | BB81: 3.29 | BC81: 3693 | BD81: -14 | BF81: 59 | BG81: Mauterndorf | BH81: 1121 | BI81: 2.04 | BJ81: 5191 | BK81: -20 | BM81: 59 | BN81: Frojach | BO81: 760 | BP81: 2.69 | BQ81: 4397 | BR81: -15 | BT81: 59 | BU81: Igls | BV81: 870 | BW81: 3 | BX81: 4351 | BY81: -15 | CA81: 59
B82: 5 | C82: ='WP1'!T146 -> PAC avec collecteur terrestre une vitesse | M82: 60 | N82: Sankt Anton im Montafon | O82: 640 | P82: 3.06 | Q82: -16 | R82: 4031 | S82: -16 | W82: 60 | X82: Sankt Anton im Montafon | Y82: 640 | Z82: 3.06 | AA82: 4031 | AB82: -16 | AD82: 60 | AE82: Müllendorf | AF82: 220 | AG82: 3.65 | AH82: 3320 | AI82: -13 | AK82: 60 | AL82: Gurk | AM82: 664 | AN82: 2.23 | AO82: 4566 | AP82: -16 | AR82: 60 | AS82: Drasenhofen | AT82: 198 | AU82: 3.08 | AV82: 3706 | AW82: -14 | AY82: 60 | AZ82: Feldkirchen bei Mattighofen | BA82: 510 | BB82: 3.11 | BC82: 3935 | BD82: -15 | BF82: 60 | BG82: Michaelbeuern | BH82: 471 | BI82: 3.27 | BJ82: 3815 | BK82: -15 | BM82: 60 | BN82: Fürstenfeld | BO82: 276 | BP82: 3.09 | BQ82: 3585 | BR82: -13 | BT82: 60 | BU82: Imst | BV82: 828 | BW82: 2.45 | BX82: 4318 | BY82: -16 | CA82: 60
B83: 5 | C83: ='WP1'!T147 -> PAC avec collecteur terrestre 2 vitesses | M83: 61 | N83: Sankt Gallenkirch | O83: 878 | P83: 2.69 | Q83: -17 | R83: 4569 | S83: -17 | W83: 61 | X83: Sankt Gallenkirch | Y83: 878 | Z83: 2.69 | AA83: 4569 | AB83: -17 | AD83: 61 | AE83: Neckenmarkt | AF83: 225 | AG83: 3.42 | AH83: 3466 | AI83: -13 | AK83: 61 | AL83: Guttaring | AM83: 638 | AN83: 2.45 | AO83: 4090 | AP83: -15 | AR83: 61 | AS83: Drosendorf Stadt | AT83: 421 | AU83: 2.61 | AV83: 4103 | AW83: -16 | AY83: 61 | AZ83: Fornach | BA83: 565 | BB83: 2.64 | BC83: 4462 | BD83: -18 | BF83: 61 | BG83: Mitterberghütten | BH83: 555 | BI83: 2.45 | BJ83: 4265 | BK83: -16 | BM83: 61 | BN83: Gabersdorf | BO83: 273 | BP83: 3.07 | BQ83: 3573 | BR83: -14 | BT83: 61 | BU83: Innervillgraten | BV83: 1402 | BW83: 1.78 | BX83: 5576 | BY83: -17 | CA83: 61
B84: 5 | C84: ='WP1'!T148 -> PAC avec collecteur terrestre Plusieurs vitesses | M84: 62 | N84: Satteins | O84: 495 | P84: 3.37 | Q84: -14 | R84: 3808 | S84: -14 | W84: 62 | X84: Satteins | Y84: 495 | Z84: 3.37 | AA84: 3808 | AB84: -14 | AD84: 62 | AE84: Neudorf bei Parndorf | AF84: 172 | AG84: 3.38 | AH84: 3457 | AI84: -14 | AK84: 62 | AL84: Haimburg | AM84: 503 | AN84: 2.38 | AO84: 4070 | AP84: -16 | AR84: 62 | AS84: Drösing | AT84: 157 | AU84: 3.31 | AV84: 3588 | AW84: -14 | AY84: 62 | AZ84: Frankenburg | BA84: 519 | BB84: 2.87 | BC84: 4198 | BD84: -17 | BF84: 62 | BG84: Mittersill | BH84: 788 | BI84: 1.85 | BJ84: 4774 | BK84: -18 | BM84: 62 | BN84: Gaishorn | BO84: 725 | BP84: 2.56 | BQ84: 4377 | BR84: -15 | BT84: 62 | BU84: Innsbruck | BV84: 574 | BW84: 3.16 | BX84: 3704 | BY84: -14 | CA84: 62
B85: 5 | C85: ='WP1'!T149 -> PAC avec collecteur terrestre vitesse variable | M85: 63 | N85: Schlins | O85: 498 | P85: 3.26 | Q85: -15 | R85: 3850 | S85: -15 | W85: 63 | X85: Schlins | Y85: 498 | Z85: 3.26 | AA85: 3850 | AB85: -15 | AD85: 63 | AE85: Neudörfl | AF85: 270 | AG85: 3.36 | AH85: 3510 | AI85: -13 | AK85: 63 | AL85: Heiligenblut | AM85: 1317 | AN85: 2.89 | AO85: 4739 | AP85: -14 | AR85: 63 | AS85: Dürnkrut | AT85: 155 | AU85: 3.34 | AV85: 3548 | AW85: -14 | AY85: 63 | AZ85: Frankenmarkt | BA85: 536 | BB85: 2.63 | BC85: 4464 | BD85: -18 | BF85: 63 | BG85: Mühlbach | BH85: 832 | BI85: 1.91 | BJ85: 4776 | BK85: -18 | BM85: 63 | BN85: Gamlitz | BO85: 278 | BP85: 3.05 | BQ85: 3577 | BR85: -14 | BT85: 63 | BU85: Innsbruck-Igls | BV85: 870 | BW85: 3 | BX85: 4351 | BY85: -15 | CA85: 63
B86: 6 | C86: ='WP1'!T150 -> PAC sur air extrait sur installation de ventilation sans récupération de chaleur | M86: 64 | N86: Schnepfau | O86: 734 | P86: 2.56 | Q86: -18 | R86: 4518 | S86: -18 | W86: 64 | X86: Schnepfau | Y86: 734 | Z86: 2.56 | AA86: 4518 | AB86: -18 | AD86: 64 | AE86: Neufeld an der Leitha | AF86: 230 | AG86: 3.55 | AH86: 3405 | AI86: -13 | AK86: 64 | AL86: Hermagor | AM86: 598 | AN86: 2.77 | AO86: 4049 | AP86: -15 | AR86: 64 | AS86: Dürnstein | AT86: 210 | AU86: 3.63 | AV86: 3437 | AW86: -12 | AY86: 64 | AZ86: Franking | BA86: 452 | BB86: 3.15 | BC86: 3875 | BD86: -15 | BF86: 64 | BG86: Mühlbach am Hochkönig | BH86: 859 | BI86: 2.49 | BJ86: 4535 | BK86: -16 | BM86: 64 | BN86: Gams bei Hieflau | BO86: 550 | BP86: 2.82 | BQ86: 4260 | BR86: -15 | BT86: 64 | BU86: Innsbruck-Mühlau | BV86: 619 | BW86: 3.15 | BX86: 3807 | BY86: -14 | CA86: 64
B87: 6 | C87: ='WP1'!T151 ->  | M87: 65 | N87: =INDEX(X$23:CG$723,$M87,(Bundesland-1)*7+1) -> Schoppernau | O87: =INDEX(Y$23:CH$723,$M87,(Bundesland-1)*7+1) -> 850 | P87: =INDEX(Z$23:CI$723,$M87,(Bundesland-1)*7+1) -> 2.29 | Q87: -19 | R87: =INDEX(AA$23:CK$723,$M87,(Bundesland-1)*7+1) -> 4834 | S87: =INDEX(AB$23:CL$723,$M87,(Bundesland-1)*7+1) -> -19 | W87: 65 | X87: Schoppernau | Y87: 850 | Z87: 2.29 | AA87: 4834 | AB87: -19 | AD87: 65 | AE87: Neuhaus am Klausenbach | AF87: 290 | AG87: 3.15 | AH87: 3539 | AI87: -13 | AK87: 65 | AL87: Himmelberg | AM87: 662 | AN87: 2.51 | AO87: 4214 | AP87: -16 | AR87: 65 | AS87: Ebenfurth | AT87: 229 | AU87: 3.55 | AV87: 3422 | AW87: -13 | AY87: 65 | AZ87: Freistadt | BA87: 560 | BB87: 2.53 | BC87: 4297 | BD87: -15 | BF87: 65 | BG87: Muhr | BH87: 1115 | BI87: 2.08 | BJ87: 5088 | BK87: -18 | BM87: 65 | BN87: Gasen | BO87: 830 | BP87: 2.54 | BQ87: 4452 | BR87: -15 | BT87: 65 | BU87: Innsbruck-Neuarzl | BV87: 642 | BW87: 3.12 | BX87: 3866 | BY87: -14 | CA87: 65
B88: 6 | C88: ='WP1'!T152 ->  | M88: 66 | N88: Schröcken | O88: 1269 | P88: 2.65 | Q88: =MIN(S88+Zuschlag_A,-8) -> -16 | R88: 5136 | S88: -16 | W88: 66 | X88: Schröcken | Y88: 1269 | Z88: 2.65 | AA88: 5136 | AB88: -16 | AD88: 66 | AE88: Neusiedl am See | AF88: 127 | AG88: 3.58 | AH88: 3334 | AI88: -13 | AK88: 66 | AL88: Hüttenberg | AM88: 786 | AN88: 2.61 | AO88: 4242 | AP88: -14 | AR88: 66 | AS88: Ebenthal (Weinviertel) | AT88: 168 | AU88: 3.31 | AV88: 3539 | AW88: -14 | AY88: 66 | AZ88: Friedburg | BA88: 530 | BB88: 2.87 | BC88: 4197 | BD88: -16 | BF88: 66 | BG88: Neukirchen am Großvenediger | BH88: 855 | BI88: 2.13 | BJ88: 4663 | BK88: -17 | BM88: 66 | BN88: Geistthal | BO88: 582 | BP88: 2.92 | BQ88: 4013 | BR88: -14 | BT88: 66 | BU88: Inzing | BV88: 621 | BW88: 2.97 | BX88: 3952 | BY88: -15 | CA88: 66
B89: 6 | C89: ='WP1'!T153 ->  | M89: 67 | N89: Schruns | O89: 690 | P89: 2.97 | Q89: -16 | R89: 4190 | S89: -16 | W89: 67 | X89: Schruns | Y89: 690 | Z89: 2.97 | AA89: 4190 | AB89: -16 | AD89: 67 | AE89: Neutal | AF89: 274 | AG89: 3.36 | AH89: 3544 | AI89: -13 | AK89: 67 | AL89: Irschen | AM89: 800 | AN89: 2.58 | AO89: 4285 | AP89: -15 | AR89: 67 | AS89: Ebergassing | AT89: 180 | AU89: 3.47 | AV89: 3422 | AW89: -13 | AY89: 67 | AZ89: Gaflenz | BA89: 475 | BB89: 3.33 | BC89: 4034 | BD89: -14 | BF89: 67 | BG89: Neumarkt am Wallersee | BH89: 551 | BI89: 2.85 | BJ89: 4236 | BK89: -16 | BM89: 67 | BN89: Gleinstätten | BO89: 304 | BP89: 3.13 | BQ89: 3576 | BR89: -14 | BT89: 67 | BU89: Ischgl | BV89: 1376 | BW89: 1.84 | BX89: 5466 | BY89: -19 | CA89: 67
M90: 68 | N90: Schwarzach | O90: 433 | P90: 3.92 | Q90: -12 | R90: 3585 | S90: -12 | W90: 68 | X90: Schwarzach | Y90: 433 | Z90: 3.92 | AA90: 3585 | AB90: -12 | AD90: 68 | AE90: Nickelsdorf | AF90: 135 | AG90: 3.47 | AH90: 3372 | AI90: -14 | AK90: 68 | AL90: Kappel am Krappfeld | AM90: 594 | AN90: 2.19 | AO90: 4274 | AP90: -16 | AR90: 68 | AS90: Ebreichsdorf | AT90: 201 | AU90: 3.56 | AV90: 3419 | AW90: -13 | AY90: 68 | AZ90: Gallneukirchen | BA90: 337 | BB90: 3.31 | BC90: 3672 | BD90: -13 | BF90: 68 | BG90: Niedernfritz | BH90: 750 | BI90: 2.11 | BJ90: 4616 | BK90: -17 | BM90: 68 | BN90: Gleisdorf | BO90: 365 | BP90: 2.8 | BQ90: 3853 | BR90: -14 | BT90: 68 | BU90: Jenbach | BV90: 568 | BW90: 2.96 | BX90: 3885 | BY90: -15 | CA90: 68
M91: 69 | N91: Schwarzenberg | O91: 696 | P91: 2.85 | Q91: -15 | R91: 4357 | S91: -15 | W91: 69 | X91: Schwarzenberg | Y91: 696 | Z91: 2.85 | AA91: 4357 | AB91: -15 | AD91: 69 | AE91: Nikitsch | AF91: 228 | AG91: 3.48 | AH91: 3470 | AI91: -13 | AK91: 69 | AL91: Keutschach | AM91: 535 | AN91: 2.53 | AO91: 3966 | AP91: -15 | AR91: 69 | AS91: Echsenbach | AT91: 560 | AU91: 2.42 | AV91: 4484 | AW91: -17 | AY91: 69 | AZ91: Gallspach | BA91: 360 | BB91: 3.27 | BC91: 3697 | BD91: -15 | BF91: 69 | BG91: Niedernsill | BH91: 769 | BI91: 2.01 | BJ91: 4659 | BK91: -18 | BM91: 69 | BN91: Gnas | BO91: 279 | BP91: 3.15 | BQ91: 3522 | BR91: -13 | BT91: 69 | BU91: Jochberg | BV91: 923 | BW91: 1.9 | BX91: 4904 | BY91: -18 | CA91: 69
M92: 70 | N92: Sonntag | O92: 888 | P92: 2.38 | Q92: -18 | R92: 4740 | S92: -18 | W92: 70 | X92: Sonntag | Y92: 888 | Z92: 2.38 | AA92: 4740 | AB92: -18 | AD92: 70 | AE92: Oberloisdorf | AF92: 248 | AG92: 3.38 | AH92: 3540 | AI92: -13 | AK92: 70 | AL92: Kirchbach | AM92: 642 | AN92: 2.48 | AO92: 4257 | AP92: -15 | AR92: 70 | AS92: Eckartsau | AT92: 147 | AU92: 3.32 | AV92: 3486 | AW92: -14 | AY92: 70 | AZ92: Gampern | BA92: 508 | BB92: 2.79 | BC92: 4216 | BD92: -16 | BF92: 70 | BG92: Nußdorf am Haunsberg | BH92: 441 | BI92: 3.34 | BJ92: 3766 | BK92: -15 | BM92: 70 | BN92: Gollrad | BO92: 960 | BP92: 2.45 | BQ92: 4880 | BR92: -16 | BT92: 70 | BU92: Jungholz | BV92: 1054 | BW92: 2.42 | BX92: 4994 | BY92: -19 | CA92: 70
M93: 71 | N93: Stuben | O93: 1407 | P93: 2.31 | Q93: -17 | R93: 5343 | S93: -17 | W93: 71 | X93: Stuben | Y93: 1407 | Z93: 2.31 | AA93: 5343 | AB93: -17 | AD93: 71 | AE93: Oberpullendorf | AF93: 245 | AG93: 3.38 | AH93: 3507 | AI93: -13 | AK93: 71 | AL93: Klagenfurt | AM93: 446 | AN93: 2.27 | AO93: 3935 | AP93: -16 | AR93: 71 | AS93: Edlitz Markt | AT93: 450 | AU93: 3.02 | AV93: 3990 | AW93: -14 | AY93: 71 | AZ93: Garsten | BA93: 298 | BB93: 3.35 | BC93: 3664 | BD93: -14 | BF93: 71 | BG93: Oberalm Markt | BH93: 452 | BI93: 3.52 | BJ93: 3840 | BK93: -15 | BM93: 71 | BN93: Gosdorf | BO93: 234 | BP93: 3.19 | BQ93: 3513 | BR93: -13 | BT93: 71 | BU93: Kals am Großglockner | BV93: 1325 | BW93: 2.32 | BX93: 5252 | BY93: -16 | CA93: 71
M94: 72 | N94: Sulz | O94: 495 | P94: 3.57 | Q94: -13 | R94: 3681 | S94: -13 | W94: 72 | X94: Sulz | Y94: 495 | Z94: 3.57 | AA94: 3681 | AB94: -13 | AD94: 72 | AE94: Oberschützen | AF94: 355 | AG94: 3.03 | AH94: 3784 | AI94: -13 | AK94: 72 | AL94: Klagenfurt-Annabichl | AM94: 446 | AN94: 2.27 | AO94: 3935 | AP94: -16 | AR94: 72 | AS94: Eggenburg | AT94: 325 | AU94: 2.89 | AV94: 3884 | AW94: -15 | AY94: 72 | AZ94: Gaspoltshofen | BA94: 455 | BB94: 3.14 | BC94: 3828 | BD94: -15 | BF94: 72 | BG94: Oberndorf bei Salzburg | BH94: 400 | BI94: 3.33 | BJ94: 3750 | BK94: -15 | BM94: 72 | BN94: Göß | BO94: 551 | BP94: 3.05 | BQ94: 3865 | BR94: -14 | BT94: 72 | BU94: Kaltenbach | BV94: 558 | BW94: 2.59 | BX94: 4075 | BY94: -15 | CA94: 72
M95: 73 | N95: Sulzberg | O95: 1013 | P95: 2.44 | Q95: -16 | R95: 4918 | S95: -16 | W95: 73 | X95: Sulzberg | Y95: 1013 | Z95: 2.44 | AA95: 4918 | AB95: -16 | AD95: 73 | AE95: Oberwart | AF95: 315 | AG95: 3.09 | AH95: 3704 | AI95: -13 | AK95: 73 | AL95: Klagenfurt-Viktring | AM95: 454 | AN95: 2.32 | AO95: 3942 | AP95: -16 | AR95: 73 | AS95: Eggendorf (im Steinfeld) | AT95: 243 | AU95: 3.44 | AV95: 3462 | AW95: -13 | AY95: 73 | AZ95: Geboltskirchen | BA95: 555 | BB95: 3.1 | BC95: 3921 | BD95: -15 | BF95: 73 | BG95: Obertauern | BH95: 1664 | BI95: 1.22 | BJ95: 6159 | BK95: -20 | BM95: 73 | BN95: Graden | BO95: 709 | BP95: 2.77 | BQ95: 4203 | BR95: -14 | BT95: 73 | BU95: Kappl | BV95: 1256 | BW95: 2.09 | BX95: 5175 | BY95: -18 | CA95: 73
M96: 74 | N96: Thüringen | O96: 573 | P96: 3.17 | Q96: -15 | R96: 3939 | S96: -15 | W96: 74 | X96: Thüringen | Y96: 573 | Z96: 3.17 | AA96: 3939 | AB96: -15 | AD96: 74 | AE96: Oggau | AF96: 130 | AG96: 3.43 | AH96: 3364 | AI96: -13 | AK96: 74 | AL96: Klagenfurt-Wölfnitz | AM96: 460 | AN96: 2.29 | AO96: 3950 | AP96: -16 | AR96: 74 | AS96: Eggendorf im Thale | AT96: 270 | AU96: 3.25 | AV96: 3686 | AW96: -14 | AY96: 74 | AZ96: Geiersberg | BA96: 554 | BB96: 3.05 | BC96: 4050 | BD96: -15 | BF96: 74 | BG96: Obertrum | BH96: 508 | BI96: 3.23 | BJ96: 3858 | BK96: -15 | BM96: 74 | BN96: Grafendorf bei Hartberg | BO96: 384 | BP96: 3.27 | BQ96: 3597 | BR96: -13 | BT96: 74 | BU96: Kartitsch | BV96: 1358 | BW96: 1.74 | BX96: 5514 | BY96: -17 | CA96: 74
M97: 75 | N97: Thüringerberg | O97: 880 | P97: 2.32 | Q97: -18 | R97: 4738 | S97: -18 | W97: 75 | X97: Thüringerberg | Y97: 880 | Z97: 2.32 | AA97: 4738 | AB97: -18 | AD97: 75 | AE97: Olbendorf | AF97: 285 | AG97: 3.37 | AH97: 3476 | AI97: -12 | AK97: 75 | AL97: Kleblach | AM97: 575 | AN97: 2.49 | AO97: 4097 | AP97: -15 | AR97: 75 | AS97: Eggern | AT97: 576 | AU97: 2.46 | AV97: 4472 | AW97: -17 | AY97: 75 | AZ97: Geinberg | BA97: 388 | BB97: 3.14 | BC97: 3861 | BD97: -15 | BF97: 75 | BG97: Pfarrwerfen | BH97: 553 | BI97: 2.51 | BJ97: 4233 | BK97: -16 | BM97: 75 | BN97: Gratkorn | BO97: 377 | BP97: 3.28 | BQ97: 3544 | BR97: -13 | BT97: 75 | BU97: Kematen in Tirol | BV97: 610 | BW97: 2.92 | BX97: 3929 | BY97: -15 | CA97: 75
M98: 76 | N98: Tschagguns | O98: 687 | P98: 2.93 | Q98: -16 | R98: 4182 | S98: -16 | W98: 76 | X98: Tschagguns | Y98: 687 | Z98: 2.93 | AA98: 4182 | AB98: -16 | AD98: 76 | AE98: Ollersdorf im Burgenland | AF98: 260 | AG98: 3.39 | AH98: 3422 | AI98: -12 | AK98: 76 | AL98: Klein Sankt Paul | AM98: 630 | AN98: 2.21 | AO98: 4306 | AP98: -16 | AR98: 76 | AS98: Eichgraben | AT98: 300 | AU98: 3.24 | AV98: 3721 | AW98: -14 | AY98: 76 | AZ98: Geretsberg | BA98: 495 | BB98: 3.05 | BC98: 3967 | BD98: -15 | BF98: 76 | BG98: Piesendorf | BH98: 780 | BI98: 2.15 | BJ98: 4534 | BK98: -18 | BM98: 76 | BN98: Gratwein | BO98: 392 | BP98: 3.25 | BQ98: 3584 | BR98: -13 | BT98: 76 | BU98: Kirchberg in Tirol | BV98: 825 | BW98: 1.88 | BX98: 4784 | BY98: -18 | CA98: 76
M99: 77 | N99: Vandans | O99: 648 | P99: 3.09 | Q99: -16 | R99: 4058 | S99: -16 | W99: 77 | X99: Vandans | Y99: 648 | Z99: 3.09 | AA99: 4058 | AB99: -16 | AD99: 77 | AE99: Pama | AF99: 137 | AG99: 3.43 | AH99: 3397 | AI99: -14 | AK99: 77 | AL99: Kleinglödnitz | AM99: 729 | AN99: 2.07 | AO99: 4591 | AP99: -17 | AR99: 77 | AS99: Eisgarn | AT99: 580 | AU99: 2.46 | AV99: 4491 | AW99: -17 | AY99: 77 | AZ99: Gilgenberg am Weilhart | BA99: 469 | BB99: 3.03 | BC99: 3970 | BD99: -15 | BF99: 77 | BG99: Puch bei Hallein | BH99: 450 | BI99: 3.56 | BJ99: 3814 | BK99: -15 | BM99: 77 | BN99: Graz | BO99: 353 | BP99: 3.34 | BQ99: 3515 | BR99: -12 | BT99: 77 | BU99: Kirchbichl | BV99: 515 | BW99: 2.67 | BX99: 4091 | BY99: -16 | CA99: 77
M100: 78 | N100: Warth | O100: 1499 | P100: 2.07 | Q100: -17 | R100: 5593 | S100: -17 | W100: 78 | X100: Warth | Y100: 1499 | Z100: 2.07 | AA100: 5593 | AB100: -17 | AD100: 78 | AE100: Pamhagen | AF100: 121 | AG100: 3.37 | AH100: 3243 | AI100: -14 | AK100: 78 | AL100: Knappenberg | AM100: 1064 | AN100: 2.58 | AO100: 4668 | AP100: -15 | AR100: 78 | AS100: Emmersdorf an der Donau | AT100: 215 | AU100: 3.46 | AV100: 3672 | AW100: -13 | AY100: 78 | AZ100: Gmunden | BA100: 445 | BB100: 3.41 | BC100: 3766 | BD100: -14 | BF100: 78 | BG100: Radstadt | BH100: 825 | BI100: 1.97 | BJ100: 4761 | BK100: -17 | BM100: 78 | BN100: Graz-Andritz | BO100: 360 | BP100: 3.33 | BQ100: 3517 | BR100: -12 | BT100: 78 | BU100: Kirchdorf in Tirol | BV100: 641 | BW100: 2.54 | BX100: 4330 | BY100: -16 | CA100: 78
M101: 79 | N101: Wolfurt | O101: 420 | P101: 4 | Q101: -12 | R101: 3536 | S101: -12 | W101: 79 | X101: Wolfurt | Y101: 420 | Z101: 4 | AA101: 3536 | AB101: -12 | AD101: 79 | AE101: Parndorf | AF101: 181 | AG101: 3.33 | AH101: 3483 | AI101: -14 | AK101: 79 | AL101: Kolbnitz an der Tauernbahn | AM101: 663 | AN101: 2.81 | AO101: 4142 | AP101: -15 | AR101: 79 | AS101: Engelhartstetten | AT101: 143 | AU101: 3.42 | AV101: 3432 | AW101: -14 | AY101: 79 | AZ101: Gosau | BA101: 779 | BB101: 2.16 | BC101: 4620 | BD101: -15 | BF101: 79 | BG101: Ramingstein | BH101: 975 | BI101: 1.74 | BJ101: 4986 | BK101: -21 | BM101: 79 | BN101: Graz-Liebenau | BO101: 345 | BP101: 3.26 | BQ101: 3499 | BR101: -13 | BT101: 79 | BU101: Kitzbühel | BV101: 760 | BW101: 2.05 | BX101: 4650 | BY101: -18 | CA101: 79
M102: 80 | N102: Zürs | O102: 1717 | P102: 1.48 | Q102: -19 | R102: 6019 | S102: -19 | W102: 80 | X102: Zürs | Y102: 1717 | Z102: 1.48 | AA102: 6019 | AB102: -19 | AD102: 80 | AE102: Pilgersdorf | AF102: 368 | AG102: 3.22 | AH102: 3709 | AI102: -13 | AK102: 80 | AL102: Köstenberg | AM102: 790 | AN102: 2.82 | AO102: 4157 | AP102: -15 | AR102: 80 | AS102: Ennsdorf bei Enns | AT102: 252 | AU102: 3.27 | AV102: 3598 | AW102: -13 | AY102: 80 | AZ102: Gosauschmied | BA102: 768 | BB102: 2.26 | BC102: 4541 | BD102: -14 | BF102: 80 | BG102: Rauris | BH102: 948 | BI102: 2.27 | BJ102: 4805 | BK102: -17 | BM102: 80 | BN102: Graz-Maria Trost | BO102: 468 | BP102: 3.47 | BQ102: 3586 | BR102: -12 | BT102: 80 | BU102: Kolsass | BV102: 560 | BW102: 3 | BX102: 3842 | BY102: -15 | CA102: 80
M103: 81 | O103: 0 | P103: 0 | Q103: -8 | R103: 0 | S103: 0 | W103: 81 | AD103: 81 | AE103: Pinkafeld | AF103: 394 | AG103: 3.15 | AH103: 3707 | AI103: -13 | AK103: 81 | AL103: Kötschach | AM103: 706 | AN103: 2.66 | AO103: 4144 | AP103: -15 | AR103: 81 | AS103: Enzersdorf im Thale | AT103: 265 | AU103: 3.14 | AV103: 3710 | AW103: -14 | AY103: 81 | AZ103: Gramastetten | BA103: 540 | BB103: 2.79 | BC103: 4078 | BD103: -14 | BF103: 81 | BG103: Rußbach am Paß Gschütt | BH103: 817 | BI103: 2.01 | BJ103: 4659 | BK103: -15 | BM103: 81 | BN103: Graz-Puntigam | BO103: 347 | BP103: 2.96 | BQ103: 3663 | BR103: -14 | BT103: 81 | BU103: Kössen | BV103: 589 | BW103: 2.7 | BX103: 4220 | BY103: -16 | CA103: 81
M104: 82 | O104: 0 | P104: 0 | Q104: -8 | R104: 0 | S104: 0 | W104: 82 | AD104: 82 | AE104: Podersdorf am See | AF104: 121 | AG104: 3.45 | AH104: 3377 | AI104: -14 | AK104: 82 | AL104: Köttmannsdorf | AM104: 540 | AN104: 2.39 | AO104: 3998 | AP104: -16 | AR104: 82 | AS104: Enzersfeld | AT104: 180 | AU104: 3.35 | AV104: 3529 | AW104: -14 | AY104: 82 | AZ104: Grein | BA104: 220 | BB104: 3.38 | BC104: 3573 | BD104: -13 | BF104: 82 | BG104: Saalbach | BH104: 1003 | BI104: 1.8 | BJ104: 5113 | BK104: -18 | BM104: 82 | BN104: Graz-Sankt Leonhard | BO104: 380 | BP104: 3.4 | BQ104: 3519 | BR104: -12 | BT104: 82 | BU104: Kramsach | BV104: 528 | BW104: 2.93 | BX104: 3891 | BY104: -15 | CA104: 82
M105: 83 | O105: 0 | P105: 0 | Q105: -8 | R105: 0 | S105: 0 | W105: 83 | AD105: 83 | AE105: Pöttsching | AF105: 219 | AG105: 3.5 | AH105: 3416 | AI105: -13 | AK105: 83 | AL105: Kraig | AM105: 616 | AN105: 2.35 | AO105: 4253 | AP105: -16 | AR105: 83 | AS105: Enzesfeld | AT105: 285 | AU105: 3.25 | AV105: 3619 | AW105: -14 | AY105: 83 | AZ105: Grieskirchen | BA105: 335 | BB105: 3.27 | BC105: 3681 | BD105: -15 | BF105: 83 | BG105: Saalfelden am Steinernen Meer | BH105: 740 | BI105: 2.47 | BJ105: 4330 | BK105: -17 | BM105: 83 | BN105: Graz-Straßgang | BO105: 385 | BP105: 2.76 | BQ105: 3776 | BR105: -14 | BT105: 83 | BU105: Kufstein | BV105: 499 | BW105: 2.96 | BX105: 4005 | BY105: -16 | CA105: 83
M106: 84 | O106: 0 | P106: 0 | Q106: -8 | R106: 0 | S106: 0 | W106: 84 | AD106: 84 | AE106: Potzneusiedl | AF106: 155 | AG106: 3.38 | AH106: 3424 | AI106: -14 | AK106: 84 | AL106: Kremsbrücke | AM106: 952 | AN106: 2.41 | AO106: 4679 | AP106: -17 | AR106: 84 | AS106: Erlach | AT106: 312 | AU106: 3.36 | AV106: 3562 | AW106: -14 | AY106: 84 | AZ106: Großraming | BA106: 442 | BB106: 3.22 | BC106: 3993 | BD106: -15 | BF106: 84 | BG106: Salzburg | BH106: 424 | BI106: 3.22 | BJ106: 3792 | BK106: -15 | BM106: 84 | BN106: Graz-Wagram | BO106: 350 | BP106: 2.95 | BQ106: 3665 | BR106: -14 | BT106: 84 | BU106: Kühtai | BV106: 1966 | BW106: 0.44 | BX106: 6689 | BY106: -20 | CA106: 84
